Workbook

Sheet Info
C1: Information
C2: Outil de Calcul de Rentabilité des Projets Autoproduction en Tunisie en Moyenne et Haute Tension (Version novembre 2018)
C5: A propos de l'outil
C7: A quoi sert l’outil?
C8: Permet de calculer la rentabilité des projets PV pour tous les segments de marché PV en Tunisie
C9: Les résultats présentés sous forme de graphiques donnent un aperçu des flux de trésorerie du projet et les paramètres financiers indiquent la rentabilité et les risques des investissements
C10: Permet de tester la sensibilité d’un projet aux changements des conditions-cadres (tarifs d’électricité, coût du système etc.)
C11: Permet de confirmer les résultats et les prévisions de rentabilité d’un projet tels que présentés par des tierces personnes
C13: Pourquoi l'utiliser?
C14: Afin d’optimiser les projets en déterminant la taille de l’installation, le montant de la dette, la durée du crédit ou encore le TRI des capitaux propres
C15: Afin de comprendre les rouages du projet et le modèle commercial utilisé, pour ensuite comprendre les risques éventuels associés au projet (analyse des scénarios)
C16: Pour découvrir des segments de marché réellement attractifs et pouvoir associer des chiffres concrets aux discussions avec les banques et développeurs de projets
C17: Pour bénéficier de la transparence qu’offre l’outil concernant les méthodes de calcul (contrairement aux calculs opaques des outils de planification technique standards)
C19: Guide pour la modélisation des flux de trésorerie
C20: Vous trouverez une vidéo sur le site du projet, avec une introduction aux notions fondamentales de la modélisation des flux de trésorerie pour les projets PV
C21: Le projet "Enabling PV dans la région MENA" décrit et analyse de manière détaillée les modèles commerciaux les plus appliqués pour le PV en Tunisie. De plus, il établit des calculs de rentabilité pour plusieurs projets-type du secteur résidentiel, commercial et industriel.
C23: Sites internet
C24: https://energypedia.info/wiki/Developing_the_Solar_Energy_Market_in_Tunisia_(Project_DMS)
C25: https://energypedia.info/wiki/Projet_Renforcement_du_Marché_Solaire_en_Tunisie_(RMS)
C26: https://energypedia.info/wiki/Enabling_PV_in_the_MENA_Region
C29: Soutiens et partenaires
C37: Auteurs de l'outil
C45: Christian Grundner | H45: Amin Chtioui, Elisabeth Gager | N45: Abessalem El Khazen
C46: Chef de projet (ingénieur industriel) | H46: Renforcement du Marché Solaire en Tunisie | N46: Directeur des Energies Renouvelables
C47: Spécialiste du financement des énergies renouvelables | H47: Chef de Projet et Conseillère en Energie
C49: eclareon GmbH | H49: Deutsche Gesellschaft für Internationale Zusammenarbeit (GIZ) GmbH | N49: Agence Nationale pour la Maîtrise de l'Energie
C50: Giesebrechtstraße 20 | H50: B.P. 753 | N50: Cité Administrative, Av. Japan B.P. 213 Montplaisir, Tunis
C51: D-10629 Berlin | H51: 1080 Tunis-Cedex, Tunisie
C52: Email: cg@eclareon.com | H52: Email: elisabeth.gager@giz.de | N52: Tel: +216 71 906 900
C53: URL: www.eclareon.com | H53: URL: www.giz.de | N53: Fax: +216 71 904 624
N54: Email: elkhazen@anme.nat.tn
C55: (auteur de la version originale de l'outil 2015) | N55: Web: www.anme.nat.tn
C59: Clause de non-responsabilité
C61: Le contenu de ce document a été soigneusement préparé et révisé. Cependant, eclareon ne garantit pas l'exactitude, l'exhaustivité ou la qualité des informations fournies, ni que celles-ci soient à jour.
C62: Les actions en responsabilité contre eclareon au titre du dommage matériel ou immatériel causé par l'utilisation ou la non-utilisation des informations fournies ou par l’utilisation d’informations inexactes ou incomplètes,
C63: sont en principe exclues à moins qu'on ne puisse apporter la preuve d'une faute intentionnelle ou d'une négligence grave de la part de la société.

Sheet Cadre Autoproduction
A2: Le cadre du régime d’autoproduction (clients MT et HT)
B30: Graphique 1. Exemple d'un jour de consommation et production PV pour un abonné de la STEG connectés aux réseaux MT et HT
B31: dans le cadre du régime d'autoproduction
B52: Tableau 1. Exemple de consommation et production PV correspondant au graphique.
B53: Poste Horaire | C53: Consommation | D53: Production PV | E53: Consommation nette | F53: Excédent
B54: Jour | C54: 130 | D54: 55 | E54: 80 | F54: 5
B55: Pointe matin été | C55: 80 | D55: 114 | E55: 3 | F55: 37
B56: Pointe soir | C56: 50 | D56: 0 | E56: 50 | F56: 0
B57: Nuit / dimanche | C57: 260 | D57: 0 | E57: 260 | F57: 0
B58: Total | C58: 520 | D58: 169 | E58: 393 | F58: 42

Sheet entrées par défault (hidden)
A1: Hypothèses détaillées DEFAUT
A2: Changer les hypothèses si nécessaire. Les valeurs par défault sont appropriées pour des utilisateurs typiques.
A7: Délais
A8: Départ
A9: Date de début de la modélisation | B9: 2018
A14: Exploitation
A15: Durée de l'hypothèse de référence | B15: 20
A30: Exploitation
A31: Production
A32: Dégradation des performances | B32: 0.007 | C32: % p.a. | E32: Rendement spécifique | G32: Calcul Automatique
A33: Rendement global | B33: 1 | C33: x
A35: Economies d'électricité
A36: Net-metering
A38: Choix du Tarif Souscrit STEG
A39: Les tarifs par défault sont applicables pour septembre 2018.
A41: Tarif Uniforme | B41: 0.251 | C41: DT/kWh
A43: Tarif jour | B43: 0.24 | C43: DT/kWh
A44: Tarif pointe matin été | B44: 0.366 | C44: DT/kWh
A45: Tarif pointe soir | B45: 0.329 | C45: DT/kWh
A46: Tarif nuit | B46: 0.188 | C46: DT/kWh
A48: TVA payé par le client pour consommation | B48: 0 | C48: =HYPERLINK("#"&ADDRESS(ROW(),COLUMN()-1),CHAR(128)) -> €
A49: surtaxe municipale | B49: 0.005 | C49: DT/kWh
A51: Tarifs d'Achat de l'Excèdent
A52: Tarif jour | B52: 0.115 | C52: DT/kWh
A53: Tarif pointe matin été | B53: 0.182 | C53: DT/kWh
A54: Tarif pointe soir | B54: 0.168 | C54: DT/kWh
A55: Tarif nuit | B55: 0.087 | C55: DT/kWh
A57: Net-metering | B57: La limite annuelle de l'excédent est fixé à 30% (en janvier 2017).
A58: Limite annuelle de l'excedent | B58: 0.3 | C58: %
X59: 2037
A60: Projections de prix | C60: =YEAR(Model_Start) -> 2017 | D60: =C60+1 -> 2018 | F60: =D60+1 -> 2019 | G60: =F60+1 -> 2020 | H60: =G60+1 -> 2021 | I60: =H60+1 -> 2022
A61: Augmentation du tarif de vente | B61: % | C61: 0 | D61: 0.05 | F61: 0.05 | G61: 0.05 | H61: 0.05 | I61: 0.05
A62: Augmentation du tarif d'achat de l'excédent | B62: % | C62: 0 | D62: 0.05 | F62: 0.05 | G62: 0.05 | H62: 0.05 | I62: 0
A64: Coûts d’exploitation
A65: Exploitation & Maintenance
A66: Coûts fixes d'exploitation | B66: 0.015 | C66: % de l'investissement
A68: Catégories de coûts
A69: Coûts fixes
A70: Autre | B70: 0 | C70: DT p.a.
A71: Autre | B71: 0 | C71: DT p.a.
A72: Autre | B72: 0 | C72: DT p.a.
A73: Autre | B73: 0 | C73: DT p.a.
A75: Coûts variables
A76: Bail Foncier | B76: 0 | C76: DT/kWh
A77: Autre | B77: 0 | C77: DT/kWh
A78: Autre | B78: 0 | C78: DT/kWh
A79: Autre | B79: 0 | C79: DT/kWh
A81: Dépenses en immobilisations permanentes (valeure nominale)
C82: =YEAR(Model_Start) -> 2017 | D82: =C82+1 -> 2018 | F82: =D82+1 -> 2019 | G82: =F82+1 -> 2020 | H82: =G82+1 -> 2021 | I82: =H82+1 -> 2022 | J82: 2023 | K82: 2024 | L82: 2025 | M82: 2026 | N82: 2027 | O82: 2028 | P82: 2029 | Q82: 2030 | R82: 2031 | S82: 2032 | T82: 2033 | U82: 2034 | V82: 2035 | W82: 2036
A83: Autre | B83: DT | C83: 0 | D83: 0 | F83: 0 | G83: 0 | H83: 0 | I83: 0 | J83: 0 | K83: 0 | L83: 0 | M83: 0 | N83: 0 | O83: 0 | P83: 0 | Q83: 0 | R83: 0 | S83: 0 | T83: 0 | U83: 0 | V83: 0 | W83: 0
A84: Autre | B84: DT | C84: 0 | D84: 0 | F84: 0 | G84: 0 | H84: 0 | I84: 0 | J84: 0 | K84: 0 | L84: 0 | M84: 0 | N84: 0 | O84: 0 | P84: 0 | Q84: 0 | R84: 0 | S84: 0 | T84: 0 | U84: 0 | V84: 0 | W84: 0
A85: Autre | B85: DT | C85: 0 | D85: 0 | F85: 0 | G85: 0 | H85: 0 | I85: 0 | J85: 0 | K85: 0 | L85: 0 | M85: 0 | N85: 0 | O85: 0 | P85: 0 | Q85: 0 | R85: 0 | S85: 0 | T85: 0 | U85: 0 | V85: 0 | W85: 0
A87: Financement
A88: Dette de premier rang
A89: Limite | B89: 200000 | C89: DT
A90: Montant de la dette | B90: 0.7 | C90: % | D90: =HYPERLINK("#"&ADDRESS(ROW(),COLUMN()-1),CHAR(128)) -> €
B91: =IF(C90="%",IF('Entrées Utilisateur'!D10="DT",MIN(B89,'Entrées Utilisateur'!C10*B90),MIN(B89,'Entrées Utilisateur'!C11*B90)),IF('Entrées Utilisateur'!D10="DT",B90/'Entrées Utilisateur'!C10,B90/'Entrées Utilisateur'!C11)) -> 96250 | C91: =IF(C90="DT/kW","DT","DT/kW") -> DT/kW
A93: Période | C93: Cons | D93: 1 | F93: 2 | G93: 3 | H93: 4
A94: Marge | B94: % p.a. | C94: 0.0125 | D94: 0.0125 | F94: 0.0125 | G94: 0.0125 | H94: 0.0125
A96: Frais de financement
A97: Commission initiale | B97: 0.01 | C97: % crédit
A98: Commission d'engagement | B98: 0.25 | C98: % marge
A100: Modalités de remboursement
A101: Durée du crédit | B101: 10
A102: Délai de grâce | B102: 0
A104: Capitaux propres
A106: Taux d'actualisation | B106: 0.08
A108: Elements macroéconomiques
A109: Taux d'intérêt
A110: Année civile | C110: =YEAR(Model_Start) -> 2017 | D110: =C110+1 -> 2018 | F110: =D110+1 -> 2019 | G110: =F110+1 -> 2020
A111: Taux de référence | B111: % p.a. | C111: 0.0425 | D111: 0.0425 | F111: 0.0425 | G111: 0.0425
A113: Inflation
A114: Année civile | C114: =YEAR(Model_Start) -> 2017 | D114: =C114+1 -> 2018 | F114: =D114+1 -> 2019 | G114: =F114+1 -> 2020
A115: Taux d'augmentation | B115: % p.a. | C115: 0.04 | D115: 0.04 | F115: 0.04 | G115: 0.04

Sheet Entrées Utilisateur
B2: Veuillez indiquer vos hypothèses et entrées pour les analyses
A4: =CHAR(128) -> € | B4: Cliquer sur les flèches pour voir les choix possible.
B6: Hypothèses de base
B8: Construction
B10: Coût de l'installation | C10: 2750 | D10: DT/kW | E10: =HYPERLINK("#"&ADDRESS(ROW(),COLUMN()-1),CHAR(128)) -> €
C11: =IF(D10="DT",C10/C17,C10*C17) -> 137500 | D11: =IF(D10="DT/kW","DT","DT/kW") -> DT
B13: Subvention | C13: 0.2 | D13: % | E13: =HYPERLINK("#"&ADDRESS(ROW(),COLUMN()-1),CHAR(128)) -> €
C14: =IF(D13="DT",IF(D10="DT",C13/C10,C13/C11),IF(D10="DT",MIN(C13*C10,100000),MIN(C13*C11,100000))) -> 27500 | D14: =IF(D13="%","DT","%") -> DT
B15: Exploitation
B17: Taille de l'installation | C17: 50 | D17: kWc
B19: Economies d'électricité
B21: Tarif Souscrit STEG | C21: Tarif à Poste Horaire | E21: =HYPERLINK("#"&ADDRESS(ROW(),COLUMN()-1),CHAR(128)) -> €
B23: Courbe de Charge Moyenne
B25: Type de client | C25: Atelier mécanique | E25: =HYPERLINK("#"&ADDRESS(ROW(),COLUMN()-1),CHAR(128)) -> € | G25: =IF(C25="saisie manuelle","Coller la courbe de charge dans l'onglet 'Courbe de Charge'.","") -> 
B26: Consommation annuelle moyenne | C26: 200000 | E26: kWh/an
B28: Site et Caractéristiques des Panneaux PV
B30: Région | C30: Tunis | E30: =HYPERLINK("#"&ADDRESS(ROW(),COLUMN()-1),CHAR(128)) -> € | G30: =IF(C30="saisie manuelle","Coller la courbe de production PV dans l'onglet 'Courbe de Production PV'.","") -> 
B31: Orientation des panneaux | C31: Sud | E31: =HYPERLINK("#"&ADDRESS(ROW(),COLUMN()-1),CHAR(128)) -> €
B36: Hypothèses détaillées
B37: Changer les hypothèses si nécessaire. Les valeurs par défault sont appropriées pour des utilisateurs typiques.
B42: Délais
B43: Départ
B44: Date de début de la modélisation | C44: 2018
B46: Exploitation
B47: Durée de l'hypothèse de référence | C47: 20
B49: Exploitation
B50: Production
B51: Dégradation des performances | C51: 0.007 | D51: % p.a. | F51: Rendement spécifique | H51: Calcul Automatique | I51: =HYPERLINK("#"&ADDRESS(ROW(),COLUMN()-1),CHAR(128)) -> €
B52: Rendement global | C52: 1 | D52: x | H52: 0 | I52: kWh/kW
B54: Economies d'électricité
B55: Net-metering
B57: Choix du Tarif Souscrit STEG
B58: Les tarifs par défault sont applicables pour novembre 2018.
B59: Tarif Uniforme | C59: 0.251 | D59: DT/kWh
B61: Tarif par Postes Horaires
B62: Tarif jour | C62: 0.24 | D62: DT/kWh
B63: Tarif pointe matin été | C63: 0.366 | D63: DT/kWh
B64: Tarif pointe soir | C64: 0.329 | D64: DT/kWh
B65: Tarif nuit / dim | C65: 0.188 | D65: DT/kWh
B67: TVA payé par le client pour consommation | C67: 0 | D67: =HYPERLINK("#"&ADDRESS(ROW(),COLUMN()-1),CHAR(128)) -> €
B68: surtaxe municipale | C68: 0.005 | D68: DT/kWh
B70: Tarifs d'Achat de l'Excédent
B71: Tarif jour | C71: 0.115 | D71: DT/kWh
B72: Tarif pointe matin été | C72: 0.182 | D72: DT/kWh
B73: Tarif pointe soir | C73: 0.168 | D73: DT/kWh
B74: Tarif nuit / dim | C74: 0.087 | D74: DT/kWh
B76: Net-metering
B77: Limite annuelle de l'excédent | C77: 0.3 | D77: %
B79: Projections de prix | D79: =YEAR(Model_Start) -> 2017 | E79: =D79+1 -> 2018 | G79: =E79+1 -> 2019 | H79: =G79+1 -> 2020 | I79: =H79+1 -> 2021 | J79: =I79+1 -> 2022
B80: Augmentation du tarif de vente | C80: % | D80: 0 | E80: 0.05 | G80: 0.05 | H80: 0.05 | I80: 0.05 | J80: 0.05
B81: Augmentation du tarif d'achat de l'excédent | C81: % | D81: 0 | E81: 0.05 | G81: 0.05 | H81: 0.05 | I81: 0.05 | J81: 0
B83: Coûts d’exploitation
B84: Exploitation & Maintenance
B85: Coûts fixes d'exploitation | C85: 0.015 | D85: % de l'investissement par an
B87: Catégories de coûts
B88: Coûts fixes
B89: Autre | C89: 0 | D89: DT p.a.
B90: Autre | C90: 0 | D90: DT p.a.
B91: Autre | C91: 0 | D91: DT p.a.
B92: Autre | C92: 0 | D92: DT p.a.
B94: Coûts variables
B95: Bail Foncier | C95: 0 | D95: DT/kWh
B96: Autre | C96: 0 | D96: DT/kWh
B97: Autre | C97: 0 | D97: DT/kWh
B98: Autre | C98: 0 | D98: DT/kWh
B100: Dépenses en immobilisations permanentes (valeure nominale)
D101: =YEAR(Model_Start) -> 2017 | E101: =D101+1 -> 2018 | G101: =E101+1 -> 2019 | H101: =G101+1 -> 2020 | I101: =H101+1 -> 2021 | J101: =I101+1 -> 2022 | K101: 2023 | L101: 2024 | M101: 2025 | N101: 2026 | O101: 2027 | P101: 2028 | Q101: 2029 | R101: 2030 | S101: 2031 | T101: 2032 | U101: 2033 | V101: 2034 | W101: 2035 | X101: 2036
B102: Autre | C102: DT | D102: 0 | E102: 0 | G102: 0 | H102: 0 | I102: 0 | J102: 0 | K102: 0 | L102: 0 | M102: 0 | N102: 0 | O102: 0 | P102: 0 | Q102: 0 | R102: 0 | S102: 0 | T102: 0 | U102: 0 | V102: 0 | W102: 0 | X102: 0
B103: Autre | C103: DT | D103: 0 | E103: 0 | G103: 0 | H103: 0 | I103: 0 | J103: 0 | K103: 0 | L103: 0 | M103: 0 | N103: 0 | O103: 0 | P103: 0 | Q103: 0 | R103: 0 | S103: 0 | T103: 0 | U103: 0 | V103: 0 | W103: 0 | X103: 0
B104: Autre | C104: DT | D104: 0 | E104: 0 | G104: 0 | H104: 0 | I104: 0 | J104: 0 | K104: 0 | L104: 0 | M104: 0 | N104: 0 | O104: 0 | P104: 0 | Q104: 0 | R104: 0 | S104: 0 | T104: 0 | U104: 0 | V104: 0 | W104: 0 | X104: 0
B106: Financement
B107: Dette de premier rang
B108: Limite | C108: 200000 | D108: DT
B109: Montant de la dette | C109: 0.7 | D109: % | E109: =HYPERLINK("#"&ADDRESS(ROW(),COLUMN()-1),CHAR(128)) -> €
C110: =IF(D109="%",IF(D10="DT",MIN(C108,C10*C109),MIN(C108,C11*C109)),IF(D10="DT",C109/C10,C109/C11)) -> 96250 | D110: =IF(D109="%","DT","%") -> DT
B112: Période | D112: Cons | E112: 1 | G112: 2 | H112: 3 | I112: 4
B113: Marge | C113: % p.a. | D113: 0.0125 | E113: 0.0125 | G113: 0.0125 | H113: 0.0125 | I113: 0.0125
B115: Frais de financement
B116: Commission initiale | C116: 0.01 | D116: % crédit
B117: Commission d'engagement | C117: 0.25 | D117: % marge
B119: Modalités de remboursement
B120: Durée du crédit | C120: 10
B121: Délai de grâce | C121: 0
B123: Capitaux propres
B125: Taux d'actualisation | C125: 0.08
B127: Elements macroéconomiques
B128: Taux d'intérêt
B129: Année civile | D129: =YEAR(Model_Start) -> 2017 | E129: =D129+1 -> 2018 | G129: =E129+1 -> 2019 | H129: =G129+1 -> 2020
B130: Taux de référence (Banque Centrale) | C130: % p.a. | D130: 0.0425 | E130: 0.0425 | G130: 0.0425 | H130: 0.0425
B132: Inflation
B133: Année civile | D133: =YEAR(Model_Start) -> 2017 | E133: =D133+1 -> 2018 | G133: =E133+1 -> 2019 | H133: =G133+1 -> 2020
B134: Taux d'augmentation | C134: % p.a. | D134: 0.04 | E134: 0.04 | G134: 0.04 | H134: 0.04

Sheet Résultats
B2: ="Résultats: "&'Entrées Utilisateur'!C25&" à "&'Entrées Utilisateur'!C30&", orientation des panneaux "&'Entrées Utilisateur'!C31 -> Résultats: Atelier mécanique à Tunis, orientation des panneaux Sud
B4: variable | C4: valeur | D4: unité | E4: Description
B5: Consommation brute annuelle | C5: ='Compensation PV'!G17 -> 200000 | D5: kWh | E5: La consommation électrique du client sur l'année
B6: Production annuelle | C6: ='Compensation PV'!L17 -> 82500 | D6: kWh | E6: L'électricité générée par le système PV la première année
B7: Ratio Production PV – consommation | C7: =C6/C5 -> 0.4125 | D7: - | E7: Pourcentage de la consommation brute annuelle produite par le système PV
B8: Pourcentage de la production en excédent | C8: ='Compensation PV'!C40 -> 0.2442806791 | D8: -
B9: Montant à rembourser à la fin de l'année | C9: ='Compensation PV'!C41 -> 0 | D9: DT/an | E9: Remboursement à la STEG en raison de dépassement de la limite de l'excédent (première année)
B10: Coût Moyen Actualisé de l'Énergie (LCOE) avec subvention | C10: ='Flux de trésorerie'!I74 -> 0.1550574763 | D10: DT/kWh | E10: Le coût actualisé de l'énergie, qui correspond au prix moyen de l'électricité généré par le système sur la vie du projet prenant en compte la subvention
B11: Facture annuelle sans PV | C11: =SUM('Compensation PV'!N53:N8812) -> 47872.20605 | D11: DT/an | E11: La facture d'électricité totale sur la première année sans système PV
B12: Facture annuelle avec PV | C12: ='Compensation PV'!C48 -> 31864.45702 | D12: DT/an | E12: La facture d'électricité totale sur la première année avec système PV
B13: Vente annuelle de l'excédent à la STEG | C13: ='Compensation PV'!C49 -> 2458.530831 | D13: DT/an | E13: Le montant facturé à la STEG pour l'électricité en excédent, prenant en compte la limite de l'excédent.
B14: Temps de retour sur investissement | C14: ='Capitaux propres'!F45 -> 6.096590147 | D14: années | E14: Le nombre d'années nécessaire pour que le client rembourse sont investissement initial
B15: Taux de rentabilité interne du projet | C15: ='Flux de trésorerie'!I60 -> 0.1466469467 | D15: - | E15: Le taux d'actualisation nécessaire pour que la valeur actuelle nette du projet soit égale à zero. Le TRI est utilisé pour comparer l'investissement à d'autres investissement de risques similaires.
B16: Réduction d'émissions de gaz à effet de serre sur la vie du système PV | C16: =SUM('Courbes de Production PV'!AC9:AC8768)*Données!G15*0.57/1000 -> 940.5 | D16: tonnes équivalent CO2 | E16: En produisant de l'électricité à partir du solaire, la production d'électricité de sources conventionnelles est évitée ainsi que ses émissions CO2. La production de 1 MWh d'électricité solaire en Tunisie déplace en moyenne 0,57 tonnes équivalent de CO2.
B22: Installation PV | F22: Investissement
B23: Taille de l’installation | C23: kWc | D23: =Données!G35 -> 50 | F23: Durée du projet | H23: années | I23: =Données!G16 -> 20
B24: Coût d’investissement spécifique | C24: DT/kWc | D24: =Données!G21/Données!G35 -> 2750 | F24: Subventions | H24: DT | I24: =Données!G30 -> 27500
B25: Coût d’investissement total | C25: DT | D25: =Données!G22 -> 137500 | F25: Capitaux propres | H25: DT | I25: =Données!G130 -> 42238.04581
B26: Coût d’investissement sans subvention | C26: DT | D26: =Données!G22-Données!G30 -> 110000 | F26: Montant de la dette | G26: =I26/D25 -> 0.7 | H26: DT | I26: =Données!G109 -> 96250
F27: Coût total du projet | H27: DT | I27: =I26+I25 -> 138488.0458
B28: Rendement spécifique | C28: kWh/kWc/a | D28: ='Courbes de Production PV'!C6 -> 1650 | F28: Durée du crédit | H28: années | I28: =Données!G123 -> 10
B29: Dégradation des performances | C29: % p.a. | D29: =Données!G37 -> 0.007 | F29: Taux d’intérêt | H29: % | I29: =Données!H114+Données!H141 -> 0.055
B30: Coûts fixes | C30: DT/a | D30: =Données!G89 -> 2062.5 | F30: Taux d'actualisation | H30: % | I30: =Données!G133 -> 0.08
B31: Coûts variables | C31: DT/kWh | D31: =Données!G96 -> 0
B33: Paramètres de prix | F33: Autres indicateurs de rentabilité et financiers
B34: Économies facturation* | C34: DT/kWh | D34: =Données!G75 -> 0.2238336953 | F34: Coût Moyen Actualisé de l'Énergie (LCOE) sans subvention | H34: DT/kWh | I34: ='Flux de trésorerie'!I73 -> 0.1844866312
B35: Limite facturation annuelle par poste horaire | C35: % | D35: =Données!G68 -> 0.3 | F35: Valeur Actualisée Nette | H35: DT | I35: ='Capitaux propres'!F31 -> 122985.9455
B36: TVA | C36: % | D36: =Données!G55 -> 0 | F36: TRI des capitaux propres | H36: % | I36: ='Capitaux propres'!F28 -> 0.2743023813
B37: Taxe vente du surplus | C37: DT/kWh | D37: =Données!G56 -> 0.005 | F37: Min DSCR* | H37: x | I37: =Financement!F48 -> 1.899711275
B38: Augmentation du prix de l’électricité** | C38: % p.a. | D38: =Données!L71 -> 0.05 | F38: Min LLCR** | H38: x | I38: =Financement!F61 -> 2.239573835
B39: Inflation | C39: % p.a. | D39: =Données!G145 -> 0.04
B40: * avec TVA (si applicable), tarif STEG de l'année de construction | F40: * DSCR: Ratio de couverture du service de la dette
B41: ** après 5 ans | F41: ** LLCR: Ratio de couverture de la durée du prêt

Sheet worksheet (hidden)
C5: énergie auto-consommée (kWh) | G5: énergie auto-consommée (DT) | K5: énergie cédée (kWh) | O5: énergie cédée (DT)
B6: Mois | C6: Tarif jour | D6: Tarif pointe matin été | E6: Tarif pointe soir | F6: Tarif nuit / dimanche | G6: Tarif jour | H6: Tarif pointe matin été | I6: Tarif pointe soir | J6: Tarif nuit / dimanche | K6: Tarif jour | L6: Tarif pointe matin été | M6: Tarif pointe soir | N6: Tarif nuit / dimanche | O6: Tarif jour | P6: Tarif pointe matin été | Q6: Tarif pointe soir | R6: Tarif nuit / dimanche | S6: remboursement fin d'année
B7: JAN | C7: ='Compensation PV'!H5-'Compensation PV'!I22 -> 3264.330181 | D7: ='Compensation PV'!I5-'Compensation PV'!J22 -> 0 | E7: ='Compensation PV'!J5-'Compensation PV'!K22 -> 0 | F7: ='Compensation PV'!K5-'Compensation PV'!L22 -> 331.4170475 | G7: =C7*('Compensation PV'!$C$8820*(1+Données!$G$55)+Données!$G$56) -> 391.7196217 | H7: =D7*('Compensation PV'!$C$8821*(1+Données!$G$55)+Données!$G$56) -> 0 | I7: =E7*('Compensation PV'!$C$8822*(1+Données!$G$55)+Données!$G$56) -> 0 | J7: =F7*('Compensation PV'!$C$8823*(1+Données!$G$55)+Données!$G$56) -> 30.49036837 | K7: ='Compensation PV'!I22 -> 563.9963796 | L7: ='Compensation PV'!J22 -> 0 | M7: ='Compensation PV'!K22 -> 0 | N7: ='Compensation PV'!L22 -> 454.2155254 | O7: =K7*'Entrées Utilisateur'!$C$71 -> 64.85958366 | P7: =L7*'Entrées Utilisateur'!$C$72 -> 0 | Q7: =M7*'Entrées Utilisateur'!$C$73 -> 0 | R7: =N7*'Entrées Utilisateur'!$C$74 -> 39.51675071
B8: FÉV | C8: ='Compensation PV'!H6-'Compensation PV'!I23 -> 4197.150584 | D8: ='Compensation PV'!I6-'Compensation PV'!J23 -> 0 | E8: ='Compensation PV'!J6-'Compensation PV'!K23 -> 0.2246058748 | F8: ='Compensation PV'!K6-'Compensation PV'!L23 -> 546.5773892 | G8: =C8*('Compensation PV'!$C$8820*(1+Données!$G$55)+Données!$G$56) -> 503.6580701 | H8: =D8*('Compensation PV'!$C$8821*(1+Données!$G$55)+Données!$G$56) -> 0 | I8: =E8*('Compensation PV'!$C$8822*(1+Données!$G$55)+Données!$G$56) -> 0.03885681635 | J8: =F8*('Compensation PV'!$C$8823*(1+Données!$G$55)+Données!$G$56) -> 50.28511981 | K8: ='Compensation PV'!I23 -> 149.3759747 | L8: ='Compensation PV'!J23 -> 0 | M8: ='Compensation PV'!K23 -> 5.226367195 | N8: ='Compensation PV'!L23 -> 437.2945447 | O8: =K8*'Entrées Utilisateur'!$C$71 -> 17.1782371 | P8: =L8*'Entrées Utilisateur'!$C$72 -> 0 | Q8: =M8*'Entrées Utilisateur'!$C$73 -> 0.8780296888 | R8: =N8*'Entrées Utilisateur'!$C$74 -> 38.04462539
B9: MAR | C9: ='Compensation PV'!H7-'Compensation PV'!I24 -> 5474.013285 | D9: ='Compensation PV'!I7-'Compensation PV'!J24 -> 0 | E9: ='Compensation PV'!J7-'Compensation PV'!K24 -> 0 | F9: ='Compensation PV'!K7-'Compensation PV'!L24 -> 367.684452 | G9: =C9*('Compensation PV'!$C$8820*(1+Données!$G$55)+Données!$G$56) -> 656.8815942 | H9: =D9*('Compensation PV'!$C$8821*(1+Données!$G$55)+Données!$G$56) -> 0 | I9: =E9*('Compensation PV'!$C$8822*(1+Données!$G$55)+Données!$G$56) -> 0 | J9: =F9*('Compensation PV'!$C$8823*(1+Données!$G$55)+Données!$G$56) -> 33.82696959 | K9: ='Compensation PV'!I24 -> 525.4765399 | L9: ='Compensation PV'!J24 -> 0 | M9: ='Compensation PV'!K24 -> 39.85092396 | N9: ='Compensation PV'!L24 -> 691.841388 | O9: =K9*'Entrées Utilisateur'!$C$71 -> 60.42980209 | P9: =L9*'Entrées Utilisateur'!$C$72 -> 0 | Q9: =M9*'Entrées Utilisateur'!$C$73 -> 6.694955226 | R9: =N9*'Entrées Utilisateur'!$C$74 -> 60.19020076
B10: AVR | C10: ='Compensation PV'!H8-'Compensation PV'!I25 -> 5002.233443 | D10: ='Compensation PV'!I8-'Compensation PV'!J25 -> 0 | E10: ='Compensation PV'!J8-'Compensation PV'!K25 -> 22.90174162 | F10: ='Compensation PV'!K8-'Compensation PV'!L25 -> 869.9330288 | G10: =C10*('Compensation PV'!$C$8820*(1+Données!$G$55)+Données!$G$56) -> 600.2680132 | H10: =D10*('Compensation PV'!$C$8821*(1+Données!$G$55)+Données!$G$56) -> 0 | I10: =E10*('Compensation PV'!$C$8822*(1+Données!$G$55)+Données!$G$56) -> 3.962001301 | J10: =F10*('Compensation PV'!$C$8823*(1+Données!$G$55)+Données!$G$56) -> 80.03383865 | K10: ='Compensation PV'!I25 -> 1677.532685 | L10: ='Compensation PV'!J25 -> 0 | M10: ='Compensation PV'!K25 -> 28.62768063 | N10: ='Compensation PV'!L25 -> 65.74029732 | O10: =K10*'Entrées Utilisateur'!$C$71 -> 192.9162587 | P10: =L10*'Entrées Utilisateur'!$C$72 -> 0 | Q10: =M10*'Entrées Utilisateur'!$C$73 -> 4.809450346 | R10: =N10*'Entrées Utilisateur'!$C$74 -> 5.719405867
B11: MAI | C11: ='Compensation PV'!H9-'Compensation PV'!I26 -> 5281.238282 | D11: ='Compensation PV'!I9-'Compensation PV'!J26 -> 0 | E11: ='Compensation PV'!J9-'Compensation PV'!K26 -> 39.41833103 | F11: ='Compensation PV'!K9-'Compensation PV'!L26 -> 1157.687476 | G11: =C11*('Compensation PV'!$C$8820*(1+Données!$G$55)+Données!$G$56) -> 633.7485938 | H11: =D11*('Compensation PV'!$C$8821*(1+Données!$G$55)+Données!$G$56) -> 0 | I11: =E11*('Compensation PV'!$C$8822*(1+Données!$G$55)+Données!$G$56) -> 6.819371269 | J11: =F11*('Compensation PV'!$C$8823*(1+Données!$G$55)+Données!$G$56) -> 106.5072478 | K11: ='Compensation PV'!I26 -> 1319.22636 | L11: ='Compensation PV'!J26 -> 0 | M11: ='Compensation PV'!K26 -> 36.47277103 | N11: ='Compensation PV'!L26 -> 317.8965742 | O11: =K11*'Entrées Utilisateur'!$C$71 -> 151.7110314 | P11: =L11*'Entrées Utilisateur'!$C$72 -> 0 | Q11: =M11*'Entrées Utilisateur'!$C$73 -> 6.127425533 | R11: =N11*'Entrées Utilisateur'!$C$74 -> 27.65700195
B12: JUN | C12: ='Compensation PV'!H10-'Compensation PV'!I27 -> 2224.326334 | D12: ='Compensation PV'!I10-'Compensation PV'!J27 -> 3279.912541 | E12: ='Compensation PV'!J10-'Compensation PV'!K27 -> 7.172783577 | F12: ='Compensation PV'!K10-'Compensation PV'!L27 -> 986.048829 | G12: =C12*('Compensation PV'!$C$8820*(1+Données!$G$55)+Données!$G$56) -> 266.9191601 | H12: =D12*('Compensation PV'!$C$8821*(1+Données!$G$55)+Données!$G$56) -> 613.3436453 | I12: =E12*('Compensation PV'!$C$8822*(1+Données!$G$55)+Données!$G$56) -> 1.240891559 | J12: =F12*('Compensation PV'!$C$8823*(1+Données!$G$55)+Données!$G$56) -> 90.71649227 | K12: ='Compensation PV'!I27 -> 987.1408385 | L12: ='Compensation PV'!J27 -> 1022.97652 | M12: ='Compensation PV'!K27 -> 10.09467435 | N12: ='Compensation PV'!L27 -> 159.8994092 | O12: =K12*'Entrées Utilisateur'!$C$71 -> 113.5211964 | P12: =L12*'Entrées Utilisateur'!$C$72 -> 186.1817266 | Q12: =M12*'Entrées Utilisateur'!$C$73 -> 1.695905291 | R12: =N12*'Entrées Utilisateur'!$C$74 -> 13.9112486
B13: JUL | C13: ='Compensation PV'!H11-'Compensation PV'!I28 -> 1846.194107 | D13: ='Compensation PV'!I11-'Compensation PV'!J28 -> 2844.300594 | E13: ='Compensation PV'!J11-'Compensation PV'!K28 -> 7.612426915 | F13: ='Compensation PV'!K11-'Compensation PV'!L28 -> 817.6885962 | G13: =C13*('Compensation PV'!$C$8820*(1+Données!$G$55)+Données!$G$56) -> 221.5432928 | H13: =D13*('Compensation PV'!$C$8821*(1+Données!$G$55)+Données!$G$56) -> 531.8842111 | I13: =E13*('Compensation PV'!$C$8822*(1+Données!$G$55)+Données!$G$56) -> 1.316949856 | J13: =F13*('Compensation PV'!$C$8823*(1+Données!$G$55)+Données!$G$56) -> 75.22735085 | K13: ='Compensation PV'!I28 -> 1340.427929 | L13: ='Compensation PV'!J28 -> 1323.22314 | M13: ='Compensation PV'!K28 -> 8.267107716 | N13: ='Compensation PV'!L28 -> 593.9618451 | O13: =K13*'Entrées Utilisateur'!$C$71 -> 154.1492119 | P13: =L13*'Entrées Utilisateur'!$C$72 -> 240.8266114 | Q13: =M13*'Entrées Utilisateur'!$C$73 -> 1.388874096 | R13: =N13*'Entrées Utilisateur'!$C$74 -> 51.67468053
B14: AOÛ | C14: ='Compensation PV'!H12-'Compensation PV'!I29 -> 1385.772455 | D14: ='Compensation PV'!I12-'Compensation PV'!J29 -> 3250.639492 | E14: ='Compensation PV'!J12-'Compensation PV'!K29 -> 0.3479880258 | F14: ='Compensation PV'!K12-'Compensation PV'!L29 -> 625.7022903 | G14: =C14*('Compensation PV'!$C$8820*(1+Données!$G$55)+Données!$G$56) -> 166.2926946 | H14: =D14*('Compensation PV'!$C$8821*(1+Données!$G$55)+Données!$G$56) -> 607.869585 | I14: =E14*('Compensation PV'!$C$8822*(1+Données!$G$55)+Données!$G$56) -> 0.06020192846 | J14: =F14*('Compensation PV'!$C$8823*(1+Données!$G$55)+Données!$G$56) -> 57.56461071 | K14: ='Compensation PV'!I29 -> 1851.118995 | L14: ='Compensation PV'!J29 -> 1157.397853 | M14: ='Compensation PV'!K29 -> 5.760687449 | N14: ='Compensation PV'!L29 -> 234.1665531 | O14: =K14*'Entrées Utilisateur'!$C$71 -> 212.8786844 | P14: =L14*'Entrées Utilisateur'!$C$72 -> 210.6464092 | Q14: =M14*'Entrées Utilisateur'!$C$73 -> 0.9677954914 | R14: =N14*'Entrées Utilisateur'!$C$74 -> 20.37249012
B15: SEP | C15: ='Compensation PV'!H13-'Compensation PV'!I30 -> 4444.605469 | D15: ='Compensation PV'!I13-'Compensation PV'!J30 -> 0 | E15: ='Compensation PV'!J13-'Compensation PV'!K30 -> 0 | F15: ='Compensation PV'!K13-'Compensation PV'!L30 -> 588.2424108 | G15: =C15*('Compensation PV'!$C$8820*(1+Données!$G$55)+Données!$G$56) -> 533.3526562 | H15: =D15*('Compensation PV'!$C$8821*(1+Données!$G$55)+Données!$G$56) -> 0 | I15: =E15*('Compensation PV'!$C$8822*(1+Données!$G$55)+Données!$G$56) -> 0 | J15: =F15*('Compensation PV'!$C$8823*(1+Données!$G$55)+Données!$G$56) -> 54.11830179 | K15: ='Compensation PV'!I30 -> 1756.711872 | L15: ='Compensation PV'!J30 -> 0 | M15: ='Compensation PV'!K30 -> 17.06400328 | N15: ='Compensation PV'!L30 -> 320.9903722 | O15: =K15*'Entrées Utilisateur'!$C$71 -> 202.0218653 | P15: =L15*'Entrées Utilisateur'!$C$72 -> 0 | Q15: =M15*'Entrées Utilisateur'!$C$73 -> 2.866752551 | R15: =N15*'Entrées Utilisateur'!$C$74 -> 27.92616238
B16: OCT | C16: ='Compensation PV'!H14-'Compensation PV'!I31 -> 3922.225688 | D16: ='Compensation PV'!I14-'Compensation PV'!J31 -> 0 | E16: ='Compensation PV'!J14-'Compensation PV'!K31 -> 0 | F16: ='Compensation PV'!K14-'Compensation PV'!L31 -> 1075.785824 | G16: =C16*('Compensation PV'!$C$8820*(1+Données!$G$55)+Données!$G$56) -> 470.6670825 | H16: =D16*('Compensation PV'!$C$8821*(1+Données!$G$55)+Données!$G$56) -> 0 | I16: =E16*('Compensation PV'!$C$8822*(1+Données!$G$55)+Données!$G$56) -> 0 | J16: =F16*('Compensation PV'!$C$8823*(1+Données!$G$55)+Données!$G$56) -> 98.9722958 | K16: ='Compensation PV'!I31 -> 1183.700887 | L16: ='Compensation PV'!J31 -> 0 | M16: ='Compensation PV'!K31 -> 0 | N16: ='Compensation PV'!L31 -> 153.8638583 | O16: =K16*'Entrées Utilisateur'!$C$71 -> 136.1256021 | P16: =L16*'Entrées Utilisateur'!$C$72 -> 0 | Q16: =M16*'Entrées Utilisateur'!$C$73 -> 0 | R16: =N16*'Entrées Utilisateur'!$C$74 -> 13.38615568
B17: NOV | C17: ='Compensation PV'!H15-'Compensation PV'!I32 -> 3541.604205 | D17: ='Compensation PV'!I15-'Compensation PV'!J32 -> 0 | E17: ='Compensation PV'!J15-'Compensation PV'!K32 -> 0 | F17: ='Compensation PV'!K15-'Compensation PV'!L32 -> 686.7049694 | G17: =C17*('Compensation PV'!$C$8820*(1+Données!$G$55)+Données!$G$56) -> 424.9925046 | H17: =D17*('Compensation PV'!$C$8821*(1+Données!$G$55)+Données!$G$56) -> 0 | I17: =E17*('Compensation PV'!$C$8822*(1+Données!$G$55)+Données!$G$56) -> 0 | J17: =F17*('Compensation PV'!$C$8823*(1+Données!$G$55)+Données!$G$56) -> 63.17685718 | K17: ='Compensation PV'!I32 -> 751.599106 | L17: ='Compensation PV'!J32 -> 0 | M17: ='Compensation PV'!K32 -> 0 | N17: ='Compensation PV'!L32 -> 162.067538 | O17: =K17*'Entrées Utilisateur'!$C$71 -> 86.43389719 | P17: =L17*'Entrées Utilisateur'!$C$72 -> 0 | Q17: =M17*'Entrées Utilisateur'!$C$73 -> 0 | R17: =N17*'Entrées Utilisateur'!$C$74 -> 14.09987581
B18: DÉC | C18: ='Compensation PV'!H16-'Compensation PV'!I33 -> 3553.455881 | D18: ='Compensation PV'!I16-'Compensation PV'!J33 -> 0 | E18: ='Compensation PV'!J16-'Compensation PV'!K33 -> 0 | F18: ='Compensation PV'!K16-'Compensation PV'!L33 -> 703.6912387 | G18: =C18*('Compensation PV'!$C$8820*(1+Données!$G$55)+Données!$G$56) -> 426.4147058 | H18: =D18*('Compensation PV'!$C$8821*(1+Données!$G$55)+Données!$G$56) -> 0 | I18: =E18*('Compensation PV'!$C$8822*(1+Données!$G$55)+Données!$G$56) -> 0 | J18: =F18*('Compensation PV'!$C$8823*(1+Données!$G$55)+Données!$G$56) -> 64.73959396 | K18: ='Compensation PV'!I33 -> 754.5492588 | L18: ='Compensation PV'!J33 -> 0 | M18: ='Compensation PV'!K33 -> 0 | N18: ='Compensation PV'!L33 -> 45.39956992 | O18: =K18*'Entrées Utilisateur'!$C$71 -> 86.77316476 | P18: =L18*'Entrées Utilisateur'!$C$72 -> 0 | Q18: =M18*'Entrées Utilisateur'!$C$73 -> 0 | R18: =N18*'Entrées Utilisateur'!$C$74 -> 3.949762583
S19: =-'Compensation PV'!C41 -> 0

Sheet Résultats version imprimable (hidden)

Sheet Graphiques
B2: Autoconsommation et l'excédent
B34: Flux de trésorerie

Sheet Scénarios
B1: Sensibilités
B4: Dimensionnement du Système PV
B5: Tableaux Scenario
C7: Scénario | F7: Taille Système PV | G7: % de la consommation annuelle généré par le system PV | H7: ='Compensation PV'!B40 -> pourcentage de la génération en excédent | I7: ='Compensation PV'!B39 -> Moyenne pondérée du tarif d'achat de l'excédent (ne prenant pas compte de la limite de facturation annuelle) | J7: ='Compensation PV'!B42 -> Moyenne pondérée du tarif d'achat de l'excédent (prenant compte de la limite de facturation annuelle) | K7: ='Compensation PV'!B41 -> montant à rembourser à la fin de l'année | L7: valeur de la kWh solaire pour le consommateur | M7: TRI des capitaux propres | N7: TRI du projet | O7: Temps de retour
C8: =OFFSET(C9,E8-1,0,1,1) -> Base Case | D8: =OFFSET(D9,E8-1,0,1,1) -> 0 | E8: 8 | F8: =Données!G35 -> 50 | G8: =SUM('Compensation PV'!L5:L16)/SUM('Compensation PV'!G5:G16) -> 0.4125 | H8: ='Compensation PV'!C40 -> 0.2442806791 | I8: ='Compensation PV'!C39 -> 0.1219923484 | J8: =IF('Compensation PV'!C42<>0,'Compensation PV'!C42,"") -> 0.1219923484 | K8: ='Compensation PV'!C41 -> 0 | L8: ='Compensation PV'!C46 -> 0.2238336953 | M8: =IF(OR('Capitaux propres'!$F$28<0.001,'Capitaux propres'!$F$28>1,ISERROR('Capitaux propres'!$F$28)=TRUE),#N/A,'Capitaux propres'!$F$28) -> 0.2743023813 | N8: =IF(OR('Flux de trésorerie'!$I$60<0.001,'Flux de trésorerie'!$I$60>1,ISERROR('Flux de trésorerie'!$I$60)),#N/A,'Flux de trésorerie'!$I$60) -> 0.1466469467 | O8: =IF(ISERROR('Capitaux propres'!$F$45)=TRUE,"21+",'Capitaux propres'!$F$45) -> 6.096590147
C9: Down Case | D9: =D10-0.1 -> -0.7 | E9: 1 | F9: 15 | G9: 0.12375 | H9: 0.2042190475 | I9: 0.1204961893 | J9: 0.1204961893 | K9: 0 | L9: 0.2295612239 | M9: 0.309582597 | N9: 0.1441705167 | O9: 5.625392402 | Q9: =IF(O9="21+",#N/A,O9) -> 5.625392402
C10: Down Case | D10: -0.6 | E10: 2 | F10: 20 | G10: 0.165 | H10: 0.2042190475 | I10: 0.1204961893 | J10: 0.1204961893 | K10: 0 | L10: 0.2295612239 | M10: 0.309582597 | N10: 0.1441705167 | O10: 5.625392404 | Q10: =IF(O10="21+",#N/A,O10) -> 5.625392404
C11: Down Case | D11: -0.5 | E11: 3 | F11: 25 | G11: 0.20625 | H11: 0.2042190475 | I11: 0.1204961893 | J11: 0.1204961893 | K11: 0 | L11: 0.2295612239 | M11: 0.309582597 | N11: 0.1441705167 | O11: 5.625392404 | Q11: 5.625392404
C12: Down Case | D12: -0.4 | E12: 4 | F12: 30 | G12: 0.2475 | H12: 0.2042190475 | I12: 0.1204961893 | J12: 0.1204961893 | K12: 0 | L12: 0.2295612239 | M12: 0.309582597 | N12: 0.1441705167 | O12: 5.625392405 | Q12: 5.625392405
C13: Down Case | D13: -0.3 | E13: 5 | F13: 35 | G13: 0.28875 | H13: 0.2043600966 | I13: 0.1204887267 | J13: 0.1204887267 | K13: 0 | L13: 0.2295435303 | M13: 0.309541744 | N13: 0.1441555202 | O13: 5.626317919 | Q13: 5.626317919
C14: Down Case | D14: -0.2 | E14: 6 | F14: 40 | G14: 0.33 | H14: 0.2094348315 | I14: 0.1206081415 | J14: 0.1206081415 | K14: 0 | L14: 0.2288367201 | M14: 0.3079064548 | N14: 0.1435533464 | O14: 5.663588454 | Q14: 5.663588454
C15: Down Case | D15: =D16-0.1 -> -0.1 | E15: 7 | F15: 45 | G15: 0.37125 | H15: 0.2254408601 | I15: 0.1213882925 | J15: 0.1213882925 | K15: 0 | L15: 0.2265205353 | M15: 0.3025424302 | N15: 0.1415669739 | O15: 5.789876712 | Q15: 5.789876712
C16: Base Case | D16: 0 | E16: 8 | F16: 50 | G16: 0.4125 | H16: 0.2442806791 | I16: 0.1219923484 | J16: 0.1219923484 | K16: 0 | L16: 0.2238336953 | M16: 0.2963173091 | N16: 0.1392429531 | O16: 5.944860377 | Q16: 5.944860377
C17: Up Case | D17: =D16+0.1 -> 0.1 | E17: 9 | F17: 55 | G17: 0.45375 | H17: 0.2630501826 | I17: 0.1224441264 | J17: 0.1224441264 | K17: 0 | L17: 0.2211716743 | M17: 0.2901451886 | N17: 0.1369178951 | O17: 6.108370411 | Q17: 6.108370411
C18: Up Case | D18: =D17+0.1 -> 0.2 | E18: 10 | F18: 60 | G18: 0.495 | H18: 0.2800797591 | I18: 0.1227234333 | J18: 0.1227234333 | K18: 0 | L18: 0.2187756731 | M18: 0.2845856726 | N18: 0.1348055303 | O18: 6.26480183 | Q18: 6.26480183
C19: Up Case | D19: 0.3 | E19: 11 | F19: 65 | G19: 0.53625 | H19: 0.2961393995 | I19: 0.1229588933 | J19: 0.1229588933 | K19: 0 | L19: 0.2165157348 | M19: 0.2793369353 | N19: 0.1327948987 | O19: 6.421084933 | Q19: 6.421084933
C20: Up Case | D20: 0.4 | E20: 12 | F20: 70 | G20: 0.5775 | H20: 0.31138558 | I20: 0.1231351228 | J20: 0.1186327795 | K20: 161.9269338 | L20: 0.2129751243 | M20: 0.2716076791 | N20: 0.1299738109 | O20: 6.681147305 | Q20: 6.681147305
C21: Up Case | D21: 0.5 | E21: 13 | F21: 75 | G21: 0.61875 | H21: 0.3262243802 | I21: 0.1232155094 | J21: 0.1133105159 | K21: 399.8672321 | L21: 0.2090859345 | M21: 0.2632510841 | N21: 0.1269202173 | O21: 6.993489241 | Q21: 6.993489241
C22: Up Case | D22: 0.6 | E22: 14 | F22: 80 | G22: 0.66 | H22: 0.341989351 | I22: 0.1232527838 | J22: 0.1081198436 | K22: 683.1401815 | L22: 0.2049655523 | M22: 0.2544372737 | N22: 0.1236524045 | O22: 7.360132205 | Q22: 7.360132205
C23: Up Case | D23: 0.7 | E23: 15 | F23: 85 | G23: 0.70125 | H23: 0.358954928 | I23: 0.123330963 | J23: 0.103075027 | K23: 1019.753269 | L23: 0.2005145596 | M23: 0.2449558437 | N23: 0.120078522 | O23: 7.803487891 | Q23: 7.803487891
B26: Coût de l'installation
B27: Tableaux Scenario
C29: Scénario | F29: Coût de l'installation | G29: TRI des capitaux propres | H29: TRI du projet | I29: Temps de retour | J29: Valeur actualisée nette | K29: Coût moyen actualisé de l'énergie (sans subvention) | L29: Coût moyen actualisé de l'énergie (avec subvention) | M29: Ratio de couverture du service de la dette | N29: Ratio de couverture la durée du prêt
C30: =OFFSET(C31,E30-1,0,1,1) -> Base Case | D30: =OFFSET(D31,E30-1,0,1,1) -> 0 | E30: 8 | F30: =Données!$G$22/Données!$G$34 -> 2750 | G30: =IF(OR('Capitaux propres'!$F$28<0.001,'Capitaux propres'!$F$28>1,ISERROR('Capitaux propres'!$F$28)=TRUE),#N/A,'Capitaux propres'!$F$28) -> 0.2743023813 | H30: =IF(OR('Flux de trésorerie'!$I$60<0.001,'Flux de trésorerie'!$I$60>1,ISERROR('Flux de trésorerie'!$I$60)),#N/A,'Flux de trésorerie'!$I$60) -> 0.1466469467 | I30: =IF(ISERROR('Capitaux propres'!$F$45)=TRUE,"21+",'Capitaux propres'!$F$45) -> 6.096590147 | J30: =IF(ISERROR('Capitaux propres'!$F$31)=TRUE,#N/A,'Capitaux propres'!$F$31) -> 122985.9455 | K30: =IF(ISERROR('Flux de trésorerie'!$I$73)=TRUE,#N/A,'Flux de trésorerie'!$I$73) -> 0.1844866312 | L30: =IF(ISERROR('Flux de trésorerie'!$I$74)=TRUE,#N/A,'Flux de trésorerie'!$I$74) -> 0.1550574763 | M30: =IF(ISERROR(Financement!$F$48)=TRUE,#N/A,Financement!$F$48) -> 1.899711275 | N30: =IF(ISERROR(Financement!$H$61)=TRUE,#N/A,Financement!$H$61) -> 2.239573835
C31: Down Case | D31: -0.35 | E31: 1 | F31: 1787.5 | G31: 0.5670098364 | H31: 0.2204643071 | I31: 2.955499531 | J31: 162618.0354 | K31: 0.1269920012 | L31: 0.1068877024 | M31: 2.510379638 | N31: 2.959657698 | P31: =IF(I31="21+",#N/A,I31) -> 2.955499531
C32: Down Case | D32: -0.3 | E32: =E31+1 -> 2 | F32: 1925 | G32: 0.5107068717 | H32: 0.2048244059 | I32: 3.240392035 | J32: 156174.3397 | K32: 0.1367606167 | L32: 0.1151098334 | M32: 2.317068359 | N32: 2.731725961 | P32: =IF(I32="21+",#N/A,I32) -> 3.240392035
C33: Down Case | D33: -0.25 | E33: 3 | F33: 2062.5 | G33: 0.4620637596 | H33: 0.1909615576 | I33: 3.560192357 | J33: 149730.644 | K33: 0.1465292321 | L33: 0.1233319643 | M33: 2.149531917 | N33: 2.534185122 | P33: 3.560192357
C34: Down Case | D34: -0.2 | E34: 4 | F34: 2200 | G34: 0.419785434 | H34: 0.1785528123 | I34: 3.921102578 | J34: 143286.9482 | K34: 0.1562978476 | L34: 0.1315540953 | M34: 2.00293753 | N34: 2.361336887 | P34: 3.921102578
C35: Down Case | D35: -0.15 | E35: 5 | F35: 2337.5 | G35: 0.3828402936 | H35: 0.1673505843 | I35: 4.330461368 | J35: 136843.2525 | K35: 0.1660664631 | L35: 0.1397762262 | M35: 1.873589542 | N35: 2.20882374 | P35: 4.330461368
C36: Down Case | D36: -0.1 | E36: 6 | F36: 2475 | G36: 0.3503893793 | H36: 0.1571617782 | I36: 4.795768454 | J36: 130399.5568 | K36: 0.1758350786 | L36: 0.1479983572 | M36: 1.758613552 | N36: 2.073256497 | P36: 4.795768454
C37: Down Case | D37: -0.05 | E37: 7 | F37: 2612.5 | G37: 0.3217404425 | H37: 0.1478334844 | I37: 5.330179213 | J37: 123955.861 | K37: 0.185603694 | L37: 0.1562204881 | M37: 1.655740298 | N37: 1.951959491 | P37: 5.330179213
C38: Base Case | D38: 0 | E38: 8 | F38: 2750 | G38: 0.2963173091 | H38: 0.1392429531 | I38: 5.944860377 | J38: 117512.1653 | K38: 0.1953723095 | L38: 0.1644426191 | M38: 1.56315437 | N38: 1.842792185 | P38: 5.944860377
C39: Up Case | D39: 0.05 | E39: 9 | F39: 2887.5 | G39: 0.2736383021 | H39: 0.1312904298 | I39: 6.654384422 | J39: 111068.4696 | K39: 0.205140925 | L39: 0.17266475 | M39: 1.479386149 | N39: 1.744021765 | P39: 6.654384422
C40: Up Case | D40: 0.1 | E40: 10 | F40: 3025 | G40: 0.2533001006 | H40: 0.1238939703 | I40: 7.473730351 | J40: 104624.7739 | K40: 0.2149095405 | L40: 0.180886881 | M40: 1.403233221 | N40: 1.654230475 | P40: 7.473730351
C41: Up Case | D41: 0.15 | E41: 11 | F41: 3162.5 | G41: 0.2349648178 | H41: 0.1169855654 | I41: 8.419666658 | J41: 98181.07813 | K41: 0.2246781559 | L41: 0.189109012 | M41: 1.333702286 | N41: 1.572247122 | P41: 8.419666658
C42: Up Case | D42: 0.2 | E42: 12 | F42: 3300 | G42: 0.2183493555 | H42: 0.1105082572 | I42: 9.508363152 | J42: 91737.38239 | K42: 0.2344467714 | L42: 0.1973311429 | M42: 1.269965596 | N42: 1.497095716 | P42: 9.508363152
C43: Up Case | D43: 0.25 | E43: 13 | F43: 3437.5 | G43: 0.2032162964 | H43: 0.1044139445 | I43: 10.75501613 | J43: 85293.68665 | K43: 0.2442153869 | L43: 0.2055532739 | M43: 1.211327842 | N43: 1.427956423 | P43: 10.75501613
C44: Up Case | D44: 0.3 | E44: 14 | F44: 3575 | G44: 0.1893663824 | H44: 0.09866173863 | I44: 11.47810993 | J44: 78849.99092 | K44: 0.2539840024 | L44: 0.2137754048 | M44: 1.157200683 | N44: 1.364135536 | P44: 11.47810993
C45: Up Case | D45: 0.35 | E45: 15 | F45: 3712.5 | G45: 0.1766319692 | H45: 0.09321654737 | I45: 12.0720266 | J45: 72406.29518 | K45: 0.2637526178 | L45: 0.2219975358 | M45: 1.107082944 | N45: 1.305042123 | P45: 12.0720266
B48: Subvention
B49: Tableaux Scenario
C51: Scénario | F51: Subvention | G51: TRI des capitaux propres | H51: TRI du projet | I51: Temps de retour | J51: Valeur actualisée nette | K51: Coût moyen actualisé de l'énergie (sans subvention) | L51: Coût moyen actualisé de l'énergie (avec subvention) | M51: Ratio de couverture du service de la dette | N51: Ratio de couverture la durée du prêt
C52: =OFFSET(C53,E52-1,0,1,1) -> Base Case | D52: =OFFSET(D53,E52-1,0,1,1) -> 0 | E52: 8 | F52: =Données!G30 -> 27500 | G52: =IF(OR('Capitaux propres'!$F$28<0.001,'Capitaux propres'!$F$28>1,ISERROR('Capitaux propres'!$F$28)=TRUE),#N/A,'Capitaux propres'!$F$28) -> 0.2743023813 | H52: =IF(OR('Flux de trésorerie'!$I$60<0.001,'Flux de trésorerie'!$I$60>1,ISERROR('Flux de trésorerie'!$I$60)),#N/A,'Flux de trésorerie'!$I$60) -> 0.1466469467 | I52: =IF(ISERROR('Capitaux propres'!$F$45)=TRUE,"21+",'Capitaux propres'!$F$45) -> 6.096590147 | J52: =IF(ISERROR('Capitaux propres'!$F$31)=TRUE,#N/A,'Capitaux propres'!$F$31) -> 122985.9455 | K52: =IF(ISERROR('Flux de trésorerie'!$I$73)=TRUE,#N/A,'Flux de trésorerie'!$I$73) -> 0.1844866312 | L52: =IF(ISERROR('Flux de trésorerie'!$I$74)=TRUE,#N/A,'Flux de trésorerie'!$I$74) -> 0.1550574763 | M52: =IF(ISERROR(Financement!$F$48)=TRUE,#N/A,Financement!$F$48) -> 1.899711275 | N52: =IF(ISERROR(Financement!$H$61)=TRUE,#N/A,Financement!$H$61) -> 2.239573835
C53: Down Case | D53: -0.35 | E53: 1 | F53: 17875 | G53: 0.2713612497 | H53: 0.1392429531 | I53: 6.877373232 | J53: 109161.1971 | K53: 0.1953723095 | L53: 0.1752680107 | M53: 1.399839734 | N53: 1.650261658 | P53: =IF(I53="21+",#N/A,I53) -> 6.877373232
C54: Down Case | D54: -0.3 | E54: =E53+1 -> 2 | F54: 19250 | G54: 0.2748218119 | H54: 0.1392429531 | I54: 6.727544187 | J54: 110354.1926 | K54: 0.1953723095 | L54: 0.1737215262 | M54: 1.421049427 | N54: 1.675265622 | P54: =IF(I54="21+",#N/A,I54) -> 6.727544187
C55: Down Case | D55: -0.25 | E55: 3 | F55: 20625 | G55: 0.2783176601 | H55: 0.1392429531 | I55: 6.583812751 | J55: 111547.188 | K55: 0.1953723095 | L55: 0.1721750417 | M55: 1.442911726 | N55: 1.70103894 | P55: 6.583812751
C56: Down Case | D56: -0.2 | E56: 4 | F56: 22000 | G56: 0.2818485796 | H56: 0.1392429531 | I56: 6.445814112 | J56: 112740.1835 | K56: 0.1953723095 | L56: 0.1706285572 | M56: 1.465457222 | N56: 1.727617673 | P56: 6.445814112
C57: Down Case | D57: -0.15 | E57: 5 | F57: 23375 | G57: 0.2854142845 | H57: 0.1392429531 | I57: 6.313211996 | J57: 113933.1789 | K57: 0.1953723095 | L57: 0.1690820727 | M57: 1.488718447 | N57: 1.755040176 | P57: 6.313211996
C58: Down Case | D58: -0.1 | E58: 6 | F58: 24750 | G58: 0.2890145242 | H58: 0.1392429531 | I58: 6.185695921 | J58: 115126.1744 | K58: 0.1953723095 | L58: 0.1675355881 | M58: 1.512730035 | N58: 1.783347276 | P58: 6.185695921
C59: Down Case | D59: -0.05 | E59: 7 | F59: 26125 | G59: 0.292648977 | H59: 0.1392429531 | I59: 6.062978774 | J59: 116319.1699 | K59: 0.1953723095 | L59: 0.1659891036 | M59: 1.537528888 | N59: 1.812582477 | P59: 6.062978774
C60: Base Case | D60: 0 | E60: 8 | F60: 27500 | G60: 0.2963173091 | H60: 0.1392429531 | I60: 5.944860377 | J60: 117512.1653 | K60: 0.1953723095 | L60: 0.1644426191 | M60: 1.56315437 | N60: 1.842792185 | P60: 5.944860377
C61: Up Case | D61: 0.05 | E61: 9 | F61: 28875 | G61: 0.300019151 | H61: 0.1392429531 | I61: 5.831339022 | J61: 118705.1608 | K61: 0.1953723095 | L61: 0.1628961346 | M61: 1.589648512 | N61: 1.874025951 | P61: 5.831339022
C62: Up Case | D62: 0.1 | E62: 10 | F62: 30250 | G62: 0.3037541211 | H62: 0.1392429531 | I62: 5.722167756 | J62: 119898.1562 | K62: 0.1953723095 | L62: 0.1613496501 | M62: 1.617056245 | N62: 1.906336743 | P62: 5.722167756
C63: Up Case | D63: 0.15 | E63: 11 | F63: 31625 | G63: 0.3075218141 | H63: 0.1392429531 | I63: 5.617101237 | J63: 121091.1517 | K63: 0.1953723095 | L63: 0.1598031655 | M63: 1.645425652 | N63: 1.939781247 | P63: 5.617101237
C64: Up Case | D64: 0.2 | E64: 12 | F64: 33000 | G64: 0.3113218009 | H64: 0.1392429531 | I64: 5.515912236 | J64: 122284.1471 | K64: 0.1953723095 | L64: 0.158256681 | M64: 1.674808253 | N64: 1.974420198 | P64: 5.515912236
C65: Up Case | D65: 0.25 | E65: 13 | F65: 34375 | G65: 0.3151536047 | H65: 0.1392429531 | I65: 5.418389991 | J65: 123477.1426 | K65: 0.1953723095 | L65: 0.1567101965 | M65: 1.705259313 | N65: 2.010318747 | P65: 5.418389991
C66: Up Case | D66: 0.3 | E66: 14 | F66: 35750 | G66: 0.3190167606 | H66: 0.1392429531 | I66: 5.32433874 | J66: 124670.1381 | K66: 0.1953723095 | L66: 0.155163712 | M66: 1.736838189 | N66: 2.047546872 | P66: 5.32433874
C67: Up Case | D67: 0.35 | E67: 15 | F67: 37125 | G67: 0.3229107678 | H67: 0.1392429531 | I67: 5.233576416 | J67: 125863.1335 | K67: 0.1953723095 | L67: 0.1536172275 | M67: 1.769608721 | N67: 2.086179832 | P67: 5.233576416
B70: Consommation Annuelle
B71: Tableaux Scenario
C73: Scénario | F73: Con-sommation annuelle | G73: TRI des capitaux propres | H73: TRI du projet | I73: Temps de retour | J73: Valeur actualisée nette | K73: Ratio de couverture du service de la dette | L73: Ratio de couverture la durée du prêt
C74: =OFFSET(C75,E74-1,0,1,1) -> Base Case | D74: =OFFSET(D75,E74-1,0,1,1) -> 0 | E74: 8 | F74: =Données!$G$66 -> 200000 | G74: =IF(OR('Capitaux propres'!$F$28<0.001,'Capitaux propres'!$F$28>1,ISERROR('Capitaux propres'!$F$28)=TRUE),#N/A,'Capitaux propres'!$F$28) -> 0.2743023813 | H74: =IF(OR('Flux de trésorerie'!$I$60<0.001,'Flux de trésorerie'!$I$60>1,ISERROR('Flux de trésorerie'!$I$60)),#N/A,'Flux de trésorerie'!$I$60) -> 0.1466469467 | I74: =IF(ISERROR('Capitaux propres'!$F$45)=TRUE,"21+",'Capitaux propres'!$F$45) -> 6.096590147 | J74: =IF(ISERROR('Capitaux propres'!$F$31)=TRUE,#N/A,'Capitaux propres'!$F$31) -> 122985.9455 | K74: =IF(ISERROR(Financement!$F$48)=TRUE,#N/A,Financement!$F$48) -> 1.899711275 | L74: =IF(ISERROR(Financement!$H$61)=TRUE,#N/A,Financement!$H$61) -> 2.239573835
C75: Down Case | D75: -0.35 | E75: 1 | F75: 130000 | G75: 0.2599409878 | H75: 0.1256988943 | I75: 7.126508681 | J75: 97241.42371 | K75: 1.43510471 | L75: 1.683979781 | N75: =IF(I75="21+",#N/A,I75) -> 7.126508681
C76: Down Case | D76: -0.3 | E76: =E75+1 -> 2 | F76: 140000 | G76: 0.2692271054 | H76: 0.1291081369 | I76: 6.766909884 | J76: 102154.8006 | K76: 1.469122967 | L76: 1.724589008 | N76: =IF(I76="21+",#N/A,I76) -> 6.766909884
C77: Down Case | D77: -0.25 | E77: 3 | F77: 150000 | G77: 0.2773030102 | H77: 0.1320316017 | I77: 6.48551933 | J77: 106413.9597 | K77: 1.498566111 | L77: 1.759758765 | N77: 6.48551933
C78: Down Case | D78: -0.2 | E78: 4 | F78: 160000 | G78: 0.2819364011 | H78: 0.1337926924 | I78: 6.342597074 | J78: 109080.6233 | K78: 1.514435851 | L78: 1.77995869 | N78: 6.342597074
C79: Down Case | D79: -0.15 | E79: 5 | F79: 170000 | G79: 0.2858518898 | H79: 0.1352881849 | I79: 6.228375789 | J79: 111374.1151 | K79: 1.527690241 | L79: 1.797051872 | N79: 6.228375789
C80: Down Case | D80: -0.1 | E80: 6 | F80: 180000 | G80: 0.2895008147 | H80: 0.1366739571 | I80: 6.126044734 | J80: 113512.8648 | K80: 1.540050038 | L80: 1.812991551 | N80: 6.126044734
C81: Down Case | D81: -0.05 | E81: 7 | F81: 190000 | G81: 0.2929735243 | H81: 0.1379859388 | I81: 6.032149588 | J81: 115549.7479 | K81: 1.551818238 | L81: 1.828169971 | N81: 6.032149588
C82: Base Case | D82: 0 | E82: 8 | F82: 200000 | G82: 0.2963173091 | H82: 0.1392429531 | I82: 5.944860377 | J82: 117512.1653 | K82: 1.56315437 | L82: 1.842792185 | N82: 5.944860377
C83: Up Case | D83: 0.05 | E83: 9 | F83: 210000 | G83: 0.2993959367 | H83: 0.1403948963 | I83: 5.86703917 | J83: 119319.8539 | K83: 1.573595587 | L83: 1.85626071 | N83: 5.86703917
C84: Up Case | D84: 0.1 | E84: 10 | F84: 220000 | G84: 0.3020081103 | H84: 0.1413683116 | I84: 5.802815324 | J84: 120854.2994 | K84: 1.582457537 | L84: 1.867692666 | N84: 5.802815324
C85: Up Case | D85: 0.15 | E85: 11 | F85: 230000 | G85: 0.3043449104 | H85: 0.1422360837 | I85: 5.746716731 | J85: 122227.5623 | K85: 1.590386906 | L85: 1.877922574 | N85: 5.746716731
C86: Up Case | D86: 0.2 | E86: 12 | F86: 240000 | G86: 0.3063847363 | H86: 0.1429913104 | I86: 5.69876259 | J86: 123426.8668 | K86: 1.597309252 | L86: 1.886854782 | N86: 5.69876259
C87: Up Case | D87: 0.25 | E87: 13 | F87: 250000 | G87: 0.3079064548 | H87: 0.1435533464 | I87: 5.663588454 | J87: 124321.8946 | K87: 1.60247367 | L87: 1.893519619 | N87: 5.663588454
C88: Up Case | D88: 0.3 | E88: 14 | F88: 260000 | G88: 0.3088684976 | H88: 0.1439079463 | I88: 5.641601792 | J88: 124887.5258 | K88: 1.605740131 | L88: 1.897733516 | N88: 5.641601792
C89: Up Case | D89: 0.35 | E89: 15 | F89: 270000 | G89: 0.3092962563 | H89: 0.1440653265 | I89: 5.631882661 | J89: 125138.7284 | K89: 1.607193645 | L89: 1.89960697 | N89: 5.631882661
B91: Augmentation du tarif de vente d'électricité
B92: Tableaux Scenario
C94: Scénario | F94: Évolution des prix | G94: TRI des capitaux propres | H94: TRI du projet | I94: Temps de retour | J94: Valeur actualisée nette | K94: Ratio de couverture du service de la dette | L94: Ratio de couverture la durée du prêt
C95: =OFFSET(C96,E95-1,0,1,1) -> Base Case | D95: =OFFSET(D96,E95-1,0,1,1) -> 0.05 | E95: 8 | F95: =$D$95 -> 0.05 | G95: =IF(OR('Capitaux propres'!$F$28<0.001,'Capitaux propres'!$F$28>1,ISERROR('Capitaux propres'!$F$28)=TRUE),#N/A,'Capitaux propres'!$F$28) -> 0.2743023813 | H95: =IF(OR('Flux de trésorerie'!$I$60<0.001,'Flux de trésorerie'!$I$60>1,ISERROR('Flux de trésorerie'!$I$60)),#N/A,'Flux de trésorerie'!$I$60) -> 0.1466469467 | I95: =IF(ISERROR('Capitaux propres'!$F$45)=TRUE,"21+",'Capitaux propres'!$F$45) -> 6.096590147 | J95: =IF(ISERROR('Capitaux propres'!$F$31)=TRUE,#N/A,'Capitaux propres'!$F$31) -> 122985.9455 | K95: =IF(ISERROR(Financement!$F$48)=TRUE,#N/A,Financement!$F$48) -> 1.899711275 | L95: =IF(ISERROR(Financement!$H$61)=TRUE,#N/A,Financement!$H$61) -> 2.239573835
C96: Down Case | D96: =(MAX(D97-0.01,0)) -> 0 | E96: 1 | F96: 0 | G96: 0.2572067559 | H96: 0.1096038759 | I96: 6.058909071 | J96: 68970.43391 | K96: 1.56315437 | L96: 1.680081243 | N96: =IF(I96="21+",#N/A,I96) -> 6.058909071
C97: Down Case | D97: 0 | E97: =E96+1 -> 2 | F97: 0 | G97: 0.2572067559 | H97: 0.1096038759 | I97: 6.058909071 | J97: 68970.43391 | K97: 1.56315437 | L97: 1.680081243 | N97: 6.058909071
C98: Down Case | D98: 0 | E98: 3 | F98: 0 | G98: 0.2572067559 | H98: 0.1096038759 | I98: 6.058909071 | J98: 68970.43391 | K98: 1.56315437 | L98: 1.680081243 | N98: 6.058909071
C99: Down Case | D99: 0.01 | E99: 4 | F99: 0.01 | G99: 0.2652676523 | H99: 0.1155062258 | I99: 6.031932276 | J99: 77049.18813 | K99: 1.56315437 | L99: 1.710589001 | N99: 6.031932276
C100: Down Case | D100: 0.02 | E100: 5 | F100: 0.02 | G100: 0.2731970489 | H100: 0.1214208782 | I100: 6.007273778 | J100: 85864.30484 | K100: 1.56315437 | L100: 1.742084561 | N100: 6.007273778
C101: Down Case | D101: 0.03 | E101: 6 | F101: 0.03 | G101: 0.2810078204 | H101: 0.1273483336 | I101: 5.985291908 | J101: 95490.31767 | K101: 1.56315437 | L101: 1.774596993 | N101: 5.985291908
C102: Down Case | D102: 0.04 | E102: 7 | F102: 0.04 | G102: 0.2887112558 | H102: 0.1332889497 | I102: 5.964652676 | J102: 106009.4079 | K102: 1.56315437 | L102: 1.808156051 | N102: 5.964652676
C103: Base Case | D103: ='Entrées Utilisateur'!J80 -> 0.05 | E103: 8 | F103: 0.05 | G103: 0.2963173091 | H103: 0.1392429531 | I103: 5.944860377 | J103: 117512.1653 | K103: 1.56315437 | L103: 1.842792185 | N103: 5.944860377
C104: Up Case | D104: =(MIN(D103+0.01,1)) -> 0.06 | E104: 9 | F104: 0.06 | G104: 0.3038348019 | H104: 0.1452104509 | I104: 5.925863927 | J104: 130098.4211 | K104: 1.56315437 | L104: 1.878536549 | N104: 5.925863927
C105: Up Case | D105: =(MIN(D104+0.01,1)) -> 0.07 | E105: 10 | F105: 0.07 | G105: 0.3112716019 | H105: 0.151191467 | I105: 5.907616271 | J105: 143878.158 | K105: 1.56315437 | L105: 1.915421018 | N105: 5.907616271
C106: Up Case | D106: 0.08 | E106: 11 | F106: 0.08 | G106: 0.3186347306 | H106: 0.1571859539 | I106: 5.890073992 | J106: 158972.5049 | K106: 1.56315437 | L106: 1.953478195 | N106: 5.890073992
C107: Up Case | D107: 0.09 | E107: 12 | F107: 0.09 | G107: 0.3259304821 | H107: 0.1631937683 | I107: 5.873196964 | J107: 175514.8238 | K107: 1.56315437 | L107: 1.992741425 | N107: 5.873196964
C108: Up Case | D108: 0.1 | E108: 13 | F108: 0.1 | G108: 0.3331645191 | H108: 0.1692147315 | I108: 5.85694805 | J108: 193651.8952 | K108: 1.56315437 | L108: 2.033244804 | N108: 5.85694805
C109: Up Case | D109: 0.11 | E109: 14 | F109: 0.11 | G109: 0.3403419554 | H109: 0.1752486169 | I109: 5.841292824 | J109: 213545.2125 | K109: 1.56315437 | L109: 2.075023193 | N109: 5.841292824
C110: Up Case | D110: 0.12 | E110: 15 | F110: 0.12 | G110: 0.3474674284 | H110: 0.1812951267 | I110: 5.826199335 | J110: 235372.3925 | K110: 1.56315437 | L110: 2.118112229 | N110: 5.826199335
B112: Montant de la dette / Ratio d´endettement
B113: Tableaux Scenario
C115: Scénario | F115: Montant de la dette | G115: Ratio d´endettement | H115: TRI des capitaux propres | I115: TRI du projet | J115: Temps de retour | K115: Valeur actualisée nette | L115: Ratio de couverture du service de la dette | M115: Ratio de couverture la durée du prêt
C116: =OFFSET(C117,E116-1,0,1,1) -> Base Case | D116: =OFFSET(D117,E116-1,0,1,1) -> 0 | E116: 8 | F116: =Données!G109 -> 96250 | G116: =Données!G111 -> 0.7 | H116: =IF(OR('Capitaux propres'!$F$28<0.001,'Capitaux propres'!$F$28>1,ISERROR('Capitaux propres'!$F$28)=TRUE),#N/A,'Capitaux propres'!$F$28) -> 0.2743023813 | I116: =IF(OR('Flux de trésorerie'!$I$60<0.001,'Flux de trésorerie'!$I$60>1,ISERROR('Flux de trésorerie'!$I$60)),#N/A,'Flux de trésorerie'!$I$60) -> 0.1466469467 | J116: =IF(ISERROR('Capitaux propres'!$F$45)=TRUE,"21+",'Capitaux propres'!$F$45) -> 6.096590147 | K116: =IF(ISERROR('Capitaux propres'!$F$31)=TRUE,#N/A,'Capitaux propres'!$F$31) -> 122985.9455 | L116: =IF(ISERROR(Financement!$F$48)=TRUE,#N/A,Financement!$F$48) -> 1.899711275 | M116: =IF(ISERROR(Financement!$H$61)=TRUE,#N/A,Financement!$H$61) -> 2.239573835
C117: Down Case | D117: -0.35 | E117: 1 | F117: 71500 | G117: 0.52 | H117: 0.2127261937 | I117: 0.1402239025 | J117: 7.804127795 | K117: 113563.2847 | L117: 2.930914443 | M117: 3.455235346 | O117: =IF(J117="21+",#N/A,J117) -> 7.804127795
C118: Down Case | D118: -0.3 | E118: =E117+1 -> 2 | F118: 77000 | G118: 0.56 | H118: 0.2198595226 | I118: 0.1400831282 | J118: 7.615620003 | K118: 114127.4105 | L118: 2.605257283 | M118: 3.071320308 | O118: 7.615620003
C119: Down Case | D119: -0.25 | E119: 3 | F119: 82500 | G119: 0.6 | H119: 0.2279468358 | I119: 0.1399425685 | J119: 7.407844748 | K119: 114691.5363 | L119: 2.344731555 | M119: 2.764188277 | O119: 7.407844748
C120: Down Case | D120: -0.2 | E120: 4 | F120: 88000 | G120: 0.64 | H120: 0.2372310102 | I120: 0.1398022234 | J120: 7.177688928 | K120: 115255.6621 | L120: 2.131574141 | M120: 2.512898434 | O120: 7.177688928
C121: Down Case | D121: -0.15 | E121: 5 | F121: 93500 | G121: 0.68 | H121: 0.2480537355 | I121: 0.1396620929 | J121: 6.922613753 | K121: 115819.7879 | L121: 1.953942962 | M121: 2.303490231 | O121: 6.922613753
C122: Down Case | D122: -0.1 | E122: 6 | F122: 99000 | G122: 0.72 | H122: 0.2609150231 | I122: 0.1395221651 | J122: 6.638633639 | K122: 116383.9137 | L122: 1.803639658 | M122: 2.126298675 | O122: 6.638633639
C123: Down Case | D123: -0.05 | E123: 7 | F123: 104500 | G123: 0.76 | H123: 0.2765832603 | I123: 0.1393824518 | J123: 6.31558056 | K123: 116948.0395 | L123: 1.674808253 | M123: 1.974420198 | O123: 6.31558056
C124: Base Case | D124: 0 | E124: 8 | F124: 110000 | G124: 0.8 | H124: 0.2963173091 | I124: 0.1392429531 | J124: 5.944860377 | K124: 117512.1653 | L124: 1.56315437 | M124: 1.842792185 | O124: 5.944860377
C125: Up Case | D125: 0.05 | E125: 9 | F125: 115500 | G125: 0.84 | H125: 0.3223651826 | I125: 0.139103657 | J125: 5.512368505 | K125: 118076.2911 | L125: 1.465457222 | M125: 1.727617673 | O125: 5.512368505
C126: Up Case | D126: 0.1 | E126: 10 | F126: 121000 | G126: 0.88 | H126: 0.3592689574 | I126: 0.1389645755 | J126: 4.997834982 | K126: 118640.4169 | L126: 1.379253856 | M126: 1.625993104 | O126: 4.997834982
C127: Up Case | D127: 0.15 | E127: 11 | F127: 126500 | G127: 0.92 | H127: 0.4181552231 | I127: 0.1388256967 | J127: 4.357631183 | K127: 119204.5427 | L127: 1.302628642 | M127: 1.535660154 | O127: 4.357631183
C128: Up Case | D128: 0.2 | E128: 12 | F128: 132000 | G128: 0.96 | H128: 0.5377444685 | I128: 0.1386870325 | J128: 3.512418748 | K128: 119768.6685 | L128: 1.234069239 | M128: 1.454835935 | O128: 3.512418748
C129: Up Case | D129: 0.25 | E129: 13 | F129: 137500 | G129: 1 | I129: 0.1385485709 | J129: 2.234333671 | K129: 120332.7944 | L129: 1.172365777 | M129: 1.382094139 | O129: 2.234333671
C130: Up Case | D130: 0.3 | E130: 14 | F130: 143000 | G130: 1.04 | I130: 0.1384842694 | J130: 1 | K130: 120599.0506 | L130: 1.140800003 | M130: 1.344881459 | O130: 1
C131: Up Case | D131: 0.35 | E131: 15 | F131: 148500 | G131: 1.08 | I131: 0.1384200275 | J131: 1 | K131: 120545.6872 | L131: 1.140179656 | M131: 1.344150136 | O131: 1
B134: Taux d´interet
B135: Tableaux Scenario
C137: Scénario | F137: Taux d´interet | G137: TRI des capitaux propres | H137: TRI du projet | I137: Temps de retour | J137: Valeur actualisée nette | K137: Coût moyen actualisé de l'énergie (sans subvention) | L137: Coût moyen actualisé de l'énergie (avec subvention) | M137: Ratio de couverture du service de la dette | N137: Ratio de couverture la durée du prêt
C138: =OFFSET(C139,E138-1,0,1,1) -> Base Case | D138: =OFFSET(D139,E138-1,0,1,1) -> 0 | E138: 8 | F138: =Données!G134 -> 0.055 | G138: =IF(OR('Capitaux propres'!$F$28<0.001,'Capitaux propres'!$F$28>1,ISERROR('Capitaux propres'!$F$28)=TRUE),#N/A,'Capitaux propres'!$F$28) -> 0.2743023813 | H138: =IF(OR('Flux de trésorerie'!$I$60<0.001,'Flux de trésorerie'!$I$60>1,ISERROR('Flux de trésorerie'!$I$60)),#N/A,'Flux de trésorerie'!$I$60) -> 0.1466469467 | I138: =IF(ISERROR('Capitaux propres'!$F$45)=TRUE,"21+",'Capitaux propres'!$F$45) -> 6.096590147 | J138: =IF(ISERROR('Capitaux propres'!$F$31)=TRUE,#N/A,'Capitaux propres'!$F$31) -> 122985.9455 | K138: =IF(ISERROR('Flux de trésorerie'!$I$73)=TRUE,#N/A,'Flux de trésorerie'!$I$73) -> 0.1844866312 | L138: =IF(ISERROR('Flux de trésorerie'!$I$74)=TRUE,#N/A,'Flux de trésorerie'!$I$74) -> 0.1550574763 | M138: =IF(ISERROR(Financement!$F$48)=TRUE,#N/A,Financement!$F$48) -> 1.899711275 | N138: =IF(ISERROR(Financement!$H$61)=TRUE,#N/A,Financement!$H$61) -> 2.239573835
C139: Down Case | D139: -0.35 | E139: 1 | F139: 0.040125 | G139: 0.3143410742 | H139: 0.1395698488 | I139: 5.448735803 | J139: 122837.9908 | K139: 0.1813695299 | L139: 0.1532565256 | M139: 1.680993018 | N139: 1.990366192 | P139: =IF(I139="21+",#N/A,I139) -> 5.448735803
C140: Down Case | D140: -0.3 | E140: =E139+1 -> 2 | F140: 0.04225 | G140: 0.3117435157 | H140: 0.1395231307 | I140: 5.513927329 | J140: 122088.2587 | K140: 0.1833292232 | L140: 0.1548206932 | M140: 1.663356037 | N140: 1.96824871 | P140: =IF(I140="21+",#N/A,I140) -> 5.513927329
C141: Down Case | D141: -0.25 | E141: =E140+1 -> 3 | F141: 0.044375 | G141: 0.3091530263 | H141: 0.1394764125 | I141: 5.580889453 | J141: 121334.7968 | K141: 0.1853027091 | L141: 0.1563963182 | M141: 1.645995369 | N141: 1.946487783 | P141: 5.580889453
C142: Down Case | D142: -0.2 | E142: 4 | F142: 0.0465 | G142: 0.306569916 | H142: 0.1394297063 | I142: 5.649692547 | J142: 120577.6228 | K142: 0.1872898537 | L142: 0.1579832962 | M142: 1.628905686 | N142: 1.925076419 | P142: 5.649692547
C143: Down Case | D143: -0.15 | E143: 5 | F143: 0.048625 | G143: 0.3039944947 | H143: 0.1393830121 | I143: 5.720410776 | J143: 119816.7545 | K143: 0.1892905223 | L143: 0.1595815219 | M143: 1.612081782 | N143: 1.904007785 | P143: 5.720410776
C144: Down Case | D144: -0.1 | E144: 6 | F144: 0.05075 | G144: 0.3014270484 | H144: 0.1393363178 | I144: 5.793122354 | J144: 119052.21 | K144: 0.1913045789 | L144: 0.1611908889 | M144: 1.595518563 | N144: 1.883275197 | P144: 5.793122354
C145: Down Case | D145: -0.05 | E145: 7 | F145: 0.052875 | G145: 0.2988678873 | H145: 0.1392896235 | I145: 5.867909827 | J145: 118284.0075 | K145: 0.1933318871 | L145: 0.1628112905 | M145: 1.579211049 | N145: 1.862872126 | P145: 5.867909827
C146: Base Case | D146: 0 | E146: 8 | F146: 0.055 | G146: 0.2963173091 | H146: 0.1392429531 | I146: 5.944860377 | J146: 117512.1653 | K146: 0.1953723095 | L146: 0.1644426191 | M146: 1.56315437 | N146: 1.842792185 | P146: 5.944860377
C147: Up Case | D147: 0.05 | E147: 9 | F147: 0.057125 | G147: 0.2937755764 | H147: 0.1391962707 | I147: 6.024073112 | J147: 116736.702 | K147: 0.1974257082 | L147: 0.1660847664 | M147: 1.547343763 | N147: 1.823029129 | P147: 6.024073112
C148: Up Case | D148: 0.1 | E148: 10 | F148: 0.05925 | G148: 0.2912429988 | H148: 0.1391496122 | I148: 6.105557144 | J148: 115957.6362 | K148: 0.1994919447 | L148: 0.1677376238 | M148: 1.53177457 | N148: 1.803576854 | P148: 6.105557144
C149: Up Case | D149: 0.15 | E149: 11 | F149: 0.061375 | G149: 0.2887198389 | H149: 0.1391029537 | I149: 6.18933679 | J149: 115174.9869 | K149: 0.20157088 | L149: 0.1694010821 | M149: 1.516442233 | N149: 1.784429389 | P149: 6.18933679
C150: Up Case | D150: 0.2 | E150: 12 | F150: 0.0635 | G150: 0.2862063706 | H150: 0.1390562952 | I150: 6.275507069 | J150: 114388.7729 | K150: 0.2036623746 | L150: 0.1710750317 | M150: 1.501342295 | N150: 1.765580896 | P150: 6.275507069
C151: Up Case | D151: 0.25 | E151: 13 | F151: 0.065625 | G151: 0.2837028682 | H151: 0.1390096486 | I151: 6.364168338 | J151: 113599.0133 | K151: 0.2057662887 | L151: 0.1727593626 | M151: 1.486470397 | N151: 1.747025664 | P151: 6.364168338
C152: Up Case | D152: 0.3 | E152: 14 | F152: 0.06775 | G152: 0.2812096059 | H152: 0.1389630139 | I152: 6.455426666 | J152: 112805.7274 | K152: 0.2078824822 | L152: 0.1744539646 | M152: 1.471822272 | N152: 1.728758109 | P152: 6.455426666
C153: Up Case | D153: 0.35 | E153: 15 | F153: 0.069875 | G153: 0.2787268221 | H153: 0.1389163792 | I153: 6.549394252 | J153: 112008.9347 | K153: 0.2100108148 | L153: 0.176158727 | M153: 1.457393747 | N153: 1.710772769 | P153: 6.549394252
B156: Duree de credit
B157: Tableaux Scenario
C159: Scénario | F159: Duree de credit | G159: TRI des capitaux propres | H159: TRI du projet | I159: Temps de retour | J159: Valeur actualisée nette | K159: Ratio de couverture du service de la dette | L159: Ratio de couverture la durée du prêt
C160: =OFFSET(C161,E160-1,0,1,1) -> Base Case | D160: =OFFSET(D161,E160-1,0,1,1) -> 0 | E160: 8 | F160: =Données!G123 -> 10 | G160: =IF(OR('Capitaux propres'!$F$28<0.001,'Capitaux propres'!$F$28>1,ISERROR('Capitaux propres'!$F$28)=TRUE),#N/A,'Capitaux propres'!$F$28) -> 0.2743023813 | H160: =IF(OR('Flux de trésorerie'!$I$60<0.001,'Flux de trésorerie'!$I$60>1,ISERROR('Flux de trésorerie'!$I$60)),#N/A,'Flux de trésorerie'!$I$60) -> 0.1466469467 | I160: =IF(ISERROR('Capitaux propres'!$F$45)=TRUE,"21+",'Capitaux propres'!$F$45) -> 6.096590147 | J160: =IF(ISERROR('Capitaux propres'!$F$31)=TRUE,#N/A,'Capitaux propres'!$F$31) -> 122985.9455 | K160: =IF(ISERROR(Financement!$F$48)=TRUE,#N/A,Financement!$F$48) -> 1.899711275 | L160: =IF(ISERROR(Financement!$H$61)=TRUE,#N/A,Financement!$H$61) -> 2.239573835
C161: Down Case | D161: -7 | E161: 1 | F161: 3 | G161: 0.2121269524 | H161: 0.1392429531 | I161: 8.749458679 | J161: 112272.0725 | K161: 0.5594979701 | L161: 0.5830145766 | N161: =IF(I161="21+",#N/A,I161) -> 8.749458679
C162: Down Case | D162: -6 | E162: =E161+1 -> 2 | F162: 4 | G162: 0.2227553904 | H162: 0.1392429531 | I162: 8.679232106 | J162: 113102.3622 | K162: 0.7268987417 | L162: 0.7728770283 | N162: =IF(I162="21+",#N/A,I162) -> 8.679232106
C163: Down Case | D163: -5 | E163: =E162+1 -> 3 | F163: 5 | G163: 0.234126848 | H163: 0.1392429531 | I163: 8.611376452 | J163: 113903.2502 | K163: 0.8855724588 | L163: 0.9593022145 | N163: 8.611376452
C164: Down Case | D164: -4 | E164: =E163+1 -> 4 | F164: 6 | G164: 0.2461366117 | H164: 0.1392429531 | I164: 8.545826352 | J164: 114676.254 | K164: 1.035974086 | L164: 1.142344233 | N164: 8.545826352
C165: Down Case | D165: -3 | E165: =E164+1 -> 5 | F165: 7 | G165: 0.258610338 | H165: 0.1392429531 | I165: 8.482517707 | J165: 115422.4486 | K165: 1.178534871 | L165: 1.322115864 | N165: 8.482517707
C166: Down Case | D166: -2 | E166: =E165+1 -> 6 | F166: 8 | G166: 0.2713183224 | H166: 0.1392429531 | I166: 7.609682592 | J166: 116144.1798 | K166: 1.313663577 | L166: 1.498663148 | N166: 7.609682592
C167: Down Case | D167: -1 | E167: 7 | F167: 9 | G167: 0.2839785278 | H167: 0.1392429531 | I167: 6.591210334 | J167: 116840.4614 | K167: 1.441747658 | L167: 1.672210031 | N167: 6.591210334
C168: Base Case | D168: 0 | E168: 8 | F168: 10 | G168: 0.2963173091 | H168: 0.1392429531 | I168: 5.944860377 | J168: 117512.1653 | K168: 1.56315437 | L168: 1.842792185 | N168: 5.944860377
C169: Up Case | D169: 1 | E169: 9 | F169: 11 | G169: 0.308098644 | H169: 0.1392429531 | I169: 5.504589664 | J169: 118160.0903 | K169: 1.678231822 | L169: 2.010501615 | N169: 5.504589664
C170: Up Case | D170: 2 | E170: 10 | F170: 12 | G170: 0.3191518724 | H170: 0.1392429531 | I170: 5.187193585 | J170: 118785.7678 | K170: 1.787309976 | L170: 2.175368167 | N170: 5.187193585
C171: Up Case | D171: 3 | E171: 11 | F171: 13 | G171: 0.3293729842 | H171: 0.1392429531 | I171: 4.948447805 | J171: 119388.9921 | K171: 1.890701591 | L171: 2.337590498 | N171: 4.948447805
C172: Up Case | D172: 4 | E172: 12 | F172: 14 | G172: 0.3387248814 | H172: 0.1392429531 | I172: 4.764547597 | J172: 119970.4819 | K172: 1.988703121 | L172: 2.49719024 | N172: 4.764547597
C173: Up Case | D173: 5 | E173: 13 | F173: 15 | G173: 0.3472191632 | H173: 0.1392429531 | I173: 4.617966317 | J173: 120530.925 | K173: 2.081595568 | L173: 2.65424294 | N173: 4.617966317
C174: Up Case | D174: 6 | E174: =E173+1 -> 14 | F174: 16 | G174: 0.3548999608 | H174: 0.1392429531 | I174: 4.498546127 | J174: 121071.4563 | K174: 2.16964528 | L174: 2.808766122 | N174: 4.498546127
C175: Up Case | D175: 7 | E175: =E174+1 -> 15 | F175: 17 | G175: 0.3618281782 | H175: 0.1392429531 | I175: 4.399507792 | J175: 121592.1745 | K175: 2.253104722 | L175: 2.960937363 | N175: 4.399507792
B178: Horizon d´investissement
B179: Tableaux Scenario
C181: Scénario | F181: Horizon d´investissement | G181: TRI des capitaux propres | H181: TRI du projet | I181: Temps de retour | J181: Valeur actualisée nette | K181: Coût moyen actualisé de l'énergie (sans subvention) | L181: Coût moyen actualisé de l'énergie (avec subvention) | M181: Ratio de couverture du service de la dette | N181: Ratio de couverture la durée du prêt
C182: =OFFSET(C183,E182-1,0,1,1) -> Base Case | D182: =OFFSET(D183,E182-1,0,1,1) -> 0 | E182: 8 | F182: =Données!G16 -> 20 | G182: =IF(OR('Capitaux propres'!$F$28<0.001,'Capitaux propres'!$F$28>1,ISERROR('Capitaux propres'!$F$28)=TRUE),#N/A,'Capitaux propres'!$F$28) -> 0.2743023813 | H182: =IF(OR('Flux de trésorerie'!$I$60<0.001,'Flux de trésorerie'!$I$60>1,ISERROR('Flux de trésorerie'!$I$60)),#N/A,'Flux de trésorerie'!$I$60) -> 0.1466469467 | I182: =IF(ISERROR('Capitaux propres'!$F$45)=TRUE,"21+",'Capitaux propres'!$F$45) -> 6.096590147 | J182: =IF(ISERROR('Capitaux propres'!$F$31)=TRUE,#N/A,'Capitaux propres'!$F$31) -> 122985.9455 | K182: =IF(ISERROR('Flux de trésorerie'!$I$73)=TRUE,#N/A,'Flux de trésorerie'!$I$73) -> 0.1844866312 | L182: =IF(ISERROR('Flux de trésorerie'!$I$74)=TRUE,#N/A,'Flux de trésorerie'!$I$74) -> 0.1550574763 | M182: =IF(ISERROR(Financement!$F$48)=TRUE,#N/A,Financement!$F$48) -> 1.899711275 | N182: =IF(ISERROR(Financement!$H$61)=TRUE,#N/A,Financement!$H$61) -> 2.239573835
C183: Down Case | D183: -7 | E183: 1 | F183: 13 | G183: 0.27346856 | H183: 0.1054506004 | I183: 5.944860377 | J183: 59837.38764 | K183: 0.2339044431 | L183: 0.1945154544 | M183: 1.56315437 | N183: 1.842792185 | P183: =IF(I183="21+",#N/A,I183) -> 5.944860377
C184: Down Case | D184: -6 | E184: =E183+1 -> 2 | F184: 14 | G184: 0.2800072372 | H184: 0.1132804811 | I184: 5.944860377 | J184: 69078.68771 | K184: 0.2255209023 | L184: 0.1879059635 | M184: 1.56315437 | N184: 1.842792185 | P184: 5.944860377
C185: Down Case | D185: -5 | E185: 3 | F185: 15 | G185: 0.2848579705 | H185: 0.1197284281 | I185: 5.944860377 | J185: 77962.00136 | K185: 0.2184182705 | L185: 0.1823256895 | M185: 1.56315437 | N185: 1.842792185 | P185: 5.944860377
C186: Down Case | D186: -4 | E186: 4 | F186: 16 | G186: 0.2885026753 | H186: 0.1250795782 | I186: 5.944860377 | J186: 86498.11851 | K186: 0.2123606443 | L186: 0.1775860946 | M186: 1.56315437 | N186: 1.842792185 | P186: 5.944860377
C187: Down Case | D187: -3 | E187: 5 | F187: 17 | G187: 0.2912748635 | H187: 0.1295580566 | I187: 5.944860377 | J187: 94709.72273 | K187: 0.2071528465 | L187: 0.1735282309 | M187: 1.56315437 | N187: 1.842792185 | P187: 5.944860377
C188: Down Case | D188: -2 | E188: 6 | F188: 18 | G188: 0.2934009373 | H188: 0.1333295166 | I188: 5.944860377 | J188: 102607.8439 | K188: 0.2026566932 | L188: 0.1700421004 | M188: 1.56315437 | N188: 1.842792185 | P188: 5.944860377
C189: Down Case | D189: -1 | E189: 7 | F189: 19 | G189: 0.2950430214 | H189: 0.1365242898 | I189: 5.944860377 | J189: 110205.8125 | K189: 0.1987587008 | L189: 0.1670364786 | M189: 1.56315437 | N189: 1.842792185 | P189: 5.944860377
C190: Base Case | D190: 0 | E190: 8 | F190: 20 | G190: 0.2963173091 | H190: 0.1392429531 | I190: 5.944860377 | J190: 117512.1653 | K190: 0.1953723095 | L190: 0.1644426191 | M190: 1.56315437 | N190: 1.842792185 | P190: 5.944860377
C191: Up Case | D191: 1 | E191: 9 | F191: 21 | G191: 0.2973123252 | H191: 0.1415698946 | I191: 5.944860377 | J191: 124545.7139 | K191: 0.1924151454 | L191: 0.1621925737 | M191: 1.56315437 | N191: 1.842792185 | P191: 5.944860377
C192: Up Case | D192: 2 | E192: 10 | F192: 22 | G192: 0.298092109 | H192: 0.1435693562 | I192: 5.944860377 | J192: 131315.3186 | K192: 0.1898313043 | L192: 0.1602422459 | M192: 1.56315437 | N192: 1.842792185 | P192: 5.944860377
C193: Up Case | D193: 3 | E193: 11 | F193: 23 | G193: 0.29870525 | H193: 0.1452940643 | I193: 5.944860377 | J193: 137831.8722 | K193: 0.1875708821 | L193: 0.1585514898 | M193: 1.56315437 | N193: 1.842792185 | P193: 5.944860377
C194: Up Case | D194: 4 | E194: 12 | F194: 24 | G194: 0.2991882026 | H194: 0.1467859328 | I194: 5.944860377 | J194: 144102.1984 | K194: 0.1855959121 | L194: 0.1570904745 | M194: 1.56315437 | N194: 1.842792185 | P194: 5.944860377
C195: Up Case | D195: 5 | E195: 13 | F195: 25 | G195: 0.2995700657 | H195: 0.1480819285 | I195: 5.944860377 | J195: 150141.9942 | K195: 0.1838639354 | L195: 0.155823578 | M195: 1.56315437 | N195: 1.842792185 | P195: 5.944860377
C196: Up Case | D196: 6 | E196: 14 | F196: 26 | G196: 0.2998724639 | H196: 0.149210614 | I196: 5.944860377 | J196: 155958.447 | K196: 0.1823490014 | L196: 0.1547306375 | M196: 1.56315437 | N196: 1.842792185 | P196: 5.944860377
C197: Up Case | D197: 7 | E197: 15 | F197: 27 | G197: 0.3001123607 | H197: 0.1501962125 | I197: 5.944860377 | J197: 161560.5297 | K197: 0.1810257678 | L197: 0.1537912437 | M197: 1.56315437 | N197: 1.842792185 | P197: 5.944860377

Sheet DataTableMap (hidden)
A1: =TABLE(,E203) | B1: $F$204 | C1: Scenario | D1: 204
A2: =TABLE(,E203) | B2: $G$204 | C2: Scenario | D2: 204
A3: =TABLE(,E203) | B3: $H$204 | C3: Scenario | D3: 204
A4: =TABLE(,E203) | B4: $I$204 | C4: Scenario | D4: 204
A5: =TABLE(,E203) | B5: $J$204 | C5: Scenario | D5: 204
A6: =TABLE(,E203) | B6: $K$204 | C6: Scenario | D6: 204
A7: =TABLE(,E203) | B7: $L$204 | C7: Scenario | D7: 204
A8: =TABLE(,E203) | B8: $M$204 | C8: Scenario | D8: 204
A9: =TABLE(,E203) | B9: $N$204 | C9: Scenario | D9: 204
A10: =TABLE(,E203) | B10: $O$204 | C10: Scenario | D10: 204
A11: =TABLE(,E203) | B11: $P$204 | C11: Scenario | D11: 204
A12: =TABLE(,E203) | B12: $F$205 | C12: Scenario | D12: 205
A13: =TABLE(,E203) | B13: $G$205 | C13: Scenario | D13: 205
A14: =TABLE(,E203) | B14: $H$205 | C14: Scenario | D14: 205
A15: =TABLE(,E203) | B15: $I$205 | C15: Scenario | D15: 205
A16: =TABLE(,E203) | B16: $J$205 | C16: Scenario | D16: 205
A17: =TABLE(,E203) | B17: $K$205 | C17: Scenario | D17: 205
A18: =TABLE(,E203) | B18: $L$205 | C18: Scenario | D18: 205
A19: =TABLE(,E203) | B19: $M$205 | C19: Scenario | D19: 205
A20: =TABLE(,E203) | B20: $N$205 | C20: Scenario | D20: 205
A21: =TABLE(,E203) | B21: $O$205 | C21: Scenario | D21: 205
A22: =TABLE(,E203) | B22: $P$205 | C22: Scenario | D22: 205
A23: =TABLE(,E203) | B23: $F$206 | C23: Scenario | D23: 206
A24: =TABLE(,E203) | B24: $G$206 | C24: Scenario | D24: 206
A25: =TABLE(,E203) | B25: $H$206 | C25: Scenario | D25: 206
A26: =TABLE(,E203) | B26: $I$206 | C26: Scenario | D26: 206
A27: =TABLE(,E203) | B27: $J$206 | C27: Scenario | D27: 206
A28: =TABLE(,E203) | B28: $K$206 | C28: Scenario | D28: 206
A29: =TABLE(,E203) | B29: $L$206 | C29: Scenario | D29: 206
A30: =TABLE(,E203) | B30: $M$206 | C30: Scenario | D30: 206
A31: =TABLE(,E203) | B31: $N$206 | C31: Scenario | D31: 206
A32: =TABLE(,E203) | B32: $O$206 | C32: Scenario | D32: 206
A33: =TABLE(,E203) | B33: $P$206 | C33: Scenario | D33: 206
A34: =TABLE(,E203) | B34: $F$207 | C34: Scenario | D34: 207
A35: =TABLE(,E203) | B35: $G$207 | C35: Scenario | D35: 207
A36: =TABLE(,E203) | B36: $H$207 | C36: Scenario | D36: 207
A37: =TABLE(,E203) | B37: $I$207 | C37: Scenario | D37: 207
A38: =TABLE(,E203) | B38: $J$207 | C38: Scenario | D38: 207
A39: =TABLE(,E203) | B39: $K$207 | C39: Scenario | D39: 207
A40: =TABLE(,E203) | B40: $L$207 | C40: Scenario | D40: 207
A41: =TABLE(,E203) | B41: $M$207 | C41: Scenario | D41: 207
A42: =TABLE(,E203) | B42: $N$207 | C42: Scenario | D42: 207
A43: =TABLE(,E203) | B43: $O$207 | C43: Scenario | D43: 207
A44: =TABLE(,E203) | B44: $P$207 | C44: Scenario | D44: 207
A45: =TABLE(,E203) | B45: $F$208 | C45: Scenario | D45: 208
A46: =TABLE(,E203) | B46: $G$208 | C46: Scenario | D46: 208
A47: =TABLE(,E203) | B47: $H$208 | C47: Scenario | D47: 208
A48: =TABLE(,E203) | B48: $I$208 | C48: Scenario | D48: 208
A49: =TABLE(,E203) | B49: $J$208 | C49: Scenario | D49: 208
A50: =TABLE(,E203) | B50: $K$208 | C50: Scenario | D50: 208
A51: =TABLE(,E203) | B51: $L$208 | C51: Scenario | D51: 208
A52: =TABLE(,E203) | B52: $M$208 | C52: Scenario | D52: 208
A53: =TABLE(,E203) | B53: $N$208 | C53: Scenario | D53: 208
A54: =TABLE(,E203) | B54: $O$208 | C54: Scenario | D54: 208
A55: =TABLE(,E203) | B55: $P$208 | C55: Scenario | D55: 208
A56: =TABLE(,E203) | B56: $F$209 | C56: Scenario | D56: 209
A57: =TABLE(,E203) | B57: $G$209 | C57: Scenario | D57: 209
A58: =TABLE(,E203) | B58: $H$209 | C58: Scenario | D58: 209
A59: =TABLE(,E203) | B59: $I$209 | C59: Scenario | D59: 209
A60: =TABLE(,E203) | B60: $J$209 | C60: Scenario | D60: 209
A61: =TABLE(,E203) | B61: $K$209 | C61: Scenario | D61: 209
A62: =TABLE(,E203) | B62: $L$209 | C62: Scenario | D62: 209
A63: =TABLE(,E203) | B63: $M$209 | C63: Scenario | D63: 209
A64: =TABLE(,E203) | B64: $N$209 | C64: Scenario | D64: 209
A65: =TABLE(,E203) | B65: $O$209 | C65: Scenario | D65: 209
A66: =TABLE(,E203) | B66: $P$209 | C66: Scenario | D66: 209
A67: =TABLE(,E203) | B67: $F$210 | C67: Scenario | D67: 210
A68: =TABLE(,E203) | B68: $G$210 | C68: Scenario | D68: 210
A69: =TABLE(,E203) | B69: $H$210 | C69: Scenario | D69: 210
A70: =TABLE(,E203) | B70: $I$210 | C70: Scenario | D70: 210
A71: =TABLE(,E203) | B71: $J$210 | C71: Scenario | D71: 210
A72: =TABLE(,E203) | B72: $K$210 | C72: Scenario | D72: 210
A73: =TABLE(,E203) | B73: $L$210 | C73: Scenario | D73: 210
A74: =TABLE(,E203) | B74: $M$210 | C74: Scenario | D74: 210
A75: =TABLE(,E203) | B75: $N$210 | C75: Scenario | D75: 210
A76: =TABLE(,E203) | B76: $O$210 | C76: Scenario | D76: 210
A77: =TABLE(,E203) | B77: $P$210 | C77: Scenario | D77: 210
A78: =TABLE(,E203) | B78: $F$211 | C78: Scenario | D78: 211
A79: =TABLE(,E203) | B79: $G$211 | C79: Scenario | D79: 211
A80: =TABLE(,E203) | B80: $H$211 | C80: Scenario | D80: 211
A81: =TABLE(,E203) | B81: $I$211 | C81: Scenario | D81: 211
A82: =TABLE(,E203) | B82: $J$211 | C82: Scenario | D82: 211
A83: =TABLE(,E203) | B83: $K$211 | C83: Scenario | D83: 211
A84: =TABLE(,E203) | B84: $L$211 | C84: Scenario | D84: 211
A85: =TABLE(,E203) | B85: $M$211 | C85: Scenario | D85: 211
A86: =TABLE(,E203) | B86: $N$211 | C86: Scenario | D86: 211
A87: =TABLE(,E203) | B87: $O$211 | C87: Scenario | D87: 211
A88: =TABLE(,E203) | B88: $P$211 | C88: Scenario | D88: 211
A89: =TABLE(,E203) | B89: $F$212 | C89: Scenario | D89: 212
A90: =TABLE(,E203) | B90: $G$212 | C90: Scenario | D90: 212
A91: =TABLE(,E203) | B91: $H$212 | C91: Scenario | D91: 212
A92: =TABLE(,E203) | B92: $I$212 | C92: Scenario | D92: 212
A93: =TABLE(,E203) | B93: $J$212 | C93: Scenario | D93: 212
A94: =TABLE(,E203) | B94: $K$212 | C94: Scenario | D94: 212
A95: =TABLE(,E203) | B95: $L$212 | C95: Scenario | D95: 212
A96: =TABLE(,E203) | B96: $M$212 | C96: Scenario | D96: 212
A97: =TABLE(,E203) | B97: $N$212 | C97: Scenario | D97: 212
A98: =TABLE(,E203) | B98: $O$212 | C98: Scenario | D98: 212
A99: =TABLE(,E203) | B99: $P$212 | C99: Scenario | D99: 212
A100: =TABLE(,E203) | B100: $F$213 | C100: Scenario | D100: 213
A101: =TABLE(,E203) | B101: $G$213 | C101: Scenario | D101: 213
A102: =TABLE(,E203) | B102: $H$213 | C102: Scenario | D102: 213
A103: =TABLE(,E203) | B103: $I$213 | C103: Scenario | D103: 213
A104: =TABLE(,E203) | B104: $J$213 | C104: Scenario | D104: 213
A105: =TABLE(,E203) | B105: $K$213 | C105: Scenario | D105: 213
A106: =TABLE(,E203) | B106: $L$213 | C106: Scenario | D106: 213
A107: =TABLE(,E203) | B107: $M$213 | C107: Scenario | D107: 213
A108: =TABLE(,E203) | B108: $N$213 | C108: Scenario | D108: 213
A109: =TABLE(,E203) | B109: $O$213 | C109: Scenario | D109: 213
A110: =TABLE(,E203) | B110: $P$213 | C110: Scenario | D110: 213
A111: =TABLE(,E203) | B111: $F$214 | C111: Scenario | D111: 214
A112: =TABLE(,E203) | B112: $G$214 | C112: Scenario | D112: 214
A113: =TABLE(,E203) | B113: $H$214 | C113: Scenario | D113: 214
A114: =TABLE(,E203) | B114: $I$214 | C114: Scenario | D114: 214
A115: =TABLE(,E203) | B115: $J$214 | C115: Scenario | D115: 214
A116: =TABLE(,E203) | B116: $K$214 | C116: Scenario | D116: 214
A117: =TABLE(,E203) | B117: $L$214 | C117: Scenario | D117: 214
A118: =TABLE(,E203) | B118: $M$214 | C118: Scenario | D118: 214
A119: =TABLE(,E203) | B119: $N$214 | C119: Scenario | D119: 214
A120: =TABLE(,E203) | B120: $O$214 | C120: Scenario | D120: 214
A121: =TABLE(,E203) | B121: $P$214 | C121: Scenario | D121: 214
A122: =TABLE(,E203) | B122: $F$215 | C122: Scenario | D122: 215
A123: =TABLE(,E203) | B123: $G$215 | C123: Scenario | D123: 215
A124: =TABLE(,E203) | B124: $H$215 | C124: Scenario | D124: 215
A125: =TABLE(,E203) | B125: $I$215 | C125: Scenario | D125: 215
A126: =TABLE(,E203) | B126: $J$215 | C126: Scenario | D126: 215
A127: =TABLE(,E203) | B127: $K$215 | C127: Scenario | D127: 215
A128: =TABLE(,E203) | B128: $L$215 | C128: Scenario | D128: 215
A129: =TABLE(,E203) | B129: $M$215 | C129: Scenario | D129: 215
A130: =TABLE(,E203) | B130: $N$215 | C130: Scenario | D130: 215
A131: =TABLE(,E203) | B131: $O$215 | C131: Scenario | D131: 215
A132: =TABLE(,E203) | B132: $P$215 | C132: Scenario | D132: 215
A133: =TABLE(,E203) | B133: $F$216 | C133: Scenario | D133: 216
A134: =TABLE(,E203) | B134: $G$216 | C134: Scenario | D134: 216
A135: =TABLE(,E203) | B135: $H$216 | C135: Scenario | D135: 216
A136: =TABLE(,E203) | B136: $I$216 | C136: Scenario | D136: 216
A137: =TABLE(,E203) | B137: $J$216 | C137: Scenario | D137: 216
A138: =TABLE(,E203) | B138: $K$216 | C138: Scenario | D138: 216
A139: =TABLE(,E203) | B139: $L$216 | C139: Scenario | D139: 216
A140: =TABLE(,E203) | B140: $M$216 | C140: Scenario | D140: 216
A141: =TABLE(,E203) | B141: $N$216 | C141: Scenario | D141: 216
A142: =TABLE(,E203) | B142: $O$216 | C142: Scenario | D142: 216
A143: =TABLE(,E203) | B143: $P$216 | C143: Scenario | D143: 216
A144: =TABLE(,E203) | B144: $F$217 | C144: Scenario | D144: 217
A145: =TABLE(,E203) | B145: $G$217 | C145: Scenario | D145: 217
A146: =TABLE(,E203) | B146: $H$217 | C146: Scenario | D146: 217
A147: =TABLE(,E203) | B147: $I$217 | C147: Scenario | D147: 217
A148: =TABLE(,E203) | B148: $J$217 | C148: Scenario | D148: 217
A149: =TABLE(,E203) | B149: $K$217 | C149: Scenario | D149: 217
A150: =TABLE(,E203) | B150: $L$217 | C150: Scenario | D150: 217
A151: =TABLE(,E203) | B151: $M$217 | C151: Scenario | D151: 217
A152: =TABLE(,E203) | B152: $N$217 | C152: Scenario | D152: 217
A153: =TABLE(,E203) | B153: $O$217 | C153: Scenario | D153: 217
A154: =TABLE(,E203) | B154: $P$217 | C154: Scenario | D154: 217
A155: =TABLE(,E203) | B155: $F$218 | C155: Scenario | D155: 218
A156: =TABLE(,E203) | B156: $G$218 | C156: Scenario | D156: 218
A157: =TABLE(,E203) | B157: $H$218 | C157: Scenario | D157: 218
A158: =TABLE(,E203) | B158: $I$218 | C158: Scenario | D158: 218
A159: =TABLE(,E203) | B159: $J$218 | C159: Scenario | D159: 218
A160: =TABLE(,E203) | B160: $K$218 | C160: Scenario | D160: 218
A161: =TABLE(,E203) | B161: $L$218 | C161: Scenario | D161: 218
A162: =TABLE(,E203) | B162: $M$218 | C162: Scenario | D162: 218
A163: =TABLE(,E203) | B163: $N$218 | C163: Scenario | D163: 218
A164: =TABLE(,E203) | B164: $O$218 | C164: Scenario | D164: 218
A165: =TABLE(,E203) | B165: $P$218 | C165: Scenario | D165: 218
A166: =TABLE(,E203) | B166: $F$219 | C166: Scenario | D166: 219
A167: =TABLE(,E203) | B167: $G$219 | C167: Scenario | D167: 219
A168: =TABLE(,E203) | B168: $H$219 | C168: Scenario | D168: 219
A169: =TABLE(,E203) | B169: $I$219 | C169: Scenario | D169: 219
A170: =TABLE(,E203) | B170: $J$219 | C170: Scenario | D170: 219
A171: =TABLE(,E203) | B171: $K$219 | C171: Scenario | D171: 219
A172: =TABLE(,E203) | B172: $L$219 | C172: Scenario | D172: 219
A173: =TABLE(,E203) | B173: $M$219 | C173: Scenario | D173: 219
A174: =TABLE(,E203) | B174: $N$219 | C174: Scenario | D174: 219
A175: =TABLE(,E203) | B175: $O$219 | C175: Scenario | D175: 219
A176: =TABLE(,E203) | B176: $P$219 | C176: Scenario | D176: 219
A177: =TABLE(,E203) | B177: $F$220 | C177: Scenario | D177: 220
A178: =TABLE(,E203) | B178: $G$220 | C178: Scenario | D178: 220
A179: =TABLE(,E203) | B179: $H$220 | C179: Scenario | D179: 220
A180: =TABLE(,E203) | B180: $I$220 | C180: Scenario | D180: 220
A181: =TABLE(,E203) | B181: $J$220 | C181: Scenario | D181: 220
A182: =TABLE(,E203) | B182: $K$220 | C182: Scenario | D182: 220
A183: =TABLE(,E203) | B183: $L$220 | C183: Scenario | D183: 220
A184: =TABLE(,E203) | B184: $M$220 | C184: Scenario | D184: 220
A185: =TABLE(,E203) | B185: $N$220 | C185: Scenario | D185: 220
A186: =TABLE(,E203) | B186: $O$220 | C186: Scenario | D186: 220
A187: =TABLE(,E203) | B187: $P$220 | C187: Scenario | D187: 220
A188: =TABLE(,E203) | B188: $F$221 | C188: Scenario | D188: 221
A189: =TABLE(,E203) | B189: $G$221 | C189: Scenario | D189: 221
A190: =TABLE(,E203) | B190: $H$221 | C190: Scenario | D190: 221
A191: =TABLE(,E203) | B191: $I$221 | C191: Scenario | D191: 221
A192: =TABLE(,E203) | B192: $J$221 | C192: Scenario | D192: 221
A193: =TABLE(,E203) | B193: $K$221 | C193: Scenario | D193: 221
A194: =TABLE(,E203) | B194: $L$221 | C194: Scenario | D194: 221
A195: =TABLE(,E203) | B195: $M$221 | C195: Scenario | D195: 221
A196: =TABLE(,E203) | B196: $N$221 | C196: Scenario | D196: 221
A197: =TABLE(,E203) | B197: $O$221 | C197: Scenario | D197: 221
A198: =TABLE(,E203) | B198: $P$221 | C198: Scenario | D198: 221
A199: =TABLE(,E203) | B199: $F$222 | C199: Scenario | D199: 222
A200: =TABLE(,E203) | B200: $G$222 | C200: Scenario | D200: 222
... 141 more rows

Sheet Rapport imprimable
B2: Outil d'analyse de la rentabilité des projets PV en Tunisie
B3: Autoproduction MT et HT
B4: ="Rapport de synthèse imprimé le "&TEXT(TODAY(),"dd mmmm yyyy") -> Rapport de synthèse imprimé le 23 November 2018
B6: Hypothèses de bases
C8: variable | D8: valeur | E8: unité
C9: Coût de l'installation | D9: ='Entrées Utilisateur'!C10 -> 2750 | E9: ='Entrées Utilisateur'!D10 -> DT/kW
D10: ='Entrées Utilisateur'!C11 -> 137500 | E10: ='Entrées Utilisateur'!D11 -> DT
C11: Subvention | D11: ='Entrées Utilisateur'!C13 -> 0.2 | E11: ='Entrées Utilisateur'!D13 -> %
D12: ='Entrées Utilisateur'!C14 -> 27500 | E12: ='Entrées Utilisateur'!D14 -> DT
C13: Taille de l'installation | D13: ='Entrées Utilisateur'!C17 -> 50 | E13: ='Entrées Utilisateur'!D17 -> kWc
C14: Courbe de charge | D14: ='Entrées Utilisateur'!C25 -> Atelier mécanique
C15: Consommation annuelle moyenne | D15: ='Entrées Utilisateur'!C26 -> 200000 | E15: kWh
C16: Tarif Souscrit STEG | D16: ='Entrées Utilisateur'!C21 -> Tarif à Poste Horaire
C17: Région (pour courbe de production PV) | D17: ='Entrées Utilisateur'!C30 -> Tunis
C18: Orientation des panneaux | D18: ='Entrées Utilisateur'!C31 -> Sud
C20: ** Voir modèle excel pour hypothèses détaillées
B22: Résultats
C24: variable | D24: valeur | E24: unité
C25: Consommation brute annuelle | D25: =Résultats!C5 -> 200000 | E25: =Résultats!D5 -> kWh
C26: Production annuelle | D26: =Résultats!C6 -> 82500 | E26: =Résultats!D6 -> kWh
C27: Ratio Production PV – consommation | D27: =Résultats!C7 -> 0.4125 | E27: =Résultats!D7 -> -
C28: Pourcentage de la production en excédent | D28: =Résultats!C8 -> 0.2442806791 | E28: =Résultats!D8 -> -
C29: Montant à rembourser à la fin de l'année | D29: =Résultats!C9 -> 0 | E29: =Résultats!D9 -> DT/an
C30: Coût Moyen Actualisé de l'Énergie (LCOE) avec subvention | D30: =Résultats!C10 -> 0.1550574763 | E30: =Résultats!D10 -> DT/kWh
C31: Facture annuelle sans PV | D31: =Résultats!C11 -> 47872.20605 | E31: =Résultats!D11 -> DT/an
C32: Facture annuelle avec PV | D32: =Résultats!C12 -> 31864.45702 | E32: =Résultats!D12 -> DT/an
C33: Vente annuelle de l'excédent à la STEG | D33: =Résultats!C13 -> 2458.530831 | E33: =Résultats!D13 -> DT/an
C34: Temps de retour sur investissement | D34: =Résultats!C14 -> 6.096590147 | E34: =Résultats!D14 -> années
C35: Taux de rentabilité interne du projet | D35: =Résultats!C15 -> 0.1466469467 | E35: =Résultats!D15 -> -
C36: Réduction d'émissions de gaz à effet de serre sur la vie du système PV | D36: =Résultats!C16 -> 940.5 | E36: =Résultats!D16 -> tonnes équivalent CO2
B56: Outil d'analyse de la rentabilité des projets PV en Tunisie version octobre 2018
B57: Page 1
B115: Outil d'analyse de la rentabilité des projets PV en Tunisie (version octobre 2018)
B116: Page 2
B174: Outil d'analyse de la rentabilité des projets PV en Tunisie (version octobre 2018)
B175: Page 3

Sheet Données
C1: Assumptions | D1: Hypothèses
D2: Tunisie Moyenne Tension
C5: Timing | D5: Délais
C6: Start | D6: Départ
C7: Model Start Date | D7: Date de début de la modélisation | E7: date | G7: =DATE('Entrées Utilisateur'!C44-1,12,1) -> 2017-12-01
C9: Construction | D9: Construction
C10: Start | D10: Début | E10: date | G10: =Model_Start -> 2017-12-01
C11: End | D11: Fin | E11: date | G11: =EOMONTH(G10,0) -> 2017-12-31
C13: Operations | D13: Exploitation
C14: Start | D14: Début | E14: date | G14: =G11+1 -> 2018-01-01
D15: Durée de l'hypothèse de référence | E15: ans | G15: ='Entrées Utilisateur'!C47 -> 20
C16: Base Case Duration | D16: Durée appliqué | E16: ans | F16: =Scénarios!D182 -> 0 | G16: =G15+F16 -> 20
C17: End | D17: Fin | E17: date | G17: =EOMONTH(G14,G16*12-1) -> 2037-12-31
C19: Construction | D19: Construction
C20: System Cost | D20: Coût de l'installation
C21: Turnkey System Cost | D21: Coût de l'installation | E21: DT | G21: =IF('Entrées Utilisateur'!D10="DT",'Entrées Utilisateur'!C10,'Entrées Utilisateur'!C10*Données!G35) -> 137500
C22: Applied Scenario | D22: Coût de l'installation appliqué | E22: DT | F22: =Scénarios!D30 -> 0 | G22: =(1+F22)*G21 -> 137500
C24: Payment Profile | D24: Liste des dépenses
C25: Construction Month | D25: Mois de construction | G25: Total | H25: 1 | I25: =H25+1 -> 2 | J25: =I25+1 -> 3 | K25: =J25+1 -> 4 | L25: =K25+1 -> 5 | M25: =L25+1 -> 6
C26: Relative Costs | D26: Coûts relatifs | G26: =SUM(H26:M26) -> 1 | H26: 1
C28: Subsidy | D28: Subvention
C29: Subsidy | D29: Subvention | E29: DT | G29: =IF('Entrées Utilisateur'!D13="DT",'Entrées Utilisateur'!C13,MIN(Données!G22*'Entrées Utilisateur'!C13,100000)) -> 27500 | I29: limite de 100.000 DT
C30: Applied Subsidy | D30: Subvention appliquée | E30: DT | F30: =Scénarios!D52 -> 0 | G30: =G29*(1+F30) -> 27500
C32: Operations | D32: Exploitation
C33: Generation | D33: Production
C34: System Size | D34: Taille de l'installation | E34: kWc | G34: ='Entrées Utilisateur'!C17 -> 50
D35: Taille de l'installation appliquée | E35: kWc | F35: =Scénarios!D8 -> 0 | G35: =G34*(1+F35) -> 50
C37: Degradation | D37: Dégradation des performances | E37: % p.a. | G37: ='Entrées Utilisateur'!C51 -> 0.007
C38: Overall Efficiency | D38: Rendement global | E38: x | G38: ='Entrées Utilisateur'!C52 -> 1
C40: Applied Yield | D40: Rendement appliqué | E40: kWh/kWc/a | G40: ='Courbes de Production PV'!C6 -> 1650
C42: Electricity Savings | D42: Economies d'électricité
C43: Net-metering | D43: Net-metering
D44: Tarifs de Consommation | E44: ='Entrées Utilisateur'!C21 -> Tarif à Poste Horaire
D46: Choix de Tarif
D48: Tarif Uniforme | E48: DT/kWh | G48: ='Entrées Utilisateur'!C59 -> 0.251
J49: Postes horaires
D50: Tarif jour | E50: DT/kWh | G50: ='Entrées Utilisateur'!C62 -> 0.24 | K50: Saison 1 | O50: Saison 2
D51: Tarif pointe matin été | E51: DT/kWh | G51: ='Entrées Utilisateur'!C63 -> 0.366 | K51: début (mois) | L51: fin (mois) | M51: début (heure) | N51: fin (heure) | O51: début (mois) | P51: fin (mois) | Q51: début (heure) | R51: fin (heure) | S51: début (heure) | T51: fin (heure)
D52: Tarif pointe soir | E52: DT/kWh | G52: ='Entrées Utilisateur'!C64 -> 0.329 | J52: Tarif jour | K52: 9 | L52: 6 | M52: 7 | N52: 18 | O52: 6 | P52: 9 | Q52: 7 | R52: 9 | S52: 14 | T52: 19
D53: Tarif nuit / dim | E53: DT/kWh | G53: ='Entrées Utilisateur'!C65 -> 0.188 | J53: Tarif pointe matin été | K53: 9 | L53: 6 | O53: 6 | P53: 9 | Q53: 9 | R53: 14
J54: Tarif pointe soir | K54: 9 | L54: 6 | M54: 18 | N54: 21 | O54: 6 | P54: 9 | Q54: 19 | R54: 22
D55: TVA payé par le client pour consommation | E55: % | G55: ='Entrées Utilisateur'!C67 -> 0 | J55: Tarif nuit / dim | K55: 9 | L55: 6 | M55: 21 | N55: 7 | O55: 6 | P55: 9 | Q55: 22 | R55: 7
D56: surtaxe municipale | E56: DT/kWh | G56: ='Entrées Utilisateur'!C68 -> 0.005
D58: Tarifs d'Achat de l'Excèdent
D59: Tarif jour | E59: DT/kWh | G59: ='Entrées Utilisateur'!C71 -> 0.115
D60: Tarif pointe matin été | E60: DT/kWh | G60: ='Entrées Utilisateur'!C72 -> 0.182
D61: Tarif pointe soir | E61: DT/kWh | G61: ='Entrées Utilisateur'!C73 -> 0.168
D62: Tarif nuit / dim | E62: DT/kWh | G62: ='Entrées Utilisateur'!C74 -> 0.087
C64: Net-metering | D64: Net-metering
C65: Yearly Consumption | D65: Consommation annuelle | E65: kWh | G65: ='Entrées Utilisateur'!C26 -> 200000
C66: Yearly Consumption | D66: Consommation annuelle appliqué | E66: kWh | F66: =Scénarios!D74 -> 0 | G66: =G65*(1+F66) -> 200000
C67: Average Yearly PV Generation | D67: Production annuelle moyenne | E67: kWh | G67: =SUM('Compensation PV'!K53:K8812) -> 82500
C68: Annual Net-metering Limit | D68: Limite facturation par poste horaire | E68: % | G68: ='Entrées Utilisateur'!C77 -> 0.3
C70: Price Forecast | D70: Valeur de la production PV et projections de prix | G70: =YEAR(Model_Start) -> 2017 | H70: =G70+1 -> 2018 | I70: =H70+1 -> 2019 | J70: =I70+1 -> 2020 | K70: =J70+1 -> 2021 | L70: 2022 | M70: 2023 | N70: 2024 | O70: 2025 | P70: 2026 | Q70: 2027 | R70: 2028 | S70: 2029 | T70: 2030 | U70: 2031 | V70: 2032 | W70: 2033 | X70: 2034 | Y70: 2035 | Z70: 2036 | AA70: 2037 | AB70: 2038 | AC70: 2039 | AD70: 2040 | AE70: 2041 | AF70: 2042 | AG70: 2043 | AH70: 2044
C71: Price Escalation | D71: Augmentation du tarif de vente | E71: % | G71: ='Entrées Utilisateur'!D80 -> 0 | H71: ='Entrées Utilisateur'!E80 -> 0.05 | I71: ='Entrées Utilisateur'!G80 -> 0.05 | J71: ='Entrées Utilisateur'!H80 -> 0.05 | K71: ='Entrées Utilisateur'!I80 -> 0.05 | L71: =Scénarios!D95 -> 0.05 | M71: =$L$71 -> 0.05 | N71: =$L$71 -> 0.05 | O71: 0.05 | P71: 0.05 | Q71: 0.05 | R71: 0.05 | S71: 0.05 | T71: 0.05 | U71: 0.05 | V71: 0.05 | W71: 0.05 | X71: 0.05 | Y71: 0.05 | Z71: 0.05 | AA71: 0.05 | AB71: 0.05 | AC71: 0.05 | AD71: 0.05 | AE71: 0.05 | AF71: 0.05 | AG71: 0.05 | AH71: 0.05
D72: Augmentation du tarif d'achat de l'excédent | E72: % | G72: ='Entrées Utilisateur'!D81 -> 0 | H72: ='Entrées Utilisateur'!E81 -> 0.05 | I72: ='Entrées Utilisateur'!G81 -> 0.05 | J72: ='Entrées Utilisateur'!H81 -> 0.05 | K72: ='Entrées Utilisateur'!I81 -> 0.05 | L72: ='Entrées Utilisateur'!J81 -> 0 | M72: =L72 -> 0 | N72: 0 | O72: 0 | P72: 0 | Q72: 0 | R72: 0 | S72: 0 | T72: 0 | U72: 0 | V72: 0 | W72: 0 | X72: 0 | Y72: 0 | Z72: 0 | AA72: 0 | AB72: 0 | AC72: 0 | AD72: 0 | AE72: 0 | AF72: 0 | AG72: 0 | AH72: 0
D73: Valeur de l’électricité PV pour le consommateur (venant de la partie de la production PV autoconsommée) | G73: ='Compensation PV'!C44 -> 0.1940333216 | H73: =G73*(1+H71) -> 0.2037349877 | I73: =H73*(1+I71) -> 0.213921737 | J73: 0.2246178239 | K73: 0.2358487151 | L73: 0.2476411508 | M73: 0.2600232084 | N73: 0.2730243688 | O73: 0.2866755872 | P73: 0.3010093666 | Q73: 0.3160598349 | R73: 0.3318628267 | S73: 0.348455968 | T73: 0.3658787664 | U73: 0.3841727047 | V73: 0.40338134 | W73: 0.423550407 | X73: 0.4447279273 | Y73: 0.4669643237 | Z73: 0.4903125399 | AA73: 0.5148281669 | AB73: 0.5405695752 | AC73: 0.567598054 | AD73: 0.5959779567 | AE73: 0.6257768545 | AF73: 0.6570656972 | AG73: 0.6899189821 | AH73: 0.7244149312
D74: Valeur de l’électricité PV pour le consommateur (venant de la partie de la production PV vendu comme excédent) | G74: ='Compensation PV'!C45 -> 0.02980037371 | H74: =G74*(1+H72) -> 0.03129039239 | I74: =H74*(1+I72) -> 0.03285491201 | J74: 0.03449765761 | K74: 0.03622254049 | L74: 0.03622254049 | M74: 0.03622254049 | N74: 0.03622254049 | O74: 0.03622254049 | P74: 0.03622254049 | Q74: 0.03622254049 | R74: 0.03622254049 | S74: 0.03622254049 | T74: 0.03622254049 | U74: 0.03622254049 | V74: 0.03622254049 | W74: 0.03622254049 | X74: 0.03622254049 | Y74: 0.03622254049 | Z74: 0.03622254049 | AA74: 0.03622254049 | AB74: 0.03622254049 | AC74: 0.03622254049 | AD74: 0.03622254049 | AE74: 0.03622254049 | AF74: 0.03622254049 | AG74: 0.03622254049 | AH74: 0.03622254049
C75: Escalated Price | D75: Valeur de l’électricité PV pour le consommateur (totale) | E75: DT/kWh | G75: =G73+G74 -> 0.2238336953 | H75: =SUM(H73:H74) -> 0.23502538 | I75: =SUM(I73:I74) -> 0.2467766491 | J75: 0.2591154815 | K75: 0.2720712556 | L75: 0.2838636913 | M75: 0.2962457489 | N75: 0.3092469093 | O75: 0.3228981277 | P75: 0.3372319071 | Q75: 0.3522823754 | R75: 0.3680853672 | S75: 0.3846785085 | T75: 0.4021013069 | U75: 0.4203952452 | V75: 0.4396038805 | W75: 0.4597729475 | X75: 0.4809504678 | Y75: 0.5031868642 | Z75: 0.5265350804 | AA75: 0.5510507074 | AB75: 0.5767921157 | AC75: 0.6038205945 | AD75: 0.6322004972 | AE75: 0.661999395 | AF75: 0.6932882377 | AG75: 0.7261415226 | AH75: 0.7606374717
C77: OpEx | D77: Coûts d’exploitation
C78: O&M | D78: Exploitation & Maintenance
C79: Fixed Operation Costs | D79: Coûts fixes d'exploitation | E79: % de l'investissement | G79: ='Entrées Utilisateur'!C85 -> 0.015
C80: Fixed Operation Costs | D80: Coûts fixes d'exploitation | E80: DT/p.a. | G80: =G79*G22 -> 2062.5
C82: Cost Categories | D82: Catégories de coûts
C83: Absolute Costs | D83: Coûts fixes
C84: Fixed Operation | D84: Coût d'exploitation fixe | E84: DT p.a. | G84: =G80 -> 2062.5
C85: Spare | D85: Autre | E85: DT p.a. | G85: ='Entrées Utilisateur'!C89 -> 0
C86: Spare | D86: Autre | E86: DT p.a. | G86: ='Entrées Utilisateur'!C90 -> 0
C87: Spare | D87: Autre | E87: DT p.a. | G87: ='Entrées Utilisateur'!C91 -> 0
C88: Spare | D88: Autre | E88: DT p.a. | G88: ='Entrées Utilisateur'!C92 -> 0
C89: Total | D89: Sommaire | E89: DT p.a. | G89: =SUM(G84:G88) -> 2062.5
C91: Variable Costs | D91: Coûts variables
C92: Land Lease | D92: Bail Foncier | E92: DT/kWh | G92: ='Entrées Utilisateur'!C95 -> 0
C93: Spare | D93: Autre | E93: DT/kWh | G93: ='Entrées Utilisateur'!C96 -> 0
C94: Spare | D94: Autre | E94: DT/kWh | G94: ='Entrées Utilisateur'!C97 -> 0
C95: Spare | D95: Autre | E95: DT/kWh | G95: ='Entrées Utilisateur'!C98 -> 0
C96: Total | D96: Sommaire | E96: DT/kWh | G96: =SUM(G92:G95) -> 0
C98: Ongoing CapEx | D98: Dépenses en immobilisations permanentes (valeure nominale)
G99: 1 | H99: 2 | I99: 3 | J99: 4 | K99: 5 | L99: 6 | M99: 7 | N99: 8 | O99: 9 | P99: 10 | Q99: 11 | R99: 12 | S99: 13 | T99: 14 | U99: 15 | V99: 16 | W99: 17 | X99: 18 | Y99: 19 | Z99: 20
C100: Spare | D100: Autre | E100: DT | G100: ='Entrées Utilisateur'!D102 -> 0 | H100: ='Entrées Utilisateur'!E102 -> 0 | I100: ='Entrées Utilisateur'!G102 -> 0 | J100: ='Entrées Utilisateur'!H102 -> 0 | K100: ='Entrées Utilisateur'!I102 -> 0 | L100: ='Entrées Utilisateur'!J102 -> 0 | M100: ='Entrées Utilisateur'!K102 -> 0 | N100: ='Entrées Utilisateur'!L102 -> 0 | O100: ='Entrées Utilisateur'!M102 -> 0 | P100: ='Entrées Utilisateur'!N102 -> 0 | Q100: ='Entrées Utilisateur'!O102 -> 0 | R100: ='Entrées Utilisateur'!P102 -> 0 | S100: ='Entrées Utilisateur'!Q102 -> 0 | T100: ='Entrées Utilisateur'!R102 -> 0 | U100: ='Entrées Utilisateur'!S102 -> 0 | V100: ='Entrées Utilisateur'!T102 -> 0 | W100: ='Entrées Utilisateur'!U102 -> 0 | X100: ='Entrées Utilisateur'!V102 -> 0 | Y100: ='Entrées Utilisateur'!W102 -> 0 | Z100: ='Entrées Utilisateur'!X102 -> 0
C101: Spare | D101: Autre | E101: DT | G101: ='Entrées Utilisateur'!D103 -> 0 | H101: ='Entrées Utilisateur'!E103 -> 0 | I101: ='Entrées Utilisateur'!G103 -> 0 | J101: ='Entrées Utilisateur'!H103 -> 0 | K101: ='Entrées Utilisateur'!I103 -> 0 | L101: ='Entrées Utilisateur'!J103 -> 0 | M101: ='Entrées Utilisateur'!K103 -> 0 | N101: ='Entrées Utilisateur'!L103 -> 0 | O101: ='Entrées Utilisateur'!M103 -> 0 | P101: ='Entrées Utilisateur'!N103 -> 0 | Q101: ='Entrées Utilisateur'!O103 -> 0 | R101: ='Entrées Utilisateur'!P103 -> 0 | S101: ='Entrées Utilisateur'!Q103 -> 0 | T101: ='Entrées Utilisateur'!R103 -> 0 | U101: ='Entrées Utilisateur'!S103 -> 0 | V101: ='Entrées Utilisateur'!T103 -> 0 | W101: ='Entrées Utilisateur'!U103 -> 0 | X101: ='Entrées Utilisateur'!V103 -> 0 | Y101: ='Entrées Utilisateur'!W103 -> 0 | Z101: ='Entrées Utilisateur'!X103 -> 0
C102: Spare | D102: Autre | E102: DT | G102: ='Entrées Utilisateur'!D104 -> 0 | H102: ='Entrées Utilisateur'!E104 -> 0 | I102: ='Entrées Utilisateur'!G104 -> 0 | J102: ='Entrées Utilisateur'!H104 -> 0 | K102: ='Entrées Utilisateur'!I104 -> 0 | L102: ='Entrées Utilisateur'!J104 -> 0 | M102: ='Entrées Utilisateur'!K104 -> 0 | N102: ='Entrées Utilisateur'!L104 -> 0 | O102: ='Entrées Utilisateur'!M104 -> 0 | P102: ='Entrées Utilisateur'!N104 -> 0 | Q102: ='Entrées Utilisateur'!O104 -> 0 | R102: ='Entrées Utilisateur'!P104 -> 0 | S102: ='Entrées Utilisateur'!Q104 -> 0 | T102: ='Entrées Utilisateur'!R104 -> 0 | U102: ='Entrées Utilisateur'!S104 -> 0 | V102: ='Entrées Utilisateur'!T104 -> 0 | W102: ='Entrées Utilisateur'!U104 -> 0 | X102: ='Entrées Utilisateur'!V104 -> 0 | Y102: ='Entrées Utilisateur'!W104 -> 0 | Z102: ='Entrées Utilisateur'!X104 -> 0
C104: Funding | D104: Financement
C105: Senior Debt | D105: Dette de premier rang
C106: Fixed Debt Limit | D106: Limite | E106: DT | G106: ='Entrées Utilisateur'!C108 -> 200000
C107: Debt Gearing Base Case | D107: Ratio | E107: % | G107: ='Entrées Utilisateur'!C109 -> 0.7
C108: Selection | D108: Sélection | F108: Ratio | G108: =IF(F108=D107,G107,G106) -> 0.7
C109: Applied Debt Limit | D109: Limite d'endettement appliquée | F109: =Scénarios!D116 -> 0 | G109: =(1+F109)*IF(G108=G107,G22*G108,G106) -> 96250
D111: Ratio d´endettement | E111: % | G111: =G109/G22 -> 0.7
C113: Period | D113: Période | G113: Cons | H113: 1 | I113: 2 | J113: 3 | K113: 4
C114: Margin | D114: Marge | E114: % p.a. | G114: ='Entrées Utilisateur'!D113 -> 0.0125 | H114: ='Entrées Utilisateur'!E113 -> 0.0125 | I114: ='Entrées Utilisateur'!G113 -> 0.0125 | J114: ='Entrées Utilisateur'!H113 -> 0.0125 | K114: ='Entrées Utilisateur'!I113 -> 0.0125
C116: Financing Fees | D116: Frais de financement
C117: Upfront Fee | D117: Commission initiale | E117: % crédit | G117: ='Entrées Utilisateur'!C116 -> 0.01 | H117: =G109*G117 -> 962.5
C118: Commitment Fee | D118: Commission d'engagement | E118: % marge | G118: ='Entrées Utilisateur'!C117 -> 0.25
C119: Commitment Fee | D119: Commission d'engagement | E119: % p.a. | G119: =G114*G118 -> 0.003125
C121: Repayment Terms | D121: Modalités de remboursement
D122: Durée du crédit | E122: an(s) | G122: ='Entrées Utilisateur'!C120 -> 10 | I122: From | J122: To
D123: Durée du crédit appliquée | E123: an(s) | F123: =Scénarios!D160 -> 0 | G123: =G122+F123 -> 10 | I123: =G14 -> 2018-01-01 | J123: =EOMONTH(I123,G123*12-1) -> 2027-12-31
C124: Tenor | D124: Délai de grâce | E124: an(s) | G124: ='Entrées Utilisateur'!C121 -> 0 | I124: =I123 -> 2018-01-01 | J124: =EOMONTH(I124,G124*12-1) -> 2017-12-31
C126: Equity | D126: Capitaux propres
C127: Equity | D127: Capitaux propres
C128: Initial Equity | D128: Capital initial | E128: DT | G128: =IF(G109>Construction!I20,0,Construction!I20-G109) -> 41250
C129: Additional Equity | D129: Capitaux propres supplémentaires | E129: DT | G129: =ROUND(-Construction!I32,6) -> 988.045805
C130: Total | D130: Total | E130: DT | G130: =SUM(G128:G129) -> 42238.04581
C132: WACC | D132: Coût moyen pondéré du capital
C133: Target Equity IRR | D133: Taux d'actualisation | E133: % | G133: ='Entrées Utilisateur'!C125 -> 0.08
C134: Debt All-in Rate | D134: Taux global de la dette | E134: % | G134: =AVERAGE(G141:J141)+AVERAGE(G114:K114) -> 0.055
C135: WACC nominal | D135: Coût moyen pondéré du capital | E135: % | G135: =(G109/(G109+G130))*G134+(G130/(G109+G130))*G133 -> 0.06262485411
C137: Macroeconomics | D137: Elements macroéconomiques
C138: Interest Rate | D138: Taux d'intérêt
C139: Calendar Year | D139: Année civile | G139: =YEAR(Model_Start) -> 2017 | H139: =G139+1 -> 2018 | I139: =H139+1 -> 2019 | J139: =I139+1 -> 2020
D140: Taux de référence | E140: % p.a. | G140: ='Entrées Utilisateur'!D130 -> 0.0425 | H140: ='Entrées Utilisateur'!E130 -> 0.0425 | I140: ='Entrées Utilisateur'!G130 -> 0.0425 | J140: ='Entrées Utilisateur'!H130 -> 0.0425
C141: Base Rate | D141: Taux appliqué | E141: % p.a. | F141: =Scénarios!D138 -> 0 | G141: =G140*(1+$F$141) -> 0.0425 | H141: =H140*(1+$F$141) -> 0.0425 | I141: =I140*(1+$F$141) -> 0.0425 | J141: =J140*(1+$F$141) -> 0.0425
C143: Cost Escalation | D143: Inflation
C144: Calendar Year | D144: Année civile | G144: =YEAR(Model_Start) -> 2017 | H144: =G144+1 -> 2018 | I144: =H144+1 -> 2019 | J144: =I144+1 -> 2020
C145: Escalation Rate | D145: Taux d'augmentation | E145: % p.a. | G145: ='Entrées Utilisateur'!D134 -> 0.04 | H145: ='Entrées Utilisateur'!E134 -> 0.04 | I145: ='Entrées Utilisateur'!G134 -> 0.04 | J145: ='Entrées Utilisateur'!H134 -> 0.04

Sheet Courbes de Charge
B2: Courbe de Charge Moyenne | G2: Courbe de charge moyenne
G3: =C4 -> Atelier mécanique | H3: (sélectionné dans 'Entrées Utilisateur)
B4: Type de client | C4: ='Entrées Utilisateur'!C25 -> Atelier mécanique | G4: Mois | H4: janvier | I4: =HYPERLINK("#"&ADDRESS(ROW(),COLUMN()-1),CHAR(128)) -> €
B5: Consommation annuelle moyenne (kWh, le cas échéant) | C5: =Données!G66 -> 200000
B7: facteur de multiplication de la courbe de charge | C7: =IF(C4="Saisie Manuelle",1,IF(C5>0,C5/SUM(O10:O8769),1)) -> 29.10360885 | E7: Saisie Manuelle: Entrer l'année des données | F7: 2017
B9: mois | C9: jour | D9: heure | E9: Saisie Manuelle | F9: Administration | G9: Education | H9: Hôtellerie | I9: Elevage | J9: Huilerie | K9: Atelier mécanique | L9: Industrie Plastique | M9: SONEDE | O9: selection | V9: =G3&" ("&H4&")" -> Atelier mécanique (janvier) | W9: Atelier mécanique (janvier)
A10: 2 | B10: 1 | C10: 1 | D10: 0 | F10: 17.5 | G10: 2 | H10: 125.5 | I10: 1 | J10: 16 | K10: 0 | L10: 1 | M10: 0.28 | O10: =IF($C$4="Saisie Manuelle",E10,HLOOKUP($C$4,$F$9:$M$8769,A10,FALSE)) -> 0 | Q10: 1_0 | R10: janvier | S10: 1 | T10: =VLOOKUP(H4,$R$10:$S$21,2,FALSE) -> 1 | U10: =$T$10&"_"&D10 -> 1_0 | W10: 0
A11: =A10+1 -> 3 | B11: 1 | C11: 1 | D11: 1 | F11: 18 | G11: 2 | H11: 119 | I11: 1 | J11: 16 | K11: 0 | L11: 2 | M11: 0.23 | O11: 0 | Q11: 1_1 | R11: février | S11: 2 | U11: =$T$10&"_"&D11 -> 1_1 | W11: 0.06451612903
A12: =A11+1 -> 4 | B12: 1 | C12: 1 | D12: 2 | F12: 17 | G12: 2 | H12: 111 | I12: 1 | J12: 13 | K12: 0 | L12: 2 | M12: 0.23 | O12: 0 | Q12: 1_2 | R12: mars | S12: 3 | U12: 1_2 | W12: 0.03225806452
A13: 5 | B13: 1 | C13: 1 | D13: 3 | F13: 17 | G13: 2 | H13: 106 | I13: 1 | J13: 16 | K13: 0 | L13: 2 | M13: 0.24 | O13: 0 | Q13: 1_3 | R13: avril | S13: 4 | U13: 1_3 | W13: 0.5483870968
A14: 6 | B14: 1 | C14: 1 | D14: 4 | F14: 17 | G14: 2 | H14: 104.5 | I14: 2 | J14: 12 | K14: 0 | L14: 2 | M14: 0.24 | O14: 0 | Q14: 1_4 | R14: mai | S14: 5 | U14: 1_4 | W14: 1.35483871
A15: 7 | B15: 1 | C15: 1 | D15: 5 | F15: 16.5 | G15: 2 | H15: 112.5 | I15: 1 | J15: 12 | K15: 0 | L15: 2 | M15: 0.29 | O15: 0 | Q15: 1_5 | R15: juin | S15: 6 | U15: 1_5 | W15: 1.290322581
A16: 8 | B16: 1 | C16: 1 | D16: 6 | F16: 19.5 | G16: 2 | H16: 111.5 | I16: 2 | J16: 17 | K16: 0 | L16: 2 | M16: 0.19 | O16: 0 | Q16: 1_6 | R16: juillet | S16: 7 | U16: 1_6 | W16: 1.548387097
A17: 9 | B17: 1 | C17: 1 | D17: 7 | F17: 17 | G17: 1 | H17: 109.5 | I17: 1 | J17: 15 | K17: 0 | L17: 2 | M17: 0.18 | O17: 0 | Q17: 1_7 | R17: août | S17: 8 | U17: 1_7 | W17: 1.516129032
A18: 10 | B18: 1 | C18: 1 | D18: 8 | F18: 19 | G18: 0.5 | H18: 113 | I18: 1 | J18: 13 | K18: 0 | L18: 2 | M18: 0.18 | O18: 0 | Q18: 1_8 | R18: septembre | S18: 9 | U18: 1_8 | W18: 2
A19: 11 | B19: 1 | C19: 1 | D19: 9 | F19: 17.5 | G19: 0.5 | H19: 122.5 | I19: 2 | J19: 19 | K19: 0 | L19: 2 | M19: 0.17 | O19: 0 | Q19: 1_9 | R19: octobre | S19: 10 | U19: 1_9 | W19: 2.032258065
A20: 12 | B20: 1 | C20: 1 | D20: 10 | F20: 21 | G20: 0.5 | H20: 113 | I20: 5 | J20: 14 | K20: 0 | L20: 2 | M20: 0.18 | O20: 0 | Q20: 1_10 | R20: novembre | S20: 11 | U20: 1_10 | W20: 2.064516129
A21: 13 | B21: 1 | C21: 1 | D21: 11 | F21: 17.5 | G21: 1 | H21: 111.5 | I21: 2 | J21: 19 | K21: 0 | L21: 3 | M21: 0.18 | O21: 0 | Q21: 1_11 | R21: décembre | S21: 12 | U21: 1_11 | W21: 2.096774194
A22: 14 | B22: 1 | C22: 1 | D22: 12 | F22: 13.5 | G22: 1 | H22: 110 | I22: 2 | J22: 13 | K22: 0 | L22: 2 | M22: 0.18 | O22: 0 | Q22: 1_12 | U22: 1_12 | W22: 2.193548387
A23: 15 | B23: 1 | C23: 1 | D23: 13 | F23: 16 | G23: 0.5 | H23: 105 | I23: 6 | J23: 19 | K23: 0 | L23: 3 | M23: 0.18 | O23: 0 | Q23: 1_13 | U23: 1_13 | W23: 2.290322581
A24: 16 | B24: 1 | C24: 1 | D24: 14 | F24: 17 | G24: 1 | H24: 100 | I24: 4 | J24: 14 | K24: 0 | L24: 3 | M24: 0.63 | O24: 0 | Q24: 1_14 | U24: 1_14 | W24: 2.096774194
A25: 17 | B25: 1 | C25: 1 | D25: 15 | F25: 15 | G25: 0.5 | H25: 95 | I25: 3 | J25: 14 | K25: 0 | L25: 4 | M25: 0.18 | O25: 0 | Q25: 1_15 | U25: 1_15 | W25: 1.483870968
A26: 18 | B26: 1 | C26: 1 | D26: 16 | F26: 14.5 | G26: 0.5 | H26: 98 | I26: 5 | J26: 17 | K26: 0 | L26: 2 | M26: 0.18 | O26: 0 | Q26: 1_16 | U26: 1_16 | W26: 0.935483871
A27: 19 | B27: 1 | C27: 1 | D27: 17 | F27: 19 | G27: 1.5 | H27: 109.5 | I27: 3 | J27: 13 | K27: 0 | L27: 2 | M27: 0.21 | O27: 0 | Q27: 1_17 | U27: 1_17 | W27: 0.2258064516
A28: 20 | B28: 1 | C28: 1 | D28: 18 | F28: 22 | G28: 2 | H28: 129 | I28: 2 | J28: 19 | K28: 0 | L28: 3 | M28: 0.21 | O28: 0 | Q28: 1_18 | U28: 1_18 | W28: 0
A29: 21 | B29: 1 | C29: 1 | D29: 19 | F29: 21.5 | G29: 2 | H29: 131.5 | I29: 2 | J29: 13 | K29: 0 | L29: 3 | M29: 0.22 | O29: 0 | Q29: 1_19 | U29: 1_19 | W29: 0.03225806452
A30: 22 | B30: 1 | C30: 1 | D30: 20 | F30: 20.5 | G30: 2.5 | H30: 128.5 | I30: 2 | J30: 20 | K30: 0 | L30: 3 | M30: 0.23 | O30: 0 | Q30: 1_20 | U30: 1_20 | W30: 0.06451612903
A31: 23 | B31: 1 | C31: 1 | D31: 21 | F31: 19.5 | G31: 2 | H31: 106.5 | I31: 2 | J31: 14 | K31: 0 | L31: 3 | M31: 0.3 | O31: 0 | Q31: 1_21 | U31: 1_21 | W31: 0
A32: 24 | B32: 1 | C32: 1 | D32: 22 | F32: 19.5 | G32: 2 | H32: 98 | I32: 3 | J32: 18 | K32: 0 | L32: 3 | M32: 0.3 | O32: 0 | Q32: 1_22 | U32: 1_22 | W32: 0
A33: 25 | B33: 1 | C33: 1 | D33: 23 | F33: 18 | G33: 2 | H33: 104.5 | I33: 1 | J33: 13 | K33: 0 | L33: 3 | M33: 0.24 | O33: 0 | Q33: 1_23 | U33: 1_23 | W33: 0.06451612903
A34: 26 | B34: 1 | C34: 2 | D34: 0 | F34: 18 | G34: 2 | H34: 102.5 | I34: 1 | J34: 18 | K34: 0 | L34: 3 | M34: 0.24 | O34: 0 | Q34: 1_0
A35: 27 | B35: 1 | C35: 2 | D35: 1 | F35: 18 | G35: 2 | H35: 96 | I35: 1 | J35: 14 | K35: 0 | L35: 3 | M35: 0.24 | O35: 0 | Q35: 1_1
A36: 28 | B36: 1 | C36: 2 | D36: 2 | F36: 19 | G36: 2 | H36: 84.5 | I36: 1 | J36: 16 | K36: 0 | L36: 3 | M36: 0.24 | O36: 0 | Q36: 1_2
A37: 29 | B37: 1 | C37: 2 | D37: 3 | F37: 18 | G37: 2 | H37: 85.5 | I37: 1 | J37: 12 | K37: 0 | L37: 3 | M37: 0.23 | O37: 0 | Q37: 1_3
A38: 30 | B38: 1 | C38: 2 | D38: 4 | F38: 18 | G38: 2 | H38: 81.5 | I38: 3 | J38: 16 | K38: 0 | L38: 3 | M38: 0.3 | O38: 0 | Q38: 1_4
A39: 31 | B39: 1 | C39: 2 | D39: 5 | F39: 18 | G39: 2 | H39: 91.5 | I39: 2 | J39: 15 | K39: 0 | L39: 3 | M39: 0.24 | O39: 0 | Q39: 1_5
A40: 32 | B40: 1 | C40: 2 | D40: 6 | F40: 19.5 | G40: 3 | H40: 96 | I40: 1 | J40: 14 | K40: 0 | L40: 3 | M40: 0.61 | O40: 0 | Q40: 1_6
A41: 33 | B41: 1 | C41: 2 | D41: 7 | F41: 28 | G41: 7 | H41: 97 | I41: 1 | J41: 13 | K41: 0 | L41: 3 | M41: 0.2 | O41: 0 | Q41: 1_7
A42: 34 | B42: 1 | C42: 2 | D42: 8 | F42: 36.5 | G42: 22 | H42: 88.5 | I42: 2 | J42: 14 | K42: 0 | L42: 3 | M42: 0.18 | O42: 0 | Q42: 1_8
A43: 35 | B43: 1 | C43: 2 | D43: 9 | F43: 56.5 | G43: 22 | H43: 89.5 | I43: 2 | J43: 14 | K43: 2 | L43: 3 | M43: 0.23 | O43: 2 | Q43: 1_9
A44: 36 | B44: 1 | C44: 2 | D44: 10 | F44: 63 | G44: 20.5 | H44: 87 | I44: 5 | J44: 20 | K44: 2 | L44: 3 | M44: 0.23 | O44: 2 | Q44: 1_10
A45: 37 | B45: 1 | C45: 2 | D45: 11 | F45: 65 | G45: 18 | H45: 91.5 | I45: 3 | J45: 17 | K45: 3 | L45: 3 | M45: 0.17 | O45: 3 | Q45: 1_11
A46: 38 | B46: 1 | C46: 2 | D46: 12 | F46: 47.5 | G46: 8 | H46: 88 | I46: 4 | J46: 19 | K46: 2 | L46: 2 | M46: 0.17 | O46: 2 | Q46: 1_12
A47: 39 | B47: 1 | C47: 2 | D47: 13 | F47: 42 | G47: 6 | H47: 89.5 | I47: 4 | J47: 15 | K47: 2 | L47: 3 | M47: 0.17 | O47: 2 | Q47: 1_13
A48: 40 | B48: 1 | C48: 2 | D48: 14 | F48: 52 | G48: 13.5 | H48: 79.5 | I48: 4 | J48: 10 | K48: 2 | L48: 3 | M48: 0.18 | O48: 2 | Q48: 1_14
A49: 41 | B49: 1 | C49: 2 | D49: 15 | F49: 50.5 | G49: 16.5 | H49: 75 | I49: 5 | J49: 12 | K49: 2 | L49: 3 | M49: 0.18 | O49: 2 | Q49: 1_15
A50: 42 | B50: 1 | C50: 2 | D50: 16 | F50: 47.5 | G50: 14 | H50: 78 | I50: 7 | J50: 18 | K50: 0 | L50: 3 | M50: 0.17 | O50: 0 | Q50: 1_16
A51: 43 | B51: 1 | C51: 2 | D51: 17 | F51: 35 | G51: 8 | H51: 98.5 | I51: 4 | J51: 15 | K51: 0 | L51: 3 | M51: 0.2 | O51: 0 | Q51: 1_17
A52: 44 | B52: 1 | C52: 2 | D52: 18 | F52: 28 | G52: 3 | H52: 122.5 | I52: 3 | J52: 19 | K52: 0 | L52: 2 | M52: 0.23 | O52: 0 | Q52: 1_18
A53: 45 | B53: 1 | C53: 2 | D53: 19 | F53: 28 | G53: 3 | H53: 120.5 | I53: 2 | J53: 21 | K53: 0 | L53: 3 | M53: 0.23 | O53: 0 | Q53: 1_19
A54: 46 | B54: 1 | C54: 2 | D54: 20 | F54: 29.5 | G54: 3 | H54: 116 | I54: 2 | J54: 19 | K54: 0 | L54: 3 | M54: 0.24 | O54: 0 | Q54: 1_20
A55: 47 | B55: 1 | C55: 2 | D55: 21 | F55: 27.5 | G55: 3.5 | H55: 100.5 | I55: 2 | J55: 18 | K55: 0 | L55: 2 | M55: 0.26 | O55: 0 | Q55: 1_21
A56: 48 | B56: 1 | C56: 2 | D56: 22 | F56: 27 | G56: 3.5 | H56: 93.5 | I56: 3 | J56: 12 | K56: 0 | L56: 3 | M56: 0.24 | O56: 0 | Q56: 1_22
A57: 49 | B57: 1 | C57: 2 | D57: 23 | F57: 26 | G57: 3 | H57: 100 | I57: 1 | J57: 17 | K57: 0 | L57: 3 | M57: 0.29 | O57: 0 | Q57: 1_23
A58: 50 | B58: 1 | C58: 3 | D58: 0 | F58: 25.5 | G58: 3.5 | H58: 93 | I58: 0 | J58: 13 | K58: 0 | L58: 3 | M58: 0.3 | O58: 0 | Q58: 1_0
A59: 51 | B59: 1 | C59: 3 | D59: 1 | F59: 25.5 | G59: 3.5 | H59: 88.5 | I59: 2 | J59: 18 | K59: 0 | L59: 2 | M59: 0.31 | O59: 0 | Q59: 1_1
A60: 52 | B60: 1 | C60: 3 | D60: 2 | F60: 25 | G60: 3 | H60: 86 | I60: 0 | J60: 14 | K60: 0 | L60: 2 | M60: 0.24 | O60: 0 | Q60: 1_2
A61: 53 | B61: 1 | C61: 3 | D61: 3 | F61: 25 | G61: 3.5 | H61: 84.5 | I61: 1 | J61: 13 | K61: 0 | L61: 2 | M61: 0.23 | O61: 0 | Q61: 1_3
A62: 54 | B62: 1 | C62: 3 | D62: 4 | F62: 25 | G62: 3 | H62: 82.5 | I62: 3 | J62: 19 | K62: 0 | L62: 3 | M62: 0.24 | O62: 0 | Q62: 1_4
A63: 55 | B63: 1 | C63: 3 | D63: 5 | F63: 26 | G63: 3.5 | H63: 88 | I63: 1 | J63: 15 | K63: 0 | L63: 2 | M63: 0.23 | O63: 0 | Q63: 1_5
A64: 56 | B64: 1 | C64: 3 | D64: 6 | F64: 25 | G64: 3.5 | H64: 92.5 | I64: 2 | J64: 9 | K64: 0 | L64: 3 | M64: 0.19 | O64: 0 | Q64: 1_6
A65: 57 | B65: 1 | C65: 3 | D65: 7 | F65: 34 | G65: 6 | H65: 87 | I65: 2 | J65: 7 | K65: 0 | L65: 3 | M65: 0.18 | O65: 0 | Q65: 1_7
A66: 58 | B66: 1 | C66: 3 | D66: 8 | F66: 47 | G66: 17.5 | H66: 91 | I66: 3 | J66: 6 | K66: 0 | L66: 3 | M66: 0.24 | O66: 0 | Q66: 1_8
A67: 59 | B67: 1 | C67: 3 | D67: 9 | F67: 63.5 | G67: 19.5 | H67: 95.5 | I67: 3 | J67: 5 | K67: 0 | L67: 3 | M67: 0.2 | O67: 0 | Q67: 1_9
A68: 60 | B68: 1 | C68: 3 | D68: 10 | F68: 63.5 | G68: 19 | H68: 90 | I68: 5 | J68: 6 | K68: 0 | L68: 3 | M68: 0.2 | O68: 0 | Q68: 1_10
A69: 61 | B69: 1 | C69: 3 | D69: 11 | F69: 59.5 | G69: 14.5 | H69: 102.5 | I69: 3 | J69: 11 | K69: 0 | L69: 3 | M69: 0.24 | O69: 0 | Q69: 1_11
A70: 62 | B70: 1 | C70: 3 | D70: 12 | F70: 50.5 | G70: 7.5 | H70: 102 | I70: 4 | J70: 8 | K70: 0 | L70: 3 | M70: 0.23 | O70: 0 | Q70: 1_12
A71: 63 | B71: 1 | C71: 3 | D71: 13 | F71: 45 | G71: 5.5 | H71: 101 | I71: 4 | J71: 12 | K71: 0 | L71: 3 | M71: 0.18 | O71: 0 | Q71: 1_13
A72: 64 | B72: 1 | C72: 3 | D72: 14 | F72: 53 | G72: 14 | H72: 87 | I72: 4 | J72: 19 | K72: 0 | L72: 3 | M72: 0.18 | O72: 0 | Q72: 1_14
A73: 65 | B73: 1 | C73: 3 | D73: 15 | F73: 58 | G73: 19 | H73: 76.5 | I73: 4 | J73: 19 | K73: 0 | L73: 3 | M73: 0.19 | O73: 0 | Q73: 1_15
A74: 66 | B74: 1 | C74: 3 | D74: 16 | F74: 48 | G74: 12 | H74: 87 | I74: 5 | J74: 20 | K74: 0 | L74: 3 | M74: 0.19 | O74: =IF($C$4="Saisie Manuelle",E74,HLOOKUP($C$4,$F$9:$M$8769,A74,FALSE)) -> 0 | Q74: 1_16
A75: 67 | B75: 1 | C75: 3 | D75: 17 | F75: 32 | G75: 5 | H75: 103 | I75: 4 | J75: 20 | K75: 0 | L75: 6 | M75: 0.22 | O75: 0 | Q75: 1_17
A76: =A75+1 -> 68 | B76: 1 | C76: 3 | D76: 18 | F76: 28.5 | G76: 2.5 | H76: 121.5 | I76: 3 | J76: 19 | K76: 0 | L76: 6 | M76: 0.24 | O76: 0 | Q76: 1_18
A77: 69 | B77: 1 | C77: 3 | D77: 19 | F77: 27.5 | G77: 3.5 | H77: 120.5 | I77: 3 | J77: 20 | K77: 0 | L77: 5 | M77: 0.23 | O77: 0 | Q77: 1_19
A78: 70 | B78: 1 | C78: 3 | D78: 20 | F78: 25.5 | G78: 4 | H78: 118 | I78: 1 | J78: 14 | K78: 0 | L78: 6 | M78: 0.26 | O78: 0 | Q78: 1_20
A79: 71 | B79: 1 | C79: 3 | D79: 21 | F79: 25.5 | G79: 3.5 | H79: 108 | I79: 2 | J79: 20 | K79: 0 | L79: 6 | M79: 0.26 | O79: 0 | Q79: 1_21
A80: 72 | B80: 1 | C80: 3 | D80: 22 | F80: 24 | G80: 3.5 | H80: 102 | I80: 3 | J80: 20 | K80: 0 | L80: 5 | M80: 0.25 | O80: 0 | Q80: 1_22
A81: 73 | B81: 1 | C81: 3 | D81: 23 | F81: 22 | G81: 3.5 | H81: 102 | I81: 1 | J81: 14 | K81: 0 | L81: 5 | M81: 0.29 | O81: 0 | Q81: 1_23
A82: 74 | B82: 1 | C82: 4 | D82: 0 | F82: 22 | G82: 3 | H82: 106 | I82: 1 | J82: 17 | K82: 0 | L82: 6 | M82: 0.29 | O82: 0 | Q82: 1_0
A83: 75 | B83: 1 | C83: 4 | D83: 1 | F83: 20.5 | G83: 3.5 | H83: 90 | I83: 2 | J83: 20 | K83: 0 | L83: 6 | M83: 0.23 | O83: 0 | Q83: 1_1
A84: 76 | B84: 1 | C84: 4 | D84: 2 | F84: 21.5 | G84: 3.5 | H84: 82.5 | I84: 1 | J84: 17 | K84: 0 | L84: 5 | M84: 0.24 | O84: 0 | Q84: 1_2
A85: 77 | B85: 1 | C85: 4 | D85: 3 | F85: 20.5 | G85: 3 | H85: 86 | I85: 1 | J85: 14 | K85: 1 | L85: 5 | M85: 0.23 | O85: 1 | Q85: 1_3
A86: 78 | B86: 1 | C86: 4 | D86: 4 | F86: 22.5 | G86: 3.5 | H86: 82.5 | I86: 3 | J86: 20 | K86: 2 | L86: 6 | M86: 0.24 | O86: 2 | Q86: 1_4
A87: 79 | B87: 1 | C87: 4 | D87: 5 | F87: 22.5 | G87: 3 | H87: 94 | I87: 1 | J87: 19 | K87: 2 | L87: 5 | M87: 0.24 | O87: 2 | Q87: 1_5
A88: 80 | B88: 1 | C88: 4 | D88: 6 | F88: 23.5 | G88: 2 | H88: 96 | I88: 2 | J88: 14 | K88: 2 | L88: 6 | M88: 0.2 | O88: 2 | Q88: 1_6
A89: 81 | B89: 1 | C89: 4 | D89: 7 | F89: 31.5 | G89: 5 | H89: 91.5 | I89: 2 | J89: 15 | K89: 2 | L89: 8 | M89: 0.18 | O89: 2 | Q89: 1_7
A90: 82 | B90: 1 | C90: 4 | D90: 8 | F90: 45 | G90: 21 | H90: 88.5 | I90: 3 | J90: 18 | K90: 2 | L90: 10 | M90: 0.19 | O90: 2 | Q90: 1_8
A91: 83 | B91: 1 | C91: 4 | D91: 9 | F91: 57 | G91: 23.5 | H91: 84.5 | I91: 3 | J91: 20 | K91: 1 | L91: 7 | M91: 0.21 | O91: 1 | Q91: 1_9
A92: 84 | B92: 1 | C92: 4 | D92: 10 | F92: 62.5 | G92: 16 | H92: 84 | I92: 5 | J92: 21 | K92: 2 | L92: 6 | M92: 0.21 | O92: 2 | Q92: 1_10
A93: 85 | B93: 1 | C93: 4 | D93: 11 | F93: 55 | G93: 10 | H93: 88 | I93: 3 | J93: 15 | K93: 1 | L93: 7 | M93: 0.18 | O93: 1 | Q93: 1_11
A94: 86 | B94: 1 | C94: 4 | D94: 12 | F94: 40 | G94: 3 | H94: 93 | I94: 5 | J94: 17 | K94: 2 | L94: 6 | M94: 0.19 | O94: 2 | Q94: 1_12
A95: 87 | B95: 1 | C95: 4 | D95: 13 | F95: 36.5 | G95: 2.5 | H95: 89.5 | I95: 6 | J95: 13 | K95: 2 | L95: 6 | M95: 0.19 | O95: 2 | Q95: 1_13
A96: 88 | B96: 1 | C96: 4 | D96: 14 | F96: 40 | G96: 4 | H96: 94 | I96: 7 | J96: 18 | K96: 2 | L96: 6 | M96: 0.19 | O96: 2 | Q96: 1_14
A97: 89 | B97: 1 | C97: 4 | D97: 15 | F97: 54.5 | G97: 4.5 | H97: 86 | I97: 6 | J97: 13 | K97: 0 | L97: 7 | M97: 0.19 | O97: 0 | Q97: 1_15
A98: 90 | B98: 1 | C98: 4 | D98: 16 | F98: 50 | G98: 3.5 | H98: 91.5 | I98: 7 | J98: 18 | K98: 0 | L98: 6 | M98: 0.18 | O98: 0 | Q98: 1_16
A99: 91 | B99: 1 | C99: 4 | D99: 17 | F99: 31 | G99: 2.5 | H99: 118 | I99: 4 | J99: 12 | K99: 0 | L99: 7 | M99: 0.22 | O99: 0 | Q99: 1_17
A100: 92 | B100: 1 | C100: 4 | D100: 18 | F100: 26.5 | G100: 3.5 | H100: 139 | I100: 4 | J100: 19 | K100: 0 | L100: 6 | M100: 14.35 | O100: 0 | Q100: 1_18
A101: 93 | B101: 1 | C101: 4 | D101: 19 | F101: 23 | G101: 4.5 | H101: 135.5 | I101: 3 | J101: 17 | K101: 0 | L101: 6 | M101: 12.95 | O101: 0 | Q101: 1_19
A102: 94 | B102: 1 | C102: 4 | D102: 20 | F102: 20.5 | G102: 5 | H102: 121.5 | I102: 3 | J102: 19 | K102: 0 | L102: 8 | M102: 14.38 | O102: 0 | Q102: 1_20
A103: 95 | B103: 1 | C103: 4 | D103: 21 | F103: 19 | G103: 4 | H103: 110 | I103: 3 | J103: 19 | K103: 0 | L103: 8 | M103: 14.35 | O103: 0 | Q103: 1_21
A104: 96 | B104: 1 | C104: 4 | D104: 22 | F104: 20.5 | G104: 4 | H104: 94 | I104: 3 | J104: 20 | K104: 0 | L104: 5 | M104: 13.47 | O104: 0 | Q104: 1_22
A105: 97 | B105: 1 | C105: 4 | D105: 23 | F105: 20 | G105: 3.5 | H105: 95.5 | I105: 1 | J105: 20 | K105: 0 | L105: 8 | M105: 14.42 | O105: 0 | Q105: 1_23
A106: 98 | B106: 1 | C106: 5 | D106: 0 | F106: 18 | G106: 3.5 | H106: 103.5 | I106: 1 | J106: 19 | K106: 0 | L106: 7 | M106: 14.34 | O106: 0 | Q106: 1_0
A107: 99 | B107: 1 | C107: 5 | D107: 1 | F107: 17 | G107: 3.5 | H107: 101.5 | I107: 3 | J107: 13 | K107: 1 | L107: 8 | M107: 14.37 | O107: 1 | Q107: 1_1
A108: 100 | B108: 1 | C108: 5 | D108: 2 | F108: 17 | G108: 3.5 | H108: 86 | I108: 0 | J108: 20 | K108: 0 | L108: 7 | M108: 13.64 | O108: 0 | Q108: 1_2
A109: 101 | B109: 1 | C109: 5 | D109: 3 | F109: 18 | G109: 3.5 | H109: 88 | I109: 1 | J109: 20 | K109: 1 | L109: 7 | M109: 14.39 | O109: 1 | Q109: 1_3
A110: 102 | B110: 1 | C110: 5 | D110: 4 | F110: 18.5 | G110: 3.5 | H110: 88 | I110: 2 | J110: 14 | K110: 2 | L110: 8 | M110: 14.42 | O110: 2 | Q110: 1_4
A111: 103 | B111: 1 | C111: 5 | D111: 5 | F111: 17.5 | G111: 3.5 | H111: 95 | I111: 2 | J111: 9 | K111: 2 | L111: 10 | M111: 13.04 | O111: 2 | Q111: 1_5
A112: 104 | B112: 1 | C112: 5 | D112: 6 | F112: 17.5 | G112: 3.5 | H112: 101 | I112: 2 | J112: 8 | K112: 2 | L112: 9 | M112: 14.29 | O112: 2 | Q112: 1_6
A113: 105 | B113: 1 | C113: 5 | D113: 7 | F113: 19 | G113: 5.5 | H113: 96.5 | I113: 2 | J113: 7 | K113: 2 | L113: 9 | M113: 14.36 | O113: 2 | Q113: 1_7
A114: 106 | B114: 1 | C114: 5 | D114: 8 | F114: 20.5 | G114: 21.5 | H114: 92.5 | I114: 4 | J114: 8 | K114: 3 | L114: 9 | M114: 13.18 | O114: 3 | Q114: 1_8
A115: 107 | B115: 1 | C115: 5 | D115: 9 | F115: 18.5 | G115: 21.5 | H115: 87 | I115: 3 | J115: 7 | K115: 2 | L115: 10 | M115: 14.35 | O115: 2 | Q115: 1_9
A116: 108 | B116: 1 | C116: 5 | D116: 10 | F116: 18.5 | G116: 14.5 | H116: 92.5 | I116: 4 | J116: 7 | K116: 2 | L116: 9 | M116: 14.32 | O116: 2 | Q116: 1_10
A117: 109 | B117: 1 | C117: 5 | D117: 11 | F117: 15.5 | G117: 11 | H117: 95.5 | I117: 7 | J117: 17 | K117: 2 | L117: 9 | M117: 14.31 | O117: 2 | Q117: 1_11
A118: 110 | B118: 1 | C118: 5 | D118: 12 | F118: 16 | G118: 4.5 | H118: 95.5 | I118: 5 | J118: 18 | K118: 2 | L118: 7 | M118: 13.51 | O118: 2 | Q118: 1_12
A119: 111 | B119: 1 | C119: 5 | D119: 13 | F119: 12.5 | G119: 3.5 | H119: 88 | I119: 8 | J119: 16 | K119: 2 | L119: 9 | M119: 14.34 | O119: 2 | Q119: 1_13
A120: 112 | B120: 1 | C120: 5 | D120: 14 | F120: 15.5 | G120: 4.5 | H120: 86 | I120: 8 | J120: 15 | K120: 2 | L120: 10 | M120: 14.33 | O120: 2 | Q120: 1_14
A121: 113 | B121: 1 | C121: 5 | D121: 15 | F121: 16.5 | G121: 4 | H121: 80 | I121: 6 | J121: 14 | K121: 0 | L121: 10 | M121: 13.06 | O121: 0 | Q121: 1_15
A122: 114 | B122: 1 | C122: 5 | D122: 16 | F122: 16.5 | G122: 2.5 | H122: 83 | I122: 8 | J122: 18 | K122: 0 | L122: 9 | M122: 14.37 | O122: 0 | Q122: 1_16
A123: 115 | B123: 1 | C123: 5 | D123: 17 | F123: 22 | G123: 2.5 | H123: 114.5 | I123: 5 | J123: 19 | K123: 0 | L123: 7 | M123: 14.41 | O123: 0 | Q123: 1_17
A124: 116 | B124: 1 | C124: 5 | D124: 18 | F124: 24.5 | G124: 3.5 | H124: 135 | I124: 4 | J124: 12 | K124: 0 | L124: 7 | M124: 14.32 | O124: 0 | Q124: 1_18
A125: 117 | B125: 1 | C125: 5 | D125: 19 | F125: 20.5 | G125: 4.5 | H125: 127 | I125: 3 | J125: 13 | K125: 1 | L125: 9 | M125: 13.91 | O125: 1 | Q125: 1_19
A126: 118 | B126: 1 | C126: 5 | D126: 20 | F126: 20 | G126: 4 | H126: 119.5 | I126: 3 | J126: 17 | K126: 0 | L126: 8 | M126: 15.83 | O126: 0 | Q126: 1_20
A127: 119 | B127: 1 | C127: 5 | D127: 21 | F127: 21 | G127: 4.5 | H127: 107 | I127: 3 | J127: 13 | K127: 0 | L127: 9 | M127: 17.14 | O127: 0 | Q127: 1_21
A128: 120 | B128: 1 | C128: 5 | D128: 22 | F128: 21.5 | G128: 3.5 | H128: 96 | I128: 4 | J128: 16 | K128: 0 | L128: 8 | M128: 13.69 | O128: 0 | Q128: 1_22
A129: 121 | B129: 1 | C129: 5 | D129: 23 | F129: 20.5 | G129: 3.5 | H129: 90 | I129: 2 | J129: 14 | K129: 0 | L129: 8 | M129: 14.34 | O129: 0 | Q129: 1_23
A130: 122 | B130: 1 | C130: 6 | D130: 0 | F130: 20.5 | G130: 4 | H130: 100.5 | I130: 2 | J130: 11 | K130: 0 | L130: 6 | M130: 14.38 | O130: 0 | Q130: 1_0
A131: 123 | B131: 1 | C131: 6 | D131: 1 | F131: 21 | G131: 3.5 | H131: 92 | I131: 2 | J131: 19 | K131: 0 | L131: 7 | M131: 13.9 | O131: 0 | Q131: 1_1
A132: 124 | B132: 1 | C132: 6 | D132: 2 | F132: 20 | G132: 4 | H132: 85 | I132: 2 | J132: 19 | K132: 0 | L132: 7 | M132: 14.37 | O132: 0 | Q132: 1_2
A133: 125 | B133: 1 | C133: 6 | D133: 3 | F133: 22 | G133: 3.5 | H133: 85 | I133: 2 | J133: 13 | K133: 1 | L133: 7 | M133: 13 | O133: 1 | Q133: 1_3
A134: 126 | B134: 1 | C134: 6 | D134: 4 | F134: 20.5 | G134: 3.5 | H134: 81.5 | I134: 4 | J134: 20 | K134: 2 | L134: 8 | M134: 14.44 | O134: 2 | Q134: 1_4
A135: 127 | B135: 1 | C135: 6 | D135: 5 | F135: 20 | G135: 3.5 | H135: 93.5 | I135: 2 | J135: 15 | K135: 1 | L135: 7 | M135: 14.4 | O135: 1 | Q135: 1_5
A136: 128 | B136: 1 | C136: 6 | D136: 6 | F136: 19 | G136: 2.5 | H136: 93.5 | I136: 2 | J136: 11 | K136: 2 | L136: 7 | M136: 14.45 | O136: 2 | Q136: 1_6
A137: 129 | B137: 1 | C137: 6 | D137: 7 | F137: 17.5 | G137: 2 | H137: 90 | I137: 3 | J137: 13 | K137: 1 | L137: 10 | M137: 14.41 | O137: 1 | Q137: 1_7
A138: 130 | B138: 1 | C138: 6 | D138: 8 | F138: 20 | G138: 2.5 | H138: 90.5 | I138: 4 | J138: 19 | K138: 1 | L138: 9 | M138: 12.94 | O138: =IF($C$4="Saisie Manuelle",E138,HLOOKUP($C$4,$F$9:$M$8769,A138,FALSE)) -> 1 | Q138: 1_8
A139: 131 | B139: 1 | C139: 6 | D139: 9 | F139: 17 | G139: 2 | H139: 92.5 | I139: 2 | J139: 20 | K139: 2 | L139: 9 | M139: 14.44 | O139: 2 | Q139: 1_9
A140: =A139+1 -> 132 | B140: 1 | C140: 6 | D140: 10 | F140: 16.5 | G140: 1.5 | H140: 84.5 | I140: 6 | J140: 23 | K140: 3 | L140: 10 | M140: 14.48 | O140: 3 | Q140: 1_10
A141: 133 | B141: 1 | C141: 6 | D141: 11 | F141: 15 | G141: 2 | H141: 81.5 | I141: 4 | J141: 24 | K141: 2 | L141: 8 | M141: 13.75 | O141: 2 | Q141: 1_11
A142: 134 | B142: 1 | C142: 6 | D142: 12 | F142: 10.5 | G142: 1.5 | H142: 80.5 | I142: 2 | J142: 18 | K142: 3 | L142: 5 | M142: 14.45 | O142: 3 | Q142: 1_12
A143: 135 | B143: 1 | C143: 6 | D143: 13 | F143: 10.5 | G143: 1.5 | H143: 85.5 | I143: 3 | J143: 25 | K143: 2 | L143: 9 | M143: 13.73 | O143: 2 | Q143: 1_13
A144: 136 | B144: 1 | C144: 6 | D144: 14 | F144: 11 | G144: 1.5 | H144: 76.5 | I144: 4 | J144: 20 | K144: 3 | L144: 9 | M144: 14.37 | O144: 3 | Q144: 1_14
A145: 137 | B145: 1 | C145: 6 | D145: 15 | F145: 12 | G145: 1.5 | H145: 73.5 | I145: 2 | J145: 19 | K145: 0 | L145: 9 | M145: 14.31 | O145: 0 | Q145: 1_15
A146: 138 | B146: 1 | C146: 6 | D146: 16 | F146: 14.5 | G146: 2 | H146: 81.5 | I146: 5 | J146: 24 | K146: 0 | L146: 10 | M146: 13.01 | O146: 0 | Q146: 1_16
A147: 139 | B147: 1 | C147: 6 | D147: 17 | F147: 19 | G147: 1.5 | H147: 101.5 | I147: 2 | J147: 20 | K147: 0 | L147: 9 | M147: 14.43 | O147: 0 | Q147: 1_17
A148: 140 | B148: 1 | C148: 6 | D148: 18 | F148: 22.5 | G148: 3 | H148: 118.5 | I148: 2 | J148: 21 | K148: 0 | L148: 7 | M148: 13.98 | O148: 0 | Q148: 1_18
A149: 141 | B149: 1 | C149: 6 | D149: 19 | F149: 22.5 | G149: 2.5 | H149: 111.5 | I149: 2 | J149: 21 | K149: 0 | L149: 9 | M149: 14.69 | O149: 0 | Q149: 1_19
A150: 142 | B150: 1 | C150: 6 | D150: 20 | F150: 20.5 | G150: 2.5 | H150: 107.5 | I150: 1 | J150: 21 | K150: 1 | L150: 9 | M150: 14.44 | O150: 1 | Q150: 1_20
A151: 143 | B151: 1 | C151: 6 | D151: 21 | F151: 20 | G151: 2.5 | H151: 98.5 | I151: 1 | J151: 20 | K151: 0 | L151: 9 | M151: 13.1 | O151: 0 | Q151: 1_21
A152: 144 | B152: 1 | C152: 6 | D152: 22 | F152: 22 | G152: 2 | H152: 87.5 | I152: 4 | J152: 19 | K152: 0 | L152: 7 | M152: 14.44 | O152: 0 | Q152: 1_22
A153: 145 | B153: 1 | C153: 6 | D153: 23 | F153: 20 | G153: 2.5 | H153: 84.5 | I153: 1 | J153: 20 | K153: 0 | L153: 9 | M153: 14.43 | O153: 0 | Q153: 1_23
A154: 146 | B154: 1 | C154: 7 | D154: 0 | F154: 18.5 | G154: 2.5 | H154: 84 | I154: 1 | J154: 20 | K154: 0 | L154: 9 | M154: 14.38 | O154: 0 | Q154: 1_0
A155: 147 | B155: 1 | C155: 7 | D155: 1 | F155: 19 | G155: 2 | H155: 80 | I155: 1 | J155: 20 | K155: 0 | L155: 9 | M155: 14.37 | O155: 0 | Q155: 1_1
A156: 148 | B156: 1 | C156: 7 | D156: 2 | F156: 18.5 | G156: 2.5 | H156: 77.5 | I156: 1 | J156: 18 | K156: 0 | L156: 9 | M156: 13.1 | O156: 0 | Q156: 1_2
A157: 149 | B157: 1 | C157: 7 | D157: 3 | F157: 18 | G157: 2.5 | H157: 77 | I157: 0 | J157: 14 | K157: 1 | L157: 9 | M157: 14.46 | O157: 1 | Q157: 1_3
A158: 150 | B158: 1 | C158: 7 | D158: 4 | F158: 16 | G158: 2 | H158: 85 | I158: 4 | J158: 14 | K158: 2 | L158: 9 | M158: 14.41 | O158: 2 | Q158: 1_4
A159: 151 | B159: 1 | C159: 7 | D159: 5 | F159: 16.5 | G159: 2.5 | H159: 84.5 | I159: 1 | J159: 9 | K159: 2 | L159: 9 | M159: 13.79 | O159: 2 | Q159: 1_5
A160: 152 | B160: 1 | C160: 7 | D160: 6 | F160: 18 | G160: 6 | H160: 91 | I160: 1 | J160: 7 | K160: 2 | L160: 8 | M160: 14.32 | O160: 2 | Q160: 1_6
A161: 153 | B161: 1 | C161: 7 | D161: 7 | F161: 24 | G161: 20 | H161: 84.5 | I161: 2 | J161: 13 | K161: 2 | L161: 9 | M161: 13.56 | O161: 2 | Q161: 1_7
A162: 154 | B162: 1 | C162: 7 | D162: 8 | F162: 36.5 | G162: 22.5 | H162: 87.5 | I162: 2 | J162: 9 | K162: 2 | L162: 9 | M162: 14.34 | O162: 2 | Q162: 1_8
A163: 155 | B163: 1 | C163: 7 | D163: 9 | F163: 62 | G163: 22 | H163: 84.5 | I163: 2 | J163: 20 | K163: 3 | L163: 9 | M163: 14.35 | O163: 3 | Q163: 1_9
A164: 156 | B164: 1 | C164: 7 | D164: 10 | F164: 67.5 | G164: 17 | H164: 91.5 | I164: 5 | J164: 18 | K164: 2 | L164: 9 | M164: 13.03 | O164: 2 | Q164: 1_10
A165: 157 | B165: 1 | C165: 7 | D165: 11 | F165: 64 | G165: 4 | H165: 90.5 | I165: 3 | J165: 20 | K165: 2 | L165: 9 | M165: 14.36 | O165: 2 | Q165: 1_11
A166: 158 | B166: 1 | C166: 7 | D166: 12 | F166: 44 | G166: 3 | H166: 86 | I166: 2 | J166: 17 | K166: 2 | L166: 5 | M166: 14.4 | O166: 2 | Q166: 1_12
A167: 159 | B167: 1 | C167: 7 | D167: 13 | F167: 41 | G167: 10.5 | H167: 85.5 | I167: 4 | J167: 14 | K167: 3 | L167: 9 | M167: 13.52 | O167: 3 | Q167: 1_13
A168: 160 | B168: 1 | C168: 7 | D168: 14 | F168: 48.5 | G168: 14 | H168: 77 | I168: 4 | J168: 25 | K168: 3 | L168: 9 | M168: 14.33 | O168: 3 | Q168: 1_14
A169: 161 | B169: 1 | C169: 7 | D169: 15 | F169: 50 | G169: 16.5 | H169: 91 | I169: 7 | J169: 21 | K169: 0 | L169: 9 | M169: 14.32 | O169: 0 | Q169: 1_15
A170: 162 | B170: 1 | C170: 7 | D170: 16 | F170: 48 | G170: 15 | H170: 93.5 | I170: 6 | J170: 23 | K170: 0 | L170: 10 | M170: 14.38 | O170: 0 | Q170: 1_16
A171: 163 | B171: 1 | C171: 7 | D171: 17 | F171: 30.5 | G171: 4 | H171: 113 | I171: 2 | J171: 20 | K171: 0 | L171: 9 | M171: 14.43 | O171: 0 | Q171: 1_17
A172: 164 | B172: 1 | C172: 7 | D172: 18 | F172: 30.5 | G172: 3 | H172: 140.5 | I172: 2 | J172: 19 | K172: 0 | L172: 7 | M172: 14.21 | O172: 0 | Q172: 1_18
A173: 165 | B173: 1 | C173: 7 | D173: 19 | F173: 30.5 | G173: 3 | H173: 133.5 | I173: 2 | J173: 14 | K173: 0 | L173: 10 | M173: 14.43 | O173: 0 | Q173: 1_19
A174: 166 | B174: 1 | C174: 7 | D174: 20 | F174: 27 | G174: 2.5 | H174: 123 | I174: 1 | J174: 20 | K174: 0 | L174: 10 | M174: 14.46 | O174: 0 | Q174: 1_20
A175: 167 | B175: 1 | C175: 7 | D175: 21 | F175: 32 | G175: 2.5 | H175: 106.5 | I175: 2 | J175: 20 | K175: 0 | L175: 8 | M175: 13.82 | O175: 0 | Q175: 1_21
A176: 168 | B176: 1 | C176: 7 | D176: 22 | F176: 31 | G176: 2 | H176: 106 | I176: 1 | J176: 14 | K176: 0 | L176: 9 | M176: 14.52 | O176: 0 | Q176: 1_22
A177: 169 | B177: 1 | C177: 7 | D177: 23 | F177: 28.5 | G177: 2 | H177: 103.5 | I177: 1 | J177: 19 | K177: 0 | L177: 9 | M177: 14.38 | O177: 0 | Q177: 1_23
A178: 170 | B178: 1 | C178: 8 | D178: 0 | F178: 27.5 | G178: 2.5 | H178: 109 | I178: 1 | J178: 20 | K178: 0 | L178: 9 | M178: 13.63 | O178: 0 | Q178: 1_0
A179: 171 | B179: 1 | C179: 8 | D179: 1 | F179: 27.5 | G179: 2 | H179: 99.5 | I179: 1 | J179: 16 | K179: 0 | L179: 10 | M179: 14.46 | O179: 0 | Q179: 1_1
A180: 172 | B180: 1 | C180: 8 | D180: 2 | F180: 28 | G180: 2 | H180: 93 | I180: 1 | J180: 18 | K180: 0 | L180: 9 | M180: 14.41 | O180: 0 | Q180: 1_2
A181: 173 | B181: 1 | C181: 8 | D181: 3 | F181: 27.5 | G181: 1.5 | H181: 93 | I181: 2 | J181: 20 | K181: 0 | L181: 9 | M181: 13.1 | O181: 0 | Q181: 1_3
A182: 174 | B182: 1 | C182: 8 | D182: 4 | F182: 29.5 | G182: 2 | H182: 98.5 | I182: 2 | J182: 19 | K182: 0 | L182: 8 | M182: 14.43 | O182: 0 | Q182: 1_4
A183: 175 | B183: 1 | C183: 8 | D183: 5 | F183: 29.5 | G183: 2.5 | H183: 101 | I183: 2 | J183: 18 | K183: 1 | L183: 9 | M183: 14.42 | O183: 1 | Q183: 1_5
A184: 176 | B184: 1 | C184: 8 | D184: 6 | F184: 28.5 | G184: 6.5 | H184: 101.5 | I184: 2 | J184: 19 | K184: 2 | L184: 9 | M184: 13.3 | O184: 2 | Q184: 1_6
A185: 177 | B185: 1 | C185: 8 | D185: 7 | F185: 32.5 | G185: 22 | H185: 98.5 | I185: 2 | J185: 12 | K185: 2 | L185: 9 | M185: 14.43 | O185: 2 | Q185: 1_7
A186: 178 | B186: 1 | C186: 8 | D186: 8 | F186: 40 | G186: 22.5 | H186: 90.5 | I186: 2 | J186: 12 | K186: 3 | L186: 9 | M186: 14.32 | O186: 3 | Q186: 1_8
A187: 179 | B187: 1 | C187: 8 | D187: 9 | F187: 48 | G187: 21 | H187: 84.5 | I187: 3 | J187: 22 | K187: 3 | L187: 11 | M187: 12.95 | O187: 3 | Q187: 1_9
A188: 180 | B188: 1 | C188: 8 | D188: 10 | F188: 53.5 | G188: 20.5 | H188: 84 | I188: 3 | J188: 10 | K188: 2 | L188: 10 | M188: 14.43 | O188: 2 | Q188: 1_10
A189: 181 | B189: 1 | C189: 8 | D189: 11 | F189: 50.5 | G189: 9 | H189: 90 | I189: 5 | J189: 9 | K189: 2 | L189: 9 | M189: 14.29 | O189: 2 | Q189: 1_11
A190: 182 | B190: 1 | C190: 8 | D190: 12 | F190: 34 | G190: 7.5 | H190: 96 | I190: 4 | J190: 15 | K190: 1 | L190: 6 | M190: 13 | O190: 1 | Q190: 1_12
A191: 183 | B191: 1 | C191: 8 | D191: 13 | F191: 30.5 | G191: 13 | H191: 99 | I191: 4 | J191: 13 | K191: 2 | L191: 9 | M191: 14.37 | O191: 2 | Q191: 1_13
A192: 184 | B192: 1 | C192: 8 | D192: 14 | F192: 35.5 | G192: 17.5 | H192: 90 | I192: 6 | J192: 14 | K192: 3 | L192: 10 | M192: 14.31 | O192: 3 | Q192: 1_14
A193: 185 | B193: 1 | C193: 8 | D193: 15 | F193: 40 | G193: 17 | H193: 83.5 | I193: 5 | J193: 14 | K193: 0 | L193: 9 | M193: 12.89 | O193: 0 | Q193: 1_15
A194: 186 | B194: 1 | C194: 8 | D194: 16 | F194: 41 | G194: 12.5 | H194: 92 | I194: 5 | J194: 16 | K194: 0 | L194: 9 | M194: 14.32 | O194: 0 | Q194: 1_16
A195: 187 | B195: 1 | C195: 8 | D195: 17 | F195: 28.5 | G195: 3 | H195: 115 | I195: 3 | J195: 8 | K195: 0 | L195: 8 | M195: 14.39 | O195: 0 | Q195: 1_17
A196: 188 | B196: 1 | C196: 8 | D196: 18 | F196: 28 | G196: 3 | H196: 125.5 | I196: 3 | J196: 14 | K196: 0 | L196: 6 | M196: 13.58 | O196: 0 | Q196: 1_18
A197: 189 | B197: 1 | C197: 8 | D197: 19 | F197: 24 | G197: 3.5 | H197: 113 | I197: 2 | J197: 11 | K197: 0 | L197: 9 | M197: 14.46 | O197: 0 | Q197: 1_19
A198: 190 | B198: 1 | C198: 8 | D198: 20 | F198: 24 | G198: 3 | H198: 113 | I198: 2 | J198: 15 | K198: 0 | L198: 10 | M198: 15.15 | O198: 0 | Q198: 1_20
A199: 191 | B199: 1 | C199: 8 | D199: 21 | F199: 22.5 | G199: 3.5 | H199: 105 | I199: 2 | J199: 12 | K199: 0 | L199: 9 | M199: 17.24 | O199: 0 | Q199: 1_21
A200: 192 | B200: 1 | C200: 8 | D200: 22 | F200: 21 | G200: 3 | H200: 100 | I200: 1 | J200: 10 | K200: 0 | L200: 7 | M200: 13.13 | O200: 0 | Q200: 1_22
A201: 193 | B201: 1 | C201: 8 | D201: 23 | F201: 21 | G201: 3.5 | H201: 92 | I201: 0 | J201: 17 | K201: 0 | L201: 9 | M201: 14.45 | O201: 0 | Q201: 1_23
A202: 194 | B202: 1 | C202: 9 | D202: 0 | F202: 21 | G202: 3 | H202: 97.5 | I202: 1 | J202: 17 | K202: 0 | L202: 8 | M202: 14.43 | O202: =IF($C$4="Saisie Manuelle",E202,HLOOKUP($C$4,$F$9:$M$8769,A202,FALSE)) -> 0 | Q202: 1_0
A203: 195 | B203: 1 | C203: 9 | D203: 1 | F203: 21 | G203: 3.5 | H203: 97 | I203: 1 | J203: 18 | K203: 0 | L203: 8 | M203: 13.16 | O203: 0 | Q203: 1_1
... 4297 more rows

Sheet Courbes de Production PV
B2: Courbe de Production PV moyenne (kWh/kW)
B4: Région | C4: ='Entrées Utilisateur'!C30 -> Tunis
B5: Orientation des panneaux | C5: ='Entrées Utilisateur'!C31 -> Sud
B6: rendement spécifique | C6: =IF('Entrées Utilisateur'!H51="Calcul Automatique",SUM(AB9:AB8768)/Données!G35,'Entrées Utilisateur'!H52) -> 1650 | D6: kWh/kWc/a | AB6: modulation | AC6: =IF('Entrées Utilisateur'!H51="Calcul Automatique",1,'Entrées Utilisateur'!H52/(SUM(AB9:AB8768)/Données!G35)) -> 1
G7: =G8&G9 -> BizerteSud | H7: =G8&H9 -> BizerteSud-ouest | I7: =I8&I9 -> GafsaSud | J7: =I8&J9 -> GafsaSud-ouest | K7: =K8&K9 -> JendoubaSud | L7: =K8&L9 -> JendoubaSud-ouest | M7: =M8&M9 -> JerbaSud | N7: =M8&N9 -> JerbaSud-ouest | O7: =O8&O9 -> KairouanSud | P7: =O8&P9 -> KairouanSud-ouest | Q7: =Q8&Q9 -> MonastirSud | R7: =Q8&R9 -> MonastirSud-ouest | S7: =S8&S9 -> SfaxSud | T7: =S8&T9 -> SfaxSud-ouest | U7: =U8&U9 -> TataouineSud | V7: =U8&V9 -> TataouineSud-ouest | W7: =W8&W9 -> TozeurSud | X7: =W8&X9 -> TozeurSud-ouest | Y7: =Y8&Y9 -> TunisSud | Z7: =Y8&Z9 -> TunisSud-ouest
C8: mois | D8: jour | E8: heure | F8: Saisie Manuelle | G8: Bizerte | I8: Gafsa | K8: Jendouba | M8: Jerba | O8: Kairouan | Q8: Monastir | S8: Sfax | U8: Tataouine | W8: Tozeur | Y8: Tunis | AG8: 0 | AH8: 0 | AI8: 0 | AJ8: 0 | AK8: 0 | AL8: 0 | AM8: 0 | AN8: 0 | AO8: 0 | AP8: 0
C9: 1 | D9: 1 | E9: 0 | G9: Sud | H9: Sud-ouest | I9: Sud | J9: Sud-ouest | K9: Sud | L9: Sud-ouest | M9: Sud | N9: Sud-ouest | O9: Sud | P9: Sud-ouest | Q9: Sud | R9: Sud-ouest | S9: Sud | T9: Sud-ouest | U9: Sud | V9: Sud-ouest | W9: Sud | X9: Sud-ouest | Y9: Sud | Z9: Sud-ouest | AB9: Production non modulée | AC9: Production modulée | AG9: 0 | AH9: 0 | AI9: 0 | AJ9: 0 | AK9: 0 | AL9: 0 | AM9: 0 | AN9: 0 | AO9: 0 | AP9: 0
C10: 1 | D10: 1 | E10: 1 | G10: 0 | H10: 0 | I10: 0 | J10: 0 | K10: 0 | L10: 0 | M10: 0 | N10: 0 | O10: 0 | P10: 0 | Q10: 0 | R10: 0 | S10: 0 | T10: 0 | U10: 0 | V10: 0 | W10: 0 | X10: 0 | Y10: 0 | Z10: 0 | AB10: =IF('Courbes de Production PV'!$C$4="Saisie Manuelle",'Courbes de Production PV'!F10*Données!$G$35,HLOOKUP('Courbes de Production PV'!$C$4&'Courbes de Production PV'!$C$5,'Courbes de Production PV'!$G$7:$Z$8769,'Compensation PV'!A53+2,FALSE)*Données!$G$35) -> 0 | AC10: =AB10*$AC$6 -> 0 | AG10: 0 | AH10: 0 | AI10: 0 | AJ10: 0 | AK10: 0 | AL10: 0 | AM10: 0 | AN10: 0 | AO10: 0 | AP10: 0 | AR10: 0 | AS10: 0 | AT10: 0 | AU10: 0 | AV10: 0 | AW10: 0 | AX10: 0 | AY10: 0 | AZ10: 0 | BA10: 0
C11: 1 | D11: 1 | E11: 2 | G11: 0 | H11: 0 | I11: 0 | J11: 0 | K11: 0 | L11: 0 | M11: 0 | N11: 0 | O11: 0 | P11: 0 | Q11: 0 | R11: 0 | S11: 0 | T11: 0 | U11: 0 | V11: 0 | W11: 0 | X11: 0 | Y11: 0 | Z11: 0 | AB11: =IF('Courbes de Production PV'!$C$4="Saisie Manuelle",'Courbes de Production PV'!F11*Données!$G$35,HLOOKUP('Courbes de Production PV'!$C$4&'Courbes de Production PV'!$C$5,'Courbes de Production PV'!$G$7:$Z$8769,'Compensation PV'!A54+2,FALSE)*Données!$G$35) -> 0 | AC11: =AB11*$AC$6 -> 0 | AG11: 0 | AH11: 0 | AI11: 0 | AJ11: 0 | AK11: 0 | AL11: 0 | AM11: 0 | AN11: 0 | AO11: 0 | AP11: 0 | AR11: 0 | AS11: 0 | AT11: 0 | AU11: 0 | AV11: 0 | AW11: 0 | AX11: 0 | AY11: 0 | AZ11: 0 | BA11: 0
C12: 1 | D12: 1 | E12: 3 | G12: 0 | H12: 0 | I12: 0 | J12: 0 | K12: 0 | L12: 0 | M12: 0 | N12: 0 | O12: 0 | P12: 0 | Q12: 0 | R12: 0 | S12: 0 | T12: 0 | U12: 0 | V12: 0 | W12: 0 | X12: 0 | Y12: 0 | Z12: 0 | AB12: =IF('Courbes de Production PV'!$C$4="Saisie Manuelle",'Courbes de Production PV'!F12*Données!$G$35,HLOOKUP('Courbes de Production PV'!$C$4&'Courbes de Production PV'!$C$5,'Courbes de Production PV'!$G$7:$Z$8769,'Compensation PV'!A55+2,FALSE)*Données!$G$35) -> 0 | AC12: 0 | AG12: 0 | AH12: 0 | AI12: 0 | AJ12: 0 | AK12: 0 | AL12: 0 | AM12: 0 | AN12: 0 | AO12: 0 | AP12: 0 | AR12: 0 | AS12: 0 | AT12: 0 | AU12: 0 | AV12: 0 | AW12: 0 | AX12: 0 | AY12: 0 | AZ12: 0 | BA12: 0
C13: 1 | D13: 1 | E13: 4 | G13: 0 | H13: 0 | I13: 0 | J13: 0 | K13: 0 | L13: 0 | M13: 0 | N13: 0 | O13: 0 | P13: 0 | Q13: 0 | R13: 0 | S13: 0 | T13: 0 | U13: 0 | V13: 0 | W13: 0 | X13: 0 | Y13: 0 | Z13: 0 | AB13: =IF('Courbes de Production PV'!$C$4="Saisie Manuelle",'Courbes de Production PV'!F13*Données!$G$35,HLOOKUP('Courbes de Production PV'!$C$4&'Courbes de Production PV'!$C$5,'Courbes de Production PV'!$G$7:$Z$8769,'Compensation PV'!A56+2,FALSE)*Données!$G$35) -> 0 | AC13: 0 | AG13: 0 | AH13: 0 | AI13: 0 | AJ13: 0 | AK13: 0 | AL13: 0 | AM13: 0 | AN13: 0 | AO13: 0 | AP13: 0 | AR13: 0 | AS13: 0 | AT13: 0 | AU13: 0 | AV13: 0 | AW13: 0 | AX13: 0 | AY13: 0 | AZ13: 0 | BA13: 0
C14: 1 | D14: 1 | E14: 5 | G14: 0 | H14: 0 | I14: 0 | J14: 0 | K14: 0 | L14: 0 | M14: 0 | N14: 0 | O14: 0 | P14: 0 | Q14: 0 | R14: 0 | S14: 0 | T14: 0 | U14: 0 | V14: 0 | W14: 0 | X14: 0 | Y14: 0 | Z14: 0 | AB14: =IF('Courbes de Production PV'!$C$4="Saisie Manuelle",'Courbes de Production PV'!F14*Données!$G$35,HLOOKUP('Courbes de Production PV'!$C$4&'Courbes de Production PV'!$C$5,'Courbes de Production PV'!$G$7:$Z$8769,'Compensation PV'!A57+2,FALSE)*Données!$G$35) -> 0 | AC14: 0 | AG14: 0 | AH14: 0 | AI14: 0 | AJ14: 0 | AK14: 0 | AL14: 0 | AM14: 0 | AN14: 0 | AO14: 0 | AP14: 0 | AR14: 0 | AS14: 0 | AT14: 0 | AU14: 0 | AV14: 0 | AW14: 0 | AX14: 0 | AY14: 0 | AZ14: 0 | BA14: 0
C15: 1 | D15: 1 | E15: 6 | G15: 0 | H15: 0 | I15: 0 | J15: 0 | K15: 0 | L15: 0 | M15: 0 | N15: 0 | O15: 0 | P15: 0 | Q15: 0 | R15: 0 | S15: 0 | T15: 0 | U15: 0 | V15: 0 | W15: 0 | X15: 0 | Y15: 0 | Z15: 0 | AB15: =IF('Courbes de Production PV'!$C$4="Saisie Manuelle",'Courbes de Production PV'!F15*Données!$G$35,HLOOKUP('Courbes de Production PV'!$C$4&'Courbes de Production PV'!$C$5,'Courbes de Production PV'!$G$7:$Z$8769,'Compensation PV'!A58+2,FALSE)*Données!$G$35) -> 0 | AC15: 0 | AG15: 0 | AH15: 0 | AI15: 0 | AJ15: 0 | AK15: 0 | AL15: 0 | AM15: 0 | AN15: 0 | AO15: 0 | AP15: 0 | AR15: 0 | AS15: 0 | AT15: 0 | AU15: 0 | AV15: 0 | AW15: 0 | AX15: 0 | AY15: 0 | AZ15: 0 | BA15: 0
C16: 1 | D16: 1 | E16: 7 | G16: 0 | H16: 0 | I16: 0 | J16: 0 | K16: 0 | L16: 0 | M16: 0 | N16: 0 | O16: 0 | P16: 0 | Q16: 0 | R16: 0 | S16: 0 | T16: 0 | U16: 0 | V16: 0 | W16: 0 | X16: 0 | Y16: 0 | Z16: 0 | AB16: =IF('Courbes de Production PV'!$C$4="Saisie Manuelle",'Courbes de Production PV'!F16*Données!$G$35,HLOOKUP('Courbes de Production PV'!$C$4&'Courbes de Production PV'!$C$5,'Courbes de Production PV'!$G$7:$Z$8769,'Compensation PV'!A59+2,FALSE)*Données!$G$35) -> 0 | AC16: 0 | AG16: 0.0333214 | AH16: 0.0336673 | AI16: 0.0336063 | AJ16: 0.0330768 | AK16: 0.0332196 | AL16: 0.033138 | AM16: 0.0332807 | AN16: 0.0333214 | AO16: 0.0333011 | AP16: 0.0332603 | AR16: 0.1709 | AS16: 0.08366 | AT16: 0.07159 | AU16: 0.11996 | AV16: 0.08831 | AW16: 0 | AX16: 0.11904 | AY16: 0.01242 | AZ16: 0.15855 | BA16: 0.00212
C17: 1 | D17: 1 | E17: 8 | G17: 0 | H17: 0 | I17: 0 | J17: 0 | K17: 0 | L17: 0 | M17: 0 | N17: 0 | O17: 0 | P17: 0 | Q17: 0 | R17: 0 | S17: 0 | T17: 0 | U17: 0 | V17: 0 | W17: 0 | X17: 0 | Y17: 0 | Z17: 0 | AB17: =IF('Courbes de Production PV'!$C$4="Saisie Manuelle",'Courbes de Production PV'!F17*Données!$G$35,HLOOKUP('Courbes de Production PV'!$C$4&'Courbes de Production PV'!$C$5,'Courbes de Production PV'!$G$7:$Z$8769,'Compensation PV'!A60+2,FALSE)*Données!$G$35) -> 0 | AC17: 0 | AG17: 0.103418 | AH17: 0.10558 | AI17: 0.1041 | AJ17: 0.104472 | AK17: 0.104351 | AL17: 0.104255 | AM17: 0.104927 | AN17: 0.105111 | AO17: 0.104455 | AP17: 0.103357 | AR17: 0.20087 | AS17: 0.37602 | AT17: 0.0194 | AU17: 0.39993 | AV17: 0.01136 | AW17: 0.00332 | AX17: 0.40225 | AY17: 0.03533 | AZ17: 0.3657 | BA17: 0.0696
C18: 1 | D18: 1 | E18: 9 | G18: 0.02435994234 | H18: 0.004239036449 | I18: 0.08722176081 | J18: 0.009951866276 | K18: 0.06908319304 | L18: 0.007203386502 | M18: 0.1077430298 | N18: 0.01382718331 | O18: 0.01929344633 | P18: 0.007989918069 | Q18: 0 | R18: 0 | S18: 0.1057841584 | T18: 0.01124836152 | U18: 0.08097544465 | V18: 0.01415586591 | W18: 0.07069889143 | X18: 0.01012024261 | Y18: 0.01991236837 | Z18: 0.006234575629 | AB18: =IF('Courbes de Production PV'!$C$4="Saisie Manuelle",'Courbes de Production PV'!F18*Données!$G$35,HLOOKUP('Courbes de Production PV'!$C$4&'Courbes de Production PV'!$C$5,'Courbes de Production PV'!$G$7:$Z$8769,'Compensation PV'!A61+2,FALSE)*Données!$G$35) -> 0.9956184183 | AC18: 0.9956184183 | AG18: 0.163917 | AH18: 0.168581 | AI18: 0.164833 | AJ18: 0.167091 | AK18: 0.166696 | AL18: 0.166575 | AM18: 0.167758 | AN18: 0.167928 | AO18: 0.166884 | AP18: 0.163856 | AR18: 0.1817 | AS18: 0.14071 | AT18: 0.00403 | AU18: 0.60535 | AV18: 0.0944 | AW18: 0.00654 | AX18: 0.60627 | AY18: 0.62017 | AZ18: 0.57539 | BA18: 0.09566
C19: 1 | D19: 1 | E19: 10 | G19: 0.3242185412 | H19: 0.08529367175 | I19: 0.08541937802 | J19: 0.06910103059 | K19: 0.3113567802 | L19: 0.08371477915 | M19: 0.3564653132 | N19: 0.1222822295 | O19: 0.06869368823 | P19: 0.06188019982 | Q19: 0.003177296425 | R19: 0.003310476515 | S19: 0.3567438655 | T19: 0.1134040162 | U19: 0.369404861 | V19: 0.1352931075 | W19: 0.1885049893 | X19: 0.08900672448 | Y19: 0.04738881799 | Z19: 0.046583057 | AB19: =IF('Courbes de Production PV'!$C$4="Saisie Manuelle",'Courbes de Production PV'!F19*Données!$G$35,HLOOKUP('Courbes de Production PV'!$C$4&'Courbes de Production PV'!$C$5,'Courbes de Production PV'!$G$7:$Z$8769,'Compensation PV'!A62+2,FALSE)*Données!$G$35) -> 2.369440899 | AC19: 2.369440899 | AG19: 0.203791 | AH19: 0.208062 | AI19: 0.205209 | AJ19: 0.205288 | AK19: 0.205504 | AL19: 0.20515 | AM19: 0.206325 | AN19: 0.206508 | AO19: 0.205951 | AP19: 0.203554 | AR19: 0.43376 | AS19: 0.71316 | AT19: 0.06447 | AU19: 0.30549 | AV19: 0.01715 | AW19: 0.11018 | AX19: 0.06415 | AY19: 0.75923 | AZ19: 0.71563 | BA19: 0.13097
C20: 1 | D20: 1 | E20: 11 | G20: 0.385820064 | H20: 0.2289950718 | I20: 0.5350945042 | J20: 0.2949512227 | K20: 0.4976612719 | L20: 0.2659820022 | M20: 0.5382404713 | N20: 0.3109665841 | O20: 0.1402108076 | P20: 0.1301033162 | Q20: 0.006240438488 | R20: 0.006468747213 | S20: 0.5373902505 | T20: 0.3014313088 | U20: 0.5506388611 | V20: 0.3289998362 | W20: 0.4374267797 | X20: 0.2574711581 | Y20: 0.1856574032 | Z20: 0.1546356052 | AB20: =IF('Courbes de Production PV'!$C$4="Saisie Manuelle",'Courbes de Production PV'!F20*Données!$G$35,HLOOKUP('Courbes de Production PV'!$C$4&'Courbes de Production PV'!$C$5,'Courbes de Production PV'!$G$7:$Z$8769,'Compensation PV'!A63+2,FALSE)*Données!$G$35) -> 9.282870159 | AC20: 9.282870159 | AG20: 0.213511 | AH20: 0.217998 | AI20: 0.215028 | AJ20: 0.214969 | AK20: 0.215264 | AL20: 0.214847 | AM20: 0.216055 | AN20: 0.216251 | AO20: 0.21585 | AP20: 0.213243 | AR20: 0.20218 | AS20: 0.70566 | AT20: 0.06118 | AU20: 0.25164 | AV20: 0.32318 | AW20: 0.20752 | AX20: 0.13885 | AY20: 0.8045 | AZ20: 0.35986 | BA20: 0.15127
C21: 1 | D21: 1 | E21: 12 | G21: 0.2443156076 | H21: 0.2127163975 | I21: 0.6549238891 | J21: 0.4584835453 | K21: 0.6189292064 | L21: 0.4257304462 | M21: 0.1558964374 | N21: 0.1541735334 | O21: 0.2308351053 | P21: 0.2108063905 | Q21: 0.1051171422 | R21: 0.1074192552 | S21: 0.05672855812 | T21: 0.05806490949 | U21: 0.6584180244 | V21: 0.4833133683 | W21: 0.6414215476 | X21: 0.4499271358 | Y21: 0.1934430687 | Z21: 0.1821221268 | AB21: =IF('Courbes de Production PV'!$C$4="Saisie Manuelle",'Courbes de Production PV'!F21*Données!$G$35,HLOOKUP('Courbes de Production PV'!$C$4&'Courbes de Production PV'!$C$5,'Courbes de Production PV'!$G$7:$Z$8769,'Compensation PV'!A64+2,FALSE)*Données!$G$35) -> 9.672153435 | AC21: 9.672153435 | AG21: 0.167549 | AH21: 0.171321 | AI21: 0.16892 | AJ21: 0.168561 | AK21: 0.168879 | AL21: 0.168471 | AM21: 0.169496 | AN21: 0.169711 | AO21: 0.16951 | AP21: 0.167299 | AR21: 0.63804 | AS21: 0.55374 | AT21: 0.20745 | AU21: 0.06036 | AV21: 0.04043 | AW21: 0.10241 | AX21: 0.13367 | AY21: 0.2582 | AZ21: 0.20871 | BA21: 0.20508
C22: 1 | D22: 1 | E22: 13 | G22: 0.330054475 | H22: 0.2930258141 | I22: 0.7141118144 | J22: 0.5678668622 | K22: 0.6759005935 | L22: 0.5323667946 | M22: 0.2678676141 | N22: 0.2524757528 | O22: 0.4199363687 | P22: 0.3625560123 | Q22: 0.1976868174 | R22: 0.1946522139 | S22: 0.1228027258 | T22: 0.1251037282 | U22: 0.7028606329 | V22: 0.5791159879 | W22: 0.6992011829 | X22: 0.5593647545 | Y22: 0.2438132023 | Z22: 0.2310821788 | AB22: =IF('Courbes de Production PV'!$C$4="Saisie Manuelle",'Courbes de Production PV'!F22*Données!$G$35,HLOOKUP('Courbes de Production PV'!$C$4&'Courbes de Production PV'!$C$5,'Courbes de Production PV'!$G$7:$Z$8769,'Compensation PV'!A65+2,FALSE)*Données!$G$35) -> 12.19066012 | AC22: 12.19066012 | AG22: 0.105572 | AH22: 0.106732 | AI22: 0.106531 | AJ22: 0.104743 | AK22: 0.105224 | AL22: 0.104949 | AM22: 0.105429 | AN22: 0.105567 | AO22: 0.105498 | AP22: 0.105366 | AR22: 0.70747 | AS22: 0.56139 | AT22: 0.5112 | AU22: 0.0466 | AV22: 0.70142 | AW22: 0.12303 | AX22: 0.21208 | AY22: 0.72562 | AZ22: 0.70045 | BA22: 0.101
C23: 1 | D23: 1 | E23: 14 | G23: 0.3197278725 | H23: 0.2997908517 | I23: 0.7147029184 | J23: 0.6206204747 | K23: 0.673586892 | L23: 0.5822753034 | M23: 0.06171688114 | N23: 0.06302663976 | O23: 0.3345177722 | P23: 0.3138224139 | Q23: 0.09770662151 | R23: 0.1000182474 | S23: 0.1182272711 | T23: 0.1206433236 | U23: 0.6907867982 | V23: 0.6177600425 | W23: 0.6994677557 | X23: 0.6123936833 | Y23: 0.2929746945 | Z23: 0.2791156055 | AB23: =IF('Courbes de Production PV'!$C$4="Saisie Manuelle",'Courbes de Production PV'!F23*Données!$G$35,HLOOKUP('Courbes de Production PV'!$C$4&'Courbes de Production PV'!$C$5,'Courbes de Production PV'!$G$7:$Z$8769,'Compensation PV'!A66+2,FALSE)*Données!$G$35) -> 14.64873472 | AC23: 14.64873472 | AG23: 0.0434341 | AH23: 0.0439358 | AI23: 0.0438474 | AJ23: 0.0430793 | AK23: 0.0432864 | AL23: 0.0431681 | AM23: 0.043375 | AN23: 0.0434341 | AO23: 0.0434046 | AP23: 0.0433455 | AR23: 0.56436 | AS23: 0.48814 | AT23: 0.05653 | AU23: 0.06389 | AV23: 0.36478 | AW23: 0.31781 | AX23: 0.38249 | AY23: 0.06533 | AZ23: 0.3477 | BA23: 0.26326
C24: 1 | D24: 1 | E24: 15 | G24: 0.2640106742 | H24: 0.2602942587 | I24: 0.6555634443 | J24: 0.6137985528 | K24: 0.6136367313 | L24: 0.5742195006 | M24: 0.0869451177 | N24: 0.08873834427 | O24: 0.3122342338 | P24: 0.303420815 | Q24: 0.1173506847 | R24: 0.1198620807 | S24: 0.1876732923 | T24: 0.1887706934 | U24: 0.6236072421 | V24: 0.5988758255 | W24: 0.6426496862 | X24: 0.6075382518 | Y24: 0.2148158789 | Z24: 0.214090694 | AB24: =IF('Courbes de Production PV'!$C$4="Saisie Manuelle",'Courbes de Production PV'!F24*Données!$G$35,HLOOKUP('Courbes de Production PV'!$C$4&'Courbes de Production PV'!$C$5,'Courbes de Production PV'!$G$7:$Z$8769,'Compensation PV'!A67+2,FALSE)*Données!$G$35) -> 10.74079394 | AC24: 10.74079394 | AG24: 0.00649685 | AH24: 0.00660957 | AI24: 0.0065897 | AJ24: 0.00641714 | AK24: 0.00646365 | AL24: 0.00643708 | AM24: 0.00648358 | AN24: 0.00649685 | AO24: 0.00649021 | AP24: 0.00647694 | AR24: 0.34914 | AS24: 0.34343 | AT24: 0.10266 | AU24: 0.00084 | AV24: 0.12481 | AW24: 0.07771 | AX24: 0.35682 | AY24: 0.00182 | AZ24: 0.34907 | BA24: 0.0242
C25: 1 | D25: 1 | E25: 16 | G25: 0.3275091175 | H25: 0.3434877685 | I25: 0.4314768741 | J25: 0.4378918064 | K25: 0.5001997865 | L25: 0.5096700384 | M25: 0.09761657386 | N25: 0.09992842968 | O25: 0.2659515305 | P25: 0.2710199816 | Q25: 0.3010440799 | R25: 0.3138388813 | S25: 0.3389199472 | T25: 0.3557615145 | U25: 0.5052233408 | V25: 0.5250512822 | W25: 0.5317078357 | X25: 0.5456362599 | Y25: 0.1653522263 | Z25: 0.1702673683 | AB25: =IF('Courbes de Production PV'!$C$4="Saisie Manuelle",'Courbes de Production PV'!F25*Données!$G$35,HLOOKUP('Courbes de Production PV'!$C$4&'Courbes de Production PV'!$C$5,'Courbes de Production PV'!$G$7:$Z$8769,'Compensation PV'!A68+2,FALSE)*Données!$G$35) -> 8.267611316 | AC25: 8.267611316 | AG25: 0 | AH25: 0 | AI25: 0 | AJ25: 0 | AK25: 0 | AL25: 0 | AM25: 0 | AN25: 0 | AO25: 0 | AP25: 0 | AR25: 0.0461 | AS25: 0.16543 | AT25: 0.07949 | AU25: 0.00131 | AV25: 0.06429 | AW25: 0.16455 | AX25: 0.05873 | AY25: 0.03167 | AZ25: 0.08774 | BA25: 0.00303
C26: 1 | D26: 1 | E26: 17 | G26: 0.3078624417 | H26: 0.3743127254 | I26: 0.3552922853 | J26: 0.40392755 | K26: 0.2352950137 | L26: 0.2673121464 | M26: 0.01300089264 | N26: 0.01333492504 | O26: 0.2734120553 | P26: 0.3114989653 | Q26: 0.07389592405 | R26: 0.07967023222 | S26: 0.3164851742 | T26: 0.383639043 | U26: 0.3249136068 | V26: 0.3796496217 | W26: 0.3576072933 | X26: 0.411578747 | Y26: 0.08232862874 | Z26: 0.08967112572 | AB26: =IF('Courbes de Production PV'!$C$4="Saisie Manuelle",'Courbes de Production PV'!F26*Données!$G$35,HLOOKUP('Courbes de Production PV'!$C$4&'Courbes de Production PV'!$C$5,'Courbes de Production PV'!$G$7:$Z$8769,'Compensation PV'!A69+2,FALSE)*Données!$G$35) -> 4.116431437 | AC26: 4.116431437 | AG26: 0 | AH26: 0 | AI26: 0 | AJ26: 0 | AK26: 0 | AL26: 0 | AM26: 0 | AN26: 0 | AO26: 0 | AP26: 0 | AR26: 0 | AS26: 0 | AT26: 0 | AU26: 0 | AV26: 0 | AW26: 0 | AX26: 0 | AY26: 0 | AZ26: 0 | BA26: 0
C27: 1 | D27: 1 | E27: 18 | G27: 0.04249682431 | H27: 0.0749573911 | I27: 0.1085111963 | J27: 0.1592395507 | K27: 0.09329743766 | L27: 0.1431872121 | M27: 0.002733791488 | N27: 0.00301508193 | O27: 0.01611708626 | P27: 0.02283253887 | Q27: 0.1532712575 | R27: 0.2673400043 | S27: 0.05221505349 | T27: 0.08801334017 | U27: 0.06265551647 | V27: 0.09539399673 | W27: 0.1101897346 | X27: 0.1628759271 | Y27: 0.0594148007 | Z27: 0.1019388367 | AB27: =IF('Courbes de Production PV'!$C$4="Saisie Manuelle",'Courbes de Production PV'!F27*Données!$G$35,HLOOKUP('Courbes de Production PV'!$C$4&'Courbes de Production PV'!$C$5,'Courbes de Production PV'!$G$7:$Z$8769,'Compensation PV'!A70+2,FALSE)*Données!$G$35) -> 2.970740035 | AC27: 2.970740035 | AG27: 0 | AH27: 0 | AI27: 0 | AJ27: 0 | AK27: 0 | AL27: 0 | AM27: 0 | AN27: 0 | AO27: 0 | AP27: 0 | AR27: 0 | AS27: 0 | AT27: 0 | AU27: 0 | AV27: 0 | AW27: 0 | AX27: 0 | AY27: 0 | AZ27: 0 | BA27: 0
C28: 1 | D28: 1 | E28: 19 | G28: 0 | H28: 0 | I28: 0 | J28: 0 | K28: 0 | L28: 0 | M28: 0 | N28: 0 | O28: 0 | P28: 0 | Q28: 0 | R28: 0 | S28: 0 | T28: 0 | U28: 0 | V28: 0 | W28: 0 | X28: 0 | Y28: 0 | Z28: 0 | AB28: =IF('Courbes de Production PV'!$C$4="Saisie Manuelle",'Courbes de Production PV'!F28*Données!$G$35,HLOOKUP('Courbes de Production PV'!$C$4&'Courbes de Production PV'!$C$5,'Courbes de Production PV'!$G$7:$Z$8769,'Compensation PV'!A71+2,FALSE)*Données!$G$35) -> 0 | AC28: 0 | AG28: 0 | AH28: 0 | AI28: 0 | AJ28: 0 | AK28: 0 | AL28: 0 | AM28: 0 | AN28: 0 | AO28: 0 | AP28: 0 | AR28: 0 | AS28: 0 | AT28: 0 | AU28: 0 | AV28: 0 | AW28: 0 | AX28: 0 | AY28: 0 | AZ28: 0 | BA28: 0
C29: 1 | D29: 1 | E29: 20 | G29: 0 | H29: 0 | I29: 0 | J29: 0 | K29: 0 | L29: 0 | M29: 0 | N29: 0 | O29: 0 | P29: 0 | Q29: 0 | R29: 0 | S29: 0 | T29: 0 | U29: 0 | V29: 0 | W29: 0 | X29: 0 | Y29: 0 | Z29: 0 | AB29: =IF('Courbes de Production PV'!$C$4="Saisie Manuelle",'Courbes de Production PV'!F29*Données!$G$35,HLOOKUP('Courbes de Production PV'!$C$4&'Courbes de Production PV'!$C$5,'Courbes de Production PV'!$G$7:$Z$8769,'Compensation PV'!A72+2,FALSE)*Données!$G$35) -> 0 | AC29: 0 | AG29: 0 | AH29: 0 | AI29: 0 | AJ29: 0 | AK29: 0 | AL29: 0 | AM29: 0 | AN29: 0 | AO29: 0 | AP29: 0 | AR29: 0 | AS29: 0 | AT29: 0 | AU29: 0 | AV29: 0 | AW29: 0 | AX29: 0 | AY29: 0 | AZ29: 0 | BA29: 0
C30: 1 | D30: 1 | E30: 21 | G30: 0 | H30: 0 | I30: 0 | J30: 0 | K30: 0 | L30: 0 | M30: 0 | N30: 0 | O30: 0 | P30: 0 | Q30: 0 | R30: 0 | S30: 0 | T30: 0 | U30: 0 | V30: 0 | W30: 0 | X30: 0 | Y30: 0 | Z30: 0 | AB30: =IF('Courbes de Production PV'!$C$4="Saisie Manuelle",'Courbes de Production PV'!F30*Données!$G$35,HLOOKUP('Courbes de Production PV'!$C$4&'Courbes de Production PV'!$C$5,'Courbes de Production PV'!$G$7:$Z$8769,'Compensation PV'!A73+2,FALSE)*Données!$G$35) -> 0 | AC30: 0 | AG30: 0 | AH30: 0 | AI30: 0 | AJ30: 0 | AK30: 0 | AL30: 0 | AM30: 0 | AN30: 0 | AO30: 0 | AP30: 0 | AR30: 0 | AS30: 0 | AT30: 0 | AU30: 0 | AV30: 0 | AW30: 0 | AX30: 0 | AY30: 0 | AZ30: 0 | BA30: 0
C31: 1 | D31: 1 | E31: 22 | G31: 0 | H31: 0 | I31: 0 | J31: 0 | K31: 0 | L31: 0 | M31: 0 | N31: 0 | O31: 0 | P31: 0 | Q31: 0 | R31: 0 | S31: 0 | T31: 0 | U31: 0 | V31: 0 | W31: 0 | X31: 0 | Y31: 0 | Z31: 0 | AB31: =IF('Courbes de Production PV'!$C$4="Saisie Manuelle",'Courbes de Production PV'!F31*Données!$G$35,HLOOKUP('Courbes de Production PV'!$C$4&'Courbes de Production PV'!$C$5,'Courbes de Production PV'!$G$7:$Z$8769,'Compensation PV'!A74+2,FALSE)*Données!$G$35) -> 0 | AC31: 0 | AG31: 0 | AH31: 0 | AI31: 0 | AJ31: 0 | AK31: 0 | AL31: 0 | AM31: 0 | AN31: 0 | AO31: 0 | AP31: 0 | AR31: 0 | AS31: 0 | AT31: 0 | AU31: 0 | AV31: 0 | AW31: 0 | AX31: 0 | AY31: 0 | AZ31: 0 | BA31: 0
C32: 1 | D32: 1 | E32: 23 | G32: 0 | H32: 0 | I32: 0 | J32: 0 | K32: 0 | L32: 0 | M32: 0 | N32: 0 | O32: 0 | P32: 0 | Q32: 0 | R32: 0 | S32: 0 | T32: 0 | U32: 0 | V32: 0 | W32: 0 | X32: 0 | Y32: 0 | Z32: 0 | AB32: =IF('Courbes de Production PV'!$C$4="Saisie Manuelle",'Courbes de Production PV'!F32*Données!$G$35,HLOOKUP('Courbes de Production PV'!$C$4&'Courbes de Production PV'!$C$5,'Courbes de Production PV'!$G$7:$Z$8769,'Compensation PV'!A75+2,FALSE)*Données!$G$35) -> 0 | AC32: 0 | AG32: 0 | AH32: 0 | AI32: 0 | AJ32: 0 | AK32: 0 | AL32: 0 | AM32: 0 | AN32: 0 | AO32: 0 | AP32: 0 | AR32: 0 | AS32: 0 | AT32: 0 | AU32: 0 | AV32: 0 | AW32: 0 | AX32: 0 | AY32: 0 | AZ32: 0 | BA32: 0
C33: 1 | D33: 2 | E33: 0 | G33: 0 | H33: 0 | I33: 0 | J33: 0 | K33: 0 | L33: 0 | M33: 0 | N33: 0 | O33: 0 | P33: 0 | Q33: 0 | R33: 0 | S33: 0 | T33: 0 | U33: 0 | V33: 0 | W33: 0 | X33: 0 | Y33: 0 | Z33: 0 | AB33: =IF('Courbes de Production PV'!$C$4="Saisie Manuelle",'Courbes de Production PV'!F33*Données!$G$35,HLOOKUP('Courbes de Production PV'!$C$4&'Courbes de Production PV'!$C$5,'Courbes de Production PV'!$G$7:$Z$8769,'Compensation PV'!A76+2,FALSE)*Données!$G$35) -> 0 | AC33: 0 | AG33: 0 | AH33: 0 | AI33: 0 | AJ33: 0 | AK33: 0 | AL33: 0 | AM33: 0 | AN33: 0 | AO33: 0 | AP33: 0 | AR33: 0 | AS33: 0 | AT33: 0 | AU33: 0 | AV33: 0 | AW33: 0 | AX33: 0 | AY33: 0 | AZ33: 0 | BA33: 0
C34: 1 | D34: 2 | E34: 1 | G34: 0 | H34: 0 | I34: 0 | J34: 0 | K34: 0 | L34: 0 | M34: 0 | N34: 0 | O34: 0 | P34: 0 | Q34: 0 | R34: 0 | S34: 0 | T34: 0 | U34: 0 | V34: 0 | W34: 0 | X34: 0 | Y34: 0 | Z34: 0 | AB34: =IF('Courbes de Production PV'!$C$4="Saisie Manuelle",'Courbes de Production PV'!F34*Données!$G$35,HLOOKUP('Courbes de Production PV'!$C$4&'Courbes de Production PV'!$C$5,'Courbes de Production PV'!$G$7:$Z$8769,'Compensation PV'!A77+2,FALSE)*Données!$G$35) -> 0 | AC34: 0 | AG34: 0 | AH34: 0 | AI34: 0 | AJ34: 0 | AK34: 0 | AL34: 0 | AM34: 0 | AN34: 0 | AO34: 0 | AP34: 0 | AR34: 0 | AS34: 0 | AT34: 0 | AU34: 0 | AV34: 0 | AW34: 0 | AX34: 0 | AY34: 0 | AZ34: 0 | BA34: 0
C35: 1 | D35: 2 | E35: 2 | G35: 0 | H35: 0 | I35: 0 | J35: 0 | K35: 0 | L35: 0 | M35: 0 | N35: 0 | O35: 0 | P35: 0 | Q35: 0 | R35: 0 | S35: 0 | T35: 0 | U35: 0 | V35: 0 | W35: 0 | X35: 0 | Y35: 0 | Z35: 0 | AB35: =IF('Courbes de Production PV'!$C$4="Saisie Manuelle",'Courbes de Production PV'!F35*Données!$G$35,HLOOKUP('Courbes de Production PV'!$C$4&'Courbes de Production PV'!$C$5,'Courbes de Production PV'!$G$7:$Z$8769,'Compensation PV'!A78+2,FALSE)*Données!$G$35) -> 0 | AC35: 0 | AG35: 0 | AH35: 0 | AI35: 0 | AJ35: 0 | AK35: 0 | AL35: 0 | AM35: 0 | AN35: 0 | AO35: 0 | AP35: 0 | AR35: 0 | AS35: 0 | AT35: 0 | AU35: 0 | AV35: 0 | AW35: 0 | AX35: 0 | AY35: 0 | AZ35: 0 | BA35: 0
C36: 1 | D36: 2 | E36: 3 | G36: 0 | H36: 0 | I36: 0 | J36: 0 | K36: 0 | L36: 0 | M36: 0 | N36: 0 | O36: 0 | P36: 0 | Q36: 0 | R36: 0 | S36: 0 | T36: 0 | U36: 0 | V36: 0 | W36: 0 | X36: 0 | Y36: 0 | Z36: 0 | AB36: =IF('Courbes de Production PV'!$C$4="Saisie Manuelle",'Courbes de Production PV'!F36*Données!$G$35,HLOOKUP('Courbes de Production PV'!$C$4&'Courbes de Production PV'!$C$5,'Courbes de Production PV'!$G$7:$Z$8769,'Compensation PV'!A79+2,FALSE)*Données!$G$35) -> 0 | AC36: 0 | AG36: 0 | AH36: 0 | AI36: 0 | AJ36: 0 | AK36: 0 | AL36: 0 | AM36: 0 | AN36: 0 | AO36: 0 | AP36: 0 | AR36: 0 | AS36: 0 | AT36: 0 | AU36: 0 | AV36: 0 | AW36: 0 | AX36: 0 | AY36: 0 | AZ36: 0 | BA36: 0
C37: 1 | D37: 2 | E37: 4 | G37: 0 | H37: 0 | I37: 0 | J37: 0 | K37: 0 | L37: 0 | M37: 0 | N37: 0 | O37: 0 | P37: 0 | Q37: 0 | R37: 0 | S37: 0 | T37: 0 | U37: 0 | V37: 0 | W37: 0 | X37: 0 | Y37: 0 | Z37: 0 | AB37: =IF('Courbes de Production PV'!$C$4="Saisie Manuelle",'Courbes de Production PV'!F37*Données!$G$35,HLOOKUP('Courbes de Production PV'!$C$4&'Courbes de Production PV'!$C$5,'Courbes de Production PV'!$G$7:$Z$8769,'Compensation PV'!A80+2,FALSE)*Données!$G$35) -> 0 | AC37: 0 | AG37: 0 | AH37: 0 | AI37: 0 | AJ37: 0 | AK37: 0 | AL37: 0 | AM37: 0 | AN37: 0 | AO37: 0 | AP37: 0 | AR37: 0 | AS37: 0 | AT37: 0 | AU37: 0 | AV37: 0 | AW37: 0 | AX37: 0 | AY37: 0 | AZ37: 0 | BA37: 0
C38: 1 | D38: 2 | E38: 5 | G38: 0 | H38: 0 | I38: 0 | J38: 0 | K38: 0 | L38: 0 | M38: 0 | N38: 0 | O38: 0 | P38: 0 | Q38: 0 | R38: 0 | S38: 0 | T38: 0 | U38: 0 | V38: 0 | W38: 0 | X38: 0 | Y38: 0 | Z38: 0 | AB38: =IF('Courbes de Production PV'!$C$4="Saisie Manuelle",'Courbes de Production PV'!F38*Données!$G$35,HLOOKUP('Courbes de Production PV'!$C$4&'Courbes de Production PV'!$C$5,'Courbes de Production PV'!$G$7:$Z$8769,'Compensation PV'!A81+2,FALSE)*Données!$G$35) -> 0 | AC38: 0 | AG38: 0 | AH38: 0 | AI38: 0 | AJ38: 0 | AK38: 0 | AL38: 0 | AM38: 0 | AN38: 0 | AO38: 0 | AP38: 0 | AR38: 0 | AS38: 0 | AT38: 0 | AU38: 0 | AV38: 0 | AW38: 0 | AX38: 0 | AY38: 0 | AZ38: 0 | BA38: 0
C39: 1 | D39: 2 | E39: 6 | G39: 0 | H39: 0 | I39: 0 | J39: 0 | K39: 0 | L39: 0 | M39: 0 | N39: 0 | O39: 0 | P39: 0 | Q39: 0 | R39: 0 | S39: 0 | T39: 0 | U39: 0 | V39: 0 | W39: 0 | X39: 0 | Y39: 0 | Z39: 0 | AB39: =IF('Courbes de Production PV'!$C$4="Saisie Manuelle",'Courbes de Production PV'!F39*Données!$G$35,HLOOKUP('Courbes de Production PV'!$C$4&'Courbes de Production PV'!$C$5,'Courbes de Production PV'!$G$7:$Z$8769,'Compensation PV'!A82+2,FALSE)*Données!$G$35) -> 0 | AC39: 0 | AG39: 0 | AH39: 0 | AI39: 0 | AJ39: 0 | AK39: 0 | AL39: 0 | AM39: 0 | AN39: 0 | AO39: 0 | AP39: 0 | AR39: 0 | AS39: 0 | AT39: 0 | AU39: 0 | AV39: 0 | AW39: 0 | AX39: 0 | AY39: 0 | AZ39: 0 | BA39: 0
C40: 1 | D40: 2 | E40: 7 | G40: 0 | H40: 0 | I40: 0 | J40: 0 | K40: 0 | L40: 0 | M40: 0 | N40: 0 | O40: 0 | P40: 0 | Q40: 0 | R40: 0 | S40: 0 | T40: 0 | U40: 0 | V40: 0 | W40: 0 | X40: 0 | Y40: 0 | Z40: 0 | AB40: =IF('Courbes de Production PV'!$C$4="Saisie Manuelle",'Courbes de Production PV'!F40*Données!$G$35,HLOOKUP('Courbes de Production PV'!$C$4&'Courbes de Production PV'!$C$5,'Courbes de Production PV'!$G$7:$Z$8769,'Compensation PV'!A83+2,FALSE)*Données!$G$35) -> 0 | AC40: 0 | AG40: 0.0576796 | AH40: 0.0616413 | AI40: 0.0572594 | AJ40: 0.065036 | AK40: 0.0618822 | AL40: 0.0627563 | AM40: 0.0641947 | AN40: 0.0651667 | AO40: 0.0609456 | AP40: 0.058352 | AR40: 0.05982 | AS40: 0 | AT40: 0.04652 | AU40: 0.10887 | AV40: 0.08467 | AW40: 0.10351 | AX40: 0.11047 | AY40: 0.01606 | AZ40: 0.00107 | BA40: 0.00042
C41: 1 | D41: 2 | E41: 8 | G41: 0 | H41: 0 | I41: 0 | J41: 0 | K41: 0 | L41: 0 | M41: 0 | N41: 0 | O41: 0 | P41: 0 | Q41: 0 | R41: 0 | S41: 0 | T41: 0 | U41: 0 | V41: 0 | W41: 0 | X41: 0 | Y41: 0 | Z41: 0 | AB41: =IF('Courbes de Production PV'!$C$4="Saisie Manuelle",'Courbes de Production PV'!F41*Données!$G$35,HLOOKUP('Courbes de Production PV'!$C$4&'Courbes de Production PV'!$C$5,'Courbes de Production PV'!$G$7:$Z$8769,'Compensation PV'!A84+2,FALSE)*Données!$G$35) -> 0 | AC41: 0 | AG41: 0.165671 | AH41: 0.195108 | AI41: 0.162043 | AJ41: 0.210142 | AK41: 0.196737 | AL41: 0.200264 | AM41: 0.206785 | AN41: 0.208487 | AO41: 0.193401 | AP41: 0.168621 | AR41: 0.36263 | AS41: 0.01387 | AT41: 0.33443 | AU41: 0.38335 | AV41: 0.37677 | AW41: 0.39403 | AX41: 0.39638 | AY41: 0.34432 | AZ41: 0.01249 | BA41: 0.3026
C42: 1 | D42: 2 | E42: 9 | G42: 0.04836179255 | H42: 0.00390030066 | I42: 0.0943731506 | J42: 0.008449880616 | K42: 0.05470452168 | L42: 0.01342321568 | M42: 0.09774842875 | N42: 0.01306242492 | O42: 0.06776234809 | P42: 0.008715383023 | Q42: 0.09686948952 | R42: 0.009798249455 | S42: 0.09816430057 | T42: 0.010735061 | U42: 0.05079572228 | V42: 0.02742638213 | W42: 0.07346934355 | X42: 0.008749297229 | Y42: 0.002719443328 | Z42: 0.002316562835 | AB42: =IF('Courbes de Production PV'!$C$4="Saisie Manuelle",'Courbes de Production PV'!F42*Données!$G$35,HLOOKUP('Courbes de Production PV'!$C$4&'Courbes de Production PV'!$C$5,'Courbes de Production PV'!$G$7:$Z$8769,'Compensation PV'!A85+2,FALSE)*Données!$G$35) -> 0.1359721664 | AC42: 0.1359721664 | AG42: 0.267296 | AH42: 0.326437 | AI42: 0.2612 | AJ42: 0.345929 | AK42: 0.327341 | AL42: 0.331601 | AM42: 0.342029 | AN42: 0.341985 | AO42: 0.324334 | AP42: 0.271167 | AR42: 0.56665 | AS42: 0.06517 | AT42: 0.04574 | AU42: 0.58378 | AV42: 0.57607 | AW42: 0.21441 | AX42: 0.59593 | AY42: 0.5958 | AZ42: 0.03007 | BA42: 0.22042
C43: 1 | D43: 2 | E43: 10 | G43: 0.1296874165 | H43: 0.07144421705 | I43: 0.3526080916 | J43: 0.1030846674 | K43: 0.300687525 | L43: 0.08095145143 | M43: 0.3415393391 | N43: 0.1171310983 | O43: 0.05349813853 | P43: 0.05234131604 | Q43: 0.3715819631 | R43: 0.1137453095 | S43: 0.3515312101 | T43: 0.1116251644 | U43: 0.3649489252 | V43: 0.1326954331 | W43: 0.3349105309 | X43: 0.09462379234 | Y43: 0.03695421322 | Z43: 0.03759882201 | AB43: =IF('Courbes de Production PV'!$C$4="Saisie Manuelle",'Courbes de Production PV'!F43*Données!$G$35,HLOOKUP('Courbes de Production PV'!$C$4&'Courbes de Production PV'!$C$5,'Courbes de Production PV'!$G$7:$Z$8769,'Compensation PV'!A86+2,FALSE)*Données!$G$35) -> 1.847710661 | AC43: 1.847710661 | AG43: 0.330806 | AH43: 0.411122 | AI43: 0.324088 | AJ43: 0.429447 | AK43: 0.409656 | AL43: 0.413187 | AM43: 0.425814 | AN43: 0.424354 | AO43: 0.409342 | AP43: 0.334616 | AR43: 0.69525 | AS43: 0.2411 | AT43: 0.08606 | AU43: 0.71758 | AV43: 0.35631 | AW43: 0.25248 | AX43: 0.72499 | AY43: 0.53619 | AZ43: 0.12216 | BA43: 0.6797
C44: 1 | D44: 2 | E44: 11 | G44: 0.1088696827 | H44: 0.1027530822 | I44: 0.5487286579 | J44: 0.3010948286 | K44: 0.2097037888 | L44: 0.1593362866 | M44: 0.5184534467 | N44: 0.2997237568 | O44: 0.4603369237 | P44: 0.2739610558 | Q44: 0.2036799214 | R44: 0.16753104 | S44: 0.5282127911 | T44: 0.2972541045 | U44: 0.278213843 | V44: 0.2142351666 | W44: 0.5292991608 | X44: 0.2887648904 | Y44: 0.1884272066 | Z44: 0.1556730225 | AB44: =IF('Courbes de Production PV'!$C$4="Saisie Manuelle",'Courbes de Production PV'!F44*Données!$G$35,HLOOKUP('Courbes de Production PV'!$C$4&'Courbes de Production PV'!$C$5,'Courbes de Production PV'!$G$7:$Z$8769,'Compensation PV'!A87+2,FALSE)*Données!$G$35) -> 9.421360328 | AC44: 9.421360328 | AG44: 0.347974 | AH44: 0.434916 | AI44: 0.342986 | AJ44: 0.447855 | AK44: 0.429823 | AL44: 0.431642 | AM44: 0.444767 | AN44: 0.44353 | AO44: 0.433817 | AP44: 0.351057 | AR44: 0.75664 | AS44: 0.7668 | AT44: 0.52062 | AU44: 0.78348 | AV44: 0.76987 | AW44: 0.23675 | AX44: 0.78577 | AY44: 0.79596 | AZ44: 0.20851 | BA44: 0.73475
C45: 1 | D45: 2 | E45: 12 | G45: 0.1229610915 | H45: 0.1225062178 | I45: 0.6753121332 | J45: 0.470770757 | K45: 0.3237496024 | L45: 0.2613733336 | M45: 0.6364547873 | N45: 0.4567453559 | O45: 0.6581731773 | P45: 0.4632779979 | Q45: 0.2400856502 | R45: 0.2174069835 | S45: 0.6424575582 | T45: 0.4545984157 | U45: 0.6691686992 | V45: 0.4859110426 | W45: 0.6556927081 | X45: 0.458257533 | Y45: 0.6486678097 | Z45: 0.4533916348 | AB45: =IF('Courbes de Production PV'!$C$4="Saisie Manuelle",'Courbes de Production PV'!F45*Données!$G$35,HLOOKUP('Courbes de Production PV'!$C$4&'Courbes de Production PV'!$C$5,'Courbes de Production PV'!$G$7:$Z$8769,'Compensation PV'!A88+2,FALSE)*Données!$G$35) -> 32.43339049 | AC45: 32.43339049 | AG45: 0.316602 | AH45: 0.3981 | AI45: 0.314772 | AJ45: 0.404151 | AK45: 0.389135 | AL45: 0.388911 | AM45: 0.401347 | AN45: 0.40197 | AO45: 0.398073 | AP45: 0.318762 | AR45: 0.75353 | AS45: 0.77572 | AT45: 0.62433 | AU45: 0.77884 | AV45: 0.76472 | AW45: 0.05036 | AX45: 0.77959 | AY45: 0.79084 | AZ45: 0.5634 | BA45: 0.12917
C46: 1 | D46: 2 | E46: 13 | G46: 0.2445285272 | H46: 0.2279304736 | I46: 0.7467678897 | J46: 0.5913365995 | K46: 0.5866123229 | L46: 0.4702902766 | M46: 0.694602796 | N46: 0.5650245956 | O46: 0.5790190687 | P46: 0.4735619538 | Q46: 0.2253787632 | R46: 0.2180443454 | S46: 0.6962567633 | T46: 0.5610905748 | U46: 0.2359310985 | V46: 0.2297336507 | W46: 0.7296285539 | X46: 0.581099951 | Y46: 0.7150020829 | Z46: 0.5693607847 | AB46: =IF('Courbes de Production PV'!$C$4="Saisie Manuelle",'Courbes de Production PV'!F46*Données!$G$35,HLOOKUP('Courbes de Production PV'!$C$4&'Courbes de Production PV'!$C$5,'Courbes de Production PV'!$G$7:$Z$8769,'Compensation PV'!A89+2,FALSE)*Données!$G$35) -> 35.75010414 | AC46: 35.75010414 | AG46: 0.239738 | AH46: 0.30074 | AI46: 0.241468 | AJ46: 0.300006 | AK46: 0.289535 | AL46: 0.28753 | AM46: 0.297385 | AN46: 0.300644 | AO46: 0.301999 | AP46: 0.240881 | AR46: 0.45219 | AS46: 0.71735 | AT46: 0.24536 | AU46: 0.70587 | AV46: 0.69473 | AW46: 0.06415 | AX46: 0.70667 | AY46: 0.35144 | AZ46: 0.70802 | BA46: 0.16899
C47: 1 | D47: 2 | E47: 14 | G47: 0.1251386787 | H47: 0.1268710704 | I47: 0.7509637593 | J47: 0.6499140402 | K47: 0.5509045084 | L47: 0.4835167808 | M47: 0.6908229557 | N47: 0.6161051819 | O47: 0.6699374738 | P47: 0.5840973234 | Q47: 0.04805898665 | R47: 0.04927663318 | S47: 0.6907786077 | T47: 0.6116506766 | U47: 0.1693061021 | V47: 0.1715243409 | W47: 0.7358930127 | X47: 0.6417738044 | Y47: 0.6474893843 | Z47: 0.5700456815 | AB47: =IF('Courbes de Production PV'!$C$4="Saisie Manuelle",'Courbes de Production PV'!F47*Données!$G$35,HLOOKUP('Courbes de Production PV'!$C$4&'Courbes de Production PV'!$C$5,'Courbes de Production PV'!$G$7:$Z$8769,'Compensation PV'!A90+2,FALSE)*Données!$G$35) -> 32.37446921 | AC47: 32.37446921 | AG47: 0.13359 | AH47: 0.166769 | AI47: 0.137179 | AJ47: 0.162209 | AK47: 0.156699 | AL47: 0.154095 | AM47: 0.160071 | AN47: 0.16467 | AO47: 0.168735 | AP47: 0.133916 | AR47: 0.26865 | AS47: 0.23216 | AT47: 0.5302 | AU47: 0.56043 | AV47: 0.51168 | AW47: 0.07305 | AX47: 0.13265 | AY47: 0.02798 | AZ47: 0.58662 | BA47: 0.07733
C48: 1 | D48: 2 | E48: 15 | G48: 0.08658086775 | H48: 0.08825519037 | I48: 0.690593626 | J48: 0.6454662246 | K48: 0.5937033028 | L48: 0.5564217966 | M48: 0.626882122 | N48: 0.6072269523 | O48: 0.574362368 | P48: 0.5397165147 | Q48: 0.06121527694 | R48: 0.06272782224 | S48: 0.6262266415 | T48: 0.6029865177 | U48: 0.3086659807 | V48: 0.3045894804 | W48: 0.6794557613 | X48: 0.641031209 | Y48: 0.2313239071 | Z48: 0.229662025 | AB48: =IF('Courbes de Production PV'!$C$4="Saisie Manuelle",'Courbes de Production PV'!F48*Données!$G$35,HLOOKUP('Courbes de Production PV'!$C$4&'Courbes de Production PV'!$C$5,'Courbes de Production PV'!$G$7:$Z$8769,'Compensation PV'!A91+2,FALSE)*Données!$G$35) -> 11.56619535 | AC48: 11.56619535 | AG48: 0.0324498 | AH48: 0.0349358 | AI48: 0.0332087 | AJ48: 0.0336548 | AK48: 0.0334107 | AL48: 0.0330028 | AM48: 0.033574 | AN48: 0.0342811 | AO48: 0.0349846 | AP48: 0.032394 | AR48: 0.23609 | AS48: 0.25592 | AT48: 0.04747 | AU48: 0.34962 | AV48: 0.31246 | AW48: 0.30651 | AX48: 0.36011 | AY48: 0.36464 | AZ48: 0.39632 | BA48: 0.20286
C49: 1 | D49: 2 | E49: 16 | G49: 0.05527200265 | H49: 0.05640434801 | I49: 0.5783807619 | J49: 0.5871213494 | K49: 0.4645200736 | L49: 0.4729318306 | M49: 0.4985345673 | N49: 0.5291249029 | O49: 0.2733924481 | P49: 0.2784510956 | Q49: 0.06971026408 | R49: 0.07141306666 | S49: 0.1173599702 | T49: 0.1206167736 | U49: 0.1135485299 | V49: 0.1163991613 | W49: 0.5780058035 | X49: 0.5932956526 | Y49: 0.06710981812 | Z49: 0.06868105204 | AB49: =IF('Courbes de Production PV'!$C$4="Saisie Manuelle",'Courbes de Production PV'!F49*Données!$G$35,HLOOKUP('Courbes de Production PV'!$C$4&'Courbes de Production PV'!$C$5,'Courbes de Production PV'!$G$7:$Z$8769,'Compensation PV'!A92+2,FALSE)*Données!$G$35) -> 3.355490906 | AC49: 3.355490906 | AG49: 0 | AH49: 0 | AI49: 0 | AJ49: 0 | AK49: 0 | AL49: 0 | AM49: 0 | AN49: 0 | AO49: 0 | AP49: 0 | AR49: 0 | AS49: 0.11104 | AT49: 0.00095 | AU49: 0.06406 | AV49: 0.06911 | AW49: 0.05387 | AX49: 0.06556 | AY49: 0.08023 | AZ49: 0.12694 | BA49: 0.00211
C50: 1 | D50: 2 | E50: 17 | G50: 0.01814656014 | H50: 0.01857239942 | I50: 0.3857777491 | J50: 0.4391224656 | K50: 0.08301223821 | L50: 0.08877307396 | M50: 0.311959891 | N50: 0.3776236287 | O50: 0.3282434807 | P50: 0.3757516316 | Q50: 0.2890293332 | R50: 0.3457545385 | S50: 0.3193879772 | T50: 0.3858692453 | U50: 0.2846545188 | V50: 0.3312083458 | W50: 0.3922712663 | X50: 0.4521263606 | Y50: 0.02683184083 | Z50: 0.02753688169 | AB50: =IF('Courbes de Production PV'!$C$4="Saisie Manuelle",'Courbes de Production PV'!F50*Données!$G$35,HLOOKUP('Courbes de Production PV'!$C$4&'Courbes de Production PV'!$C$5,'Courbes de Production PV'!$G$7:$Z$8769,'Compensation PV'!A93+2,FALSE)*Données!$G$35) -> 1.341592042 | AC50: 1.341592042 | AG50: 0 | AH50: 0 | AI50: 0 | AJ50: 0 | AK50: 0 | AL50: 0 | AM50: 0 | AN50: 0 | AO50: 0 | AP50: 0 | AR50: 0 | AS50: 0 | AT50: 0 | AU50: 0 | AV50: 0 | AW50: 0 | AX50: 0 | AY50: 0 | AZ50: 0 | BA50: 0
C51: 1 | D51: 2 | E51: 18 | G51: 0 | H51: 0 | I51: 0.1228721172 | J51: 0.1814398677 | K51: 0.07487213044 | L51: 0.1095776532 | M51: 0.05762058907 | N51: 0.09532229869 | O51: 0.05561571191 | P51: 0.08522252488 | Q51: 0.05027548385 | R51: 0.08577749062 | S51: 0.0582773097 | T51: 0.09762445001 | U51: 0.04184493421 | V51: 0.0539284981 | W51: 0.120871684 | X51: 0.179774733 | Y51: 0.1257390019 | Z51: 0.2154302716 | AB51: =IF('Courbes de Production PV'!$C$4="Saisie Manuelle",'Courbes de Production PV'!F51*Données!$G$35,HLOOKUP('Courbes de Production PV'!$C$4&'Courbes de Production PV'!$C$5,'Courbes de Production PV'!$G$7:$Z$8769,'Compensation PV'!A94+2,FALSE)*Données!$G$35) -> 6.286950093 | AC51: 6.286950093 | AG51: 0 | AH51: 0 | AI51: 0 | AJ51: 0 | AK51: 0 | AL51: 0 | AM51: 0 | AN51: 0 | AO51: 0 | AP51: 0 | AR51: 0 | AS51: 0 | AT51: 0 | AU51: 0 | AV51: 0 | AW51: 0 | AX51: 0 | AY51: 0 | AZ51: 0 | BA51: 0
C52: 1 | D52: 2 | E52: 19 | G52: 0 | H52: 0 | I52: 0 | J52: 0 | K52: 0 | L52: 0 | M52: 0 | N52: 0 | O52: 0 | P52: 0 | Q52: 0 | R52: 0 | S52: 0 | T52: 0 | U52: 0 | V52: 0 | W52: 0 | X52: 0 | Y52: 0 | Z52: 0 | AB52: =IF('Courbes de Production PV'!$C$4="Saisie Manuelle",'Courbes de Production PV'!F52*Données!$G$35,HLOOKUP('Courbes de Production PV'!$C$4&'Courbes de Production PV'!$C$5,'Courbes de Production PV'!$G$7:$Z$8769,'Compensation PV'!A95+2,FALSE)*Données!$G$35) -> 0 | AC52: 0 | AG52: 0 | AH52: 0 | AI52: 0 | AJ52: 0 | AK52: 0 | AL52: 0 | AM52: 0 | AN52: 0 | AO52: 0 | AP52: 0 | AR52: 0 | AS52: 0 | AT52: 0 | AU52: 0 | AV52: 0 | AW52: 0 | AX52: 0 | AY52: 0 | AZ52: 0 | BA52: 0
C53: 1 | D53: 2 | E53: 20 | G53: 0 | H53: 0 | I53: 0 | J53: 0 | K53: 0 | L53: 0 | M53: 0 | N53: 0 | O53: 0 | P53: 0 | Q53: 0 | R53: 0 | S53: 0 | T53: 0 | U53: 0 | V53: 0 | W53: 0 | X53: 0 | Y53: 0 | Z53: 0 | AB53: =IF('Courbes de Production PV'!$C$4="Saisie Manuelle",'Courbes de Production PV'!F53*Données!$G$35,HLOOKUP('Courbes de Production PV'!$C$4&'Courbes de Production PV'!$C$5,'Courbes de Production PV'!$G$7:$Z$8769,'Compensation PV'!A96+2,FALSE)*Données!$G$35) -> 0 | AC53: 0 | AG53: 0 | AH53: 0 | AI53: 0 | AJ53: 0 | AK53: 0 | AL53: 0 | AM53: 0 | AN53: 0 | AO53: 0 | AP53: 0 | AR53: 0 | AS53: 0 | AT53: 0 | AU53: 0 | AV53: 0 | AW53: 0 | AX53: 0 | AY53: 0 | AZ53: 0 | BA53: 0
C54: 1 | D54: 2 | E54: 21 | G54: 0 | H54: 0 | I54: 0 | J54: 0 | K54: 0 | L54: 0 | M54: 0 | N54: 0 | O54: 0 | P54: 0 | Q54: 0 | R54: 0 | S54: 0 | T54: 0 | U54: 0 | V54: 0 | W54: 0 | X54: 0 | Y54: 0 | Z54: 0 | AB54: =IF('Courbes de Production PV'!$C$4="Saisie Manuelle",'Courbes de Production PV'!F54*Données!$G$35,HLOOKUP('Courbes de Production PV'!$C$4&'Courbes de Production PV'!$C$5,'Courbes de Production PV'!$G$7:$Z$8769,'Compensation PV'!A97+2,FALSE)*Données!$G$35) -> 0 | AC54: 0 | AG54: 0 | AH54: 0 | AI54: 0 | AJ54: 0 | AK54: 0 | AL54: 0 | AM54: 0 | AN54: 0 | AO54: 0 | AP54: 0 | AR54: 0 | AS54: 0 | AT54: 0 | AU54: 0 | AV54: 0 | AW54: 0 | AX54: 0 | AY54: 0 | AZ54: 0 | BA54: 0
C55: 1 | D55: 2 | E55: 22 | G55: 0 | H55: 0 | I55: 0 | J55: 0 | K55: 0 | L55: 0 | M55: 0 | N55: 0 | O55: 0 | P55: 0 | Q55: 0 | R55: 0 | S55: 0 | T55: 0 | U55: 0 | V55: 0 | W55: 0 | X55: 0 | Y55: 0 | Z55: 0 | AB55: =IF('Courbes de Production PV'!$C$4="Saisie Manuelle",'Courbes de Production PV'!F55*Données!$G$35,HLOOKUP('Courbes de Production PV'!$C$4&'Courbes de Production PV'!$C$5,'Courbes de Production PV'!$G$7:$Z$8769,'Compensation PV'!A98+2,FALSE)*Données!$G$35) -> 0 | AC55: 0 | AG55: 0 | AH55: 0 | AI55: 0 | AJ55: 0 | AK55: 0 | AL55: 0 | AM55: 0 | AN55: 0 | AO55: 0 | AP55: 0 | AR55: 0 | AS55: 0 | AT55: 0 | AU55: 0 | AV55: 0 | AW55: 0 | AX55: 0 | AY55: 0 | AZ55: 0 | BA55: 0
C56: 1 | D56: 2 | E56: 23 | G56: 0 | H56: 0 | I56: 0 | J56: 0 | K56: 0 | L56: 0 | M56: 0 | N56: 0 | O56: 0 | P56: 0 | Q56: 0 | R56: 0 | S56: 0 | T56: 0 | U56: 0 | V56: 0 | W56: 0 | X56: 0 | Y56: 0 | Z56: 0 | AB56: =IF('Courbes de Production PV'!$C$4="Saisie Manuelle",'Courbes de Production PV'!F56*Données!$G$35,HLOOKUP('Courbes de Production PV'!$C$4&'Courbes de Production PV'!$C$5,'Courbes de Production PV'!$G$7:$Z$8769,'Compensation PV'!A99+2,FALSE)*Données!$G$35) -> 0 | AC56: 0 | AG56: 0 | AH56: 0 | AI56: 0 | AJ56: 0 | AK56: 0 | AL56: 0 | AM56: 0 | AN56: 0 | AO56: 0 | AP56: 0 | AR56: 0 | AS56: 0 | AT56: 0 | AU56: 0 | AV56: 0 | AW56: 0 | AX56: 0 | AY56: 0 | AZ56: 0 | BA56: 0
C57: 1 | D57: 3 | E57: 0 | G57: 0 | H57: 0 | I57: 0 | J57: 0 | K57: 0 | L57: 0 | M57: 0 | N57: 0 | O57: 0 | P57: 0 | Q57: 0 | R57: 0 | S57: 0 | T57: 0 | U57: 0 | V57: 0 | W57: 0 | X57: 0 | Y57: 0 | Z57: 0 | AB57: =IF('Courbes de Production PV'!$C$4="Saisie Manuelle",'Courbes de Production PV'!F57*Données!$G$35,HLOOKUP('Courbes de Production PV'!$C$4&'Courbes de Production PV'!$C$5,'Courbes de Production PV'!$G$7:$Z$8769,'Compensation PV'!A100+2,FALSE)*Données!$G$35) -> 0 | AC57: 0 | AG57: 0 | AH57: 0 | AI57: 0 | AJ57: 0 | AK57: 0 | AL57: 0 | AM57: 0 | AN57: 0 | AO57: 0 | AP57: 0 | AR57: 0 | AS57: 0 | AT57: 0 | AU57: 0 | AV57: 0 | AW57: 0 | AX57: 0 | AY57: 0 | AZ57: 0 | BA57: 0
C58: 1 | D58: 3 | E58: 1 | G58: 0 | H58: 0 | I58: 0 | J58: 0 | K58: 0 | L58: 0 | M58: 0 | N58: 0 | O58: 0 | P58: 0 | Q58: 0 | R58: 0 | S58: 0 | T58: 0 | U58: 0 | V58: 0 | W58: 0 | X58: 0 | Y58: 0 | Z58: 0 | AB58: =IF('Courbes de Production PV'!$C$4="Saisie Manuelle",'Courbes de Production PV'!F58*Données!$G$35,HLOOKUP('Courbes de Production PV'!$C$4&'Courbes de Production PV'!$C$5,'Courbes de Production PV'!$G$7:$Z$8769,'Compensation PV'!A101+2,FALSE)*Données!$G$35) -> 0 | AC58: 0 | AG58: 0 | AH58: 0 | AI58: 0 | AJ58: 0 | AK58: 0 | AL58: 0 | AM58: 0 | AN58: 0 | AO58: 0 | AP58: 0 | AR58: 0 | AS58: 0 | AT58: 0 | AU58: 0 | AV58: 0 | AW58: 0 | AX58: 0 | AY58: 0 | AZ58: 0 | BA58: 0
C59: 1 | D59: 3 | E59: 2 | G59: 0 | H59: 0 | I59: 0 | J59: 0 | K59: 0 | L59: 0 | M59: 0 | N59: 0 | O59: 0 | P59: 0 | Q59: 0 | R59: 0 | S59: 0 | T59: 0 | U59: 0 | V59: 0 | W59: 0 | X59: 0 | Y59: 0 | Z59: 0 | AB59: =IF('Courbes de Production PV'!$C$4="Saisie Manuelle",'Courbes de Production PV'!F59*Données!$G$35,HLOOKUP('Courbes de Production PV'!$C$4&'Courbes de Production PV'!$C$5,'Courbes de Production PV'!$G$7:$Z$8769,'Compensation PV'!A102+2,FALSE)*Données!$G$35) -> 0 | AC59: 0 | AG59: 0 | AH59: 0 | AI59: 0 | AJ59: 0 | AK59: 0 | AL59: 0 | AM59: 0 | AN59: 0 | AO59: 0 | AP59: 0 | AR59: 0 | AS59: 0 | AT59: 0 | AU59: 0 | AV59: 0 | AW59: 0 | AX59: 0 | AY59: 0 | AZ59: 0 | BA59: 0
C60: 1 | D60: 3 | E60: 3 | G60: 0 | H60: 0 | I60: 0 | J60: 0 | K60: 0 | L60: 0 | M60: 0 | N60: 0 | O60: 0 | P60: 0 | Q60: 0 | R60: 0 | S60: 0 | T60: 0 | U60: 0 | V60: 0 | W60: 0 | X60: 0 | Y60: 0 | Z60: 0 | AB60: =IF('Courbes de Production PV'!$C$4="Saisie Manuelle",'Courbes de Production PV'!F60*Données!$G$35,HLOOKUP('Courbes de Production PV'!$C$4&'Courbes de Production PV'!$C$5,'Courbes de Production PV'!$G$7:$Z$8769,'Compensation PV'!A103+2,FALSE)*Données!$G$35) -> 0 | AC60: 0 | AG60: 0 | AH60: 0 | AI60: 0 | AJ60: 0 | AK60: 0 | AL60: 0 | AM60: 0 | AN60: 0 | AO60: 0 | AP60: 0 | AR60: 0 | AS60: 0 | AT60: 0 | AU60: 0 | AV60: 0 | AW60: 0 | AX60: 0 | AY60: 0 | AZ60: 0 | BA60: 0
C61: 1 | D61: 3 | E61: 4 | G61: 0 | H61: 0 | I61: 0 | J61: 0 | K61: 0 | L61: 0 | M61: 0 | N61: 0 | O61: 0 | P61: 0 | Q61: 0 | R61: 0 | S61: 0 | T61: 0 | U61: 0 | V61: 0 | W61: 0 | X61: 0 | Y61: 0 | Z61: 0 | AB61: =IF('Courbes de Production PV'!$C$4="Saisie Manuelle",'Courbes de Production PV'!F61*Données!$G$35,HLOOKUP('Courbes de Production PV'!$C$4&'Courbes de Production PV'!$C$5,'Courbes de Production PV'!$G$7:$Z$8769,'Compensation PV'!A104+2,FALSE)*Données!$G$35) -> 0 | AC61: 0 | AG61: 0 | AH61: 0 | AI61: 0 | AJ61: 0 | AK61: 0 | AL61: 0 | AM61: 0 | AN61: 0 | AO61: 0 | AP61: 0 | AR61: 0 | AS61: 0 | AT61: 0 | AU61: 0 | AV61: 0 | AW61: 0 | AX61: 0 | AY61: 0 | AZ61: 0 | BA61: 0
C62: 1 | D62: 3 | E62: 5 | G62: 0 | H62: 0 | I62: 0 | J62: 0 | K62: 0 | L62: 0 | M62: 0 | N62: 0 | O62: 0 | P62: 0 | Q62: 0 | R62: 0 | S62: 0 | T62: 0 | U62: 0 | V62: 0 | W62: 0 | X62: 0 | Y62: 0 | Z62: 0 | AB62: =IF('Courbes de Production PV'!$C$4="Saisie Manuelle",'Courbes de Production PV'!F62*Données!$G$35,HLOOKUP('Courbes de Production PV'!$C$4&'Courbes de Production PV'!$C$5,'Courbes de Production PV'!$G$7:$Z$8769,'Compensation PV'!A105+2,FALSE)*Données!$G$35) -> 0 | AC62: 0 | AG62: 0 | AH62: 0 | AI62: 0 | AJ62: 0 | AK62: 0 | AL62: 0 | AM62: 0 | AN62: 0 | AO62: 0 | AP62: 0 | AR62: 0 | AS62: 0 | AT62: 0 | AU62: 0 | AV62: 0 | AW62: 0 | AX62: 0 | AY62: 0 | AZ62: 0 | BA62: 0
C63: 1 | D63: 3 | E63: 6 | G63: 0 | H63: 0 | I63: 0 | J63: 0 | K63: 0 | L63: 0 | M63: 0 | N63: 0 | O63: 0 | P63: 0 | Q63: 0 | R63: 0 | S63: 0 | T63: 0 | U63: 0 | V63: 0 | W63: 0 | X63: 0 | Y63: 0 | Z63: 0 | AB63: =IF('Courbes de Production PV'!$C$4="Saisie Manuelle",'Courbes de Production PV'!F63*Données!$G$35,HLOOKUP('Courbes de Production PV'!$C$4&'Courbes de Production PV'!$C$5,'Courbes de Production PV'!$G$7:$Z$8769,'Compensation PV'!A106+2,FALSE)*Données!$G$35) -> 0 | AC63: 0 | AG63: 0 | AH63: 0 | AI63: 0 | AJ63: 0 | AK63: 0 | AL63: 0 | AM63: 0 | AN63: 0 | AO63: 0 | AP63: 0 | AR63: 0 | AS63: 0 | AT63: 0 | AU63: 0 | AV63: 0 | AW63: 0 | AX63: 0 | AY63: 0 | AZ63: 0 | BA63: 0
C64: 1 | D64: 3 | E64: 7 | G64: 0 | H64: 0 | I64: 0 | J64: 0 | K64: 0 | L64: 0 | M64: 0 | N64: 0 | O64: 0 | P64: 0 | Q64: 0 | R64: 0 | S64: 0 | T64: 0 | U64: 0 | V64: 0 | W64: 0 | X64: 0 | Y64: 0 | Z64: 0 | AB64: =IF('Courbes de Production PV'!$C$4="Saisie Manuelle",'Courbes de Production PV'!F64*Données!$G$35,HLOOKUP('Courbes de Production PV'!$C$4&'Courbes de Production PV'!$C$5,'Courbes de Production PV'!$G$7:$Z$8769,'Compensation PV'!A107+2,FALSE)*Données!$G$35) -> 0 | AC64: 0 | AG64: 0.0579414 | AH64: 0.0616935 | AI64: 0.0574691 | AJ64: 0.0651335 | AK64: 0.0620387 | AL64: 0.0629095 | AM64: 0.0642685 | AN64: 0.0651962 | AO64: 0.0611 | AP64: 0.0586072 | AR64: 0.05346 | AS64: 0.07133 | AT64: 0.00328 | AU64: 0.10909 | AV64: 0.08085 | AW64: 0.09875 | AX64: 0.10653 | AY64: 0.01618 | AZ64: 0.06014 | BA64: 0.01043
C65: 1 | D65: 3 | E65: 8 | G65: 0 | H65: 0 | I65: 0 | J65: 0 | K65: 0 | L65: 0 | M65: 0 | N65: 0 | O65: 0 | P65: 0 | Q65: 0 | R65: 0 | S65: 0 | T65: 0 | U65: 0 | V65: 0 | W65: 0 | X65: 0 | Y65: 0 | Z65: 0 | AB65: =IF('Courbes de Production PV'!$C$4="Saisie Manuelle",'Courbes de Production PV'!F65*Données!$G$35,HLOOKUP('Courbes de Production PV'!$C$4&'Courbes de Production PV'!$C$5,'Courbes de Production PV'!$G$7:$Z$8769,'Compensation PV'!A108+2,FALSE)*Données!$G$35) -> 0 | AC65: 0 | AG65: 0.167154 | AH65: 0.196473 | AI65: 0.163373 | AJ65: 0.211916 | AK65: 0.198388 | AL65: 0.201987 | AM65: 0.208442 | AN65: 0.210082 | AO65: 0.194936 | AP65: 0.170133 | AR65: 0.34749 | AS65: 0.36188 | AT65: 0.32777 | AU65: 0.38116 | AV65: 0.36229 | AW65: 0.38312 | AX65: 0.38507 | AY65: 0.39287 | AZ65: 0.35378 | BA65: 0.34372
C66: 1 | D66: 3 | E66: 9 | G66: 0.0006097244208 | H66: 0.0005516554283 | I66: 0.09044860742 | J66: 0.008178554175 | K66: 0.002941304762 | L66: 0.002875734273 | M66: 0.09780996104 | N66: 0.01306242492 | O66: 0.0164013901 | P66: 0.007293863857 | Q66: 0.09241746938 | R66: 0.009541402139 | S66: 0.09466854698 | T66: 0.01049611075 | U66: 0.0761011568 | V66: 0.01467150914 | W66: 0.06858535064 | X66: 0.01084379711 | Y66: 0.006637456122 | Z66: 0.003827364683 | AB66: =IF('Courbes de Production PV'!$C$4="Saisie Manuelle",'Courbes de Production PV'!F66*Données!$G$35,HLOOKUP('Courbes de Production PV'!$C$4&'Courbes de Production PV'!$C$5,'Courbes de Production PV'!$G$7:$Z$8769,'Compensation PV'!A109+2,FALSE)*Données!$G$35) -> 0.3318728061 | AC66: 0.3318728061 | AG66: 0.267609 | AH66: 0.319888 | AI66: 0.262199 | AJ66: 0.337374 | AK66: 0.320845 | AL66: 0.324664 | AM66: 0.333869 | AN66: 0.333753 | AO66: 0.318079 | AP66: 0.271026 | AR66: 0.55243 | AS66: 0.55591 | AT66: 0.38765 | AU66: 0.57931 | AV66: 0.54989 | AW66: 0.57673 | AX66: 0.57891 | AY66: 0.59035 | AZ66: 0.55672 | BA66: 0.53714
C67: 1 | D67: 3 | E67: 10 | G67: 0.07089256162 | H67: 0.05585269258 | I67: 0.3467939536 | J67: 0.1004295444 | K67: 0.08036131703 | L67: 0.05951926896 | M67: 0.3394208704 | N67: 0.1162432753 | O67: 0.05930185816 | P67: 0.05597844439 | Q67: 0.3613175833 | R67: 0.1107392446 | S67: 0.3414952998 | T67: 0.1086338613 | U67: 0.3558813877 | V67: 0.1296599484 | W67: 0.2151622605 | X67: 0.08996829034 | Y67: 0.0914538719 | Z67: 0.06811701935 | AB67: =IF('Courbes de Production PV'!$C$4="Saisie Manuelle",'Courbes de Production PV'!F67*Données!$G$35,HLOOKUP('Courbes de Production PV'!$C$4&'Courbes de Production PV'!$C$5,'Courbes de Production PV'!$G$7:$Z$8769,'Compensation PV'!A110+2,FALSE)*Données!$G$35) -> 4.572693595 | AC67: 4.572693595 | AG67: 0.321955 | AH67: 0.377224 | AI67: 0.318138 | AJ67: 0.388446 | AK67: 0.375254 | AL67: 0.377499 | AM67: 0.386443 | AN67: 0.385449 | AO67: 0.375135 | AP67: 0.324357 | AR67: 0.68689 | AS67: 0.67688 | AT67: 0.66356 | AU67: 0.26027 | AV67: 0.66549 | AW67: 0.69922 | AX67: 0.70275 | AY67: 0.71392 | AZ67: 0.68604 | BA67: 0.66162
C68: 1 | D68: 3 | E68: 11 | G68: 0.08702606336 | H68: 0.08597114333 | I68: 0.5475076889 | J68: 0.2978970526 | K68: 0.003559540794 | L68: 0.003709416196 | M68: 0.5141637675 | N68: 0.2978514172 | O68: 0.5352656892 | P68: 0.2982543281 | Q68: 0.5451251328 | R68: 0.3031083713 | S68: 0.5131146757 | T68: 0.289890897 | U68: 0.5389931075 | V68: 0.3206327951 | W68: 0.5266334337 | X68: 0.2851661588 | Y68: 0.5248424902 | Z68: 0.2866796868 | AB68: =IF('Courbes de Production PV'!$C$4="Saisie Manuelle",'Courbes de Production PV'!F68*Données!$G$35,HLOOKUP('Courbes de Production PV'!$C$4&'Courbes de Production PV'!$C$5,'Courbes de Production PV'!$G$7:$Z$8769,'Compensation PV'!A111+2,FALSE)*Données!$G$35) -> 26.24212451 | AC68: 26.24212451 | AG68: 0.311263 | AH68: 0.362086 | AI68: 0.309478 | AJ68: 0.367513 | AK68: 0.357645 | AL68: 0.358423 | AM68: 0.366466 | AN68: 0.365815 | AO68: 0.360143 | AP68: 0.312773 | AR68: 0.73835 | AS68: 0.7474 | AT68: 0.71836 | AU68: 0.76684 | AV68: 0.72598 | AW68: 0.76027 | AX68: 0.76248 | AY68: 0.77165 | AZ68: 0.76024 | BA68: 0.68364
C69: 1 | D69: 3 | E69: 12 | G69: 0.05589140524 | H69: 0.05702375059 | I69: 0.6798084 | J69: 0.4704219087 | K69: 0.06049345908 | L69: 0.06202031473 | M69: 0.3141574726 | N69: 0.2666457588 | O69: 0.1136823189 | P69: 0.1162410534 | Q69: 0.6615435569 | R69: 0.4650458474 | S69: 0.622739738 | T69: 0.4424473533 | U69: 0.6549836459 | V69: 0.4779818119 | W69: 0.6570255717 | X69: 0.4561249513 | Y69: 0.6424231621 | Z69: 0.4496549182 | AB69: =IF('Courbes de Production PV'!$C$4="Saisie Manuelle",'Courbes de Production PV'!F69*Données!$G$35,HLOOKUP('Courbes de Production PV'!$C$4&'Courbes de Production PV'!$C$5,'Courbes de Production PV'!$G$7:$Z$8769,'Compensation PV'!A112+2,FALSE)*Données!$G$35) -> 32.1211581 | AC69: 32.1211581 | AG69: 0.270427 | AH69: 0.314209 | AI69: 0.270426 | AJ69: 0.315553 | AK69: 0.3081 | AL69: 0.307734 | AM69: 0.314737 | AN69: 0.315135 | AO69: 0.313009 | AP69: 0.271337 | AR69: 0.7363 | AS69: 0.75547 | AT69: 0.71779 | AU69: 0.76316 | AV69: 0.72381 | AW69: 0.75434 | AX69: 0.75733 | AY69: 0.7682 | AZ69: 0.76829 | BA69: 0.71513
C70: 1 | D70: 3 | E70: 13 | G70: 0.1743521499 | H70: 0.1710422173 | I70: 0.7417483505 | J70: 0.5847956942 | K70: 0.09253869344 | L70: 0.09477745725 | M70: 0.6798086768 | N70: 0.5537026553 | O70: 0.7157888196 | P70: 0.5681076837 | Q70: 0.7195625117 | R70: 0.5765841726 | S70: 0.6756096921 | T70: 0.5459482093 | U70: 0.7112374031 | V70: 0.5824628043 | W70: 0.7224882134 | X70: 0.5732455765 | Y70: 0.6971746211 | Z70: 0.5575463142 | AB70: =IF('Courbes de Production PV'!$C$4="Saisie Manuelle",'Courbes de Production PV'!F70*Données!$G$35,HLOOKUP('Courbes de Production PV'!$C$4&'Courbes de Production PV'!$C$5,'Courbes de Production PV'!$G$7:$Z$8769,'Compensation PV'!A113+2,FALSE)*Données!$G$35) -> 34.85873105 | AC70: 34.85873105 | AG70: 0.200957 | AH70: 0.225537 | AI70: 0.202655 | AJ70: 0.22315 | AK70: 0.219644 | AL70: 0.218588 | AM70: 0.222893 | AN70: 0.224243 | AO70: 0.224683 | AP70: 0.201156 | AR70: 0.667 | AS70: 0.69881 | AT70: 0.65475 | AU70: 0.69247 | AV70: 0.66072 | AW70: 0.68348 | AX70: 0.68776 | AY70: 0.69837 | AZ70: 0.71023 | BA70: 0.64913
C71: 1 | D71: 3 | E71: 14 | G71: 0.1210351366 | H71: 0.1228836662 | I71: 0.7429983902 | J71: 0.6416773447 | K71: 0.3906221333 | L71: 0.3555138204 | M71: 0.6772243208 | N71: 0.6042470317 | O71: 0.5791367117 | P71: 0.5102273447 | Q71: 0.7139213836 | R71: 0.6284673303 | S71: 0.6710430875 | T71: 0.5949949596 | U71: 0.7078419411 | V71: 0.6299117102 | W71: 0.726001261 | X71: 0.6321295845 | Y71: 0.5612225987 | Z71: 0.4998336836 | AB71: =IF('Courbes de Production PV'!$C$4="Saisie Manuelle",'Courbes de Production PV'!F71*Données!$G$35,HLOOKUP('Courbes de Production PV'!$C$4&'Courbes de Production PV'!$C$5,'Courbes de Production PV'!$G$7:$Z$8769,'Compensation PV'!A114+2,FALSE)*Données!$G$35) -> 28.06112994 | AC71: 28.06112994 | AG71: 0.109733 | AH71: 0.118799 | AI71: 0.111397 | AJ71: 0.116033 | AK71: 0.115092 | AL71: 0.114231 | AM71: 0.116091 | AN71: 0.117311 | AO71: 0.118245 | AP71: 0.109637 | AR71: 0.53361 | AS71: 0.57552 | AT71: 0.53433 | AU71: 0.55292 | AV71: 0.5285 | AW71: 0.53976 | AX71: 0.55288 | AY71: 0.56062 | AZ71: 0.58836 | BA71: 0.51566
C72: 1 | D72: 3 | E72: 15 | G72: 0.4249779213 | H72: 0.4111671793 | I72: 0.6799925143 | J72: 0.6351170589 | K72: 0.007184652077 | L72: 0.007437566817 | M72: 0.6154722784 | N72: 0.5961071895 | O72: 0.08787929518 | P72: 0.09038901178 | Q72: 0.6465703097 | R72: 0.6188212867 | S72: 0.6094558744 | T72: 0.5869503013 | U72: 0.6440773052 | V72: 0.6171568372 | W72: 0.6160876195 | X72: 0.5822424055 | Y72: 0.4409426275 | Z72: 0.4244748874 | AB72: =IF('Courbes de Production PV'!$C$4="Saisie Manuelle",'Courbes de Production PV'!F72*Données!$G$35,HLOOKUP('Courbes de Production PV'!$C$4&'Courbes de Production PV'!$C$5,'Courbes de Production PV'!$G$7:$Z$8769,'Compensation PV'!A115+2,FALSE)*Données!$G$35) -> 22.04713138 | AC72: 22.04713138 | AG72: 0.0318661 | AH72: 0.0330212 | AI72: 0.0323507 | AJ72: 0.0321202 | AK72: 0.0321396 | AL72: 0.0319324 | AM72: 0.0322445 | AN72: 0.032527 | AO72: 0.0327634 | AP72: 0.0318003 | AR72: 0.33041 | AS72: 0.38444 | AT72: 0.34572 | AU72: 0.34599 | AV72: 0.33782 | AW72: 0.33665 | AX72: 0.35027 | AY72: 0.35721 | AZ72: 0.39751 | BA72: 0.17274
C73: 1 | D73: 3 | E73: 16 | G73: 0.07141518256 | H73: 0.0728862637 | I73: 0.5577405718 | J73: 0.5661613818 | K73: 0.01948380224 | L73: 0.02005520221 | M73: 0.4921264194 | N73: 0.5221278031 | O73: 0.1360246788 | P73: 0.1394461284 | Q73: 0.5100702306 | R73: 0.5356503207 | S73: 0.490060402 | T73: 0.5172918799 | U73: 0.5222784837 | V73: 0.5431960862 | W73: 0.4583432171 | X73: 0.4697868028 | Y73: 0.5208237573 | Z73: 0.5428311042 | AB73: =IF('Courbes de Production PV'!$C$4="Saisie Manuelle",'Courbes de Production PV'!F73*Données!$G$35,HLOOKUP('Courbes de Production PV'!$C$4&'Courbes de Production PV'!$C$5,'Courbes de Production PV'!$G$7:$Z$8769,'Compensation PV'!A116+2,FALSE)*Données!$G$35) -> 26.04118786 | AC73: 26.04118786 | AG73: 0 | AH73: 0 | AI73: 0 | AJ73: 0 | AK73: 0 | AL73: 0 | AM73: 0 | AN73: 0 | AO73: 0 | AP73: 0 | AR73: 0.04555 | AS73: 0.11093 | AT73: 0.07699 | AU73: 0.06508 | AV73: 0.06416 | AW73: 0.04985 | AX73: 0.06505 | AY73: 0.07992 | AZ73: 0.1285 | BA73: 0.00359
C74: 1 | D74: 3 | E74: 17 | G74: 0.07858670312 | H74: 0.08604856866 | I74: 0.3676860896 | J74: 0.4185501072 | K74: 0.02199421522 | L74: 0.02262181847 | M74: 0.3088656961 | N74: 0.3736416108 | O74: 0.01880326731 | P74: 0.01945030362 | Q74: 0.3173301023 | R74: 0.3815133926 | S74: 0.3106530183 | T74: 0.3746297338 | U74: 0.1520369186 | V74: 0.1693450186 | W74: 0.373496931 | X74: 0.4303911641 | Y74: 0.3267260078 | Z74: 0.3894444285 | AB74: =IF('Courbes de Production PV'!$C$4="Saisie Manuelle",'Courbes de Production PV'!F74*Données!$G$35,HLOOKUP('Courbes de Production PV'!$C$4&'Courbes de Production PV'!$C$5,'Courbes de Production PV'!$G$7:$Z$8769,'Compensation PV'!A117+2,FALSE)*Données!$G$35) -> 16.33630039 | AC74: 16.33630039 | AG74: 0 | AH74: 0 | AI74: 0 | AJ74: 0 | AK74: 0 | AL74: 0 | AM74: 0 | AN74: 0 | AO74: 0 | AP74: 0 | AR74: 0 | AS74: 0 | AT74: 0 | AU74: 0 | AV74: 0 | AW74: 0 | AX74: 0 | AY74: 0 | AZ74: 0 | BA74: 0
C75: 1 | D75: 3 | E75: 18 | G75: 0.05278471414 | H75: 0.09202967488 | I75: 0.1216317678 | J75: 0.1793564683 | K75: 0.02961912629 | L75: 0.04242410594 | M75: 0.05856115399 | N75: 0.09642108948 | O75: 0 | P75: 0 | Q75: 0.04654644134 | R75: 0.07878553591 | S75: 0.05781710923 | T75: 0.09631464867 | U75: 0.06515589966 | V75: 0.09831273197 | W75: 0.1146357867 | X75: 0.1686358018 | Y75: 0.1345318686 | Z75: 0.2290174162 | AB75: =IF('Courbes de Production PV'!$C$4="Saisie Manuelle",'Courbes de Production PV'!F75*Données!$G$35,HLOOKUP('Courbes de Production PV'!$C$4&'Courbes de Production PV'!$C$5,'Courbes de Production PV'!$G$7:$Z$8769,'Compensation PV'!A118+2,FALSE)*Données!$G$35) -> 6.726593431 | AC75: =AB75*$AC$6 -> 6.726593431 | AG75: 0 | AH75: 0 | AI75: 0 | AJ75: 0 | AK75: 0 | AL75: 0 | AM75: 0 | AN75: 0 | AO75: 0 | AP75: 0 | AR75: 0 | AS75: 0 | AT75: 0 | AU75: 0 | AV75: 0 | AW75: 0 | AX75: 0 | AY75: 0 | AZ75: 0 | BA75: 0
C76: 1 | D76: 3 | E76: 19 | G76: 0 | H76: 0 | I76: 0 | J76: 0 | K76: 0 | L76: 0 | M76: 0 | N76: 0 | O76: 0 | P76: 0 | Q76: 0 | R76: 0 | S76: 0 | T76: 0 | U76: 0 | V76: 0 | W76: 0 | X76: 0 | Y76: 0 | Z76: 0 | AB76: =IF('Courbes de Production PV'!$C$4="Saisie Manuelle",'Courbes de Production PV'!F76*Données!$G$35,HLOOKUP('Courbes de Production PV'!$C$4&'Courbes de Production PV'!$C$5,'Courbes de Production PV'!$G$7:$Z$8769,'Compensation PV'!A119+2,FALSE)*Données!$G$35) -> 0 | AC76: 0 | AG76: 0 | AH76: 0 | AI76: 0 | AJ76: 0 | AK76: 0 | AL76: 0 | AM76: 0 | AN76: 0 | AO76: 0 | AP76: 0 | AR76: 0 | AS76: 0 | AT76: 0 | AU76: 0 | AV76: 0 | AW76: 0 | AX76: 0 | AY76: 0 | AZ76: 0 | BA76: 0
C77: 1 | D77: 3 | E77: 20 | G77: 0 | H77: 0 | I77: 0 | J77: 0 | K77: 0 | L77: 0 | M77: 0 | N77: 0 | O77: 0 | P77: 0 | Q77: 0 | R77: 0 | S77: 0 | T77: 0 | U77: 0 | V77: 0 | W77: 0 | X77: 0 | Y77: 0 | Z77: 0 | AB77: =IF('Courbes de Production PV'!$C$4="Saisie Manuelle",'Courbes de Production PV'!F77*Données!$G$35,HLOOKUP('Courbes de Production PV'!$C$4&'Courbes de Production PV'!$C$5,'Courbes de Production PV'!$G$7:$Z$8769,'Compensation PV'!A120+2,FALSE)*Données!$G$35) -> 0 | AC77: 0 | AG77: 0 | AH77: 0 | AI77: 0 | AJ77: 0 | AK77: 0 | AL77: 0 | AM77: 0 | AN77: 0 | AO77: 0 | AP77: 0 | AR77: 0 | AS77: 0 | AT77: 0 | AU77: 0 | AV77: 0 | AW77: 0 | AX77: 0 | AY77: 0 | AZ77: 0 | BA77: 0
C78: 1 | D78: 3 | E78: 21 | G78: 0 | H78: 0 | I78: 0 | J78: 0 | K78: 0 | L78: 0 | M78: 0 | N78: 0 | O78: 0 | P78: 0 | Q78: 0 | R78: 0 | S78: 0 | T78: 0 | U78: 0 | V78: 0 | W78: 0 | X78: 0 | Y78: 0 | Z78: 0 | AB78: =IF('Courbes de Production PV'!$C$4="Saisie Manuelle",'Courbes de Production PV'!F78*Données!$G$35,HLOOKUP('Courbes de Production PV'!$C$4&'Courbes de Production PV'!$C$5,'Courbes de Production PV'!$G$7:$Z$8769,'Compensation PV'!A121+2,FALSE)*Données!$G$35) -> 0 | AC78: 0 | AG78: 0 | AH78: 0 | AI78: 0 | AJ78: 0 | AK78: 0 | AL78: 0 | AM78: 0 | AN78: 0 | AO78: 0 | AP78: 0 | AR78: 0 | AS78: 0 | AT78: 0 | AU78: 0 | AV78: 0 | AW78: 0 | AX78: 0 | AY78: 0 | AZ78: 0 | BA78: 0
C79: 1 | D79: 3 | E79: 22 | G79: 0 | H79: 0 | I79: 0 | J79: 0 | K79: 0 | L79: 0 | M79: 0 | N79: 0 | O79: 0 | P79: 0 | Q79: 0 | R79: 0 | S79: 0 | T79: 0 | U79: 0 | V79: 0 | W79: 0 | X79: 0 | Y79: 0 | Z79: 0 | AB79: =IF('Courbes de Production PV'!$C$4="Saisie Manuelle",'Courbes de Production PV'!F79*Données!$G$35,HLOOKUP('Courbes de Production PV'!$C$4&'Courbes de Production PV'!$C$5,'Courbes de Production PV'!$G$7:$Z$8769,'Compensation PV'!A122+2,FALSE)*Données!$G$35) -> 0 | AC79: 0 | AG79: 0 | AH79: 0 | AI79: 0 | AJ79: 0 | AK79: 0 | AL79: 0 | AM79: 0 | AN79: 0 | AO79: 0 | AP79: 0 | AR79: 0 | AS79: 0 | AT79: 0 | AU79: 0 | AV79: 0 | AW79: 0 | AX79: 0 | AY79: 0 | AZ79: 0 | BA79: 0
C80: 1 | D80: 3 | E80: 23 | G80: 0 | H80: 0 | I80: 0 | J80: 0 | K80: 0 | L80: 0 | M80: 0 | N80: 0 | O80: 0 | P80: 0 | Q80: 0 | R80: 0 | S80: 0 | T80: 0 | U80: 0 | V80: 0 | W80: 0 | X80: 0 | Y80: 0 | Z80: 0 | AB80: =IF('Courbes de Production PV'!$C$4="Saisie Manuelle",'Courbes de Production PV'!F80*Données!$G$35,HLOOKUP('Courbes de Production PV'!$C$4&'Courbes de Production PV'!$C$5,'Courbes de Production PV'!$G$7:$Z$8769,'Compensation PV'!A123+2,FALSE)*Données!$G$35) -> 0 | AC80: 0 | AG80: 0 | AH80: 0 | AI80: 0 | AJ80: 0 | AK80: 0 | AL80: 0 | AM80: 0 | AN80: 0 | AO80: 0 | AP80: 0 | AR80: 0 | AS80: 0 | AT80: 0 | AU80: 0 | AV80: 0 | AW80: 0 | AX80: 0 | AY80: 0 | AZ80: 0 | BA80: 0
C81: 1 | D81: 4 | E81: 0 | G81: 0 | H81: 0 | I81: 0 | J81: 0 | K81: 0 | L81: 0 | M81: 0 | N81: 0 | O81: 0 | P81: 0 | Q81: 0 | R81: 0 | S81: 0 | T81: 0 | U81: 0 | V81: 0 | W81: 0 | X81: 0 | Y81: 0 | Z81: 0 | AB81: =IF('Courbes de Production PV'!$C$4="Saisie Manuelle",'Courbes de Production PV'!F81*Données!$G$35,HLOOKUP('Courbes de Production PV'!$C$4&'Courbes de Production PV'!$C$5,'Courbes de Production PV'!$G$7:$Z$8769,'Compensation PV'!A124+2,FALSE)*Données!$G$35) -> 0 | AC81: 0 | AG81: 0 | AH81: 0 | AI81: 0 | AJ81: 0 | AK81: 0 | AL81: 0 | AM81: 0 | AN81: 0 | AO81: 0 | AP81: 0 | AR81: 0 | AS81: 0 | AT81: 0 | AU81: 0 | AV81: 0 | AW81: 0 | AX81: 0 | AY81: 0 | AZ81: 0 | BA81: 0
C82: 1 | D82: 4 | E82: 1 | G82: 0 | H82: 0 | I82: 0 | J82: 0 | K82: 0 | L82: 0 | M82: 0 | N82: 0 | O82: 0 | P82: 0 | Q82: 0 | R82: 0 | S82: 0 | T82: 0 | U82: 0 | V82: 0 | W82: 0 | X82: 0 | Y82: 0 | Z82: 0 | AB82: =IF('Courbes de Production PV'!$C$4="Saisie Manuelle",'Courbes de Production PV'!F82*Données!$G$35,HLOOKUP('Courbes de Production PV'!$C$4&'Courbes de Production PV'!$C$5,'Courbes de Production PV'!$G$7:$Z$8769,'Compensation PV'!A125+2,FALSE)*Données!$G$35) -> 0 | AC82: 0 | AG82: 0 | AH82: 0 | AI82: 0 | AJ82: 0 | AK82: 0 | AL82: 0 | AM82: 0 | AN82: 0 | AO82: 0 | AP82: 0 | AR82: 0 | AS82: 0 | AT82: 0 | AU82: 0 | AV82: 0 | AW82: 0 | AX82: 0 | AY82: 0 | AZ82: 0 | BA82: 0
C83: 1 | D83: 4 | E83: 2 | G83: 0 | H83: 0 | I83: 0 | J83: 0 | K83: 0 | L83: 0 | M83: 0 | N83: 0 | O83: 0 | P83: 0 | Q83: 0 | R83: 0 | S83: 0 | T83: 0 | U83: 0 | V83: 0 | W83: 0 | X83: 0 | Y83: 0 | Z83: 0 | AB83: =IF('Courbes de Production PV'!$C$4="Saisie Manuelle",'Courbes de Production PV'!F83*Données!$G$35,HLOOKUP('Courbes de Production PV'!$C$4&'Courbes de Production PV'!$C$5,'Courbes de Production PV'!$G$7:$Z$8769,'Compensation PV'!A126+2,FALSE)*Données!$G$35) -> 0 | AC83: 0 | AG83: 0 | AH83: 0 | AI83: 0 | AJ83: 0 | AK83: 0 | AL83: 0 | AM83: 0 | AN83: 0 | AO83: 0 | AP83: 0 | AR83: 0 | AS83: 0 | AT83: 0 | AU83: 0 | AV83: 0 | AW83: 0 | AX83: 0 | AY83: 0 | AZ83: 0 | BA83: 0
C84: 1 | D84: 4 | E84: 3 | G84: 0 | H84: 0 | I84: 0 | J84: 0 | K84: 0 | L84: 0 | M84: 0 | N84: 0 | O84: 0 | P84: 0 | Q84: 0 | R84: 0 | S84: 0 | T84: 0 | U84: 0 | V84: 0 | W84: 0 | X84: 0 | Y84: 0 | Z84: 0 | AB84: =IF('Courbes de Production PV'!$C$4="Saisie Manuelle",'Courbes de Production PV'!F84*Données!$G$35,HLOOKUP('Courbes de Production PV'!$C$4&'Courbes de Production PV'!$C$5,'Courbes de Production PV'!$G$7:$Z$8769,'Compensation PV'!A127+2,FALSE)*Données!$G$35) -> 0 | AC84: 0 | AG84: 0 | AH84: 0 | AI84: 0 | AJ84: 0 | AK84: 0 | AL84: 0 | AM84: 0 | AN84: 0 | AO84: 0 | AP84: 0 | AR84: 0 | AS84: 0 | AT84: 0 | AU84: 0 | AV84: 0 | AW84: 0 | AX84: 0 | AY84: 0 | AZ84: 0 | BA84: 0
C85: 1 | D85: 4 | E85: 4 | G85: 0 | H85: 0 | I85: 0 | J85: 0 | K85: 0 | L85: 0 | M85: 0 | N85: 0 | O85: 0 | P85: 0 | Q85: 0 | R85: 0 | S85: 0 | T85: 0 | U85: 0 | V85: 0 | W85: 0 | X85: 0 | Y85: 0 | Z85: 0 | AB85: =IF('Courbes de Production PV'!$C$4="Saisie Manuelle",'Courbes de Production PV'!F85*Données!$G$35,HLOOKUP('Courbes de Production PV'!$C$4&'Courbes de Production PV'!$C$5,'Courbes de Production PV'!$G$7:$Z$8769,'Compensation PV'!A128+2,FALSE)*Données!$G$35) -> 0 | AC85: 0 | AG85: 0 | AH85: 0 | AI85: 0 | AJ85: 0 | AK85: 0 | AL85: 0 | AM85: 0 | AN85: 0 | AO85: 0 | AP85: 0 | AR85: 0 | AS85: 0 | AT85: 0 | AU85: 0 | AV85: 0 | AW85: 0 | AX85: 0 | AY85: 0 | AZ85: 0 | BA85: 0
C86: 1 | D86: 4 | E86: 5 | G86: 0 | H86: 0 | I86: 0 | J86: 0 | K86: 0 | L86: 0 | M86: 0 | N86: 0 | O86: 0 | P86: 0 | Q86: 0 | R86: 0 | S86: 0 | T86: 0 | U86: 0 | V86: 0 | W86: 0 | X86: 0 | Y86: 0 | Z86: 0 | AB86: =IF('Courbes de Production PV'!$C$4="Saisie Manuelle",'Courbes de Production PV'!F86*Données!$G$35,HLOOKUP('Courbes de Production PV'!$C$4&'Courbes de Production PV'!$C$5,'Courbes de Production PV'!$G$7:$Z$8769,'Compensation PV'!A129+2,FALSE)*Données!$G$35) -> 0 | AC86: 0 | AG86: 0 | AH86: 0 | AI86: 0 | AJ86: 0 | AK86: 0 | AL86: 0 | AM86: 0 | AN86: 0 | AO86: 0 | AP86: 0 | AR86: 0 | AS86: 0 | AT86: 0 | AU86: 0 | AV86: 0 | AW86: 0 | AX86: 0 | AY86: 0 | AZ86: 0 | BA86: 0
C87: 1 | D87: 4 | E87: 6 | G87: 0 | H87: 0 | I87: 0 | J87: 0 | K87: 0 | L87: 0 | M87: 0 | N87: 0 | O87: 0 | P87: 0 | Q87: 0 | R87: 0 | S87: 0 | T87: 0 | U87: 0 | V87: 0 | W87: 0 | X87: 0 | Y87: 0 | Z87: 0 | AB87: =IF('Courbes de Production PV'!$C$4="Saisie Manuelle",'Courbes de Production PV'!F87*Données!$G$35,HLOOKUP('Courbes de Production PV'!$C$4&'Courbes de Production PV'!$C$5,'Courbes de Production PV'!$G$7:$Z$8769,'Compensation PV'!A130+2,FALSE)*Données!$G$35) -> 0 | AC87: 0 | AG87: 0 | AH87: 0 | AI87: 0 | AJ87: 0 | AK87: 0 | AL87: 0 | AM87: 0 | AN87: 0 | AO87: 0 | AP87: 0 | AR87: 0 | AS87: 0 | AT87: 0 | AU87: 0 | AV87: 0 | AW87: 0 | AX87: 0 | AY87: 0 | AZ87: 0 | BA87: 0
C88: 1 | D88: 4 | E88: 7 | G88: 0 | H88: 0 | I88: 0 | J88: 0 | K88: 0 | L88: 0 | M88: 0 | N88: 0 | O88: 0 | P88: 0 | Q88: 0 | R88: 0 | S88: 0 | T88: 0 | U88: 0 | V88: 0 | W88: 0 | X88: 0 | Y88: 0 | Z88: 0 | AB88: =IF('Courbes de Production PV'!$C$4="Saisie Manuelle",'Courbes de Production PV'!F88*Données!$G$35,HLOOKUP('Courbes de Production PV'!$C$4&'Courbes de Production PV'!$C$5,'Courbes de Production PV'!$G$7:$Z$8769,'Compensation PV'!A131+2,FALSE)*Données!$G$35) -> 0 | AC88: 0 | AG88: 0.0580777 | AH88: 0.0620499 | AI88: 0.0575931 | AJ88: 0.0656379 | AK88: 0.0623902 | AL88: 0.063305 | AM88: 0.0647456 | AN88: 0.0657191 | AO88: 0.0613939 | AP88: 0.0587755 | AR88: 0.04924 | AS88: 0.07023 | AT88: 0.00332 | AU88: 0.10391 | AV88: 0.08122 | AW88: 0.09945 | AX88: 0.10663 | AY88: 0.01549 | AZ88: 0.05653 | BA88: 0.06025
C89: 1 | D89: 4 | E89: 8 | G89: 0 | H89: 0 | I89: 0 | J89: 0 | K89: 0 | L89: 0 | M89: 0 | N89: 0 | O89: 0 | P89: 0 | Q89: 0 | R89: 0 | S89: 0 | T89: 0 | U89: 0 | V89: 0 | W89: 0 | X89: 0 | Y89: 0 | Z89: 0 | AB89: =IF('Courbes de Production PV'!$C$4="Saisie Manuelle",'Courbes de Production PV'!F89*Données!$G$35,HLOOKUP('Courbes de Production PV'!$C$4&'Courbes de Production PV'!$C$5,'Courbes de Production PV'!$G$7:$Z$8769,'Compensation PV'!A132+2,FALSE)*Données!$G$35) -> 0 | AC89: 0 | AG89: 0.170663 | AH89: 0.201345 | AI89: 0.166563 | AJ89: 0.217861 | AK89: 0.203583 | AL89: 0.207417 | AM89: 0.214138 | AN89: 0.215796 | AO89: 0.199854 | AP89: 0.173811 | AR89: 0.33932 | AS89: 0.36368 | AT89: 0.32463 | AU89: 0.37694 | AV89: 0.36094 | AW89: 0.38208 | AX89: 0.39062 | AY89: 0.38565 | AZ89: 0.35013 | BA89: 0.33871
C90: 1 | D90: 4 | E90: 9 | G90: 0.04799402227 | H90: 0.003861587998 | I90: 0.03196806898 | J90: 0.01007783927 | K90: 0.01362929436 | L90: 0.01341384847 | M90: 0.09321262037 | N90: 0.0127547635 | O90: 0.07342881759 | P90: 0.007725221397 | Q90: 0.09307385696 | R90: 0.009531889276 | S90: 0.09475704708 | T90: 0.01046956073 | U90: 0.09842948138 | V90: 0.01519688148 | W90: 0.01230994703 | X90: 0.008206631351 | Y90: 0.06331266947 | Z90: 0.005912271234 | AB90: =IF('Courbes de Production PV'!$C$4="Saisie Manuelle",'Courbes de Production PV'!F90*Données!$G$35,HLOOKUP('Courbes de Production PV'!$C$4&'Courbes de Production PV'!$C$5,'Courbes de Production PV'!$G$7:$Z$8769,'Compensation PV'!A133+2,FALSE)*Données!$G$35) -> 3.165633474 | AC90: 3.165633474 | AG90: 0.277003 | AH90: 0.335708 | AI90: 0.270715 | AJ90: 0.355768 | AK90: 0.337093 | AL90: 0.341463 | AM90: 0.35175 | AN90: 0.351504 | AO90: 0.333823 | AP90: 0.280869 | AR90: 0.54458 | AS90: 0.56329 | AT90: 0.52036 | AU90: 0.57635 | AV90: 0.55092 | AW90: 0.57493 | AX90: 0.59006 | AY90: 0.58967 | AZ90: 0.55778 | BA90: 0.53387
C91: 1 | D91: 4 | E91: 10 | G91: 0.3203182406 | H91: 0.08271927975 | I91: 0.3525499502 | J91: 0.1012629042 | K91: 0.005695265271 | L91: 0.005910711161 | M91: 0.3363003046 | N91: 0.114537952 | O91: 0.3482427848 | P91: 0.1064080622 | Q91: 0.3603282455 | R91: 0.1096072138 | S91: 0.3464247549 | T91: 0.1090144117 | U91: 0.3648127175 | V91: 0.1320046658 | W91: 0.1128745027 | X91: 0.07583993659 | Y91: 0.2108072179 | Z91: 0.09113156751 | AB91: =IF('Courbes de Production PV'!$C$4="Saisie Manuelle",'Courbes de Production PV'!F91*Données!$G$35,HLOOKUP('Courbes de Production PV'!$C$4&'Courbes de Production PV'!$C$5,'Courbes de Production PV'!$G$7:$Z$8769,'Compensation PV'!A134+2,FALSE)*Données!$G$35) -> 10.5403609 | AC91: 10.5403609 | AG91: 0.342365 | AH91: 0.425353 | AI91: 0.335354 | AJ91: 0.444571 | AK91: 0.424066 | AL91: 0.427802 | AM91: 0.440866 | AN91: 0.439086 | AO91: 0.423439 | AP91: 0.346254 | AR91: 0.68094 | AS91: 0.69153 | AT91: 0.64628 | AU91: 0.71024 | AV91: 0.67037 | AW91: 0.69562 | AX91: 0.72 | AY91: 0.72233 | AZ91: 0.69377 | BA91: 0.66077
C92: 1 | D92: 4 | E92: 11 | G92: 0.5064777522 | H92: 0.2680658255 | I92: 0.3647014987 | J92: 0.2361605969 | K92: 0.06892395043 | L92: 0.07027282905 | M92: 0.5131089283 | N92: 0.2958472228 | O92: 0.5395204431 | P92: 0.2990484181 | Q92: 0.5434128174 | R92: 0.3010821313 | S92: 0.5230089858 | T92: 0.2932450504 | U92: 0.5483330603 | V92: 0.3256530198 | W92: 0.05614211726 | X92: 0.05765586945 | Y92: 0.5396584203 | Z92: 0.2921991495 | AB92: =IF('Courbes de Production PV'!$C$4="Saisie Manuelle",'Courbes de Production PV'!F92*Données!$G$35,HLOOKUP('Courbes de Production PV'!$C$4&'Courbes de Production PV'!$C$5,'Courbes de Production PV'!$G$7:$Z$8769,'Compensation PV'!A135+2,FALSE)*Données!$G$35) -> 26.98292102 | AC92: 26.98292102 | AG92: 0.364195 | AH92: 0.45684 | AI92: 0.358547 | AJ92: 0.471517 | AK92: 0.452058 | AL92: 0.454174 | AM92: 0.468097 | AN92: 0.466398 | AO92: 0.4559 | AP92: 0.367483 | AR92: 0.7391 | AS92: 0.75695 | AT92: 0.71275 | AU92: 0.78112 | AV92: 0.72792 | AW92: 0.753 | AX92: 0.77453 | AY92: 0.79122 | AZ92: 0.76499 | BA92: 0.71757
C93: 1 | D93: 4 | E93: 12 | G93: 0.6258192099 | H93: 0.4316461773 | I93: 0.1404986457 | J93: 0.1417680658 | K93: 0.1031611125 | L93: 0.1049689846 | M93: 0.631866237 | N93: 0.4526930155 | O93: 0.6639376826 | P93: 0.4634054444 | Q93: 0.658118926 | R93: 0.4616402423 | S93: 0.6380325536 | T93: 0.4503327113 | U93: 0.6606362632 | V93: 0.4823209983 | W93: 0.4375029433 | X93: 0.336548049 | Y93: 0.6642492128 | Z93: 0.460915428 | AB93: =IF('Courbes de Production PV'!$C$4="Saisie Manuelle",'Courbes de Production PV'!F93*Données!$G$35,HLOOKUP('Courbes de Production PV'!$C$4&'Courbes de Production PV'!$C$5,'Courbes de Production PV'!$G$7:$Z$8769,'Compensation PV'!A136+2,FALSE)*Données!$G$35) -> 33.21246064 | AC93: 33.21246064 | AG93: 0.320769 | AH93: 0.399602 | AI93: 0.318804 | AJ93: 0.405826 | AK93: 0.391282 | AL93: 0.39115 | AM93: 0.403086 | AN93: 0.403477 | AO93: 0.399673 | AP93: 0.322865 | AR93: 0.53406 | AS93: 0.76186 | AT93: 0.72112 | AU93: 0.77691 | AV93: 0.72477 | AW93: 0.74551 | AX93: 0.76763 | AY93: 0.78549 | AZ93: 0.7685 | BA93: 0.71641
C94: 1 | D94: 4 | E94: 13 | G94: 0.4572836374 | H94: 0.3748837371 | I94: 0.7550917973 | J94: 0.595445257 | K94: 0.1423722646 | L94: 0.1435150645 | M94: 0.6947170702 | N94: 0.5642334662 | O94: 0.6816821632 | P94: 0.5397067111 | Q94: 0.7126751985 | R94: 0.5703151955 | S94: 0.6862916531 | T94: 0.5519219654 | U94: 0.7168219165 | V94: 0.5876192366 | W94: 0.04741186094 | X94: 0.04871616314 | Y94: 0.6099409223 | Z94: 0.4906782244 | AB94: =IF('Courbes de Production PV'!$C$4="Saisie Manuelle",'Courbes de Production PV'!F94*Données!$G$35,HLOOKUP('Courbes de Production PV'!$C$4&'Courbes de Production PV'!$C$5,'Courbes de Production PV'!$G$7:$Z$8769,'Compensation PV'!A137+2,FALSE)*Données!$G$35) -> 30.49704612 | AC94: 30.49704612 | AG94: 0.239462 | AH94: 0.292164 | AI94: 0.241151 | AJ94: 0.290976 | AK94: 0.282212 | AL94: 0.280457 | AM94: 0.289045 | AN94: 0.291659 | AO94: 0.292735 | AP94: 0.240345 | AR94: 0.66659 | AS94: 0.70253 | AT94: 0.66407 | AU94: 0.70431 | AV94: 0.65964 | AW94: 0.67402 | AX94: 0.69445 | AY94: 0.71054 | AZ94: 0.7071 | BA94: 0.40259
C95: 1 | D95: 4 | E95: 14 | G95: 0.2705047232 | H95: 0.2584166946 | I95: 0.06173645574 | J95: 0.06358728968 | K95: 0.3643471019 | L95: 0.3342502478 | M95: 0.6911569881 | N95: 0.615621714 | O95: 0.7180142324 | P95: 0.6217332687 | Q95: 0.7055690894 | R95: 0.6206762951 | S95: 0.6801939968 | T95: 0.6013935161 | U95: 0.7118697957 | V95: 0.6340563142 | W95: 0.0108247562 | X95: 0.01118653345 | Y95: 0.5701766177 | Z95: 0.5071056765 | AB95: =IF('Courbes de Production PV'!$C$4="Saisie Manuelle",'Courbes de Production PV'!F95*Données!$G$35,HLOOKUP('Courbes de Production PV'!$C$4&'Courbes de Production PV'!$C$5,'Courbes de Production PV'!$G$7:$Z$8769,'Compensation PV'!A138+2,FALSE)*Données!$G$35) -> 28.50883088 | AC95: 28.50883088 | AG95: 0.128358 | AH95: 0.145466 | AI95: 0.130714 | AJ95: 0.141889 | AK95: 0.139554 | AL95: 0.138116 | AM95: 0.141368 | AN95: 0.143606 | AO95: 0.145511 | AP95: 0.128366 | AR95: 0.53083 | AS95: 0.57334 | AT95: 0.53514 | AU95: 0.56006 | AV95: 0.53059 | AW95: 0.53705 | AX95: 0.55526 | AY95: 0.57407 | AZ95: 0.58622 | BA95: 0.07598
C96: 1 | D96: 4 | E96: 15 | G96: 0.6309002467 | H96: 0.6042852918 | I96: 0.0142446382 | J96: 0.01475822039 | K96: 0.1270475047 | L96: 0.1292300653 | M96: 0.6270403479 | N96: 0.6069456619 | O96: 0.008225204 | P96: 0.008548722155 | Q96: 0.6376282179 | R96: 0.6100789651 | S96: 0.6154030805 | T96: 0.5921187066 | U96: 0.6476478913 | V96: 0.6207566107 | W96: 0.01250987656 | X96: 0.01291925608 | Y96: 0.3545449058 | Z96: 0.3447549098 | AB96: =IF('Courbes de Production PV'!$C$4="Saisie Manuelle",'Courbes de Production PV'!F96*Données!$G$35,HLOOKUP('Courbes de Production PV'!$C$4&'Courbes de Production PV'!$C$5,'Courbes de Production PV'!$G$7:$Z$8769,'Compensation PV'!A139+2,FALSE)*Données!$G$35) -> 17.72724529 | AC96: 17.72724529 | AG96: 0.028462 | AH96: 0.0288057 | AI96: 0.0287505 | AJ96: 0.0282075 | AK96: 0.0283532 | AL96: 0.0282709 | AM96: 0.0284145 | AN96: 0.0284554 | AO96: 0.028434 | AP96: 0.0284 | AR96: 0.32961 | AS96: 0.38269 | AT96: 0.34617 | AU96: 0.35159 | AV96: 0.33947 | AW96: 0.3372 | AX96: 0.3508 | AY96: 0.36522 | AZ96: 0.39599 | BA96: 0.06389
C97: 1 | D97: 4 | E97: 16 | G97: 0.5078036609 | H97: 0.5362381108 | I97: 0.08219253141 | J97: 0.084576328 | K97: 0.06022180991 | L97: 0.06173929835 | M97: 0.4990444062 | N97: 0.5296083708 | O97: 0.05942930471 | P97: 0.06118414561 | Q97: 0.5075112703 | R97: 0.5329011031 | S97: 0.4921755542 | T97: 0.5198406826 | U97: 0.1432807129 | V97: 0.1470361522 | W97: 0.05060121303 | X97: 0.05197215841 | Y97: 0.05991840132 | Z97: 0.06133855506 | AB97: =IF('Courbes de Production PV'!$C$4="Saisie Manuelle",'Courbes de Production PV'!F97*Données!$G$35,HLOOKUP('Courbes de Production PV'!$C$4&'Courbes de Production PV'!$C$5,'Courbes de Production PV'!$G$7:$Z$8769,'Compensation PV'!A140+2,FALSE)*Données!$G$35) -> 2.995920066 | AC97: 2.995920066 | AG97: 0 | AH97: 0 | AI97: 0 | AJ97: 0 | AK97: 0 | AL97: 0 | AM97: 0 | AN97: 0 | AO97: 0 | AP97: 0 | AR97: 0.04801 | AS97: 0.11272 | AT97: 0.07933 | AU97: 0.07033 | AV97: 0.06849 | AW97: 0.05402 | AX97: 0.06742 | AY97: 0.08545 | AZ97: 0.13647 | BA97: 0.00401
C98: 1 | D98: 4 | E98: 17 | G98: 0.3201440336 | H98: 0.3897493992 | I98: 0.0310378069 | J98: 0.03204559082 | K98: 0.06031548204 | L98: 0.0631069114 | M98: 0.3140256177 | N98: 0.38008492 | O98: 0.07536992652 | P98: 0.07990898427 | Q98: 0.3178533098 | R98: 0.3820556258 | S98: 0.3111220687 | T98: 0.3756828849 | U98: 0.01817399142 | V98: 0.01869936377 | W98: 0.1109608914 | X98: 0.1189009501 | Y98: 0.04697586548 | Z98: 0.04875861166 | AB98: =IF('Courbes de Production PV'!$C$4="Saisie Manuelle",'Courbes de Production PV'!F98*Données!$G$35,HLOOKUP('Courbes de Production PV'!$C$4&'Courbes de Production PV'!$C$5,'Courbes de Production PV'!$G$7:$Z$8769,'Compensation PV'!A141+2,FALSE)*Données!$G$35) -> 2.348793274 | AC98: 2.348793274 | AG98: 0 | AH98: 0 | AI98: 0 | AJ98: 0 | AK98: 0 | AL98: 0 | AM98: 0 | AN98: 0 | AO98: 0 | AP98: 0 | AR98: 0 | AS98: 0 | AT98: 0 | AU98: 0 | AV98: 0 | AW98: 0 | AX98: 0 | AY98: 0 | AZ98: 0 | BA98: 0
C99: 1 | D99: 4 | E99: 18 | G99: 0.05201046091 | H99: 0.08991983482 | I99: 0.04253041975 | J99: 0.05897474017 | K99: 0.02165699557 | L99: 0.02493551998 | M99: 0.06322881727 | N99: 0.1038664959 | O99: 0.06895838491 | P99: 0.1053884899 | Q99: 0.0504467154 | R99: 0.08493084576 | S99: 0.05992341139 | T99: 0.0994652519 | U99: 0.06096265003 | V99: 0.09121047622 | W99: 0.02658110758 | X99: 0.03138893685 | Y99: 0.05520469955 | Z99: 0.09229992094 | AB99: =IF('Courbes de Production PV'!$C$4="Saisie Manuelle",'Courbes de Production PV'!F99*Données!$G$35,HLOOKUP('Courbes de Production PV'!$C$4&'Courbes de Production PV'!$C$5,'Courbes de Production PV'!$G$7:$Z$8769,'Compensation PV'!A142+2,FALSE)*Données!$G$35) -> 2.760234977 | AC99: 2.760234977 | AG99: 0 | AH99: 0 | AI99: 0 | AJ99: 0 | AK99: 0 | AL99: 0 | AM99: 0 | AN99: 0 | AO99: 0 | AP99: 0 | AR99: 0 | AS99: 0 | AT99: 0 | AU99: 0 | AV99: 0 | AW99: 0 | AX99: 0 | AY99: 0 | AZ99: 0 | BA99: 0
C100: 1 | D100: 4 | E100: 19 | G100: 0 | H100: 0 | I100: 0 | J100: 0 | K100: 0 | L100: 0 | M100: 0 | N100: 0 | O100: 0 | P100: 0 | Q100: 0 | R100: 0 | S100: 0 | T100: 0 | U100: 0 | V100: 0 | W100: 0 | X100: 0 | Y100: 0 | Z100: 0 | AB100: =IF('Courbes de Production PV'!$C$4="Saisie Manuelle",'Courbes de Production PV'!F100*Données!$G$35,HLOOKUP('Courbes de Production PV'!$C$4&'Courbes de Production PV'!$C$5,'Courbes de Production PV'!$G$7:$Z$8769,'Compensation PV'!A143+2,FALSE)*Données!$G$35) -> 0 | AC100: 0 | AG100: 0 | AH100: 0 | AI100: 0 | AJ100: 0 | AK100: 0 | AL100: 0 | AM100: 0 | AN100: 0 | AO100: 0 | AP100: 0 | AR100: 0 | AS100: 0 | AT100: 0 | AU100: 0 | AV100: 0 | AW100: 0 | AX100: 0 | AY100: 0 | AZ100: 0 | BA100: 0
C101: 1 | D101: 4 | E101: 20 | G101: 0 | H101: 0 | I101: 0 | J101: 0 | K101: 0 | L101: 0 | M101: 0 | N101: 0 | O101: 0 | P101: 0 | Q101: 0 | R101: 0 | S101: 0 | T101: 0 | U101: 0 | V101: 0 | W101: 0 | X101: 0 | Y101: 0 | Z101: 0 | AB101: =IF('Courbes de Production PV'!$C$4="Saisie Manuelle",'Courbes de Production PV'!F101*Données!$G$35,HLOOKUP('Courbes de Production PV'!$C$4&'Courbes de Production PV'!$C$5,'Courbes de Production PV'!$G$7:$Z$8769,'Compensation PV'!A144+2,FALSE)*Données!$G$35) -> 0 | AC101: 0 | AG101: 0 | AH101: 0 | AI101: 0 | AJ101: 0 | AK101: 0 | AL101: 0 | AM101: 0 | AN101: 0 | AO101: 0 | AP101: 0 | AR101: 0 | AS101: 0 | AT101: 0 | AU101: 0 | AV101: 0 | AW101: 0 | AX101: 0 | AY101: 0 | AZ101: 0 | BA101: 0
C102: 1 | D102: 4 | E102: 21 | G102: 0 | H102: 0 | I102: 0 | J102: 0 | K102: 0 | L102: 0 | M102: 0 | N102: 0 | O102: 0 | P102: 0 | Q102: 0 | R102: 0 | S102: 0 | T102: 0 | U102: 0 | V102: 0 | W102: 0 | X102: 0 | Y102: 0 | Z102: 0 | AB102: =IF('Courbes de Production PV'!$C$4="Saisie Manuelle",'Courbes de Production PV'!F102*Données!$G$35,HLOOKUP('Courbes de Production PV'!$C$4&'Courbes de Production PV'!$C$5,'Courbes de Production PV'!$G$7:$Z$8769,'Compensation PV'!A145+2,FALSE)*Données!$G$35) -> 0 | AC102: 0 | AG102: 0 | AH102: 0 | AI102: 0 | AJ102: 0 | AK102: 0 | AL102: 0 | AM102: 0 | AN102: 0 | AO102: 0 | AP102: 0 | AR102: 0 | AS102: 0 | AT102: 0 | AU102: 0 | AV102: 0 | AW102: 0 | AX102: 0 | AY102: 0 | AZ102: 0 | BA102: 0
C103: 1 | D103: 4 | E103: 22 | G103: 0 | H103: 0 | I103: 0 | J103: 0 | K103: 0 | L103: 0 | M103: 0 | N103: 0 | O103: 0 | P103: 0 | Q103: 0 | R103: 0 | S103: 0 | T103: 0 | U103: 0 | V103: 0 | W103: 0 | X103: 0 | Y103: 0 | Z103: 0 | AB103: =IF('Courbes de Production PV'!$C$4="Saisie Manuelle",'Courbes de Production PV'!F103*Données!$G$35,HLOOKUP('Courbes de Production PV'!$C$4&'Courbes de Production PV'!$C$5,'Courbes de Production PV'!$G$7:$Z$8769,'Compensation PV'!A146+2,FALSE)*Données!$G$35) -> 0 | AC103: 0 | AG103: 0 | AH103: 0 | AI103: 0 | AJ103: 0 | AK103: 0 | AL103: 0 | AM103: 0 | AN103: 0 | AO103: 0 | AP103: 0 | AR103: 0 | AS103: 0 | AT103: 0 | AU103: 0 | AV103: 0 | AW103: 0 | AX103: 0 | AY103: 0 | AZ103: 0 | BA103: 0
C104: 1 | D104: 4 | E104: 23 | G104: 0 | H104: 0 | I104: 0 | J104: 0 | K104: 0 | L104: 0 | M104: 0 | N104: 0 | O104: 0 | P104: 0 | Q104: 0 | R104: 0 | S104: 0 | T104: 0 | U104: 0 | V104: 0 | W104: 0 | X104: 0 | Y104: 0 | Z104: 0 | AB104: =IF('Courbes de Production PV'!$C$4="Saisie Manuelle",'Courbes de Production PV'!F104*Données!$G$35,HLOOKUP('Courbes de Production PV'!$C$4&'Courbes de Production PV'!$C$5,'Courbes de Production PV'!$G$7:$Z$8769,'Compensation PV'!A147+2,FALSE)*Données!$G$35) -> 0 | AC104: 0 | AG104: 0 | AH104: 0 | AI104: 0 | AJ104: 0 | AK104: 0 | AL104: 0 | AM104: 0 | AN104: 0 | AO104: 0 | AP104: 0 | AR104: 0 | AS104: 0 | AT104: 0 | AU104: 0 | AV104: 0 | AW104: 0 | AX104: 0 | AY104: 0 | AZ104: 0 | BA104: 0
C105: 1 | D105: 5 | E105: 0 | G105: 0 | H105: 0 | I105: 0 | J105: 0 | K105: 0 | L105: 0 | M105: 0 | N105: 0 | O105: 0 | P105: 0 | Q105: 0 | R105: 0 | S105: 0 | T105: 0 | U105: 0 | V105: 0 | W105: 0 | X105: 0 | Y105: 0 | Z105: 0 | AB105: =IF('Courbes de Production PV'!$C$4="Saisie Manuelle",'Courbes de Production PV'!F105*Données!$G$35,HLOOKUP('Courbes de Production PV'!$C$4&'Courbes de Production PV'!$C$5,'Courbes de Production PV'!$G$7:$Z$8769,'Compensation PV'!A148+2,FALSE)*Données!$G$35) -> 0 | AC105: 0 | AG105: 0 | AH105: 0 | AI105: 0 | AJ105: 0 | AK105: 0 | AL105: 0 | AM105: 0 | AN105: 0 | AO105: 0 | AP105: 0 | AR105: 0 | AS105: 0 | AT105: 0 | AU105: 0 | AV105: 0 | AW105: 0 | AX105: 0 | AY105: 0 | AZ105: 0 | BA105: 0
C106: 1 | D106: 5 | E106: 1 | G106: 0 | H106: 0 | I106: 0 | J106: 0 | K106: 0 | L106: 0 | M106: 0 | N106: 0 | O106: 0 | P106: 0 | Q106: 0 | R106: 0 | S106: 0 | T106: 0 | U106: 0 | V106: 0 | W106: 0 | X106: 0 | Y106: 0 | Z106: 0 | AB106: =IF('Courbes de Production PV'!$C$4="Saisie Manuelle",'Courbes de Production PV'!F106*Données!$G$35,HLOOKUP('Courbes de Production PV'!$C$4&'Courbes de Production PV'!$C$5,'Courbes de Production PV'!$G$7:$Z$8769,'Compensation PV'!A149+2,FALSE)*Données!$G$35) -> 0 | AC106: 0 | AG106: 0 | AH106: 0 | AI106: 0 | AJ106: 0 | AK106: 0 | AL106: 0 | AM106: 0 | AN106: 0 | AO106: 0 | AP106: 0 | AR106: 0 | AS106: 0 | AT106: 0 | AU106: 0 | AV106: 0 | AW106: 0 | AX106: 0 | AY106: 0 | AZ106: 0 | BA106: 0
C107: 1 | D107: 5 | E107: 2 | G107: 0 | H107: 0 | I107: 0 | J107: 0 | K107: 0 | L107: 0 | M107: 0 | N107: 0 | O107: 0 | P107: 0 | Q107: 0 | R107: 0 | S107: 0 | T107: 0 | U107: 0 | V107: 0 | W107: 0 | X107: 0 | Y107: 0 | Z107: 0 | AB107: =IF('Courbes de Production PV'!$C$4="Saisie Manuelle",'Courbes de Production PV'!F107*Données!$G$35,HLOOKUP('Courbes de Production PV'!$C$4&'Courbes de Production PV'!$C$5,'Courbes de Production PV'!$G$7:$Z$8769,'Compensation PV'!A150+2,FALSE)*Données!$G$35) -> 0 | AC107: 0 | AG107: 0 | AH107: 0 | AI107: 0 | AJ107: 0 | AK107: 0 | AL107: 0 | AM107: 0 | AN107: 0 | AO107: 0 | AP107: 0 | AR107: 0 | AS107: 0 | AT107: 0 | AU107: 0 | AV107: 0 | AW107: 0 | AX107: 0 | AY107: 0 | AZ107: 0 | BA107: 0
C108: 1 | D108: 5 | E108: 3 | G108: 0 | H108: 0 | I108: 0 | J108: 0 | K108: 0 | L108: 0 | M108: 0 | N108: 0 | O108: 0 | P108: 0 | Q108: 0 | R108: 0 | S108: 0 | T108: 0 | U108: 0 | V108: 0 | W108: 0 | X108: 0 | Y108: 0 | Z108: 0 | AB108: =IF('Courbes de Production PV'!$C$4="Saisie Manuelle",'Courbes de Production PV'!F108*Données!$G$35,HLOOKUP('Courbes de Production PV'!$C$4&'Courbes de Production PV'!$C$5,'Courbes de Production PV'!$G$7:$Z$8769,'Compensation PV'!A151+2,FALSE)*Données!$G$35) -> 0 | AC108: 0 | AG108: 0 | AH108: 0 | AI108: 0 | AJ108: 0 | AK108: 0 | AL108: 0 | AM108: 0 | AN108: 0 | AO108: 0 | AP108: 0 | AR108: 0 | AS108: 0 | AT108: 0 | AU108: 0 | AV108: 0 | AW108: 0 | AX108: 0 | AY108: 0 | AZ108: 0 | BA108: 0
C109: 1 | D109: 5 | E109: 4 | G109: 0 | H109: 0 | I109: 0 | J109: 0 | K109: 0 | L109: 0 | M109: 0 | N109: 0 | O109: 0 | P109: 0 | Q109: 0 | R109: 0 | S109: 0 | T109: 0 | U109: 0 | V109: 0 | W109: 0 | X109: 0 | Y109: 0 | Z109: 0 | AB109: =IF('Courbes de Production PV'!$C$4="Saisie Manuelle",'Courbes de Production PV'!F109*Données!$G$35,HLOOKUP('Courbes de Production PV'!$C$4&'Courbes de Production PV'!$C$5,'Courbes de Production PV'!$G$7:$Z$8769,'Compensation PV'!A152+2,FALSE)*Données!$G$35) -> 0 | AC109: 0 | AG109: 0 | AH109: 0 | AI109: 0 | AJ109: 0 | AK109: 0 | AL109: 0 | AM109: 0 | AN109: 0 | AO109: 0 | AP109: 0 | AR109: 0 | AS109: 0 | AT109: 0 | AU109: 0 | AV109: 0 | AW109: 0 | AX109: 0 | AY109: 0 | AZ109: 0 | BA109: 0
C110: 1 | D110: 5 | E110: 5 | G110: 0 | H110: 0 | I110: 0 | J110: 0 | K110: 0 | L110: 0 | M110: 0 | N110: 0 | O110: 0 | P110: 0 | Q110: 0 | R110: 0 | S110: 0 | T110: 0 | U110: 0 | V110: 0 | W110: 0 | X110: 0 | Y110: 0 | Z110: 0 | AB110: =IF('Courbes de Production PV'!$C$4="Saisie Manuelle",'Courbes de Production PV'!F110*Données!$G$35,HLOOKUP('Courbes de Production PV'!$C$4&'Courbes de Production PV'!$C$5,'Courbes de Production PV'!$G$7:$Z$8769,'Compensation PV'!A153+2,FALSE)*Données!$G$35) -> 0 | AC110: 0 | AG110: 0 | AH110: 0 | AI110: 0 | AJ110: 0 | AK110: 0 | AL110: 0 | AM110: 0 | AN110: 0 | AO110: 0 | AP110: 0 | AR110: 0 | AS110: 0 | AT110: 0 | AU110: 0 | AV110: 0 | AW110: 0 | AX110: 0 | AY110: 0 | AZ110: 0 | BA110: 0
C111: 1 | D111: 5 | E111: 6 | G111: 0 | H111: 0 | I111: 0 | J111: 0 | K111: 0 | L111: 0 | M111: 0 | N111: 0 | O111: 0 | P111: 0 | Q111: 0 | R111: 0 | S111: 0 | T111: 0 | U111: 0 | V111: 0 | W111: 0 | X111: 0 | Y111: 0 | Z111: 0 | AB111: =IF('Courbes de Production PV'!$C$4="Saisie Manuelle",'Courbes de Production PV'!F111*Données!$G$35,HLOOKUP('Courbes de Production PV'!$C$4&'Courbes de Production PV'!$C$5,'Courbes de Production PV'!$G$7:$Z$8769,'Compensation PV'!A154+2,FALSE)*Données!$G$35) -> 0 | AC111: 0 | AG111: 0 | AH111: 0 | AI111: 0 | AJ111: 0 | AK111: 0 | AL111: 0 | AM111: 0 | AN111: 0 | AO111: 0 | AP111: 0 | AR111: 0 | AS111: 0 | AT111: 0 | AU111: 0 | AV111: 0 | AW111: 0 | AX111: 0 | AY111: 0 | AZ111: 0 | BA111: 0
C112: 1 | D112: 5 | E112: 7 | G112: 0 | H112: 0 | I112: 0 | J112: 0 | K112: 0 | L112: 0 | M112: 0 | N112: 0 | O112: 0 | P112: 0 | Q112: 0 | R112: 0 | S112: 0 | T112: 0 | U112: 0 | V112: 0 | W112: 0 | X112: 0 | Y112: 0 | Z112: 0 | AB112: =IF('Courbes de Production PV'!$C$4="Saisie Manuelle",'Courbes de Production PV'!F112*Données!$G$35,HLOOKUP('Courbes de Production PV'!$C$4&'Courbes de Production PV'!$C$5,'Courbes de Production PV'!$G$7:$Z$8769,'Compensation PV'!A155+2,FALSE)*Données!$G$35) -> 0 | AC112: 0 | AG112: 0.0337836 | AH112: 0.0340465 | AI112: 0.0340002 | AJ112: 0.0335979 | AK112: 0.0337062 | AL112: 0.0336443 | AM112: 0.0337527 | AN112: 0.0337836 | AO112: 0.0337681 | AP112: 0.0337372 | AR112: 0.05193 | AS112: 0.07178 | AT112: 0.00323 | AU112: 0.10559 | AV112: 0.08061 | AW112: 0.09774 | AX112: 0.10539 | AY112: 0.01586 | AZ112: 0.05976 | BA112: 0.06207
C113: 1 | D113: 5 | E113: 8 | G113: 0 | H113: 0 | I113: 0 | J113: 0 | K113: 0 | L113: 0 | M113: 0 | N113: 0 | O113: 0 | P113: 0 | Q113: 0 | R113: 0 | S113: 0 | T113: 0 | U113: 0 | V113: 0 | W113: 0 | X113: 0 | Y113: 0 | Z113: 0 | AB113: =IF('Courbes de Production PV'!$C$4="Saisie Manuelle",'Courbes de Production PV'!F113*Données!$G$35,HLOOKUP('Courbes de Production PV'!$C$4&'Courbes de Production PV'!$C$5,'Courbes de Production PV'!$G$7:$Z$8769,'Compensation PV'!A156+2,FALSE)*Données!$G$35) -> 0 | AC113: 0 | AG113: 0.106818 | AH113: 0.108662 | AI113: 0.107295 | AJ113: 0.107965 | AK113: 0.107766 | AL113: 0.107726 | AM113: 0.108277 | AN113: 0.108422 | AO113: 0.107809 | AP113: 0.106795 | AR113: 0.34473 | AS113: 0.36161 | AT113: 0.16436 | AU113: 0.37451 | AV113: 0.3643 | AW113: 0.38461 | AX113: 0.38628 | AY113: 0.38644 | AZ113: 0.3507 | BA113: 0.15391
C114: 1 | D114: 5 | E114: 9 | G114: 0.7737693245 | H114: 0.03136693409 | I114: 0.05150357279 | J114: 0.02350849814 | K114: 0.01000418307 | L114: 0.009835573247 | M114: 0.09470697584 | N114: 0.01273718285 | O114: 0.6998481978 | P114: 0.03897903588 | Q114: 0.09146618302 | R114: 0.009351144868 | S114: 0.09365964595 | T114: 0.01035451061 | U114: 0.08068357113 | V114: 0.01428234444 | W114: 0.03622532748 | X114: 0.02103068289 | Y114: 0.007402929058 | Z114: 0.007211560824 | AB114: =IF('Courbes de Production PV'!$C$4="Saisie Manuelle",'Courbes de Production PV'!F114*Données!$G$35,HLOOKUP('Courbes de Production PV'!$C$4&'Courbes de Production PV'!$C$5,'Courbes de Production PV'!$G$7:$Z$8769,'Compensation PV'!A157+2,FALSE)*Données!$G$35) -> 0.3701464529 | AC114: 0.3701464529 | AG114: 0.196946 | AH114: 0.210425 | AI114: 0.196394 | AJ114: 0.213202 | AK114: 0.20955 | AL114: 0.210283 | AM114: 0.212876 | AN114: 0.212903 | AO114: 0.209035 | AP114: 0.197596 | AR114: 0.54773 | AS114: 0.55851 | AT114: 0.258 | AU114: 0.57151 | AV114: 0.5621 | AW114: 0.58507 | AX114: 0.58326 | AY114: 0.58352 | AZ114: 0.55188 | BA114: 0.52119
C115: 1 | D115: 5 | E115: 10 | G115: 0.3187890904 | H115: 0.08091914099 | I115: 0.06012787755 | J115: 0.05585448609 | K115: 0.007512504518 | L115: 0.007774786471 | M115: 0.333671997 | N115: 0.1134127903 | O115: 0.34686048 | P115: 0.1059963119 | Q115: 0.3626969485 | R115: 0.108969852 | S115: 0.3425661509 | T115: 0.1074391101 | U115: 0.3744250856 | V115: 0.1345147781 | W115: 0.04103315676 | X115: 0.04129972947 | Y115: 0.007362641009 | Z115: 0.007604369305 | AB115: =IF('Courbes de Production PV'!$C$4="Saisie Manuelle",'Courbes de Production PV'!F115*Données!$G$35,HLOOKUP('Courbes de Production PV'!$C$4&'Courbes de Production PV'!$C$5,'Courbes de Production PV'!$G$7:$Z$8769,'Compensation PV'!A158+2,FALSE)*Données!$G$35) -> 0.3681320505 | AC115: 0.3681320505 | AG115: 0.271525 | AH115: 0.299425 | AI115: 0.270107 | AJ115: 0.304205 | AK115: 0.297847 | AL115: 0.298869 | AM115: 0.303523 | AN115: 0.302997 | AO115: 0.297808 | AP115: 0.272595 | AR115: 0.68052 | AS115: 0.68383 | AT115: 0.65349 | AU115: 0.7041 | AV115: 0.69019 | AW115: 0.71486 | AX115: 0.71137 | AY115: 0.708 | AZ115: 0.67957 | BA115: 0.53145
C116: 1 | D116: 5 | E116: 11 | G116: 0.1000819085 | H116: 0.09651066546 | I116: 0.268089905 | J116: 0.1952096847 | K116: 0.3019895675 | L116: 0.1970580518 | M116: 0.5076765067 | N116: 0.2933068185 | O116: 0.5341872953 | P116: 0.2972543629 | Q116: 0.5529542195 | R116: 0.3038123232 | S116: 0.5169821296 | T116: 0.2900501971 | U116: 0.5635688582 | V116: 0.3332806478 | W116: 0.3404323943 | X116: 0.2195607102 | Y116: 0.04334994104 | Z116: 0.04441757435 | AB116: =IF('Courbes de Production PV'!$C$4="Saisie Manuelle",'Courbes de Production PV'!F116*Données!$G$35,HLOOKUP('Courbes de Production PV'!$C$4&'Courbes de Production PV'!$C$5,'Courbes de Production PV'!$G$7:$Z$8769,'Compensation PV'!A159+2,FALSE)*Données!$G$35) -> 2.167497052 | AC116: 2.167497052 | AG116: 0.289766 | AH116: 0.31042 | AI116: 0.289907 | AJ116: 0.310963 | AK116: 0.307509 | AL116: 0.307606 | AM116: 0.311123 | AN116: 0.310913 | AO116: 0.308633 | AP116: 0.290158 | AR116: 0.75362 | AS116: 0.75555 | AT116: 0.71747 | AU116: 0.77152 | AV116: 0.28747 | AW116: 0.78411 | AX116: 0.77471 | AY116: 0.7735 | AZ116: 0.73877 | BA116: 0.7421
C117: 1 | D117: 5 | E117: 12 | G117: 0.6416623666 | H117: 0.4370175591 | I117: 0.1998222342 | J117: 0.1891242202 | K117: 0.0975595194 | L117: 0.09966714224 | M117: 0.624702121 | N117: 0.4485088202 | O117: 0.654418406 | P117: 0.4585918864 | Q117: 0.6762599568 | R117: 0.4712577473 | S117: 0.6303772958 | T117: 0.4455891065 | U117: 0.6825170483 | V117: 0.4961460742 | W117: 0.06695735301 | X117: 0.068718637 | Y117: 0.1660774112 | Z117: 0.1609507569 | AB117: =IF('Courbes de Production PV'!$C$4="Saisie Manuelle",'Courbes de Production PV'!F117*Données!$G$35,HLOOKUP('Courbes de Production PV'!$C$4&'Courbes de Production PV'!$C$5,'Courbes de Production PV'!$G$7:$Z$8769,'Compensation PV'!A160+2,FALSE)*Données!$G$35) -> 8.303870561 | AC117: 8.303870561 | AG117: 0.278171 | AH117: 0.31802 | AI117: 0.27737 | AJ117: 0.321194 | AK117: 0.313802 | AL117: 0.313753 | AM117: 0.319848 | AN117: 0.319922 | AO117: 0.317947 | AP117: 0.279158 | AR117: 0.75193 | AS117: 0.76341 | AT117: 0.7214 | AU117: 0.77055 | AV117: 0.75586 | AW117: 0.7783 | AX117: 0.7713 | AY117: 0.77177 | AZ117: 0.73672 | BA117: 0.74007
C118: 1 | D118: 5 | E118: 13 | G118: 0.2149907664 | H118: 0.2052061412 | I118: 0.4037628161 | J118: 0.3533348588 | K118: 0.22865366 | L118: 0.2177408573 | M118: 0.6842741626 | N118: 0.5565858823 | O118: 0.7151123726 | P118: 0.5673430044 | Q118: 0.7420509211 | R118: 0.5912815467 | S118: 0.6864421032 | T118: 0.5527096162 | U118: 0.7413879381 | V118: 0.6055597292 | W118: 0.5219779317 | X118: 0.4346182457 | Y118: 0.7317921274 | Z118: 0.5791910687 | AB118: =IF('Courbes de Production PV'!$C$4="Saisie Manuelle",'Courbes de Production PV'!F118*Données!$G$35,HLOOKUP('Courbes de Production PV'!$C$4&'Courbes de Production PV'!$C$5,'Courbes de Production PV'!$G$7:$Z$8769,'Compensation PV'!A161+2,FALSE)*Données!$G$35) -> 36.58960637 | AC118: 36.58960637 | AG118: 0.225627 | AH118: 0.257711 | AI118: 0.226457 | AJ118: 0.257678 | AK118: 0.252117 | AL118: 0.25114 | AM118: 0.256285 | AN118: 0.257763 | AO118: 0.258426 | AP118: 0.226197 | AR118: 0.68457 | AS118: 0.70594 | AT118: 0.66324 | AU118: 0.70191 | AV118: 0.68867 | AW118: 0.70524 | AX118: 0.70181 | AY118: 0.70244 | AZ118: 0.67651 | BA118: 0.67284
C119: 1 | D119: 5 | E119: 14 | G119: 0.70668996 | H119: 0.616934654 | I119: 0.5776055435 | J119: 0.5107623365 | K119: 0.06442768837 | L119: 0.06604821616 | M119: 0.6838082753 | N119: 0.6095300178 | O119: 0.7171024994 | P119: 0.6208999644 | Q119: 0.736552486 | R119: 0.6464466425 | S119: 0.6834242501 | T119: 0.6046414694 | U119: 0.7381578711 | V119: 0.6558495374 | W119: 0.3690223176 | X119: 0.3441929736 | Y119: 0.04757011421 | Z119: 0.04873846764 | AB119: =IF('Courbes de Production PV'!$C$4="Saisie Manuelle",'Courbes de Production PV'!F119*Données!$G$35,HLOOKUP('Courbes de Production PV'!$C$4&'Courbes de Production PV'!$C$5,'Courbes de Production PV'!$G$7:$Z$8769,'Compensation PV'!A162+2,FALSE)*Données!$G$35) -> 2.37850571 | AC119: 2.37850571 | AG119: 0.132719 | AH119: 0.15382 | AI119: 0.134766 | AJ119: 0.151438 | AK119: 0.147838 | AL119: 0.14627 | AM119: 0.149984 | AN119: 0.152719 | AO119: 0.155279 | AP119: 0.132945 | AR119: 0.55429 | AS119: 0.5748 | AT119: 0.54652 | AU119: 0.56369 | AV119: 0.55872 | AW119: 0.57065 | AX119: 0.5713 | AY119: 0.56918 | AZ119: 0.56495 | BA119: 0.5422
C120: 1 | D120: 5 | E120: 15 | G120: 0.1588477289 | H120: 0.1600187869 | I120: 0.4786295336 | J120: 0.4543555073 | K120: 0.06779988492 | L120: 0.06948598319 | M120: 0.6235945399 | N120: 0.6036492895 | O120: 0.6560948182 | P120: 0.6133119931 | Q120: 0.6671276078 | R120: 0.6378279881 | S120: 0.6219166871 | T120: 0.5984199131 | U120: 0.6723598497 | V120: 0.6438146191 | W120: 0.2640212304 | X120: 0.2610603692 | Y120: 0.1195648583 | Z120: 0.1219116372 | AB120: =IF('Courbes de Production PV'!$C$4="Saisie Manuelle",'Courbes de Production PV'!F120*Données!$G$35,HLOOKUP('Courbes de Production PV'!$C$4&'Courbes de Production PV'!$C$5,'Courbes de Production PV'!$G$7:$Z$8769,'Compensation PV'!A163+2,FALSE)*Données!$G$35) -> 5.978242915 | AC120: 5.978242915 | AG120: 0.0351421 | AH120: 0.0367676 | AI120: 0.0356458 | AJ120: 0.0359079 | AK120: 0.03577 | AL120: 0.0355057 | AM120: 0.0358826 | AN120: 0.0363194 | AO120: 0.0367537 | AP120: 0.0350998 | AR120: 0.3533 | AS120: 0.38457 | AT120: 0.16025 | AU120: 0.35732 | AV120: 0.36043 | AW120: 0.36233 | AX120: 0.36646 | AY120: 0.36595 | AZ120: 0.3884 | BA120: 0.34288
C121: 1 | D121: 5 | E121: 16 | G121: 0.2832024762 | H121: 0.2959679764 | I121: 0.321076083 | J121: 0.3263184974 | K121: 0.006538314406 | L121: 0.006772494722 | M121: 0.5013298911 | N121: 0.5316828879 | O121: 0.4283870551 | P121: 0.4352887757 | Q121: 0.539255696 | R121: 0.5663388185 | S121: 0.5063886688 | T121: 0.5345493976 | U121: 0.545745115 | V121: 0.5675480673 | W121: 0.2523681947 | X121: 0.258413683 | Y121: 0.1263936827 | Z121: 0.1297174467 | AB121: =IF('Courbes de Production PV'!$C$4="Saisie Manuelle",'Courbes de Production PV'!F121*Données!$G$35,HLOOKUP('Courbes de Production PV'!$C$4&'Courbes de Production PV'!$C$5,'Courbes de Production PV'!$G$7:$Z$8769,'Compensation PV'!A164+2,FALSE)*Données!$G$35) -> 6.319684133 | AC121: 6.319684133 | AG121: 0 | AH121: 0 | AI121: 0 | AJ121: 0 | AK121: 0 | AL121: 0 | AM121: 0 | AN121: 0 | AO121: 0 | AP121: 0 | AR121: 0.06353 | AS121: 0.11789 | AT121: 0.09011 | AU121: 0.07607 | AV121: 0.07919 | AW121: 0.06651 | AX121: 0.0778 | AY121: 0.08993 | AZ121: 0.13913 | BA121: 0.00488
C122: 1 | D122: 5 | E122: 17 | G122: 0.03906107559 | H122: 0.04022245544 | I122: 0.1423107187 | J122: 0.1545204086 | K122: 0.07592125825 | L122: 0.08011776951 | M122: 0.318693281 | N122: 0.3850866157 | O122: 0.3402626704 | P122: 0.3900550555 | Q122: 0.34154034 | R122: 0.4106893451 | S122: 0.325007733 | T122: 0.3919138015 | U122: 0.3533907336 | V122: 0.4134972213 | W122: 0.1363995445 | X122: 0.1483286734 | Y122: 0.2873041516 | Z122: 0.3404440886 | AB122: =IF('Courbes de Production PV'!$C$4="Saisie Manuelle",'Courbes de Production PV'!F122*Données!$G$35,HLOOKUP('Courbes de Production PV'!$C$4&'Courbes de Production PV'!$C$5,'Courbes de Production PV'!$G$7:$Z$8769,'Compensation PV'!A165+2,FALSE)*Données!$G$35) -> 14.36520758 | AC122: 14.36520758 | AG122: 0 | AH122: 0 | AI122: 0 | AJ122: 0 | AK122: 0 | AL122: 0 | AM122: 0 | AN122: 0 | AO122: 0 | AP122: 0 | AR122: 0 | AS122: 0 | AT122: 0 | AU122: 0 | AV122: 0 | AW122: 0 | AX122: 0 | AY122: 0 | AZ122: 0 | BA122: 0
C123: 1 | D123: 5 | E123: 18 | G123: 0.05549460046 | H123: 0.0954654236 | I123: 0.06725019665 | J123: 0.08861715394 | K123: 0.01818175969 | L123: 0.02147901853 | M123: 0.06838873882 | N123: 0.1118656928 | O123: 0.07226219152 | P123: 0.1100746013 | Q123: 0.06212851184 | R123: 0.1040612144 | S123: 0.06914512084 | T123: 0.1142624671 | U123: 0.0735910445 | V123: 0.1115346026 | W123: 0.07541151616 | X123: 0.09279586517 | Y123: 0.01837135048 | Z123: 0.02817141847 | AB123: =IF('Courbes de Production PV'!$C$4="Saisie Manuelle",'Courbes de Production PV'!F123*Données!$G$35,HLOOKUP('Courbes de Production PV'!$C$4&'Courbes de Production PV'!$C$5,'Courbes de Production PV'!$G$7:$Z$8769,'Compensation PV'!A166+2,FALSE)*Données!$G$35) -> 0.918567524 | AC123: 0.918567524 | AG123: 0 | AH123: 0 | AI123: 0 | AJ123: 0 | AK123: 0 | AL123: 0 | AM123: 0 | AN123: 0 | AO123: 0 | AP123: 0 | AR123: 0 | AS123: 0 | AT123: 0 | AU123: 0 | AV123: 0 | AW123: 0 | AX123: 0 | AY123: 0 | AZ123: 0 | BA123: 0
C124: 1 | D124: 5 | E124: 19 | G124: 0 | H124: 0 | I124: 0 | J124: 0 | K124: 0 | L124: 0 | M124: 0 | N124: 0 | O124: 0 | P124: 0 | Q124: 0 | R124: 0 | S124: 0 | T124: 0 | U124: 0 | V124: 0 | W124: 0 | X124: 0 | Y124: 0 | Z124: 0 | AB124: =IF('Courbes de Production PV'!$C$4="Saisie Manuelle",'Courbes de Production PV'!F124*Données!$G$35,HLOOKUP('Courbes de Production PV'!$C$4&'Courbes de Production PV'!$C$5,'Courbes de Production PV'!$G$7:$Z$8769,'Compensation PV'!A167+2,FALSE)*Données!$G$35) -> 0 | AC124: 0 | AG124: 0 | AH124: 0 | AI124: 0 | AJ124: 0 | AK124: 0 | AL124: 0 | AM124: 0 | AN124: 0 | AO124: 0 | AP124: 0 | AR124: 0 | AS124: 0 | AT124: 0 | AU124: 0 | AV124: 0 | AW124: 0 | AX124: 0 | AY124: 0 | AZ124: 0 | BA124: 0
C125: 1 | D125: 5 | E125: 20 | G125: 0 | H125: 0 | I125: 0 | J125: 0 | K125: 0 | L125: 0 | M125: 0 | N125: 0 | O125: 0 | P125: 0 | Q125: 0 | R125: 0 | S125: 0 | T125: 0 | U125: 0 | V125: 0 | W125: 0 | X125: 0 | Y125: 0 | Z125: 0 | AB125: =IF('Courbes de Production PV'!$C$4="Saisie Manuelle",'Courbes de Production PV'!F125*Données!$G$35,HLOOKUP('Courbes de Production PV'!$C$4&'Courbes de Production PV'!$C$5,'Courbes de Production PV'!$G$7:$Z$8769,'Compensation PV'!A168+2,FALSE)*Données!$G$35) -> 0 | AC125: 0 | AG125: 0 | AH125: 0 | AI125: 0 | AJ125: 0 | AK125: 0 | AL125: 0 | AM125: 0 | AN125: 0 | AO125: 0 | AP125: 0 | AR125: 0 | AS125: 0 | AT125: 0 | AU125: 0 | AV125: 0 | AW125: 0 | AX125: 0 | AY125: 0 | AZ125: 0 | BA125: 0
C126: 1 | D126: 5 | E126: 21 | G126: 0 | H126: 0 | I126: 0 | J126: 0 | K126: 0 | L126: 0 | M126: 0 | N126: 0 | O126: 0 | P126: 0 | Q126: 0 | R126: 0 | S126: 0 | T126: 0 | U126: 0 | V126: 0 | W126: 0 | X126: 0 | Y126: 0 | Z126: 0 | AB126: =IF('Courbes de Production PV'!$C$4="Saisie Manuelle",'Courbes de Production PV'!F126*Données!$G$35,HLOOKUP('Courbes de Production PV'!$C$4&'Courbes de Production PV'!$C$5,'Courbes de Production PV'!$G$7:$Z$8769,'Compensation PV'!A169+2,FALSE)*Données!$G$35) -> 0 | AC126: 0 | AG126: 0 | AH126: 0 | AI126: 0 | AJ126: 0 | AK126: 0 | AL126: 0 | AM126: 0 | AN126: 0 | AO126: 0 | AP126: 0 | AR126: 0 | AS126: 0 | AT126: 0 | AU126: 0 | AV126: 0 | AW126: 0 | AX126: 0 | AY126: 0 | AZ126: 0 | BA126: 0
C127: 1 | D127: 5 | E127: 22 | G127: 0 | H127: 0 | I127: 0 | J127: 0 | K127: 0 | L127: 0 | M127: 0 | N127: 0 | O127: 0 | P127: 0 | Q127: 0 | R127: 0 | S127: 0 | T127: 0 | U127: 0 | V127: 0 | W127: 0 | X127: 0 | Y127: 0 | Z127: 0 | AB127: =IF('Courbes de Production PV'!$C$4="Saisie Manuelle",'Courbes de Production PV'!F127*Données!$G$35,HLOOKUP('Courbes de Production PV'!$C$4&'Courbes de Production PV'!$C$5,'Courbes de Production PV'!$G$7:$Z$8769,'Compensation PV'!A170+2,FALSE)*Données!$G$35) -> 0 | AC127: 0 | AG127: 0 | AH127: 0 | AI127: 0 | AJ127: 0 | AK127: 0 | AL127: 0 | AM127: 0 | AN127: 0 | AO127: 0 | AP127: 0 | AR127: 0 | AS127: 0 | AT127: 0 | AU127: 0 | AV127: 0 | AW127: 0 | AX127: 0 | AY127: 0 | AZ127: 0 | BA127: 0
C128: 1 | D128: 5 | E128: 23 | G128: 0 | H128: 0 | I128: 0 | J128: 0 | K128: 0 | L128: 0 | M128: 0 | N128: 0 | O128: 0 | P128: 0 | Q128: 0 | R128: 0 | S128: 0 | T128: 0 | U128: 0 | V128: 0 | W128: 0 | X128: 0 | Y128: 0 | Z128: 0 | AB128: =IF('Courbes de Production PV'!$C$4="Saisie Manuelle",'Courbes de Production PV'!F128*Données!$G$35,HLOOKUP('Courbes de Production PV'!$C$4&'Courbes de Production PV'!$C$5,'Courbes de Production PV'!$G$7:$Z$8769,'Compensation PV'!A171+2,FALSE)*Données!$G$35) -> 0 | AC128: 0 | AG128: 0 | AH128: 0 | AI128: 0 | AJ128: 0 | AK128: 0 | AL128: 0 | AM128: 0 | AN128: 0 | AO128: 0 | AP128: 0 | AR128: 0 | AS128: 0 | AT128: 0 | AU128: 0 | AV128: 0 | AW128: 0 | AX128: 0 | AY128: 0 | AZ128: 0 | BA128: 0
C129: 1 | D129: 6 | E129: 0 | G129: 0 | H129: 0 | I129: 0 | J129: 0 | K129: 0 | L129: 0 | M129: 0 | N129: 0 | O129: 0 | P129: 0 | Q129: 0 | R129: 0 | S129: 0 | T129: 0 | U129: 0 | V129: 0 | W129: 0 | X129: 0 | Y129: 0 | Z129: 0 | AB129: =IF('Courbes de Production PV'!$C$4="Saisie Manuelle",'Courbes de Production PV'!F129*Données!$G$35,HLOOKUP('Courbes de Production PV'!$C$4&'Courbes de Production PV'!$C$5,'Courbes de Production PV'!$G$7:$Z$8769,'Compensation PV'!A172+2,FALSE)*Données!$G$35) -> 0 | AC129: 0 | AG129: 0 | AH129: 0 | AI129: 0 | AJ129: 0 | AK129: 0 | AL129: 0 | AM129: 0 | AN129: 0 | AO129: 0 | AP129: 0 | AR129: 0 | AS129: 0 | AT129: 0 | AU129: 0 | AV129: 0 | AW129: 0 | AX129: 0 | AY129: 0 | AZ129: 0 | BA129: 0
C130: 1 | D130: 6 | E130: 1 | G130: 0 | H130: 0 | I130: 0 | J130: 0 | K130: 0 | L130: 0 | M130: 0 | N130: 0 | O130: 0 | P130: 0 | Q130: 0 | R130: 0 | S130: 0 | T130: 0 | U130: 0 | V130: 0 | W130: 0 | X130: 0 | Y130: 0 | Z130: 0 | AB130: =IF('Courbes de Production PV'!$C$4="Saisie Manuelle",'Courbes de Production PV'!F130*Données!$G$35,HLOOKUP('Courbes de Production PV'!$C$4&'Courbes de Production PV'!$C$5,'Courbes de Production PV'!$G$7:$Z$8769,'Compensation PV'!A173+2,FALSE)*Données!$G$35) -> 0 | AC130: 0 | AG130: 0 | AH130: 0 | AI130: 0 | AJ130: 0 | AK130: 0 | AL130: 0 | AM130: 0 | AN130: 0 | AO130: 0 | AP130: 0 | AR130: 0 | AS130: 0 | AT130: 0 | AU130: 0 | AV130: 0 | AW130: 0 | AX130: 0 | AY130: 0 | AZ130: 0 | BA130: 0
C131: 1 | D131: 6 | E131: 2 | G131: 0 | H131: 0 | I131: 0 | J131: 0 | K131: 0 | L131: 0 | M131: 0 | N131: 0 | O131: 0 | P131: 0 | Q131: 0 | R131: 0 | S131: 0 | T131: 0 | U131: 0 | V131: 0 | W131: 0 | X131: 0 | Y131: 0 | Z131: 0 | AB131: =IF('Courbes de Production PV'!$C$4="Saisie Manuelle",'Courbes de Production PV'!F131*Données!$G$35,HLOOKUP('Courbes de Production PV'!$C$4&'Courbes de Production PV'!$C$5,'Courbes de Production PV'!$G$7:$Z$8769,'Compensation PV'!A174+2,FALSE)*Données!$G$35) -> 0 | AC131: 0 | AG131: 0 | AH131: 0 | AI131: 0 | AJ131: 0 | AK131: 0 | AL131: 0 | AM131: 0 | AN131: 0 | AO131: 0 | AP131: 0 | AR131: 0 | AS131: 0 | AT131: 0 | AU131: 0 | AV131: 0 | AW131: 0 | AX131: 0 | AY131: 0 | AZ131: 0 | BA131: 0
C132: 1 | D132: 6 | E132: 3 | G132: 0 | H132: 0 | I132: 0 | J132: 0 | K132: 0 | L132: 0 | M132: 0 | N132: 0 | O132: 0 | P132: 0 | Q132: 0 | R132: 0 | S132: 0 | T132: 0 | U132: 0 | V132: 0 | W132: 0 | X132: 0 | Y132: 0 | Z132: 0 | AB132: =IF('Courbes de Production PV'!$C$4="Saisie Manuelle",'Courbes de Production PV'!F132*Données!$G$35,HLOOKUP('Courbes de Production PV'!$C$4&'Courbes de Production PV'!$C$5,'Courbes de Production PV'!$G$7:$Z$8769,'Compensation PV'!A175+2,FALSE)*Données!$G$35) -> 0 | AC132: 0 | AG132: 0 | AH132: 0 | AI132: 0 | AJ132: 0 | AK132: 0 | AL132: 0 | AM132: 0 | AN132: 0 | AO132: 0 | AP132: 0 | AR132: 0 | AS132: 0 | AT132: 0 | AU132: 0 | AV132: 0 | AW132: 0 | AX132: 0 | AY132: 0 | AZ132: 0 | BA132: 0
C133: 1 | D133: 6 | E133: 4 | G133: 0 | H133: 0 | I133: 0 | J133: 0 | K133: 0 | L133: 0 | M133: 0 | N133: 0 | O133: 0 | P133: 0 | Q133: 0 | R133: 0 | S133: 0 | T133: 0 | U133: 0 | V133: 0 | W133: 0 | X133: 0 | Y133: 0 | Z133: 0 | AB133: =IF('Courbes de Production PV'!$C$4="Saisie Manuelle",'Courbes de Production PV'!F133*Données!$G$35,HLOOKUP('Courbes de Production PV'!$C$4&'Courbes de Production PV'!$C$5,'Courbes de Production PV'!$G$7:$Z$8769,'Compensation PV'!A176+2,FALSE)*Données!$G$35) -> 0 | AC133: 0 | AG133: 0 | AH133: 0 | AI133: 0 | AJ133: 0 | AK133: 0 | AL133: 0 | AM133: 0 | AN133: 0 | AO133: 0 | AP133: 0 | AR133: 0 | AS133: 0 | AT133: 0 | AU133: 0 | AV133: 0 | AW133: 0 | AX133: 0 | AY133: 0 | AZ133: 0 | BA133: 0
C134: 1 | D134: 6 | E134: 5 | G134: 0 | H134: 0 | I134: 0 | J134: 0 | K134: 0 | L134: 0 | M134: 0 | N134: 0 | O134: 0 | P134: 0 | Q134: 0 | R134: 0 | S134: 0 | T134: 0 | U134: 0 | V134: 0 | W134: 0 | X134: 0 | Y134: 0 | Z134: 0 | AB134: =IF('Courbes de Production PV'!$C$4="Saisie Manuelle",'Courbes de Production PV'!F134*Données!$G$35,HLOOKUP('Courbes de Production PV'!$C$4&'Courbes de Production PV'!$C$5,'Courbes de Production PV'!$G$7:$Z$8769,'Compensation PV'!A177+2,FALSE)*Données!$G$35) -> 0 | AC134: 0 | AG134: 0 | AH134: 0 | AI134: 0 | AJ134: 0 | AK134: 0 | AL134: 0 | AM134: 0 | AN134: 0 | AO134: 0 | AP134: 0 | AR134: 0 | AS134: 0 | AT134: 0 | AU134: 0 | AV134: 0 | AW134: 0 | AX134: 0 | AY134: 0 | AZ134: 0 | BA134: 0
C135: 1 | D135: 6 | E135: 6 | G135: 0 | H135: 0 | I135: 0 | J135: 0 | K135: 0 | L135: 0 | M135: 0 | N135: 0 | O135: 0 | P135: 0 | Q135: 0 | R135: 0 | S135: 0 | T135: 0 | U135: 0 | V135: 0 | W135: 0 | X135: 0 | Y135: 0 | Z135: 0 | AB135: =IF('Courbes de Production PV'!$C$4="Saisie Manuelle",'Courbes de Production PV'!F135*Données!$G$35,HLOOKUP('Courbes de Production PV'!$C$4&'Courbes de Production PV'!$C$5,'Courbes de Production PV'!$G$7:$Z$8769,'Compensation PV'!A178+2,FALSE)*Données!$G$35) -> 0 | AC135: 0 | AG135: 0 | AH135: 0 | AI135: 0 | AJ135: 0 | AK135: 0 | AL135: 0 | AM135: 0 | AN135: 0 | AO135: 0 | AP135: 0 | AR135: 0 | AS135: 0 | AT135: 0 | AU135: 0 | AV135: 0 | AW135: 0 | AX135: 0 | AY135: 0 | AZ135: 0 | BA135: 0
C136: 1 | D136: 6 | E136: 7 | G136: 0 | H136: 0 | I136: 0 | J136: 0 | K136: 0 | L136: 0 | M136: 0 | N136: 0 | O136: 0 | P136: 0 | Q136: 0 | R136: 0 | S136: 0 | T136: 0 | U136: 0 | V136: 0 | W136: 0 | X136: 0 | Y136: 0 | Z136: 0 | AB136: =IF('Courbes de Production PV'!$C$4="Saisie Manuelle",'Courbes de Production PV'!F136*Données!$G$35,HLOOKUP('Courbes de Production PV'!$C$4&'Courbes de Production PV'!$C$5,'Courbes de Production PV'!$G$7:$Z$8769,'Compensation PV'!A179+2,FALSE)*Données!$G$35) -> 0 | AC136: 0 | AG136: 0.0466168 | AH136: 0.0475812 | AI136: 0.0466797 | AJ136: 0.047957 | AK136: 0.0474026 | AL136: 0.0475374 | AM136: 0.0478965 | AN136: 0.0481057 | AO136: 0.047248 | AP136: 0.0467187 | AR136: 0.06627 | AS136: 0.0689 | AT136: 0.00343 | AU136: 0.10865 | AV136: 0.09151 | AW136: 0.10943 | AX136: 0.11299 | AY136: 0.01585 | AZ136: 0.05665 | BA136: 0.07695
C137: 1 | D137: 6 | E137: 8 | G137: 0 | H137: 0 | I137: 0 | J137: 0 | K137: 0 | L137: 0 | M137: 0 | N137: 0 | O137: 0 | P137: 0 | Q137: 0 | R137: 0 | S137: 0 | T137: 0 | U137: 0 | V137: 0 | W137: 0 | X137: 0 | Y137: 0 | Z137: 0 | AB137: =IF('Courbes de Production PV'!$C$4="Saisie Manuelle",'Courbes de Production PV'!F137*Données!$G$35,HLOOKUP('Courbes de Production PV'!$C$4&'Courbes de Production PV'!$C$5,'Courbes de Production PV'!$G$7:$Z$8769,'Compensation PV'!A180+2,FALSE)*Données!$G$35) -> 0 | AC137: 0 | AG137: 0.138961 | AH137: 0.148324 | AI137: 0.138343 | AJ137: 0.151907 | AK137: 0.148126 | AL137: 0.149069 | AM137: 0.151249 | AN137: 0.151765 | AO137: 0.147182 | AP137: 0.139728 | AR137: 0.36502 | AS137: 0.359 | AT137: 0.33105 | AU137: 0.38068 | AV137: 0.37834 | AW137: 0.40774 | AX137: 0.40027 | AY137: 0.38779 | AZ137: 0.347 | BA137: 0.36749
C138: 1 | D138: 6 | E138: 9 | G138: 0.04603903285 | H138: 0.003735771848 | I138: 0.7704120511 | J138: 0.03927450245 | K138: 0.007287691415 | L138: 0.007156550439 | M138: 0.09750229961 | N138: 0.01304484427 | O138: 0.07245826313 | P138: 0.007695810656 | Q138: 0.1024059761 | R138: 0.01015973827 | S138: 0.1004033529 | T138: 0.0108324111 | U138: 0.07781348148 | V138: 0.01503148648 | W138: 0.7691479585 | X138: 0.03957652729 | Y138: 0.06038171388 | Z138: 0.005741047025 | AB138: =IF('Courbes de Production PV'!$C$4="Saisie Manuelle",'Courbes de Production PV'!F138*Données!$G$35,HLOOKUP('Courbes de Production PV'!$C$4&'Courbes de Production PV'!$C$5,'Courbes de Production PV'!$G$7:$Z$8769,'Compensation PV'!A181+2,FALSE)*Données!$G$35) -> 3.019085694 | AC138: 3.019085694 | AG138: 0.252157 | AH138: 0.28912 | AI138: 0.248397 | AJ138: 0.301561 | AK138: 0.289878 | AL138: 0.292625 | AM138: 0.299139 | AN138: 0.298884 | AO138: 0.287724 | AP138: 0.254516 | AR138: 0.44918 | AS138: 0.51166 | AT138: 0.39317 | AU138: 0.48985 | AV138: 0.50602 | AW138: 0.51324 | AX138: 0.52627 | AY138: 0.55774 | AZ138: 0.52124 | BA138: 0.41862
C139: 1 | D139: 6 | E139: 10 | G139: 0.3157985373 | H139: 0.08013520959 | I139: 0.3587420072 | J139: 0.101592372 | K139: 0.3172487569 | L139: 0.08346186441 | M139: 0.3392099026 | N139: 0.1156894848 | O139: 0.3416449752 | P139: 0.1042316674 | Q139: 0.3845670218 | R139: 0.1157525237 | S139: 0.3549738637 | T139: 0.1114039141 | U139: 0.219411057 | V139: 0.1168467007 | W139: 0.3447642008 | X139: 0.09384311512 | Y139: 0.05940472869 | Z139: 0.05404641813 | AB139: =IF('Courbes de Production PV'!$C$4="Saisie Manuelle",'Courbes de Production PV'!F139*Données!$G$35,HLOOKUP('Courbes de Production PV'!$C$4&'Courbes de Production PV'!$C$5,'Courbes de Production PV'!$G$7:$Z$8769,'Compensation PV'!A182+2,FALSE)*Données!$G$35) -> 2.970236434 | AC139: =AB139*$AC$6 -> 2.970236434 | AG139: 0.339848 | AH139: 0.404577 | AI139: 0.334084 | AJ139: 0.420756 | AK139: 0.404369 | AL139: 0.40749 | AM139: 0.417551 | AN139: 0.415882 | AO139: 0.403536 | AP139: 0.342919 | AR139: 0.5588 | AS139: 0.62118 | AT139: 0.45349 | AU139: 0.63053 | AV139: 0.62414 | AW139: 0.65401 | AX139: 0.65678 | AY139: 0.65532 | AZ139: 0.64473 | BA139: 0.57579
C140: 1 | D140: 6 | E140: 11 | G140: 0.4766206119 | H140: 0.2487772419 | I140: 0.5608705161 | J140: 0.3038953051 | K140: 0.5060074583 | L140: 0.2705063659 | M140: 0.4590132601 | N140: 0.2706629379 | O140: 0.4969434932 | P140: 0.2761178435 | Q140: 0.485222631 | R140: 0.2750263981 | S140: 0.4664308778 | T140: 0.2687393753 | U140: 0.5611754953 | V140: 0.3298559985 | W140: 0.5465502234 | X140: 0.2936393628 | Y140: 0.2228231287 | Z140: 0.1621090384 | AB140: =IF('Courbes de Production PV'!$C$4="Saisie Manuelle",'Courbes de Production PV'!F140*Données!$G$35,HLOOKUP('Courbes de Production PV'!$C$4&'Courbes de Production PV'!$C$5,'Courbes de Production PV'!$G$7:$Z$8769,'Compensation PV'!A183+2,FALSE)*Données!$G$35) -> 11.14115643 | AC140: 11.14115643 | AG140: 0.374159 | AH140: 0.459962 | AI140: 0.368076 | AJ140: 0.475918 | AK140: 0.457165 | AL140: 0.459494 | AM140: 0.472059 | AN140: 0.470063 | AO140: 0.46022 | AP140: 0.377362 | AR140: 0.58589 | AS140: 0.63835 | AT140: 0.57044 | AU140: 0.68879 | AV140: 0.65242 | AW140: 0.69449 | AX140: 0.73189 | AY140: 0.72081 | AZ140: 0.7169 | BA140: 0.63249
C141: 1 | D141: 6 | E141: 12 | G141: 0.6317616034 | H141: 0.4320333039 | I141: 0.6934813146 | J141: 0.479617937 | K141: 0.6280716059 | L141: 0.4338237179 | M141: 0.5690417747 | N141: 0.4142265475 | O141: 0.6436050567 | P141: 0.4518666302 | Q141: 0.6188307996 | R141: 0.4366975141 | S141: 0.5819765962 | T141: 0.4163044265 | U141: 0.6850077024 | V141: 0.495134246 | W141: 0.6794938432 | X141: 0.4702152232 | Y141: 0.3703076051 | Z141: 0.2951502492 | AB141: =IF('Courbes de Production PV'!$C$4="Saisie Manuelle",'Courbes de Production PV'!F141*Données!$G$35,HLOOKUP('Courbes de Production PV'!$C$4&'Courbes de Production PV'!$C$5,'Courbes de Production PV'!$G$7:$Z$8769,'Compensation PV'!A184+2,FALSE)*Données!$G$35) -> 18.51538026 | AC141: 18.51538026 | AG141: 0.342836 | AH141: 0.429137 | AI141: 0.339177 | AJ141: 0.439765 | AK141: 0.422643 | AL141: 0.42306 | AM141: 0.435621 | AN141: 0.435407 | AO141: 0.431155 | AP141: 0.345406 | AR141: 0.73268 | AS141: 0.76912 | AT141: 0.71504 | AU141: 0.76368 | AV141: 0.73009 | AW141: 0.76255 | AX141: 0.77469 | AY141: 0.76652 | AZ141: 0.7565 | BA141: 0.71956
C142: 1 | D142: 6 | E142: 13 | G142: 0.2329340851 | H142: 0.2195201478 | I142: 0.7535510507 | J142: 0.5944180926 | K142: 0.6991687497 | L142: 0.551813128 | M142: 0.6321123661 | N142: 0.5186380436 | O142: 0.7021716464 | P142: 0.558333514 | Q142: 0.6573864355 | R142: 0.5283920058 | S142: 0.6484844143 | T142: 0.525186088 | U142: 0.7411155228 | V142: 0.6031858245 | W142: 0.7352265809 | X142: 0.5825946623 | Y142: 0.2012589503 | Z142: 0.1964143123 | AB142: =IF('Courbes de Production PV'!$C$4="Saisie Manuelle",'Courbes de Production PV'!F142*Données!$G$35,HLOOKUP('Courbes de Production PV'!$C$4&'Courbes de Production PV'!$C$5,'Courbes de Production PV'!$G$7:$Z$8769,'Compensation PV'!A185+2,FALSE)*Données!$G$35) -> 10.06294751 | AC142: 10.06294751 | AG142: 0.262369 | AH142: 0.327613 | AI142: 0.262814 | AJ142: 0.329958 | AK142: 0.317935 | AL142: 0.316274 | AM142: 0.326319 | AN142: 0.329082 | AO142: 0.330506 | AP142: 0.263801 | AR142: 0.66721 | AS142: 0.71056 | AT142: 0.6567 | AU142: 0.69729 | AV142: 0.65856 | AW142: 0.68966 | AX142: 0.70932 | AY142: 0.70469 | AZ142: 0.70116 | BA142: 0.65265
C143: 1 | D143: 6 | E143: 14 | G143: 0.1226513902 | H143: 0.1245386325 | I143: 0.7552856019 | J143: 0.6527629678 | K143: 0.7056883297 | L143: 0.6101240265 | M143: 0.6774001274 | N143: 0.6058292904 | O143: 0.703044165 | P143: 0.6098415257 | Q143: 0.7217980346 | R143: 0.636296417 | S143: 0.6864155532 | T143: 0.6081903231 | U143: 0.7346553888 | V143: 0.6516076421 | W143: 0.7380255944 | X143: 0.6423545521 | Y143: 0.175676039 | Z143: 0.1760889915 | AB143: =IF('Courbes de Production PV'!$C$4="Saisie Manuelle",'Courbes de Production PV'!F143*Données!$G$35,HLOOKUP('Courbes de Production PV'!$C$4&'Courbes de Production PV'!$C$5,'Courbes de Production PV'!$G$7:$Z$8769,'Compensation PV'!A186+2,FALSE)*Données!$G$35) -> 8.783801948 | AC143: 8.783801948 | AG143: 0.149791 | AH143: 0.18478 | AI143: 0.152711 | AJ143: 0.181805 | AK143: 0.175544 | AL143: 0.173066 | AM143: 0.179057 | AN143: 0.183497 | AO143: 0.187809 | AP143: 0.150271 | AR143: 0.53802 | AS143: 0.58973 | AT143: 0.53945 | AU143: 0.55691 | AV143: 0.53676 | AW143: 0.55013 | AX143: 0.5716 | AY143: 0.56888 | AZ143: 0.58923 | BA143: 0.52325
C144: 1 | D144: 6 | E144: 15 | G144: 0.6333681789 | H144: 0.6060951088 | I144: 0.6937041899 | J144: 0.6481504183 | K144: 0.651733185 | L144: 0.6094308528 | M144: 0.6196388931 | N144: 0.6002825945 | O144: 0.6434678066 | P144: 0.6020476792 | Q144: 0.6525348751 | R144: 0.6247668264 | S144: 0.6285630439 | T144: 0.6048892697 | U144: 0.6653840725 | V144: 0.6368388418 | W144: 0.6793415159 | X144: 0.6405171045 | Y144: 0.4987660503 | Z144: 0.4776148244 | AB144: =IF('Courbes de Production PV'!$C$4="Saisie Manuelle",'Courbes de Production PV'!F144*Données!$G$35,HLOOKUP('Courbes de Production PV'!$C$4&'Courbes de Production PV'!$C$5,'Courbes de Production PV'!$G$7:$Z$8769,'Compensation PV'!A187+2,FALSE)*Données!$G$35) -> 24.93830252 | AC144: 24.93830252 | AG144: 0.0392819 | AH144: 0.0422775 | AI144: 0.0400766 | AJ144: 0.0409926 | AK144: 0.0406207 | AL144: 0.0401553 | AM144: 0.040803 | AN144: 0.0416307 | AO144: 0.0425013 | AP144: 0.0392405 | AR144: 0.34428 | AS144: 0.39879 | AT144: 0.3574 | AU144: 0.35644 | AV144: 0.35145 | AW144: 0.35177 | AX144: 0.36773 | AY144: 0.37103 | AZ144: 0.40486 | BA144: 0.33298
C145: 1 | D145: 6 | E145: 16 | G145: 0.1627093169 | H145: 0.168041986 | I145: 0.577334217 | J145: 0.5857744074 | K145: 0.5293224505 | L145: 0.5388208041 | M145: 0.4967589214 | N145: 0.5262065146 | O145: 0.5218347839 | P145: 0.5303344882 | Q145: 0.5199921473 | R145: 0.5452012357 | S145: 0.506645319 | T145: 0.5346201977 | U145: 0.5371153878 | V145: 0.5586556539 | W145: 0.5680378881 | X145: 0.5826613055 | Y145: 0.4393713936 | Z145: 0.4567959749 | AB145: =IF('Courbes de Production PV'!$C$4="Saisie Manuelle",'Courbes de Production PV'!F145*Données!$G$35,HLOOKUP('Courbes de Production PV'!$C$4&'Courbes de Production PV'!$C$5,'Courbes de Production PV'!$G$7:$Z$8769,'Compensation PV'!A188+2,FALSE)*Données!$G$35) -> 21.96856968 | AC145: 21.96856968 | AG145: 0 | AH145: 0 | AI145: 0 | AJ145: 0 | AK145: 0 | AL145: 0 | AM145: 0 | AN145: 0 | AO145: 0 | AP145: 0 | AR145: 0.06288 | AS145: 0.12639 | AT145: 0.09225 | AU145: 0.07892 | AV145: 0.08061 | AW145: 0.0671 | AX145: 0.08063 | AY145: 0.09548 | AZ145: 0.14674 | BA145: 0.00524
C146: 1 | D146: 6 | E146: 17 | G146: 0.3231345867 | H146: 0.3930302973 | I146: 0.3898767164 | J146: 0.4428725846 | K146: 0.04864393512 | L146: 0.05018015799 | M146: 0.3190888457 | N146: 0.384770164 | O146: 0.3369000423 | P146: 0.3854963906 | Q146: 0.3316850134 | R146: 0.3969813088 | S146: 0.3261228341 | T146: 0.3929227025 | U146: 0.3458506676 | V146: 0.4046339953 | W146: 0.3879489802 | X146: 0.4461189542 | Y146: 0.3361131233 | Z146: 0.4005034981 | AB146: =IF('Courbes de Production PV'!$C$4="Saisie Manuelle",'Courbes de Production PV'!F146*Données!$G$35,HLOOKUP('Courbes de Production PV'!$C$4&'Courbes de Production PV'!$C$5,'Courbes de Production PV'!$G$7:$Z$8769,'Compensation PV'!A189+2,FALSE)*Données!$G$35) -> 16.80565616 | AC146: 16.80565616 | AG146: 0 | AH146: 0 | AI146: 0 | AJ146: 0 | AK146: 0 | AL146: 0 | AM146: 0 | AN146: 0 | AO146: 0 | AP146: 0 | AR146: 0 | AS146: 0 | AT146: 0 | AU146: 0 | AV146: 0 | AW146: 0 | AX146: 0 | AY146: 0 | AZ146: 0 | BA146: 0
C147: 1 | D147: 6 | E147: 18 | G147: 0.05885292385 | H147: 0.1005464604 | I147: 0.1416517831 | J147: 0.2071674286 | K147: 0.1058214009 | L147: 0.1605821259 | M147: 0.07114011096 | N147: 0.115856501 | O147: 0.07502680121 | P147: 0.1137313368 | Q147: 0.06269928365 | R147: 0.104156343 | S147: 0.0716496734 | T147: 0.1178732708 | U147: 0.0730364848 | V147: 0.1098806526 | W147: 0.1603625272 | X147: 0.2294715029 | Y147: 0.06157021134 | Z147: 0.1017676125 | AB147: =IF('Courbes de Production PV'!$C$4="Saisie Manuelle",'Courbes de Production PV'!F147*Données!$G$35,HLOOKUP('Courbes de Production PV'!$C$4&'Courbes de Production PV'!$C$5,'Courbes de Production PV'!$G$7:$Z$8769,'Compensation PV'!A190+2,FALSE)*Données!$G$35) -> 3.078510567 | AC147: 3.078510567 | AG147: 0 | AH147: 0 | AI147: 0 | AJ147: 0 | AK147: 0 | AL147: 0 | AM147: 0 | AN147: 0 | AO147: 0 | AP147: 0 | AR147: 0 | AS147: 0 | AT147: 0 | AU147: 0 | AV147: 0 | AW147: 0 | AX147: 0 | AY147: 0 | AZ147: 0 | BA147: 0
C148: 1 | D148: 6 | E148: 19 | G148: 0 | H148: 0 | I148: 0 | J148: 0 | K148: 0 | L148: 0 | M148: 0 | N148: 0 | O148: 0 | P148: 0 | Q148: 0 | R148: 0 | S148: 0 | T148: 0 | U148: 0 | V148: 0 | W148: 0 | X148: 0 | Y148: 0 | Z148: 0 | AB148: =IF('Courbes de Production PV'!$C$4="Saisie Manuelle",'Courbes de Production PV'!F148*Données!$G$35,HLOOKUP('Courbes de Production PV'!$C$4&'Courbes de Production PV'!$C$5,'Courbes de Production PV'!$G$7:$Z$8769,'Compensation PV'!A191+2,FALSE)*Données!$G$35) -> 0 | AC148: 0 | AG148: 0 | AH148: 0 | AI148: 0 | AJ148: 0 | AK148: 0 | AL148: 0 | AM148: 0 | AN148: 0 | AO148: 0 | AP148: 0 | AR148: 0 | AS148: 0 | AT148: 0 | AU148: 0 | AV148: 0 | AW148: 0 | AX148: 0 | AY148: 0 | AZ148: 0 | BA148: 0
C149: 1 | D149: 6 | E149: 20 | G149: 0 | H149: 0 | I149: 0 | J149: 0 | K149: 0 | L149: 0 | M149: 0 | N149: 0 | O149: 0 | P149: 0 | Q149: 0 | R149: 0 | S149: 0 | T149: 0 | U149: 0 | V149: 0 | W149: 0 | X149: 0 | Y149: 0 | Z149: 0 | AB149: =IF('Courbes de Production PV'!$C$4="Saisie Manuelle",'Courbes de Production PV'!F149*Données!$G$35,HLOOKUP('Courbes de Production PV'!$C$4&'Courbes de Production PV'!$C$5,'Courbes de Production PV'!$G$7:$Z$8769,'Compensation PV'!A192+2,FALSE)*Données!$G$35) -> 0 | AC149: 0 | AG149: 0 | AH149: 0 | AI149: 0 | AJ149: 0 | AK149: 0 | AL149: 0 | AM149: 0 | AN149: 0 | AO149: 0 | AP149: 0 | AR149: 0 | AS149: 0 | AT149: 0 | AU149: 0 | AV149: 0 | AW149: 0 | AX149: 0 | AY149: 0 | AZ149: 0 | BA149: 0
C150: 1 | D150: 6 | E150: 21 | G150: 0 | H150: 0 | I150: 0 | J150: 0 | K150: 0 | L150: 0 | M150: 0 | N150: 0 | O150: 0 | P150: 0 | Q150: 0 | R150: 0 | S150: 0 | T150: 0 | U150: 0 | V150: 0 | W150: 0 | X150: 0 | Y150: 0 | Z150: 0 | AB150: =IF('Courbes de Production PV'!$C$4="Saisie Manuelle",'Courbes de Production PV'!F150*Données!$G$35,HLOOKUP('Courbes de Production PV'!$C$4&'Courbes de Production PV'!$C$5,'Courbes de Production PV'!$G$7:$Z$8769,'Compensation PV'!A193+2,FALSE)*Données!$G$35) -> 0 | AC150: 0 | AG150: 0 | AH150: 0 | AI150: 0 | AJ150: 0 | AK150: 0 | AL150: 0 | AM150: 0 | AN150: 0 | AO150: 0 | AP150: 0 | AR150: 0 | AS150: 0 | AT150: 0 | AU150: 0 | AV150: 0 | AW150: 0 | AX150: 0 | AY150: 0 | AZ150: 0 | BA150: 0
C151: 1 | D151: 6 | E151: 22 | G151: 0 | H151: 0 | I151: 0 | J151: 0 | K151: 0 | L151: 0 | M151: 0 | N151: 0 | O151: 0 | P151: 0 | Q151: 0 | R151: 0 | S151: 0 | T151: 0 | U151: 0 | V151: 0 | W151: 0 | X151: 0 | Y151: 0 | Z151: 0 | AB151: =IF('Courbes de Production PV'!$C$4="Saisie Manuelle",'Courbes de Production PV'!F151*Données!$G$35,HLOOKUP('Courbes de Production PV'!$C$4&'Courbes de Production PV'!$C$5,'Courbes de Production PV'!$G$7:$Z$8769,'Compensation PV'!A194+2,FALSE)*Données!$G$35) -> 0 | AC151: 0 | AG151: 0 | AH151: 0 | AI151: 0 | AJ151: 0 | AK151: 0 | AL151: 0 | AM151: 0 | AN151: 0 | AO151: 0 | AP151: 0 | AR151: 0 | AS151: 0 | AT151: 0 | AU151: 0 | AV151: 0 | AW151: 0 | AX151: 0 | AY151: 0 | AZ151: 0 | BA151: 0
C152: 1 | D152: 6 | E152: 23 | G152: 0 | H152: 0 | I152: 0 | J152: 0 | K152: 0 | L152: 0 | M152: 0 | N152: 0 | O152: 0 | P152: 0 | Q152: 0 | R152: 0 | S152: 0 | T152: 0 | U152: 0 | V152: 0 | W152: 0 | X152: 0 | Y152: 0 | Z152: 0 | AB152: =IF('Courbes de Production PV'!$C$4="Saisie Manuelle",'Courbes de Production PV'!F152*Données!$G$35,HLOOKUP('Courbes de Production PV'!$C$4&'Courbes de Production PV'!$C$5,'Courbes de Production PV'!$G$7:$Z$8769,'Compensation PV'!A195+2,FALSE)*Données!$G$35) -> 0 | AC152: 0 | AG152: 0 | AH152: 0 | AI152: 0 | AJ152: 0 | AK152: 0 | AL152: 0 | AM152: 0 | AN152: 0 | AO152: 0 | AP152: 0 | AR152: 0 | AS152: 0 | AT152: 0 | AU152: 0 | AV152: 0 | AW152: 0 | AX152: 0 | AY152: 0 | AZ152: 0 | BA152: 0
C153: 1 | D153: 7 | E153: 0 | G153: 0 | H153: 0 | I153: 0 | J153: 0 | K153: 0 | L153: 0 | M153: 0 | N153: 0 | O153: 0 | P153: 0 | Q153: 0 | R153: 0 | S153: 0 | T153: 0 | U153: 0 | V153: 0 | W153: 0 | X153: 0 | Y153: 0 | Z153: 0 | AB153: =IF('Courbes de Production PV'!$C$4="Saisie Manuelle",'Courbes de Production PV'!F153*Données!$G$35,HLOOKUP('Courbes de Production PV'!$C$4&'Courbes de Production PV'!$C$5,'Courbes de Production PV'!$G$7:$Z$8769,'Compensation PV'!A196+2,FALSE)*Données!$G$35) -> 0 | AC153: 0 | AG153: 0 | AH153: 0 | AI153: 0 | AJ153: 0 | AK153: 0 | AL153: 0 | AM153: 0 | AN153: 0 | AO153: 0 | AP153: 0 | AR153: 0 | AS153: 0 | AT153: 0 | AU153: 0 | AV153: 0 | AW153: 0 | AX153: 0 | AY153: 0 | AZ153: 0 | BA153: 0
C154: 1 | D154: 7 | E154: 1 | G154: 0 | H154: 0 | I154: 0 | J154: 0 | K154: 0 | L154: 0 | M154: 0 | N154: 0 | O154: 0 | P154: 0 | Q154: 0 | R154: 0 | S154: 0 | T154: 0 | U154: 0 | V154: 0 | W154: 0 | X154: 0 | Y154: 0 | Z154: 0 | AB154: =IF('Courbes de Production PV'!$C$4="Saisie Manuelle",'Courbes de Production PV'!F154*Données!$G$35,HLOOKUP('Courbes de Production PV'!$C$4&'Courbes de Production PV'!$C$5,'Courbes de Production PV'!$G$7:$Z$8769,'Compensation PV'!A197+2,FALSE)*Données!$G$35) -> 0 | AC154: 0 | AG154: 0 | AH154: 0 | AI154: 0 | AJ154: 0 | AK154: 0 | AL154: 0 | AM154: 0 | AN154: 0 | AO154: 0 | AP154: 0 | AR154: 0 | AS154: 0 | AT154: 0 | AU154: 0 | AV154: 0 | AW154: 0 | AX154: 0 | AY154: 0 | AZ154: 0 | BA154: 0
C155: 1 | D155: 7 | E155: 2 | G155: 0 | H155: 0 | I155: 0 | J155: 0 | K155: 0 | L155: 0 | M155: 0 | N155: 0 | O155: 0 | P155: 0 | Q155: 0 | R155: 0 | S155: 0 | T155: 0 | U155: 0 | V155: 0 | W155: 0 | X155: 0 | Y155: 0 | Z155: 0 | AB155: =IF('Courbes de Production PV'!$C$4="Saisie Manuelle",'Courbes de Production PV'!F155*Données!$G$35,HLOOKUP('Courbes de Production PV'!$C$4&'Courbes de Production PV'!$C$5,'Courbes de Production PV'!$G$7:$Z$8769,'Compensation PV'!A198+2,FALSE)*Données!$G$35) -> 0 | AC155: 0 | AG155: 0 | AH155: 0 | AI155: 0 | AJ155: 0 | AK155: 0 | AL155: 0 | AM155: 0 | AN155: 0 | AO155: 0 | AP155: 0 | AR155: 0 | AS155: 0 | AT155: 0 | AU155: 0 | AV155: 0 | AW155: 0 | AX155: 0 | AY155: 0 | AZ155: 0 | BA155: 0
C156: 1 | D156: 7 | E156: 3 | G156: 0 | H156: 0 | I156: 0 | J156: 0 | K156: 0 | L156: 0 | M156: 0 | N156: 0 | O156: 0 | P156: 0 | Q156: 0 | R156: 0 | S156: 0 | T156: 0 | U156: 0 | V156: 0 | W156: 0 | X156: 0 | Y156: 0 | Z156: 0 | AB156: =IF('Courbes de Production PV'!$C$4="Saisie Manuelle",'Courbes de Production PV'!F156*Données!$G$35,HLOOKUP('Courbes de Production PV'!$C$4&'Courbes de Production PV'!$C$5,'Courbes de Production PV'!$G$7:$Z$8769,'Compensation PV'!A199+2,FALSE)*Données!$G$35) -> 0 | AC156: 0 | AG156: 0 | AH156: 0 | AI156: 0 | AJ156: 0 | AK156: 0 | AL156: 0 | AM156: 0 | AN156: 0 | AO156: 0 | AP156: 0 | AR156: 0 | AS156: 0 | AT156: 0 | AU156: 0 | AV156: 0 | AW156: 0 | AX156: 0 | AY156: 0 | AZ156: 0 | BA156: 0
C157: 1 | D157: 7 | E157: 4 | G157: 0 | H157: 0 | I157: 0 | J157: 0 | K157: 0 | L157: 0 | M157: 0 | N157: 0 | O157: 0 | P157: 0 | Q157: 0 | R157: 0 | S157: 0 | T157: 0 | U157: 0 | V157: 0 | W157: 0 | X157: 0 | Y157: 0 | Z157: 0 | AB157: =IF('Courbes de Production PV'!$C$4="Saisie Manuelle",'Courbes de Production PV'!F157*Données!$G$35,HLOOKUP('Courbes de Production PV'!$C$4&'Courbes de Production PV'!$C$5,'Courbes de Production PV'!$G$7:$Z$8769,'Compensation PV'!A200+2,FALSE)*Données!$G$35) -> 0 | AC157: 0 | AG157: 0 | AH157: 0 | AI157: 0 | AJ157: 0 | AK157: 0 | AL157: 0 | AM157: 0 | AN157: 0 | AO157: 0 | AP157: 0 | AR157: 0 | AS157: 0 | AT157: 0 | AU157: 0 | AV157: 0 | AW157: 0 | AX157: 0 | AY157: 0 | AZ157: 0 | BA157: 0
C158: 1 | D158: 7 | E158: 5 | G158: 0 | H158: 0 | I158: 0 | J158: 0 | K158: 0 | L158: 0 | M158: 0 | N158: 0 | O158: 0 | P158: 0 | Q158: 0 | R158: 0 | S158: 0 | T158: 0 | U158: 0 | V158: 0 | W158: 0 | X158: 0 | Y158: 0 | Z158: 0 | AB158: =IF('Courbes de Production PV'!$C$4="Saisie Manuelle",'Courbes de Production PV'!F158*Données!$G$35,HLOOKUP('Courbes de Production PV'!$C$4&'Courbes de Production PV'!$C$5,'Courbes de Production PV'!$G$7:$Z$8769,'Compensation PV'!A201+2,FALSE)*Données!$G$35) -> 0 | AC158: 0 | AG158: 0 | AH158: 0 | AI158: 0 | AJ158: 0 | AK158: 0 | AL158: 0 | AM158: 0 | AN158: 0 | AO158: 0 | AP158: 0 | AR158: 0 | AS158: 0 | AT158: 0 | AU158: 0 | AV158: 0 | AW158: 0 | AX158: 0 | AY158: 0 | AZ158: 0 | BA158: 0
C159: 1 | D159: 7 | E159: 6 | G159: 0 | H159: 0 | I159: 0 | J159: 0 | K159: 0 | L159: 0 | M159: 0 | N159: 0 | O159: 0 | P159: 0 | Q159: 0 | R159: 0 | S159: 0 | T159: 0 | U159: 0 | V159: 0 | W159: 0 | X159: 0 | Y159: 0 | Z159: 0 | AB159: =IF('Courbes de Production PV'!$C$4="Saisie Manuelle",'Courbes de Production PV'!F159*Données!$G$35,HLOOKUP('Courbes de Production PV'!$C$4&'Courbes de Production PV'!$C$5,'Courbes de Production PV'!$G$7:$Z$8769,'Compensation PV'!A202+2,FALSE)*Données!$G$35) -> 0 | AC159: 0 | AG159: 0 | AH159: 0 | AI159: 0 | AJ159: 0 | AK159: 0 | AL159: 0 | AM159: 0 | AN159: 0 | AO159: 0 | AP159: 0 | AR159: 0 | AS159: 0 | AT159: 0 | AU159: 0 | AV159: 0 | AW159: 0 | AX159: 0 | AY159: 0 | AZ159: 0 | BA159: 0
C160: 1 | D160: 7 | E160: 7 | G160: 0 | H160: 0 | I160: 0 | J160: 0 | K160: 0 | L160: 0 | M160: 0 | N160: 0 | O160: 0 | P160: 0 | Q160: 0 | R160: 0 | S160: 0 | T160: 0 | U160: 0 | V160: 0 | W160: 0 | X160: 0 | Y160: 0 | Z160: 0 | AB160: =IF('Courbes de Production PV'!$C$4="Saisie Manuelle",'Courbes de Production PV'!F160*Données!$G$35,HLOOKUP('Courbes de Production PV'!$C$4&'Courbes de Production PV'!$C$5,'Courbes de Production PV'!$G$7:$Z$8769,'Compensation PV'!A203+2,FALSE)*Données!$G$35) -> 0 | AC160: 0 | AG160: 0.0339925 | AH160: 0.0342298 | AI160: 0.0341879 | AJ160: 0.0338249 | AK160: 0.0339227 | AL160: 0.0338668 | AM160: 0.0339646 | AN160: 0.0339925 | AO160: 0.0339786 | AP160: 0.0339506 | AR160: 0 | AS160: 0.07076 | AT160: 0.00333 | AU160: 0.10768 | AV160: 0.0802 | AW160: 0.09952 | AX160: 0.10544 | AY160: 0.01602 | AZ160: 0.0579 | BA160: 0.0654
C161: 1 | D161: 7 | E161: 8 | G161: 0 | H161: 0 | I161: 0 | J161: 0 | K161: 0 | L161: 0 | M161: 0 | N161: 0 | O161: 0 | P161: 0 | Q161: 0 | R161: 0 | S161: 0 | T161: 0 | U161: 0 | V161: 0 | W161: 0 | X161: 0 | Y161: 0 | Z161: 0 | AB161: =IF('Courbes de Production PV'!$C$4="Saisie Manuelle",'Courbes de Production PV'!F161*Données!$G$35,HLOOKUP('Courbes de Production PV'!$C$4&'Courbes de Production PV'!$C$5,'Courbes de Production PV'!$G$7:$Z$8769,'Compensation PV'!A204+2,FALSE)*Données!$G$35) -> 0 | AC161: 0 | AG161: 0.107483 | AH161: 0.109265 | AI161: 0.107897 | AJ161: 0.108701 | AK161: 0.108469 | AL161: 0.108448 | AM161: 0.10897 | AN161: 0.109103 | AO161: 0.108488 | AP161: 0.107475 | AR161: 0.0279 | AS161: 0.35885 | AT161: 0.32196 | AU161: 0.37797 | AV161: 0.3611 | AW161: 0.38557 | AX161: 0.38201 | AY161: 0.38992 | AZ161: 0.35086 | BA161: 0.3478
C162: 1 | D162: 7 | E162: 9 | G162: 0.04788756245 | H162: 0.003851909833 | I162: 0.08759967978 | J162: 0.008004130033 | K162: 0.009629494569 | L162: 0.009470251955 | M162: 0.09657052502 | N162: 0.01303605394 | O162: 0.07496797972 | P162: 0.007950703747 | Q162: 0.09314044701 | R162: 0.009674582229 | S162: 0.09369504599 | T162: 0.01053151079 | U162: 0.644476199 | V162: 0.0510292211 | W162: 0.06793795977 | X162: 0.008320876799 | Y162: 0.06234575629 | Z162: 0.005861911173 | AB162: =IF('Courbes de Production PV'!$C$4="Saisie Manuelle",'Courbes de Production PV'!F162*Données!$G$35,HLOOKUP('Courbes de Production PV'!$C$4&'Courbes de Production PV'!$C$5,'Courbes de Production PV'!$G$7:$Z$8769,'Compensation PV'!A205+2,FALSE)*Données!$G$35) -> 3.117287814 | AC162: 3.117287814 | AG162: 0.190119 | AH162: 0.201167 | AI162: 0.18978 | AJ162: 0.203182 | AK162: 0.200299 | AL162: 0.200865 | AM162: 0.203012 | AN162: 0.203022 | AO162: 0.199882 | AP162: 0.190616 | AR162: 0.0503 | AS162: 0.55257 | AT162: 0.513 | AU162: 0.57462 | AV162: 0.54641 | AW162: 0.57736 | AX162: 0.56858 | AY162: 0.58623 | AZ162: 0.17792 | BA162: 0.51972
C163: 1 | D163: 7 | E163: 10 | G163: 0.0377158106 | H163: 0.03758031628 | I163: 0.3424818012 | J163: 0.09744495353 | K163: 0.0003746885046 | L163: 0.0004308917803 | M163: 0.3368716758 | N163: 0.1141687583 | O163: 0.3505270191 | P163: 0.1065649195 | Q163: 0.3636672606 | R163: 0.1098925997 | S163: 0.338760647 | T163: 0.1069523596 | U163: 0.3671574349 | V163: 0.1312457946 | W163: 0.328474704 | X163: 0.08985404489 | Y163: 0.1759379113 | Z163: 0.08657901794 | AB163: =IF('Courbes de Production PV'!$C$4="Saisie Manuelle",'Courbes de Production PV'!F163*Données!$G$35,HLOOKUP('Courbes de Production PV'!$C$4&'Courbes de Production PV'!$C$5,'Courbes de Production PV'!$G$7:$Z$8769,'Compensation PV'!A206+2,FALSE)*Données!$G$35) -> 8.796895564 | AC163: 8.796895564 | AG163: 0.256483 | AH163: 0.276501 | AI163: 0.255785 | AJ163: 0.279246 | AK163: 0.274943 | AL163: 0.275586 | AM163: 0.279005 | AN163: 0.278627 | AO163: 0.274946 | AP163: 0.25716 | AR163: 0.10588 | AS163: 0.67237 | AT163: 0.53584 | AU163: 0.70516 | AV163: 0.65675 | AW163: 0.69468 | AX163: 0.68209 | AY163: 0.70854 | AZ163: 0.67563 | BA163: 0.66203
C164: 1 | D164: 7 | E164: 11 | G164: 0.5189335511 | H164: 0.2694014123 | I164: 0.5424687692 | J164: 0.2940597215 | K164: 0.07631468118 | L164: 0.07741064506 | M164: 0.5107882822 | N164: 0.2959790777 | O164: 0.5366185833 | P164: 0.299028811 | Q164: 0.545810059 | R164: 0.3037171945 | S164: 0.5039283663 | T164: 0.2869084439 | U164: 0.5552796501 | V164: 0.32774478 | W164: 0.5272617836 | X164: 0.2834810384 | Y164: 0.07938760114 | Z164: 0.08066674671 | AB164: =IF('Courbes de Production PV'!$C$4="Saisie Manuelle",'Courbes de Production PV'!F164*Données!$G$35,HLOOKUP('Courbes de Production PV'!$C$4&'Courbes de Production PV'!$C$5,'Courbes de Production PV'!$G$7:$Z$8769,'Compensation PV'!A207+2,FALSE)*Données!$G$35) -> 3.969380057 | AC164: 3.969380057 | AG164: 0.29023 | AH164: 0.318939 | AI164: 0.289472 | AJ164: 0.321642 | AK164: 0.316241 | AL164: 0.31666 | AM164: 0.321252 | AN164: 0.320743 | AO164: 0.31751 | AP164: 0.290987 | AR164: 0.18743 | AS164: 0.59738 | AT164: 0.67914 | AU164: 0.76194 | AV164: 0.71075 | AW164: 0.74591 | AX164: 0.73553 | AY164: 0.76241 | AZ164: 0.74358 | BA164: 0.71332
C165: 1 | D165: 7 | E165: 12 | G165: 0.2648913873 | H165: 0.2263142199 | I165: 0.6758644763 | J165: 0.4671272305 | K165: 0.02338056269 | L165: 0.02404563479 | M165: 0.626451396 | N165: 0.4515502731 | O165: 0.6529184582 | P165: 0.459023244 | Q165: 0.6573769227 | R165: 0.4642848184 | S165: 0.6043759692 | T165: 0.4342256948 | U165: 0.67345924 | V165: 0.4891800261 | W165: 0.6596722579 | X165: 0.456391524 | Y165: 0.1086467969 | Z165: 0.1106410554 | AB165: =IF('Courbes de Production PV'!$C$4="Saisie Manuelle",'Courbes de Production PV'!F165*Données!$G$35,HLOOKUP('Courbes de Production PV'!$C$4&'Courbes de Production PV'!$C$5,'Courbes de Production PV'!$G$7:$Z$8769,'Compensation PV'!A208+2,FALSE)*Données!$G$35) -> 5.432339847 | AC165: 5.432339847 | AG165: 0.268119 | AH165: 0.287598 | AI165: 0.268839 | AJ165: 0.286748 | AK165: 0.283965 | AL165: 0.283635 | AM165: 0.286957 | AN165: 0.287094 | AO165: 0.28611 | AP165: 0.268323 | AR165: 0.09304 | AS165: 0.36003 | AT165: 0.6841 | AU165: 0.75548 | AV165: 0.70973 | AW165: 0.73749 | AX165: 0.73056 | AY165: 0.75533 | AZ165: 0.74873 | BA165: 0.70762
C166: 1 | D166: 7 | E166: 13 | G166: 0.1973281145 | H166: 0.1910469852 | I166: 0.7358954516 | J166: 0.5803866395 | K166: 0.1364053501 | L166: 0.138250691 | M166: 0.6763452882 | N166: 0.5526478161 | O166: 0.7049264525 | P166: 0.5616961421 | Q166: 0.7061398612 | R166: 0.5687645987 | S166: 0.6516704176 | T166: 0.5315226945 | U166: 0.7315420712 | V166: 0.5973386249 | W166: 0.7173376478 | X166: 0.5683996654 | Y166: 0.2442765149 | Z166: 0.232069236 | AB166: =IF('Courbes de Production PV'!$C$4="Saisie Manuelle",'Courbes de Production PV'!F166*Données!$G$35,HLOOKUP('Courbes de Production PV'!$C$4&'Courbes de Production PV'!$C$5,'Courbes de Production PV'!$G$7:$Z$8769,'Compensation PV'!A209+2,FALSE)*Données!$G$35) -> 12.21382575 | AC166: 12.21382575 | AG166: 0.20831 | AH166: 0.222978 | AI166: 0.209605 | AJ166: 0.220932 | AK166: 0.219116 | AL166: 0.218436 | AM166: 0.22108 | AN166: 0.221786 | AO166: 0.221983 | AP166: 0.208334 | AR166: 0.03772 | AS166: 0.68952 | AT166: 0.6268 | AU166: 0.6858 | AV166: 0.56599 | AW166: 0.66898 | AX166: 0.65595 | AY166: 0.68648 | AZ166: 0.69451 | BA166: 0.57567
C167: 1 | D167: 7 | E167: 14 | G167: 0.105375865 | H167: 0.1073502107 | I167: 0.737135801 | J167: 0.6371713877 | K167: 0.1873910884 | L167: 0.1864262655 | M167: 0.6706579471 | N167: 0.5999134008 | O167: 0.7005344484 | P167: 0.6088415605 | Q167: 0.6981680816 | R167: 0.6170233555 | S167: 0.6472631131 | T167: 0.5772418414 | U167: 0.7270180316 | V167: 0.6459258376 | W167: 0.7204508363 | X167: 0.6271123052 | Y167: 0.4179180074 | Z167: 0.3834314372 | AB167: =IF('Courbes de Production PV'!$C$4="Saisie Manuelle",'Courbes de Production PV'!F167*Données!$G$35,HLOOKUP('Courbes de Production PV'!$C$4&'Courbes de Production PV'!$C$5,'Courbes de Production PV'!$G$7:$Z$8769,'Compensation PV'!A210+2,FALSE)*Données!$G$35) -> 20.89590037 | AC167: 20.89590037 | AG167: 0.121793 | AH167: 0.130188 | AI167: 0.123037 | AJ167: 0.128252 | AK167: 0.127205 | AL167: 0.126491 | AM167: 0.128107 | AN167: 0.129146 | AO167: 0.130039 | AP167: 0.121763 | AR167: 0.07085 | AS167: 0.5766 | AT167: 0.4243 | AU167: 0.54975 | AV167: 0.44931 | AW167: 0.54084 | AX167: 0.54745 | AY167: 0.5554 | AZ167: 0.58691 | BA167: 0.51657
C168: 1 | D168: 7 | E168: 15 | G168: 0.1417560888 | H168: 0.1433723424 | I168: 0.6761648735 | J168: 0.6319095927 | K168: 0.0755840386 | L168: 0.07744811391 | M168: 0.6092487274 | N168: 0.5903495258 | O168: 0.6379974087 | P168: 0.5975674429 | Q168: 0.6330620434 | R168: 0.6066257956 | S168: 0.5812154954 | T168: 0.5606480744 | U168: 0.6611129899 | V168: 0.6330347569 | W168: 0.6629568146 | X168: 0.6251320508 | Y168: 0.286075366 | Z168: 0.2813818083 | AB168: =IF('Courbes de Production PV'!$C$4="Saisie Manuelle",'Courbes de Production PV'!F168*Données!$G$35,HLOOKUP('Courbes de Production PV'!$C$4&'Courbes de Production PV'!$C$5,'Courbes de Production PV'!$G$7:$Z$8769,'Compensation PV'!A211+2,FALSE)*Données!$G$35) -> 14.3037683 | AC168: 14.3037683 | AG168: 0.0360156 | AH168: 0.0369343 | AI168: 0.0363919 | AJ168: 0.0362348 | AK168: 0.0362505 | AL168: 0.0360891 | AM168: 0.0363342 | AN168: 0.0365475 | AO168: 0.0367292 | AP168: 0.0359637 | AR168: 0.0338 | AS168: 0.07845 | AT168: 0.17686 | AU168: 0.35279 | AV168: 0.34553 | AW168: 0.18433 | AX168: 0.26063 | AY168: 0.36242 | AZ168: 0.40755 | BA168: 0.28342
C169: 1 | D169: 7 | E169: 16 | G169: 0.1789492784 | H169: 0.1851045916 | I169: 0.5535931534 | J169: 0.5617232564 | K169: 0.05547263311 | L169: 0.05688708222 | M169: 0.4895156925 | N169: 0.5179611885 | O169: 0.5228053384 | P169: 0.5312658283 | Q169: 0.5112498257 | R169: 0.5357835008 | S169: 0.4852105971 | T169: 0.5109375734 | U169: 0.5384093605 | V169: 0.5597842315 | W169: 0.5477498007 | X169: 0.5618591135 | Y169: 0.207604318 | Z169: 0.2140705499 | AB169: =IF('Courbes de Production PV'!$C$4="Saisie Manuelle",'Courbes de Production PV'!F169*Données!$G$35,HLOOKUP('Courbes de Production PV'!$C$4&'Courbes de Production PV'!$C$5,'Courbes de Production PV'!$G$7:$Z$8769,'Compensation PV'!A212+2,FALSE)*Données!$G$35) -> 10.3802159 | AC169: 10.3802159 | AG169: 0 | AH169: 0 | AI169: 0 | AJ169: 0 | AK169: 0 | AL169: 0 | AM169: 0 | AN169: 0 | AO169: 0 | AP169: 0 | AR169: 0.00019 | AS169: 0.12828 | AT169: 0.03487 | AU169: 0.08134 | AV169: 0.10019 | AW169: 0.03271 | AX169: 0.08077 | AY169: 0.096 | AZ169: 0.00125 | BA169: 0.00309
C170: 1 | D170: 7 | E170: 17 | G170: 0.3292511872 | H170: 0.4003953812 | I170: 0.3707966534 | J170: 0.4211373986 | K170: 0.03889266678 | L170: 0.03996989623 | M170: 0.3152650537 | N170: 0.378819113 | O170: 0.3416743859 | P170: 0.3907707169 | Q170: 0.1743327374 | R170: 0.2010068068 | S170: 0.2310648867 | T170: 0.2724917792 | U170: 0.3502482287 | V170: 0.4093623464 | W170: 0.371545238 | X170: 0.4272018121 | Y170: 0.0207584174 | Z170: 0.02132245009 | AB170: =IF('Courbes de Production PV'!$C$4="Saisie Manuelle",'Courbes de Production PV'!F170*Données!$G$35,HLOOKUP('Courbes de Production PV'!$C$4&'Courbes de Production PV'!$C$5,'Courbes de Production PV'!$G$7:$Z$8769,'Compensation PV'!A213+2,FALSE)*Données!$G$35) -> 1.03792087 | AC170: 1.03792087 | AG170: 0 | AH170: 0 | AI170: 0 | AJ170: 0 | AK170: 0 | AL170: 0 | AM170: 0 | AN170: 0 | AO170: 0 | AP170: 0 | AR170: 0 | AS170: 0 | AT170: 0 | AU170: 0 | AV170: 0 | AW170: 0 | AX170: 0 | AY170: 0 | AZ170: 0 | BA170: 0
C171: 1 | D171: 7 | E171: 18 | G171: 0.06404042051 | H171: 0.1088212919 | I171: 0.1311281932 | J171: 0.191895626 | K171: 0.01305789439 | L171: 0.01378853697 | M171: 0.07316188602 | N171: 0.1183705343 | O171: 0.08066385997 | P171: 0.1219075229 | Q171: 0.03066947208 | R171: 0.0483063211 | S171: 0.07177357353 | T171: 0.1173599702 | U171: 0.08175377405 | V171: 0.1233749386 | W171: 0.1478050484 | X171: 0.2116587334 | Y171: 0.0670997461 | Z171: 0.110359039 | AB171: =IF('Courbes de Production PV'!$C$4="Saisie Manuelle",'Courbes de Production PV'!F171*Données!$G$35,HLOOKUP('Courbes de Production PV'!$C$4&'Courbes de Production PV'!$C$5,'Courbes de Production PV'!$G$7:$Z$8769,'Compensation PV'!A214+2,FALSE)*Données!$G$35) -> 3.354987305 | AC171: 3.354987305 | AG171: 0 | AH171: 0 | AI171: 0 | AJ171: 0 | AK171: 0 | AL171: 0 | AM171: 0 | AN171: 0 | AO171: 0 | AP171: 0 | AR171: 0 | AS171: 0 | AT171: 0 | AU171: 0 | AV171: 0 | AW171: 0 | AX171: 0 | AY171: 0 | AZ171: 0 | BA171: 0
C172: 1 | D172: 7 | E172: 19 | G172: 0 | H172: 0 | I172: 0 | J172: 0 | K172: 0 | L172: 0 | M172: 0 | N172: 0 | O172: 0 | P172: 0 | Q172: 0 | R172: 0 | S172: 0 | T172: 0 | U172: 0 | V172: 0 | W172: 0 | X172: 0 | Y172: 0 | Z172: 0 | AB172: =IF('Courbes de Production PV'!$C$4="Saisie Manuelle",'Courbes de Production PV'!F172*Données!$G$35,HLOOKUP('Courbes de Production PV'!$C$4&'Courbes de Production PV'!$C$5,'Courbes de Production PV'!$G$7:$Z$8769,'Compensation PV'!A215+2,FALSE)*Données!$G$35) -> 0 | AC172: 0 | AG172: 0 | AH172: 0 | AI172: 0 | AJ172: 0 | AK172: 0 | AL172: 0 | AM172: 0 | AN172: 0 | AO172: 0 | AP172: 0 | AR172: 0 | AS172: 0 | AT172: 0 | AU172: 0 | AV172: 0 | AW172: 0 | AX172: 0 | AY172: 0 | AZ172: 0 | BA172: 0
C173: 1 | D173: 7 | E173: 20 | G173: 0 | H173: 0 | I173: 0 | J173: 0 | K173: 0 | L173: 0 | M173: 0 | N173: 0 | O173: 0 | P173: 0 | Q173: 0 | R173: 0 | S173: 0 | T173: 0 | U173: 0 | V173: 0 | W173: 0 | X173: 0 | Y173: 0 | Z173: 0 | AB173: =IF('Courbes de Production PV'!$C$4="Saisie Manuelle",'Courbes de Production PV'!F173*Données!$G$35,HLOOKUP('Courbes de Production PV'!$C$4&'Courbes de Production PV'!$C$5,'Courbes de Production PV'!$G$7:$Z$8769,'Compensation PV'!A216+2,FALSE)*Données!$G$35) -> 0 | AC173: 0 | AG173: 0 | AH173: 0 | AI173: 0 | AJ173: 0 | AK173: 0 | AL173: 0 | AM173: 0 | AN173: 0 | AO173: 0 | AP173: 0 | AR173: 0 | AS173: 0 | AT173: 0 | AU173: 0 | AV173: 0 | AW173: 0 | AX173: 0 | AY173: 0 | AZ173: 0 | BA173: 0
C174: 1 | D174: 7 | E174: 21 | G174: 0 | H174: 0 | I174: 0 | J174: 0 | K174: 0 | L174: 0 | M174: 0 | N174: 0 | O174: 0 | P174: 0 | Q174: 0 | R174: 0 | S174: 0 | T174: 0 | U174: 0 | V174: 0 | W174: 0 | X174: 0 | Y174: 0 | Z174: 0 | AB174: =IF('Courbes de Production PV'!$C$4="Saisie Manuelle",'Courbes de Production PV'!F174*Données!$G$35,HLOOKUP('Courbes de Production PV'!$C$4&'Courbes de Production PV'!$C$5,'Courbes de Production PV'!$G$7:$Z$8769,'Compensation PV'!A217+2,FALSE)*Données!$G$35) -> 0 | AC174: 0 | AG174: 0 | AH174: 0 | AI174: 0 | AJ174: 0 | AK174: 0 | AL174: 0 | AM174: 0 | AN174: 0 | AO174: 0 | AP174: 0 | AR174: 0 | AS174: 0 | AT174: 0 | AU174: 0 | AV174: 0 | AW174: 0 | AX174: 0 | AY174: 0 | AZ174: 0 | BA174: 0
C175: 1 | D175: 7 | E175: 22 | G175: 0 | H175: 0 | I175: 0 | J175: 0 | K175: 0 | L175: 0 | M175: 0 | N175: 0 | O175: 0 | P175: 0 | Q175: 0 | R175: 0 | S175: 0 | T175: 0 | U175: 0 | V175: 0 | W175: 0 | X175: 0 | Y175: 0 | Z175: 0 | AB175: =IF('Courbes de Production PV'!$C$4="Saisie Manuelle",'Courbes de Production PV'!F175*Données!$G$35,HLOOKUP('Courbes de Production PV'!$C$4&'Courbes de Production PV'!$C$5,'Courbes de Production PV'!$G$7:$Z$8769,'Compensation PV'!A218+2,FALSE)*Données!$G$35) -> 0 | AC175: 0 | AG175: 0 | AH175: 0 | AI175: 0 | AJ175: 0 | AK175: 0 | AL175: 0 | AM175: 0 | AN175: 0 | AO175: 0 | AP175: 0 | AR175: 0 | AS175: 0 | AT175: 0 | AU175: 0 | AV175: 0 | AW175: 0 | AX175: 0 | AY175: 0 | AZ175: 0 | BA175: 0
C176: 1 | D176: 7 | E176: 23 | G176: 0 | H176: 0 | I176: 0 | J176: 0 | K176: 0 | L176: 0 | M176: 0 | N176: 0 | O176: 0 | P176: 0 | Q176: 0 | R176: 0 | S176: 0 | T176: 0 | U176: 0 | V176: 0 | W176: 0 | X176: 0 | Y176: 0 | Z176: 0 | AB176: =IF('Courbes de Production PV'!$C$4="Saisie Manuelle",'Courbes de Production PV'!F176*Données!$G$35,HLOOKUP('Courbes de Production PV'!$C$4&'Courbes de Production PV'!$C$5,'Courbes de Production PV'!$G$7:$Z$8769,'Compensation PV'!A219+2,FALSE)*Données!$G$35) -> 0 | AC176: 0 | AG176: 0 | AH176: 0 | AI176: 0 | AJ176: 0 | AK176: 0 | AL176: 0 | AM176: 0 | AN176: 0 | AO176: 0 | AP176: 0 | AR176: 0 | AS176: 0 | AT176: 0 | AU176: 0 | AV176: 0 | AW176: 0 | AX176: 0 | AY176: 0 | AZ176: 0 | BA176: 0
C177: 1 | D177: 8 | E177: 0 | G177: 0 | H177: 0 | I177: 0 | J177: 0 | K177: 0 | L177: 0 | M177: 0 | N177: 0 | O177: 0 | P177: 0 | Q177: 0 | R177: 0 | S177: 0 | T177: 0 | U177: 0 | V177: 0 | W177: 0 | X177: 0 | Y177: 0 | Z177: 0 | AB177: =IF('Courbes de Production PV'!$C$4="Saisie Manuelle",'Courbes de Production PV'!F177*Données!$G$35,HLOOKUP('Courbes de Production PV'!$C$4&'Courbes de Production PV'!$C$5,'Courbes de Production PV'!$G$7:$Z$8769,'Compensation PV'!A220+2,FALSE)*Données!$G$35) -> 0 | AC177: 0 | AG177: 0 | AH177: 0 | AI177: 0 | AJ177: 0 | AK177: 0 | AL177: 0 | AM177: 0 | AN177: 0 | AO177: 0 | AP177: 0 | AR177: 0 | AS177: 0 | AT177: 0 | AU177: 0 | AV177: 0 | AW177: 0 | AX177: 0 | AY177: 0 | AZ177: 0 | BA177: 0
C178: 1 | D178: 8 | E178: 1 | G178: 0 | H178: 0 | I178: 0 | J178: 0 | K178: 0 | L178: 0 | M178: 0 | N178: 0 | O178: 0 | P178: 0 | Q178: 0 | R178: 0 | S178: 0 | T178: 0 | U178: 0 | V178: 0 | W178: 0 | X178: 0 | Y178: 0 | Z178: 0 | AB178: =IF('Courbes de Production PV'!$C$4="Saisie Manuelle",'Courbes de Production PV'!F178*Données!$G$35,HLOOKUP('Courbes de Production PV'!$C$4&'Courbes de Production PV'!$C$5,'Courbes de Production PV'!$G$7:$Z$8769,'Compensation PV'!A221+2,FALSE)*Données!$G$35) -> 0 | AC178: 0 | AG178: 0 | AH178: 0 | AI178: 0 | AJ178: 0 | AK178: 0 | AL178: 0 | AM178: 0 | AN178: 0 | AO178: 0 | AP178: 0 | AR178: 0 | AS178: 0 | AT178: 0 | AU178: 0 | AV178: 0 | AW178: 0 | AX178: 0 | AY178: 0 | AZ178: 0 | BA178: 0
C179: 1 | D179: 8 | E179: 2 | G179: 0 | H179: 0 | I179: 0 | J179: 0 | K179: 0 | L179: 0 | M179: 0 | N179: 0 | O179: 0 | P179: 0 | Q179: 0 | R179: 0 | S179: 0 | T179: 0 | U179: 0 | V179: 0 | W179: 0 | X179: 0 | Y179: 0 | Z179: 0 | AB179: =IF('Courbes de Production PV'!$C$4="Saisie Manuelle",'Courbes de Production PV'!F179*Données!$G$35,HLOOKUP('Courbes de Production PV'!$C$4&'Courbes de Production PV'!$C$5,'Courbes de Production PV'!$G$7:$Z$8769,'Compensation PV'!A222+2,FALSE)*Données!$G$35) -> 0 | AC179: 0 | AG179: 0 | AH179: 0 | AI179: 0 | AJ179: 0 | AK179: 0 | AL179: 0 | AM179: 0 | AN179: 0 | AO179: 0 | AP179: 0 | AR179: 0 | AS179: 0 | AT179: 0 | AU179: 0 | AV179: 0 | AW179: 0 | AX179: 0 | AY179: 0 | AZ179: 0 | BA179: 0
C180: 1 | D180: 8 | E180: 3 | G180: 0 | H180: 0 | I180: 0 | J180: 0 | K180: 0 | L180: 0 | M180: 0 | N180: 0 | O180: 0 | P180: 0 | Q180: 0 | R180: 0 | S180: 0 | T180: 0 | U180: 0 | V180: 0 | W180: 0 | X180: 0 | Y180: 0 | Z180: 0 | AB180: =IF('Courbes de Production PV'!$C$4="Saisie Manuelle",'Courbes de Production PV'!F180*Données!$G$35,HLOOKUP('Courbes de Production PV'!$C$4&'Courbes de Production PV'!$C$5,'Courbes de Production PV'!$G$7:$Z$8769,'Compensation PV'!A223+2,FALSE)*Données!$G$35) -> 0 | AC180: 0 | AG180: 0 | AH180: 0 | AI180: 0 | AJ180: 0 | AK180: 0 | AL180: 0 | AM180: 0 | AN180: 0 | AO180: 0 | AP180: 0 | AR180: 0 | AS180: 0 | AT180: 0 | AU180: 0 | AV180: 0 | AW180: 0 | AX180: 0 | AY180: 0 | AZ180: 0 | BA180: 0
C181: 1 | D181: 8 | E181: 4 | G181: 0 | H181: 0 | I181: 0 | J181: 0 | K181: 0 | L181: 0 | M181: 0 | N181: 0 | O181: 0 | P181: 0 | Q181: 0 | R181: 0 | S181: 0 | T181: 0 | U181: 0 | V181: 0 | W181: 0 | X181: 0 | Y181: 0 | Z181: 0 | AB181: =IF('Courbes de Production PV'!$C$4="Saisie Manuelle",'Courbes de Production PV'!F181*Données!$G$35,HLOOKUP('Courbes de Production PV'!$C$4&'Courbes de Production PV'!$C$5,'Courbes de Production PV'!$G$7:$Z$8769,'Compensation PV'!A224+2,FALSE)*Données!$G$35) -> 0 | AC181: 0 | AG181: 0 | AH181: 0 | AI181: 0 | AJ181: 0 | AK181: 0 | AL181: 0 | AM181: 0 | AN181: 0 | AO181: 0 | AP181: 0 | AR181: 0 | AS181: 0 | AT181: 0 | AU181: 0 | AV181: 0 | AW181: 0 | AX181: 0 | AY181: 0 | AZ181: 0 | BA181: 0
C182: 1 | D182: 8 | E182: 5 | G182: 0 | H182: 0 | I182: 0 | J182: 0 | K182: 0 | L182: 0 | M182: 0 | N182: 0 | O182: 0 | P182: 0 | Q182: 0 | R182: 0 | S182: 0 | T182: 0 | U182: 0 | V182: 0 | W182: 0 | X182: 0 | Y182: 0 | Z182: 0 | AB182: =IF('Courbes de Production PV'!$C$4="Saisie Manuelle",'Courbes de Production PV'!F182*Données!$G$35,HLOOKUP('Courbes de Production PV'!$C$4&'Courbes de Production PV'!$C$5,'Courbes de Production PV'!$G$7:$Z$8769,'Compensation PV'!A225+2,FALSE)*Données!$G$35) -> 0 | AC182: 0 | AG182: 0 | AH182: 0 | AI182: 0 | AJ182: 0 | AK182: 0 | AL182: 0 | AM182: 0 | AN182: 0 | AO182: 0 | AP182: 0 | AR182: 0 | AS182: 0 | AT182: 0 | AU182: 0 | AV182: 0 | AW182: 0 | AX182: 0 | AY182: 0 | AZ182: 0 | BA182: 0
C183: 1 | D183: 8 | E183: 6 | G183: 0 | H183: 0 | I183: 0 | J183: 0 | K183: 0 | L183: 0 | M183: 0 | N183: 0 | O183: 0 | P183: 0 | Q183: 0 | R183: 0 | S183: 0 | T183: 0 | U183: 0 | V183: 0 | W183: 0 | X183: 0 | Y183: 0 | Z183: 0 | AB183: =IF('Courbes de Production PV'!$C$4="Saisie Manuelle",'Courbes de Production PV'!F183*Données!$G$35,HLOOKUP('Courbes de Production PV'!$C$4&'Courbes de Production PV'!$C$5,'Courbes de Production PV'!$G$7:$Z$8769,'Compensation PV'!A226+2,FALSE)*Données!$G$35) -> 0 | AC183: 0 | AG183: 0 | AH183: 0 | AI183: 0 | AJ183: 0 | AK183: 0 | AL183: 0 | AM183: 0 | AN183: 0 | AO183: 0 | AP183: 0 | AR183: 0 | AS183: 0 | AT183: 0 | AU183: 0 | AV183: 0 | AW183: 0 | AX183: 0 | AY183: 0 | AZ183: 0 | BA183: 0
C184: 1 | D184: 8 | E184: 7 | G184: 0 | H184: 0 | I184: 0 | J184: 0 | K184: 0 | L184: 0 | M184: 0 | N184: 0 | O184: 0 | P184: 0 | Q184: 0 | R184: 0 | S184: 0 | T184: 0 | U184: 0 | V184: 0 | W184: 0 | X184: 0 | Y184: 0 | Z184: 0 | AB184: =IF('Courbes de Production PV'!$C$4="Saisie Manuelle",'Courbes de Production PV'!F184*Données!$G$35,HLOOKUP('Courbes de Production PV'!$C$4&'Courbes de Production PV'!$C$5,'Courbes de Production PV'!$G$7:$Z$8769,'Compensation PV'!A227+2,FALSE)*Données!$G$35) -> 0 | AC184: 0 | AG184: 0.0458235 | AH184: 0.0468136 | AI184: 0.045985 | AJ184: 0.0469242 | AK184: 0.0464867 | AL184: 0.0465767 | AM184: 0.0469506 | AN184: 0.0471494 | AO184: 0.0463749 | AP184: 0.0458913 | AR184: 0.05289 | AS184: 0.07023 | AT184: 0.04029 | AU184: 0.10717 | AV184: 0.07933 | AW184: 0.09612 | AX184: 0.10172 | AY184: 0 | AZ184: 0.0609 | BA184: 0
C185: 1 | D185: 8 | E185: 8 | G185: 0 | H185: 0 | I185: 0 | J185: 0 | K185: 0 | L185: 0 | M185: 0 | N185: 0 | O185: 0 | P185: 0 | Q185: 0 | R185: 0 | S185: 0 | T185: 0 | U185: 0 | V185: 0 | W185: 0 | X185: 0 | Y185: 0 | Z185: 0 | AB185: =IF('Courbes de Production PV'!$C$4="Saisie Manuelle",'Courbes de Production PV'!F185*Données!$G$35,HLOOKUP('Courbes de Production PV'!$C$4&'Courbes de Production PV'!$C$5,'Courbes de Production PV'!$G$7:$Z$8769,'Compensation PV'!A228+2,FALSE)*Données!$G$35) -> 0 | AC185: 0 | AG185: 0.136833 | AH185: 0.145799 | AI185: 0.136364 | AJ185: 0.1489 | AK185: 0.145424 | AL185: 0.146278 | AM185: 0.14839 | AN185: 0.148871 | AO185: 0.144542 | AP185: 0.137526 | AR185: 0.34084 | AS185: 0.35962 | AT185: 0.32038 | AU185: 0.37372 | AV185: 0.26309 | AW185: 0.37768 | AX185: 0.37732 | AY185: 0.38197 | AZ185: 0.35305 | BA185: 0.02516
C186: 1 | D186: 8 | E186: 9 | G186: 0.04734558518 | H186: 0.003842231668 | I186: 0.06171707528 | J186: 0.01800444746 | K186: 0 | L186: 0 | M186: 0.09621012164 | N186: 0.01301847329 | O186: 0.07216415571 | P186: 0.007764435719 | Q186: 0.08997266344 | R186: 0.009560427866 | S186: 0.09039399261 | T186: 0.01038106064 | U186: 0.08037223937 | V186: 0.01429207355 | W186: 0.0583699035 | X186: 0.01145310617 | Y186: 0.06146949122 | Z186: 0.005841767148 | AB186: =IF('Courbes de Production PV'!$C$4="Saisie Manuelle",'Courbes de Production PV'!F186*Données!$G$35,HLOOKUP('Courbes de Production PV'!$C$4&'Courbes de Production PV'!$C$5,'Courbes de Production PV'!$G$7:$Z$8769,'Compensation PV'!A229+2,FALSE)*Données!$G$35) -> 3.073474561 | AC186: 3.073474561 | AG186: 0.238861 | AH186: 0.269693 | AI186: 0.236247 | AJ186: 0.278726 | AK186: 0.269516 | AL186: 0.271614 | AM186: 0.27718 | AN186: 0.276988 | AO186: 0.267834 | AP186: 0.240676 | AR186: 0.43625 | AS186: 0.55964 | AT186: 0.51259 | AU186: 0.56518 | AV186: 0.11719 | AW186: 0.56597 | AX186: 0.56551 | AY186: 0.56895 | AZ186: 0.5519 | BA186: 0.4364
C187: 1 | D187: 8 | E187: 10 | G187: 0.3123143978 | H187: 0.07960291049 | I187: 0.3259890296 | J187: 0.09301651839 | K187: 0.04941204655 | L187: 0.0464051713 | M187: 0.3330742548 | N187: 0.1131402901 | O187: 0.3414292964 | P187: 0.1037807027 | Q187: 0.3562662528 | R187: 0.1082183357 | S187: 0.3346011428 | T187: 0.1055540581 | U187: 0.3758455368 | V187: 0.1331527016 | W187: 0.3076820325 | X187: 0.08474156109 | Y187: 0.3363649236 | Z187: 0.09366971462 | AB187: =IF('Courbes de Production PV'!$C$4="Saisie Manuelle",'Courbes de Production PV'!F187*Données!$G$35,HLOOKUP('Courbes de Production PV'!$C$4&'Courbes de Production PV'!$C$5,'Courbes de Production PV'!$G$7:$Z$8769,'Compensation PV'!A230+2,FALSE)*Données!$G$35) -> 16.81824618 | AC187: 16.81824618 | AG187: 0.315401 | AH187: 0.372484 | AI187: 0.310849 | AJ187: 0.385209 | AK187: 0.371371 | AL187: 0.373938 | AM187: 0.38292 | AN187: 0.381472 | AO187: 0.370713 | AP187: 0.317952 | AR187: 0.11977 | AS187: 0.68655 | AT187: 0.63352 | AU187: 0.39666 | AV187: 0.48321 | AW187: 0.68338 | AX187: 0.68506 | AY187: 0.68031 | AZ187: 0.67821 | BA187: 0.63965
C188: 1 | D188: 8 | E188: 11 | G188: 0.4980771046 | H188: 0.2633332026 | I188: 0.5226910097 | J188: 0.2831872834 | K188: 0.003774986684 | L188: 0.003924862086 | M188: 0.5029297304 | N188: 0.2929024635 | O188: 0.5255307338 | P188: 0.2931956806 | Q188: 0.5350985746 | R188: 0.2993412773 | S188: 0.5012114135 | T188: 0.2849171919 | U188: 0.5677815661 | V188: 0.3336600834 | W188: 0.5022610714 | X188: 0.2699429528 | Y188: 0.5268266766 | Z188: 0.2861458701 | AB188: =IF('Courbes de Production PV'!$C$4="Saisie Manuelle",'Courbes de Production PV'!F188*Données!$G$35,HLOOKUP('Courbes de Production PV'!$C$4&'Courbes de Production PV'!$C$5,'Courbes de Production PV'!$G$7:$Z$8769,'Compensation PV'!A231+2,FALSE)*Données!$G$35) -> 26.34133383 | AC188: 26.34133383 | AG188: 0.344344 | AH188: 0.417646 | AI188: 0.340207 | AJ188: 0.428301 | AK188: 0.413446 | AL188: 0.41504 | AM188: 0.426095 | AN188: 0.424502 | AO188: 0.416212 | AP188: 0.346793 | AR188: 0.13877 | AS188: 0.74514 | AT188: 0.69559 | AU188: 0.75018 | AV188: 0.71417 | AW188: 0.73785 | AX188: 0.73818 | AY188: 0.73492 | AZ188: 0.74157 | BA188: 0.70873
C189: 1 | D189: 8 | E189: 12 | G189: 0.6218414839 | H189: 0.4287524058 | I189: 0.654623492 | J189: 0.4520104716 | K189: 0.4583096117 | L189: 0.3387652443 | M189: 0.4439290601 | N189: 0.3455213569 | O189: 0.641869823 | P189: 0.451896041 | Q189: 0.6467415412 | R189: 0.4582536629 | S189: 0.6070221219 | T189: 0.4346150952 | U189: 0.6893371597 | V189: 0.4990356221 | W189: 0.6328055367 | X189: 0.4372744524 | Y189: 0.6500476754 | Z189: 0.4533714908 | AB189: =IF('Courbes de Production PV'!$C$4="Saisie Manuelle",'Courbes de Production PV'!F189*Données!$G$35,HLOOKUP('Courbes de Production PV'!$C$4&'Courbes de Production PV'!$C$5,'Courbes de Production PV'!$G$7:$Z$8769,'Compensation PV'!A232+2,FALSE)*Données!$G$35) -> 32.50238377 | AC189: 32.50238377 | AG189: 0.325191 | AH189: 0.397639 | AI189: 0.323217 | AJ189: 0.403545 | AK189: 0.39034 | AL189: 0.390328 | AM189: 0.401225 | AN189: 0.401083 | AO189: 0.397497 | AP189: 0.327042 | AR189: 0.15379 | AS189: 0.74225 | AT189: 0.69658 | AU189: 0.74851 | AV189: 0.70845 | AW189: 0.73297 | AX189: 0.72961 | AY189: 0.73018 | AZ189: 0.74426 | BA189: 0.70193
C190: 1 | D190: 8 | E190: 13 | G190: 0.6861625712 | H190: 0.5445806894 | I190: 0.3711842626 | J190: 0.3290026912 | K190: 0.6542623324 | L190: 0.5203486608 | M190: 0.6675285909 | N190: 0.5470307976 | O190: 0.7000442694 | P190: 0.5583923354 | Q190: 0.6985485961 | R190: 0.5635039852 | S190: 0.65401567 | T190: 0.5326731957 | U190: 0.7494533765 | V190: 0.6107356197 | W190: 0.7044469531 | X190: 0.5577653183 | Y190: 0.7072365614 | Z190: 0.5646168669 | AB190: =IF('Courbes de Production PV'!$C$4="Saisie Manuelle",'Courbes de Production PV'!F190*Données!$G$35,HLOOKUP('Courbes de Production PV'!$C$4&'Courbes de Production PV'!$C$5,'Courbes de Production PV'!$G$7:$Z$8769,'Compensation PV'!A233+2,FALSE)*Données!$G$35) -> 35.36182807 | AC190: 35.36182807 | AG190: 0.253355 | AH190: 0.312768 | AI190: 0.254511 | AJ190: 0.312717 | AK190: 0.302671 | AL190: 0.30094 | AM190: 0.310328 | AN190: 0.31276 | AO190: 0.313925 | AP190: 0.254434 | AR190: 0.11202 | AS190: 0.68094 | AT190: 0.64074 | AU190: 0.68461 | AV190: 0.64616 | AW190: 0.66801 | AX190: 0.66343 | AY190: 0.66771 | AZ190: 0.68978 | BA190: 0.07174
C191: 1 | D191: 8 | E191: 14 | G191: 0.6926953329 | H191: 0.6071306725 | I191: 0.497980923 | J191: 0.4465064209 | K191: 0.3974039952 | L191: 0.3621832758 | M191: 0.6659023805 | N191: 0.596309367 | O191: 0.7003481804 | P191: 0.6090474356 | Q191: 0.6939253444 | R191: 0.6134370059 | S191: 0.6464135122 | T191: 0.5763833905 | U191: 0.7440829036 | V191: 0.6604319517 | W191: 0.7082932165 | X191: 0.6162780286 | Y191: 0.5176007133 | Z191: 0.4645715685 | AB191: =IF('Courbes de Production PV'!$C$4="Saisie Manuelle",'Courbes de Production PV'!F191*Données!$G$35,HLOOKUP('Courbes de Production PV'!$C$4&'Courbes de Production PV'!$C$5,'Courbes de Production PV'!$G$7:$Z$8769,'Compensation PV'!A234+2,FALSE)*Données!$G$35) -> 25.88003567 | AC191: 25.88003567 | AG191: 0.145455 | AH191: 0.181241 | AI191: 0.1489 | AJ191: 0.176765 | AK191: 0.171004 | AL191: 0.168377 | AM191: 0.174642 | AN191: 0.179001 | AO191: 0.183184 | AP191: 0.14579 | AR191: 0.17566 | AS191: 0.56685 | AT191: 0.53236 | AU191: 0.55297 | AV191: 0.53283 | AW191: 0.54383 | AX191: 0.54614 | AY191: 0.54782 | AZ191: 0.58282 | BA191: 0.04363
C192: 1 | D192: 8 | E192: 15 | G192: 0.6366587551 | H192: 0.6093372942 | I192: 0.1880195339 | J192: 0.1896959437 | K192: 0.3980878018 | L192: 0.3799622454 | M192: 0.6092223564 | N192: 0.5903671064 | O192: 0.6422325555 | P192: 0.6016947503 | Q192: 0.6321488085 | R192: 0.6056745093 | S192: 0.5878441522 | T192: 0.5670200809 | U192: 0.6763877043 | V192: 0.6474922255 | W192: 0.1818121101 | X192: 0.1834686691 | Y192: 0.6449411652 | Z192: 0.6136675669 | AB192: =IF('Courbes de Production PV'!$C$4="Saisie Manuelle",'Courbes de Production PV'!F192*Données!$G$35,HLOOKUP('Courbes de Production PV'!$C$4&'Courbes de Production PV'!$C$5,'Courbes de Production PV'!$G$7:$Z$8769,'Compensation PV'!A235+2,FALSE)*Données!$G$35) -> 32.24705826 | AC192: 32.24705826 | AG192: 0.0379629 | AH192: 0.0406623 | AI192: 0.0387829 | AJ192: 0.0392492 | AK192: 0.0390314 | AL192: 0.0385997 | AM192: 0.0392189 | AN192: 0.039916 | AO192: 0.0406201 | AP192: 0.0378924 | AR192: 0.16587 | AS192: 0.38808 | AT192: 0.35732 | AU192: 0.35804 | AV192: 0.35207 | AW192: 0.35212 | AX192: 0.35953 | AY192: 0.36303 | AZ192: 0.40821 | BA192: 0.05511
C193: 1 | D193: 8 | E193: 16 | G193: 0.5151590666 | H193: 0.5434580222 | I193: 0.2910557502 | J193: 0.2961140503 | K193: 0.1070672402 | L193: 0.1095495515 | M193: 0.4924428711 | N193: 0.5209586897 | O193: 0.5238935358 | P193: 0.5322854007 | Q193: 0.5140941719 | R193: 0.5387039499 | S193: 0.4840335459 | T193: 0.5093622718 | U193: 0.5465429027 | V193: 0.5682582928 | W193: 0.413444756 | X193: 0.4234221918 | Y193: 0.5226870796 | Z193: 0.5438785935 | AB193: =IF('Courbes de Production PV'!$C$4="Saisie Manuelle",'Courbes de Production PV'!F193*Données!$G$35,HLOOKUP('Courbes de Production PV'!$C$4&'Courbes de Production PV'!$C$5,'Courbes de Production PV'!$G$7:$Z$8769,'Compensation PV'!A236+2,FALSE)*Données!$G$35) -> 26.13435398 | AC193: 26.13435398 | AG193: 0 | AH193: 0 | AI193: 0 | AJ193: 0 | AK193: 0 | AL193: 0 | AM193: 0 | AN193: 0 | AO193: 0 | AP193: 0 | AR193: 0.06855 | AS193: 0.12932 | AT193: 0.09964 | AU193: 0.08638 | AV193: 0.0857 | AW193: 0.0727 | AX193: 0.08578 | AY193: 0.10049 | AZ193: 0.15817 | BA193: 0.00618
C194: 1 | D194: 8 | E194: 17 | G194: 0.329938337 | H194: 0.4003663467 | I194: 0.370273381 | J194: 0.4203427997 | K194: 0.2740471723 | L194: 0.3109258884 | M194: 0.3195898943 | N194: 0.383882341 | O194: 0.3426841547 | P194: 0.3911432529 | Q194: 0.3320750408 | R194: 0.396962283 | S194: 0.3188304266 | T194: 0.3817982411 | U194: 0.3572823806 | V194: 0.4173888683 | W194: 0.3662328246 | X194: 0.4209278329 | Y194: 0.3364253557 | Z194: 0.3987711119 | AB194: =IF('Courbes de Production PV'!$C$4="Saisie Manuelle",'Courbes de Production PV'!F194*Données!$G$35,HLOOKUP('Courbes de Production PV'!$C$4&'Courbes de Production PV'!$C$5,'Courbes de Production PV'!$G$7:$Z$8769,'Compensation PV'!A237+2,FALSE)*Données!$G$35) -> 16.82126778 | AC194: 16.82126778 | AG194: 0 | AH194: 0 | AI194: 0 | AJ194: 0 | AK194: 0 | AL194: 0 | AM194: 0 | AN194: 0 | AO194: 0 | AP194: 0 | AR194: 0 | AS194: 0 | AT194: 0 | AU194: 0 | AV194: 0 | AW194: 0 | AX194: 0 | AY194: 0 | AZ194: 0 | BA194: 0
C195: 1 | D195: 8 | E195: 18 | G195: 0.06800846833 | H195: 0.1148798234 | I195: 0.09039046604 | J195: 0.1256629035 | K195: 0.06226386226 | L195: 0.08830471333 | M195: 0.07770648473 | N195: 0.125420376 | O195: 0.08465391721 | P195: 0.1273092958 | Q195: 0.06796941006 | R195: 0.1118617625 | S195: 0.07621627808 | T195: 0.124006327 | U195: 0.08041115584 | V195: 0.1214096568 | W195: 0.1320010948 | X195: 0.1846682463 | Y195: 0.07019185389 | Z195: 0.1145087081 | AB195: =IF('Courbes de Production PV'!$C$4="Saisie Manuelle",'Courbes de Production PV'!F195*Données!$G$35,HLOOKUP('Courbes de Production PV'!$C$4&'Courbes de Production PV'!$C$5,'Courbes de Production PV'!$G$7:$Z$8769,'Compensation PV'!A238+2,FALSE)*Données!$G$35) -> 3.509592694 | AC195: 3.509592694 | AG195: 0 | AH195: 0 | AI195: 0 | AJ195: 0 | AK195: 0 | AL195: 0 | AM195: 0 | AN195: 0 | AO195: 0 | AP195: 0 | AR195: 0 | AS195: 0 | AT195: 0 | AU195: 0 | AV195: 0 | AW195: 0 | AX195: 0 | AY195: 0 | AZ195: 0 | BA195: 0
